Workbook

Sheet Start
E3: Saxån-Braån, vattenkontroll, kemi - 2021
B6: Foto: Provpunkt 16, Saxån vid Saxtorp
C7: Resultat sorterat per månad | E7: Resultat sorterat per provpunkt | H7: Diagram och statistik
C11: Månadsrapport | E11: Kommentarer | H11: Vattenföring
C13: Länkar | E13: Kontakt | H13: Användarguide
C15: På uppdrag av Saxån-Braåns vattenvårdskommitté

Sheet Resultat
B1: Saxån-Braån 2021 Resultat
D2: Peka på röda trianglar (►) för förklaring av parametrar
A3: Sorterings- | B3: Provtagningspunkt | C3: Provtagn | D3: Temp | E3: Syreh | F3: Syrem | G3: pH | H3: Gruml | I3: Kond | J3: PO4-P | K3: Tot-P | L3: Part.-P | M3: NO3+2-N | N3: NH4-N | O3: Tot-N | P3: Susp | Q3: Anmärkning
A4: ordning | B4: Nr Läge | C4: datum | D4: °C | E4: mg/l | F4: % | H4: FNU | I4: mS/m | J4: µg/l | K4: µg/l | L4: µg/l | M4: µg/l | N4: µg/l | O4: µg/l | P4: mg/l
A5: 250 | B5: januari
A6: 1 | B6: 14 Svalövsbäcken uppstr Svalöv | C6: 2021-01-25 | D6: 3 | E6: 12.7 | F6: 94 | G6: 7.55 | H6: 9.5 | I6: 39.3 | J6: 21 | K6: 48 | L6: 16 | M6: 8900 | N6: 28 | O6: 8800 | P6: 3.4 | Q6: =IF(Rapport!Q10="","",Rapport!Q10) -> Resultatet av kväve total, N, är mindre än summanav ammoniumkväve, NH4-N, och nitrat + nitritkväve, NO23-N. Skillnaden ligger dock inommätosäkerheten.
A7: 2 | B7: 15:2 Svalövsbäcken nedstr Svalöv | C7: 2021-01-25 | D7: 3.6 | E7: 12.8 | F7: 97 | G7: 7.76 | H7: 13 | I7: 45.1 | J7: 28 | K7: 64 | M7: 8700 | N7: 290 | O7: 8900 | P7: 5.1 | Q7: =IF(Rapport!Q11="","",Rapport!Q11) -> 
A8: 3 | B8: 3:2 Örstorpsbäcken | C8: 2021-01-25 | D8: 4.2 | E8: 11.9 | F8: 91 | G8: 7.9 | H8: 9.1 | I8: 69 | J8: 57 | K8: 210 | L8: 60 | M8: 16000 | N8: 35 | O8: 17000 | P8: 6.3 | Q8: =IF(Rapport!Q12="","",Rapport!Q12) -> 
A9: 4 | B9: 5 Braån vid Asmundtorp | C9: 2021-01-25 | D9: 3.3 | E9: 12.6 | F9: 94 | G9: 7.92 | H9: 14 | I9: 49 | J9: 42 | K9: 81 | L9: 30 | M9: 8900 | N9: 72 | O9: 8900 | P9: 7.2 | Q9: =IF(Rapport!Q13="","",Rapport!Q13) -> 
A10: 6 | B10: 26 Långgropen uppstr Eslöv | C10: 2021-01-25 | D10: 3.3 | E10: 11.3 | F10: 85 | G10: 7.53 | H10: 14 | I10: 45.6 | J10: 45 | K10: 86 | L10: 31 | M10: 7100 | N10: 65 | O10: 7400 | P10: 5.7 | Q10: =IF(Rapport!Q14="","",Rapport!Q14) -> 
A11: 7 | B11: 24 Långgropen nedstr Eslöv | C11: 2021-01-25 | D11: 3.6 | E11: 11.7 | F11: 88 | G11: 7.59 | H11: 14 | I11: 47.2 | J11: 46 | K11: 84 | M11: 6900 | N11: 71 | O11: 7200 | P11: 5.8 | Q11: =IF(Rapport!Q15="","",Rapport!Q15) -> 
A12: 9 | B12: 30 Välabäcken | C12: 2021-01-25 | D12: 4.1 | E12: 11.7 | F12: 90 | G12: 7.81 | H12: 4.9 | I12: 76.1 | J12: 40 | K12: 89 | L12: 26 | M12: 15000 | N12: <10 | O12: 15000 | P12: 4.2 | Q12: =IF(Rapport!Q16="","",Rapport!Q16) -> 
A13: 10 | B13: 16 Saxån vid Saxtorp | C13: 2021-01-25 | D13: 3.3 | E13: 12.8 | F13: 96 | G13: 7.99 | H13: 15 | I13: 54.7 | J13: 36 | K13: 100 | L13: 37 | M13: 9200 | N13: <10 | O13: 9200 | P13: 9.3 | Q13: =IF(Rapport!Q17="","",Rapport!Q17) -> 
A14: 200
A15: 250 | B15: februari
A16: 1 | B16: 14 Svalövsbäcken uppstr Svalöv | C16: 2021-02-22 | D16: 2.8 | E16: 12.2 | F16: 90 | G16: 7.46 | H16: 12 | I16: 36.5 | J16: 25 | K16: 75 | L16: 43 | M16: 6500 | N16: 11 | O16: 7200 | P16: 4 | Q16: =IF(Rapport!Q20="","",Rapport!Q20) -> 
A17: 2 | B17: 15:2 Svalövsbäcken nedstr Svalöv | C17: 2021-02-22 | D17: 3.2 | E17: 12.9 | F17: 96 | G17: 7.69 | H17: 14 | I17: 39.9 | J17: 32 | K17: 81 | M17: 6600 | N17: 160 | O17: 7500 | P17: 6.8 | Q17: =IF(Rapport!Q21="","",Rapport!Q21) -> 
A18: 3 | B18: 3:2 Örstorpsbäcken | C18: 2021-02-22 | D18: 3.6 | E18: 12.4 | F18: 94 | G18: 7.85 | H18: 11 | I18: 58.5 | J18: 70 | K18: 110 | L18: 36 | M18: 13000 | N18: <10 | O18: 13000 | P18: 4.4 | Q18: =IF(Rapport!Q22="","",Rapport!Q22) -> 
A19: 4 | B19: 5 Braån vid Asmundtorp | C19: 2021-02-22 | D19: 3.3 | E19: 12.9 | F19: 97 | G19: 7.91 | H19: 19 | I19: 41.4 | J19: 60 | K19: 110 | L19: 46 | M19: 7400 | N19: 64 | O19: 7900 | P19: 9.6 | Q19: =IF(Rapport!Q23="","",Rapport!Q23) -> 
A20: 5 | B20: 28:2 Bäck N Trolleholm | C20: 2021-02-22 | D20: 1.6 | E20: 13.3 | F20: 95 | G20: 7.75 | H20: 5.3 | I20: 36.6 | J20: 5 | K20: 22 | M20: 2300 | N20: 52 | O20: 2500 | P20: 3 | Q20: Is låg kvar i bäcken, vattnet rann ovan is.
A21: 6 | B21: 26 Långgropen uppstr Eslöv | C21: 2021-02-22 | D21: 2.9 | E21: 12.5 | F21: 93 | G21: 7.64 | H21: 16 | I21: 40.7 | J21: 55 | K21: 98 | L21: 36 | M21: 6300 | N21: 73 | O21: 7000 | P21: 3.9 | Q21: =IF(Rapport!Q25="","",Rapport!Q25) -> 
A22: 7 | B22: 24 Långgropen nedstr Eslöv | C22: 2021-02-22 | D22: 2.6 | E22: 12.4 | F22: 91 | G22: 7.69 | H22: 15 | I22: 42.7 | J22: 56 | K22: 99 | M22: 6000 | N22: 83 | O22: 6800 | P22: 6.4 | Q22: =IF(Rapport!Q26="","",Rapport!Q26) -> 
A23: 8 | B23: 19 Saxån vid Annelöv | C23: 2021-02-22 | D23: 3.2 | E23: 13.2 | F23: 99 | G23: 7.97 | H23: 17 | I23: 44.7 | J23: 65 | K23: 110 | M23: 6000 | N23: 41 | O23: 6300 | P23: 15 | Q23: =IF(Rapport!Q27="","",Rapport!Q27) -> 
A24: 9 | B24: 30 Välabäcken | C24: 2021-02-22 | D24: 3.2 | E24: 12.7 | F24: 95 | G24: 7.86 | H24: 13 | I24: 59.4 | J24: 74 | K24: 110 | L24: 36 | M24: 10000 | N24: 15 | O24: 11000 | P24: 10 | Q24: =IF(Rapport!Q28="","",Rapport!Q28) -> 
A25: 10 | B25: 16 Saxån vid Saxtorp | C25: 2021-02-22 | D25: 3.1 | E25: 12.8 | F25: 95 | G25: 7.96 | H25: 19 | I25: 44.9 | J25: 80 | K25: 130 | L25: 49 | M25: 6700 | N25: 69 | O25: 7100 | P25: 13 | Q25: =IF(Rapport!Q29="","",Rapport!Q29) -> 
A26: 200
A27: 250 | B27: mars
A28: 1 | B28: 14 Svalövsbäcken uppstr Svalöv | C28: 2021-03-24 | D28: 5.5 | E28: 12.6 | F28: 100 | G28: 7.96 | H28: 4.1 | I28: 40.8 | J28: 9.3 | K28: 22 | L28: 9 | M28: 5800 | N28: 16 | O28: 6700 | P28: 2.2 | Q28: =IF(Rapport!Q32="","",Rapport!Q32) -> 
A29: 2 | B29: 15:2 Svalövsbäcken nedstr Svalöv | C29: 2021-03-24 | D29: 6.5 | E29: 12.8 | F29: 104 | G29: 8.04 | H29: 4.1 | I29: 48.8 | J29: 16 | K29: 32 | M29: 6200 | N29: 610 | O29: 7400 | P29: 3 | Q29: =IF(Rapport!Q33="","",Rapport!Q33) -> 
A30: 3 | B30: 3:2 Örstorpsbäcken | C30: 2021-03-24 | D30: 5.6 | E30: 13.1 | F30: 104 | G30: 8.11 | H30: 2.6 | I30: 72.8 | J30: 59 | K30: 75 | L30: 13 | M30: 13000 | N30: 10 | O30: 15000 | P30: <2 | Q30: =IF(Rapport!Q34="","",Rapport!Q34) -> 
A31: 4 | B31: 5 Braån vid Asmundtorp | C31: 2021-03-24 | D31: 5.7 | E31: 12.8 | F31: 102 | G31: 8.15 | H31: 3.8 | I31: 54.3 | J31: 21 | K31: 41 | L31: 14 | M31: 6800 | N31: 48 | O31: 7600 | P31: 2.8 | Q31: =IF(Rapport!Q35="","",Rapport!Q35) -> 
A32: 5 | B32: 28:2 Bäck N Trolleholm | C32: 2021-03-24 | D32: 6.7 | E32: 11.8 | F32: 97 | G32: 8.1 | H32: 2.5 | I32: 44.6 | J32: 4.1 | K32: 10 | M32: 1500 | N32: 11 | O32: 2200 | P32: 2.3 | Q32: =IF(Rapport!Q36="","",Rapport!Q36) -> 
A33: 6 | B33: 26 Långgropen uppstr Eslöv | C33: 2021-03-24 | D33: 6.4 | E33: 13.9 | F33: 113 | G33: 8.08 | H33: 4.5 | I33: 57.4 | J33: 15 | K33: 36 | L33: 19 | M33: 6100 | N33: 18 | O33: 7000 | P33: 2.6 | Q33: =IF(Rapport!Q37="","",Rapport!Q37) -> 
A34: 7 | B34: 24 Långgropen nedstr Eslöv | C34: 2021-03-24 | D34: 6.1 | E34: 13.4 | F34: 108 | G34: 8.03 | H34: 4.2 | I34: 60.1 | J34: 17 | K34: 35 | M34: 6000 | N34: 47 | O34: 6500 | P34: 2.8 | Q34: =IF(Rapport!Q38="","",Rapport!Q38) -> 
A35: 8 | B35: 19 Saxån vid Annelöv | C35: 2021-03-24 | D35: 5.9 | E35: 12.4 | F35: 100 | G35: 8.21 | H35: 5.6 | I35: 60 | J35: 23 | K35: 39 | M35: 5900 | N35: 16 | O35: 6700 | P35: 4.8 | Q35: =IF(Rapport!Q39="","",Rapport!Q39) -> 
A36: 9 | B36: 30 Välabäcken | C36: 2021-03-24 | D36: 6.4 | E36: 13.9 | F36: 113 | G36: 8.23 | H36: 1.6 | I36: 76.4 | J36: 14 | K36: 37 | L36: 20 | M36: 12000 | N36: <10 | O36: 13000 | P36: <2 | Q36: =IF(Rapport!Q40="","",Rapport!Q40) -> 
A37: 10 | B37: 16 Saxån vid Saxtorp | C37: 2021-03-24 | D37: 5.7 | E37: 12.4 | F37: 99 | G37: 8.19 | H37: 4.6 | I37: 65 | J37: 29 | K37: 48 | L37: 17 | M37: 7800 | N37: 22 | O37: 9000 | P37: 3.2 | Q37: =IF(Rapport!Q41="","",Rapport!Q41) -> 
A38: 200
A39: 250 | B39: april
A40: 1 | B40: 14 Svalövsbäcken uppstr Svalöv | C40: 2021-04-27 | D40: 9.1 | E40: 11.9 | F40: 104 | G40: 8.25 | H40: 8 | I40: 44.6 | J40: 6.8 | K40: 41 | L40: 29 | M40: 2200 | N40: 39 | O40: 3000 | P40: 5.6 | Q40: =IF(Rapport!Q44="","",Rapport!Q44) -> 
A41: 2 | B41: 15:2 Svalövsbäcken nedstr Svalöv | C41: 2021-04-27 | D41: 6.6 | E41: 14.8 | F41: 121 | G41: 8.1 | H41: 3.7 | I41: 54.2 | J41: 7.8 | K41: 27 | M41: 3700 | N41: 600 | O41: 4900 | P41: <2 | Q41: =IF(Rapport!Q45="","",Rapport!Q45) -> 
A42: 3 | B42: 3:2 Örstorpsbäcken | C42: 2021-04-27 | D42: 5.5 | E42: 11.4 | F42: 91 | G42: 8 | H42: 3.8 | I42: 70.9 | J42: 88 | K42: 120 | L42: 31 | M42: 6400 | N42: 26 | O42: 7300 | P42: 3.3 | Q42: =IF(Rapport!Q46="","",Rapport!Q46) -> 
A43: 4 | B43: 5 Braån vid Asmundtorp | C43: 2021-04-27 | D43: 6.2 | E43: 10.9 | F43: 88 | G43: 8.03 | H43: 2 | I43: 57.7 | J43: 14 | K43: 30 | L43: 10 | M43: 3900 | N43: 26 | O43: 4600 | P43: <2 | Q43: =IF(Rapport!Q47="","",Rapport!Q47) -> 
A44: 6 | B44: 26 Långgropen uppstr Eslöv | C44: 2021-04-27 | D44: 6.1 | E44: 17.1 | F44: 138 | G44: 8.26 | H44: 1.8 | I44: 60.3 | J44: 2.7 | K44: 18 | L44: 12 | M44: 3700 | N44: <10 | O44: 4300 | P44: <2 | Q44: =IF(Rapport!Q48="","",Rapport!Q48) -> 
A45: 7 | B45: 24 Långgropen nedstr Eslöv | C45: 2021-04-27 | D45: 6.1 | E45: 13.4 | F45: 108 | G45: 8 | H45: 2.7 | I45: 61.5 | J45: 9 | K45: 26 | M45: 2900 | N45: 52 | O45: 3500 | P45: <2 | Q45: =IF(Rapport!Q49="","",Rapport!Q49) -> 
A46: 9 | B46: 30 Välabäcken | C46: 2021-04-27 | D46: 5.6 | E46: 13.1 | F46: 104 | G46: 7.99 | H46: 1.6 | I46: 79.1 | J46: 4.4 | K46: 46 | L46: 19 | M46: 7200 | N46: 69 | O46: 8200 | P46: <2 | Q46: =IF(Rapport!Q50="","",Rapport!Q50) -> 
A47: 10 | B47: 16 Saxån vid Saxtorp | C47: 2021-04-27 | D47: 7.6 | E47: 11.6 | F47: 97 | G47: 8.02 | H47: 2.4 | I47: 64.6 | J47: 24 | K47: 43 | L47: 16 | M47: 4000 | N47: 30 | O47: 4800 | P47: <2 | Q47: =IF(Rapport!Q51="","",Rapport!Q51) -> 
A48: 200
A49: 250 | B49: maj
A50: 1 | B50: 14 Svalövsbäcken uppstr Svalöv | C50: 2021-05-25 | D50: 14.4 | E50: 8.3 | F50: 82 | G50: 8.09 | H50: 8.2 | I50: 46.9 | J50: 12 | K50: 56 | L50: 31 | M50: 2100 | N50: 70 | O50: 2700 | P50: 9.7 | Q50: =IF(Rapport!Q54="","",Rapport!Q54) -> 
A51: 2 | B51: 15:2 Svalövsbäcken nedstr Svalöv | C51: 2021-05-25 | D51: 12.4 | E51: 9.6 | F51: 90 | G51: 8 | H51: 1.8 | I51: 56.4 | J51: 14 | K51: 39 | M51: 4000 | N51: 67 | O51: 4400 | P51: <2 | Q51: =IF(Rapport!Q55="","",Rapport!Q55) -> 
A52: 3 | B52: 3:2 Örstorpsbäcken | C52: 2021-05-25 | D52: 11.6 | E52: 8.5 | F52: 78 | G52: 8.02 | H52: 2 | I52: 72.1 | J52: 110 | K52: 140 | L52: 20 | M52: 6300 | N52: 57 | O52: 6600 | P52: 2.4 | Q52: =IF(Rapport!Q56="","",Rapport!Q56) -> 
A53: 4 | B53: 5 Braån vid Asmundtorp | C53: 2021-05-25 | D53: 11.8 | E53: 8.4 | F53: 78 | G53: 8.06 | H53: 2.1 | I53: 59.8 | J53: 45 | K53: 66 | L53: 11 | M53: 4100 | N53: 47 | O53: 4500 | P53: 2.4 | Q53: =IF(Rapport!Q57="","",Rapport!Q57) -> 
A54: 5 | B54: 28:2 Bäck N Trolleholm | C54: 2021-05-25 | D54: 11.2 | E54: 9.8 | F54: 90 | G54: 8.2 | H54: 1.6 | I54: 52.1 | J54: 5 | K54: 11 | M54: 460 | N54: 13 | O54: 740 | P54: 2.1 | Q54: =IF(Rapport!Q58="","",Rapport!Q58) -> 
A55: 6 | B55: 26 Långgropen uppstr Eslöv | C55: 2021-05-25 | D55: 12.6 | E55: 9.9 | F55: 93 | G55: 8.02 | H55: 1.8 | I55: 62.5 | J55: 11 | K55: 33 | L55: 17 | M55: 2700 | N55: 39 | O55: 3200 | P55: 2.4 | Q55: =IF(Rapport!Q59="","",Rapport!Q59) -> 
A56: 7 | B56: 24 Långgropen nedstr Eslöv | C56: 2021-05-25 | D56: 12.4 | E56: 8.9 | F56: 84 | G56: 7.9 | H56: 1.9 | I56: 62.5 | J56: 17 | K56: 39 | M56: 2400 | N56: 75 | O56: 2900 | P56: 2 | Q56: =IF(Rapport!Q60="","",Rapport!Q60) -> 
A57: 8 | B57: 19 Saxån vid Annelöv | C57: 2021-05-25 | D57: 12.9 | E57: 8.2 | F57: 78 | G57: 8.14 | H57: 2 | I57: 61.5 | J57: 39 | K57: 63 | M57: 2700 | N57: 60 | O57: 3000 | P57: <2 | Q57: =IF(Rapport!Q61="","",Rapport!Q61) -> 
A58: 9 | B58: 30 Välabäcken | C58: 2021-05-25 | D58: 11.6 | E58: 10.7 | F58: 99 | G58: 8.13 | H58: 1.2 | I58: 77.3 | J58: 63 | K58: 110 | L58: 22 | M58: 5100 | N58: 46 | O58: 5500 | P58: <2 | Q58: =IF(Rapport!Q62="","",Rapport!Q62) -> 
A59: 10 | B59: 16 Saxån vid Saxtorp | C59: 2021-05-25 | D59: 12.5 | E59: 8.9 | F59: 84 | G59: 8.16 | H59: 1.9 | I59: 66 | J59: 55 | K59: 77 | L59: 15 | M59: 3700 | N59: 63 | O59: 4000 | P59: <2 | Q59: =IF(Rapport!Q63="","",Rapport!Q63) -> 
A60: 200
A61: 250 | B61: juni
A62: 1 | B62: 14 Svalövsbäcken uppstr Svalöv | C62: 2021-06-21 | D62: 21.2 | E62: 3.3 | F62: 37 | G62: 7.7 | H62: 6.4 | I62: 51.1 | J62: 56 | K62: 130 | L62: 50 | M62: 640 | N62: 41 | O62: 1800 | P62: 6.5 | Q62: =IF(Rapport!Q66="","",Rapport!Q66) -> 
A63: 2 | B63: 15:2 Svalövsbäcken nedstr Svalöv | C63: 2021-06-21 | D63: 16.5 | E63: 6.8 | F63: 70 | G63: 7.65 | H63: 1.2 | I63: 69.1 | J63: 72 | K63: 110 | M63: 9500 | N63: 110 | O63: 10000 | P63: <2 | Q63: =IF(Rapport!Q67="","",Rapport!Q67) -> 
A64: 3 | B64: 3:2 Örstorpsbäcken | C64: 2021-06-21 | D64: 16.5 | E64: 7 | F64: 72 | G64: 7.91 | H64: 2.8 | I64: 73.5 | J64: 280 | K64: 280 | L64: 40 | M64: 3800 | N64: 64 | O64: 4700 | P64: 2.2 | Q64: =IF(Rapport!Q68="","",Rapport!Q68) -> 
A65: 4 | B65: 5 Braån vid Asmundtorp | C65: 2021-06-21 | D65: 18.4 | E65: 6.7 | F65: 71 | G65: 7.97 | H65: 2.9 | I65: 67.8 | J65: 170 | K65: 180 | L65: 20 | M65: 2900 | N65: 51 | O65: 3700 | P65: 3 | Q65: =IF(Rapport!Q69="","",Rapport!Q69) -> 
A66: 6 | B66: 26 Långgropen uppstr Eslöv | C66: 2021-06-21 | D66: 16.3 | E66: 5.9 | F66: 60 | G66: 7.73 | H66: 2 | I66: 66.4 | J66: 68 | K66: 94 | L66: 29 | M66: 1200 | N66: 26 | O66: 1800 | P66: <2 | Q66: =IF(Rapport!Q70="","",Rapport!Q70) -> 
A67: 7 | B67: 24 Långgropen nedstr Eslöv | C67: 2021-06-21 | D67: 16.3 | E67: 5.7 | F67: 58 | G67: 7.72 | H67: 2.6 | I67: 70.8 | J67: 70 | K67: 100 | M67: 1100 | N67: 52 | O67: 1600 | P67: <2 | Q67: =IF(Rapport!Q71="","",Rapport!Q71) -> 
A68: 9 | B68: 30 Välabäcken | C68: 2021-06-21 | D68: 15 | E68: 7.2 | F68: 72 | G68: 7.84 | H68: 1.2 | I68: 79.4 | J68: 140 | K68: 210 | L68: 60 | M68: 4200 | N68: 130 | O68: 5300 | P68: 7.8 | Q68: =IF(Rapport!Q72="","",Rapport!Q72) -> 
A69: 10 | B69: 16 Saxån vid Saxtorp | C69: 2021-06-21 | D69: 18.8 | E69: 6.1 | F69: 66 | G69: 7.92 | H69: 1.2 | I69: 70.5 | J69: 170 | K69: 190 | L69: 20 | M69: 2900 | N69: 70 | O69: 3600 | P69: <2 | Q69: =IF(Rapport!Q73="","",Rapport!Q73) -> 
A70: 200
A71: 250 | B71: juli
A72: 1 | B72: 14 Svalövsbäcken uppstr Svalöv | C72: 2021-07-21 | D72: 21.3 | E72: 4.5 | F72: 51 | G72: 7.85 | H72: 13.8 | I72: 42.7 | J72: 56 | K72: 160 | L72: 74 | M72: 290 | N72: 55 | O72: 1700 | P72: 11 | Q72: =IF(Rapport!Q76="","",Rapport!Q76) -> 
A73: 2 | B73: 15:2 Svalövsbäcken nedstr Svalöv | C73: 2021-07-21 | D73: 17.4 | E73: 7.7 | F73: 80 | G73: 7.74 | H73: 4.8 | I73: 66.4 | J73: 72 | K73: 98 | M73: 7200 | N73: 110 | O73: 7800 | P73: 3.3 | Q73: =IF(Rapport!Q77="","",Rapport!Q77) -> 
A74: 3 | B74: 3:2 Örstorpsbäcken | C74: 2021-07-21 | D74: 15.9 | E74: 8.3 | F74: 84 | G74: 7.94 | H74: 5.6 | I74: 72.8 | J74: 280 | K74: 300 | L74: 30 | M74: 5200 | N74: 35 | O74: 5800 | P74: 5.1 | Q74: =IF(Rapport!Q78="","",Rapport!Q78) -> 
A75: 4 | B75: 5 Braån vid Asmundtorp | C75: 2021-07-21 | D75: 17.3 | E75: 7.6 | F75: 79 | G75: 7.99 | H75: 4.3 | I75: 59.8 | J75: 160 | K75: 180 | L75: 10 | M75: 1900 | N75: 27 | O75: 2300 | P75: 3.2 | Q75: =IF(Rapport!Q79="","",Rapport!Q79) -> 
A76: 6 | B76: 26 Långgropen uppstr Eslöv | C76: 2021-07-21 | D76: 16.1 | E76: 7.3 | F76: 74 | G76: 7.7 | H76: 1.9 | I76: 62.4 | J76: 77 | K76: 90 | L76: 16 | M76: 1200 | N76: 30 | O76: 1800 | P76: <2 | Q76: =IF(Rapport!Q80="","",Rapport!Q80) -> 
A77: 7 | B77: 24 Långgropen nedstr Eslöv | C77: 2021-07-21 | D77: 16 | E77: 6.6 | F77: 67 | G77: 7.67 | H77: 2.5 | I77: 65.2 | J77: 78 | K77: 92 | M77: 1100 | N77: 49 | O77: 1500 | P77: 2.5 | Q77: =IF(Rapport!Q81="","",Rapport!Q81) -> 
A78: 9 | B78: 30 Välabäcken | C78: 2021-07-21 | D78: 15.4 | E78: 7.4 | F78: 74 | G78: 7.84 | H78: 1.2 | I78: 79.3 | J78: 230 | K78: 310 | L78: 60 | M78: 3000 | N78: 140 | O78: 4000 | P78: 11 | Q78: =IF(Rapport!Q82="","",Rapport!Q82) -> 
A79: 10 | B79: 16 Saxån vid Saxtorp | C79: 2021-07-21 | D79: 18.2 | E79: 7.2 | F79: 76 | G79: 7.96 | H79: 1.8 | I79: 62.4 | J79: 170 | K79: 200 | L79: 10 | M79: 2000 | N79: 34 | O79: 2700 | P79: <2 | Q79: =IF(Rapport!Q83="","",Rapport!Q83) -> 
A80: 200
A81: 250 | B81: augusti
A82: 1 | B82: 14 Svalövsbäcken uppstr Svalöv | C82: 2021-08-30 | D82: 16.8 | E82: 11.3 | F82: 117 | G82: 8.53 | H82: 20 | I82: 47.6 | Q82: =IF(Rapport!Q86="","",Rapport!Q86) -> Analys missad för närsalter och susp
A83: 2 | B83: 15:2 Svalövsbäcken nedstr Svalöv | C83: 2021-08-30 | D83: 16.2 | E83: 9.6 | F83: 98 | G83: 8.02 | H83: 7.1 | I83: 55.8 | Q83: =IF(Rapport!Q87="","",Rapport!Q87) -> Analys missad för närsalter och susp
A84: 3 | B84: 3:2 Örstorpsbäcken | C84: 2021-08-30 | D84: 15.3 | E84: 11.6 | F84: 116 | G84: 8 | H84: 11 | I84: 71.8 | Q84: =IF(Rapport!Q88="","",Rapport!Q88) -> Analys missad för närsalter och susp
A85: 4 | B85: 5 Braån vid Asmundtorp | C85: 2021-08-30 | D85: 16.4 | E85: 11.7 | F85: 120 | G85: 8.08 | H85: 4.6 | I85: 52.4 | Q85: =IF(Rapport!Q89="","",Rapport!Q89) -> Analys missad för närsalter och susp
A86: 5 | B86: 28:2 Bäck N Trolleholm | C86: 2021-08-30 | D86: 14.6 | E86: 10.9 | F86: 108 | G86: 8.13 | H86: 5.3 | I86: 50.2 | Q86: =IF(Rapport!Q90="","",Rapport!Q90) -> Analys missad för närsalter och susp
A87: 6 | B87: 26 Långgropen uppstr Eslöv | C87: 2021-08-30 | D87: 14.6 | E87: 8.5 | F87: 84 | G87: 7.87 | H87: 6.5 | I87: 53.8 | Q87: =IF(Rapport!Q91="","",Rapport!Q91) -> Analys missad för närsalter och susp
A88: 7 | B88: 24 Långgropen nedstr Eslöv | C88: 2021-08-30 | D88: 14.7 | E88: 8.1 | F88: 80 | G88: 7.83 | H88: 7.3 | I88: 53.5 | Q88: =IF(Rapport!Q92="","",Rapport!Q92) -> Analys missad för närsalter och susp
A89: 8 | B89: 19 Saxån vid Annelöv | C89: 2021-08-30 | D89: 15.9 | E89: 9.9 | F89: 100 | G89: 7.96 | H89: 2.5 | I89: 41 | Q89: =IF(Rapport!Q93="","",Rapport!Q93) -> Analys missad för närsalter och susp
A90: 9 | B90: 30 Välabäcken | C90: 2021-08-30 | D90: 15.2 | E90: 9.7 | F90: 97 | G90: 7.89 | H90: 1.1 | I90: 74.4 | Q90: =IF(Rapport!Q94="","",Rapport!Q94) -> Analys missad för närsalter och susp
A91: 10 | B91: 16 Saxån vid Saxtorp | C91: 2021-08-30 | D91: 16 | E91: 11.3 | F91: 115 | G91: 8.12 | H91: 3.6 | I91: 61.2 | Q91: =IF(Rapport!Q95="","",Rapport!Q95) -> Analys missad för närsalter och susp
A92: 200
A93: 250 | B93: september
A94: 1 | B94: 14 Svalövsbäcken uppstr Svalöv | C94: 2021-09-29 | D94: 14.3 | E94: 10.5 | F94: 103 | G94: 7.98 | H94: 15 | I94: 52.4 | J94: 4.8 | K94: 85 | L94: 61 | M94: 2200 | N94: 41 | O94: 2900 | P94: 14 | Q94: =IF(Rapport!Q98="","",Rapport!Q98) -> 
A95: 2 | B95: 15:2 Svalövsbäcken nedstr Svalöv | C95: 2021-09-29 | D95: 13.5 | E95: 10.3 | F95: 99 | G95: 7.97 | H95: 13 | I95: 55.9 | J95: 33 | K95: 110 | M95: 4000 | N95: 110 | O95: 4500 | P95: 12 | Q95: =IF(Rapport!Q99="","",Rapport!Q99) -> 
A96: 3 | B96: 3:2 Örstorpsbäcken | C96: 2021-09-29 | D96: 13.4 | E96: 11 | F96: 106 | G96: 7.94 | H96: 7.1 | I96: 73.1 | J96: 130 | K96: 150 | L96: 20 | M96: 12000 | N96: 24 | O96: 11000 | P96: 3.1 | Q96: =IF(Rapport!Q100="","",Rapport!Q100) -> 
A97: 4 | B97: 5 Braån vid Asmundtorp | C97: 2021-09-29 | D97: 13.9 | E97: 10.6 | F97: 103 | G97: 7.97 | H97: 21 | I97: 47.5 | J97: 230 | K97: 280 | L97: 60 | M97: 5300 | N97: 53 | O97: 5600 | P97: 11 | Q97: =IF(Rapport!Q101="","",Rapport!Q101) -> 
A98: 6 | B98: 26 Långgropen uppstr Eslöv | C98: 2021-09-29 | D98: 12.8 | E98: 8.4 | F98: 80 | G98: 7.8 | H98: 8 | I98: 58.5 | J98: 100 | K98: 140 | L98: 20 | M98: 5900 | N98: 18 | O98: 6000 | P98: 3.6 | Q98: =IF(Rapport!Q102="","",Rapport!Q102) -> 
A99: 7 | B99: 24 Långgropen nedstr Eslöv | C99: 2021-09-29 | D99: 12.8 | E99: 8.6 | F99: 82 | G99: 7.77 | H99: 6.5 | I99: 55.4 | J99: 99 | K99: 130 | M99: 4400 | N99: 26 | O99: 4800 | P99: 3.1 | Q99: =IF(Rapport!Q103="","",Rapport!Q103) -> 
A100: 9 | B100: 30 Välabäcken | C100: 2021-09-29 | D100: 12.2 | E100: 9.6 | F100: 90 | G100: 7.8 | H100: 1.8 | I100: 76.2 | J100: 130 | K100: 140 | L100: 10 | M100: 4200 | N100: 19 | O100: 4600 | P100: <2 | Q100: =IF(Rapport!Q104="","",Rapport!Q104) -> 
A101: 10 | B101: 16 Saxån vid Saxtorp | C101: 2021-09-29 | D101: 13.7 | E101: 9.3 | F101: 90 | G101: 7.88 | H101: 5.1 | I101: 66.7 | J101: 110 | K101: 130 | L101: 20 | M101: 3600 | N101: 16 | O101: 3800 | P101: 2.8 | Q101: =IF(Rapport!Q105="","",Rapport!Q105) -> 
A102: 200
A103: 250 | B103: oktober
A104: 1 | B104: 14 Svalövsbäcken uppstr Svalöv | C104: 2021-10-20 | D104: 11.2 | E104: 9.5 | F104: 87 | G104: 7.67 | H104: 10 | I104: 51.4 | J104: 17 | K104: 57 | L104: 32 | M104: 6900 | N104: 41 | O104: 8200 | P104: 12 | Q104: =IF(Rapport!Q108="","",Rapport!Q108) -> 
A105: 2 | B105: 15:2 Svalövsbäcken nedstr Svalöv | C105: 2021-10-20 | D105: 12.1 | E105: 9.3 | F105: 87 | G105: 7.75 | H105: 55 | I105: 52.4 | J105: 30 | K105: 220 | M105: 7200 | N105: <10 | O105: 8700 | P105: 86 | Q105: =IF(Rapport!Q109="","",Rapport!Q109) -> 
A106: 3 | B106: 3:2 Örstorpsbäcken | C106: 2021-10-20 | D106: 12.4 | E106: 8.6 | F106: 81 | G106: 7.83 | H106: 78 | I106: 67.4 | J106: 140 | K106: 250 | L106: 100 | M106: 12000 | N106: 16 | O106: 14000 | P106: 22 | Q106: =IF(Rapport!Q110="","",Rapport!Q110) -> 
A107: 4 | B107: 5 Braån vid Asmundtorp | C107: 2021-10-20 | D107: 12.1 | E107: 9.3 | F107: 87 | G107: 7.98 | H107: 22 | I107: 57.7 | J107: 180 | K107: 230 | L107: 40 | M107: 7500 | N107: 15 | O107: 8700 | P107: 18 | Q107: =IF(Rapport!Q111="","",Rapport!Q111) -> 
A108: 5 | B108: 28:2 Bäck N Trolleholm | C108: 2021-10-20 | D108: 12.4 | E108: 9.4 | F108: 88 | G108: 7.91 | H108: 22 | I108: 43.9 | J108: 6.4 | K108: 67 | M108: 1600 | N108: <10 | O108: 2500 | P108: 24 | Q108: =IF(Rapport!Q112="","",Rapport!Q112) -> 
A109: 6 | B109: 26 Långgropen uppstr Eslöv | C109: 2021-10-20 | D109: 12.3 | E109: 8 | F109: 75 | G109: 7.79 | H109: 40 | I109: 55.2 | J109: 65 | K109: 140 | L109: 68 | M109: 6700 | N109: <10 | O109: 7900 | P109: 20 | Q109: =IF(Rapport!Q113="","",Rapport!Q113) -> 
A110: 7 | B110: 24 Långgropen nedstr Eslöv | C110: 2021-10-20 | D110: 12.5 | E110: 8 | F110: 75 | G110: 7.79 | H110: 13 | I110: 46.5 | J110: 46 | K110: 86 | M110: 4300 | N110: 77 | O110: 5100 | P110: 9.3 | Q110: =IF(Rapport!Q114="","",Rapport!Q114) -> 
A111: 8 | B111: 19 Saxån vid Annelöv | C111: 2021-10-20 | D111: 11.5 | E111: 8.8 | F111: 81 | G111: 7.96 | H111: 2.6 | I111: 64.1 | J111: 56 | K111: 73 | M111: 4900 | N111: <10 | O111: 6000 | P111: 3.4 | Q111: =IF(Rapport!Q115="","",Rapport!Q115) -> 
A112: 9 | B112: 30 Välabäcken | C112: 2021-10-20 | D112: 12.6 | E112: 8.3 | F112: 78 | G112: 7.9 | H112: 2.3 | I112: 81.3 | J112: 71 | K112: 87 | L112: 11 | M112: 8800 | N112: 15 | O112: 9900 | P112: 3 | Q112: =IF(Rapport!Q116="","",Rapport!Q116) -> 
A113: 10 | B113: 16 Saxån vid Saxtorp | C113: 2021-10-20 | D113: 12.1 | E113: 9.3 | F113: 87 | G113: 8.02 | H113: 4.5 | I113: 67.9 | J113: 69 | K113: 95 | L113: 21 | M113: 6100 | N113: <10 | O113: 7100 | P113: 3.8 | Q113: =IF(Rapport!Q117="","",Rapport!Q117) -> 
A114: 200 | Q114: =IF(Rapport!Q118="","",Rapport!Q118) -> 
A115: 250 | B115: november
A116: 1 | B116: 14 Svalövsbäcken uppstr Svalöv | C116: 2021-11-24 | D116: 6.7 | E116: 10.5 | F116: 86 | G116: 8.39 | H116: 4.6 | I116: 51.2 | J116: 23 | K116: 37 | L116: 11 | M116: 6200 | N116: 53 | O116: 6300 | P116: 4.5 | Q116: =IF(Rapport!Q120="","",Rapport!Q120) -> 
A117: 2 | B117: 15:2 Svalövsbäcken nedstr Svalöv | C117: 2021-11-24 | D117: 7.7 | E117: 11.5 | F117: 97 | G117: 8.04 | H117: 3.9 | I117: 57.4 | J117: 45 | K117: 60 | M117: 6600 | N117: 350 | O117: 7100 | P117: 3.7 | Q117: =IF(Rapport!Q121="","",Rapport!Q121) -> 
A118: 3 | B118: 3:2 Örstorpsbäcken | C118: 2021-11-24 | D118: 8.2 | E118: 10.1 | F118: 86 | G118: 8.04 | H118: 2.7 | I118: 79.1 | J118: 120 | K118: 110 | L118: 10 | M118: 13000 | N118: 20 | O118: 13000 | P118: 2.2 | Q118: =IF(Rapport!Q122="","",Rapport!Q122) -> 
A119: 4 | B119: 5 Braån vid Asmundtorp | C119: 2021-11-24 | D119: 7.4 | E119: 10.6 | F119: 88 | G119: 8.18 | H119: 4.2 | I119: 61.4 | J119: 84 | K119: 86 | L119: 8 | M119: 8200 | N119: 14 | O119: 8200 | P119: 2.7 | Q119: =IF(Rapport!Q123="","",Rapport!Q123) -> 
A120: 6 | B120: 26 Långgropen uppstr Eslöv | C120: 2021-11-24 | D120: 7.6 | E120: 9.7 | F120: 81 | G120: 7.94 | H120: 2.8 | I120: 61.8 | J120: 33 | K120: 40 | L120: 11 | M120: 7800 | N120: 23 | O120: 8100 | P120: 2.6 | Q120: =IF(Rapport!Q124="","",Rapport!Q124) -> 
A121: 7 | B121: 24 Långgropen nedstr Eslöv | C121: 2021-11-24 | D121: 7.5 | E121: 9.7 | F121: 81 | G121: 7.92 | H121: 2.8 | I121: 62.5 | J121: 34 | K121: 39 | M121: 7400 | N121: 37 | O121: 7600 | P121: <2 | Q121: =IF(Rapport!Q125="","",Rapport!Q125) -> 
A122: 9 | B122: 30 Välabäcken | C122: 2021-11-24 | D122: 8.4 | E122: 10 | F122: 86 | G122: 8.11 | H122: 1 | I122: 83.7 | J122: 70 | K122: 74 | L122: 5 | M122: 12000 | N122: 34 | O122: 12000 | P122: <2 | Q122: =IF(Rapport!Q126="","",Rapport!Q126) -> 
A123: 10 | B123: 16 Saxån vid Saxtorp | C123: 2021-11-24 | D123: 7.1 | E123: 10.8 | F123: 89 | G123: 8.23 | H123: 3.5 | I123: 67.5 | J123: 59 | K123: 64 | L123: 11 | M123: 8200 | N123: 25 | O123: 8600 | P123: 2.7 | Q123: =IF(Rapport!Q127="","",Rapport!Q127) -> 
A124: 200 | Q124: =IF(Rapport!Q128="","",Rapport!Q128) -> 
A125: 250 | B125: december
A126: 1 | B126: 14 Svalövsbäcken uppstr Svalöv | C126: 2021-12-21 | D126: 2.2 | E126: 12.5 | F126: 91 | G126: 7.7 | H126: 5.1 | I126: 41.5 | J126: 14 | K126: 26 | L126: 5 | M126: 7100 | N126: 42 | O126: 7000 | P126: 3.4 | Q126: =IF(Rapport!Q130="","",Rapport!Q130) -> 
A127: 2 | B127: 15:2 Svalövsbäcken nedstr Svalöv | C127: 2021-12-21 | D127: 2.5 | E127: 12.8 | F127: 94 | G127: 7.8 | H127: 5.4 | I127: 47.8 | J127: 23 | K127: 36 | M127: 7300 | N127: 400 | O127: 7200 | P127: 3.5 | Q127: =IF(Rapport!Q131="","",Rapport!Q131) -> 
A128: 3 | B128: 3:2 Örstorpsbäcken | C128: 2021-12-21 | D128: 3.4 | E128: 11.9 | F128: 89 | G128: 7.82 | H128: 6.2 | I128: 74.7 | J128: 76 | K128: 100 | L128: 19 | M128: 14000 | N128: 48 | O128: 13000 | P128: 6.2 | Q128: =IF(Rapport!Q132="","",Rapport!Q132) -> 
A129: 4 | B129: 5 Braån vid Asmundtorp | C129: 2021-12-21 | D129: 2.8 | E129: 12.6 | F129: 93 | G129: 8.01 | H129: 6.6 | I129: 52.5 | J129: 60 | K129: 87 | L129: 14 | M129: 7700 | N129: 110 | O129: 7200 | P129: 5.7 | Q129: =IF(Rapport!Q133="","",Rapport!Q133) -> 
A130: 5 | B130: 28:2 Bäck N Trolleholm | C130: 2021-12-21 | D130: 0.3 | E130: 13.7 | F130: 94 | G130: 7.97 | H130: 2.8 | I130: 38.2 | J130: 3 | K130: 12 | M130: 1400 | N130: 27 | O130: 1700 | P130: <2 | Q130: =IF(Rapport!Q134="","",Rapport!Q134) -> 
A131: 6 | B131: 26 Långgropen uppstr Eslöv | C131: 2021-12-21 | D131: 2.5 | E131: 11.4 | F131: 84 | G131: 7.7 | H131: 6.6 | I131: 53.7 | J131: 24 | K131: 39 | L131: 8 | M131: 6300 | N131: 83 | O131: 6300 | P131: 4.6 | Q131: =IF(Rapport!Q135="","",Rapport!Q135) -> 
A132: 7 | B132: 24 Långgropen nedstr Eslöv | C132: 2021-12-21 | D132: 2.2 | E132: 11.6 | F132: 84 | G132: 7.73 | H132: 6.8 | I132: 55.4 | J132: 25 | K132: 49 | M132: 5900 | N132: 130 | O132: 5600 | P132: 5.5 | Q132: =IF(Rapport!Q136="","",Rapport!Q136) -> 
A133: 8 | B133: 19 Saxån vid Annelöv | C133: 2021-12-21 | D133: 2.6 | E133: 12.8 | F133: 94 | G133: 8 | H133: 7.8 | I133: 56.3 | J133: 39 | K133: 65 | M133: 6100 | N133: 75 | O133: 5900 | P133: 7.3 | Q133: =IF(Rapport!Q137="","",Rapport!Q137) -> 
A134: 9 | B134: 30 Välabäcken | C134: 2021-12-21 | D134: 3.5 | E134: 12.1 | F134: 91 | G134: 7.94 | H134: 3.1 | I134: 78.7 | J134: 45 | K134: 49 | L134: <5,0 | M134: 14000 | N134: 60 | O134: 13000 | P134: <2 | Q134: =IF(Rapport!Q138="","",Rapport!Q138) -> 
A135: 10 | B135: 16 Saxån vid Saxtorp | C135: 2021-12-21 | D135: 2.7 | E135: 12.4 | F135: 91 | G135: 8.07 | H135: 6.6 | I135: 61.9 | J135: 45 | K135: 350 | L135: 300 | M135: 8200 | N135: 73 | O135: 7600 | P135: 6.2 | Q135: =IF(Rapport!Q139="","",Rapport!Q139) -> 
A136: 200

Sheet RS (hidden)
A1: =TRIM(CONCATENATE(D1,E1)) -> ProvtagningspunktProvtagn | C1: Sorterings- | D1: Provtagningspunkt | E1: Provtagn | F1: Temp | G1: Syreh | H1: Syrem | I1: pH | J1: Gruml | K1: Kond | L1: PO4-P | M1: Tot-P | N1: Part.-P | O1: NO3+2-N | P1: NH4-N | Q1: Tot-N | R1: Susp | S1: Anmärkning
C2: ordning | D2: Nr Läge | E2: datum | F2: °C | G2: mg/l | H2: % | J2: FNU | K2: mS/m | L2: µg/l | M2: µg/l | N2: µg/l | O2: µg/l | P2: µg/l | Q2: µg/l | R2: mg/l
A3: =TRIM(CONCATENATE(D3,E3)) -> 14 Svalövsbäcken uppstr Svalöv44221 | B3: =CONCATENATE(D3,MONTH(E3)) -> 14 Svalövsbäcken uppstr Svalöv1 | C3: 1 | D3: 14 Svalövsbäcken uppstr Svalöv | E3: 2021-01-25 | F3: 3 | G3: 12.7 | H3: 94 | I3: 7.55 | J3: 9.5 | K3: 39.3 | L3: 21 | M3: 48 | N3: 16 | O3: 8900 | P3: 28 | Q3: 8800 | R3: 3.4 | S3: Resultatet av kväve total, N, är mindre än summanav ammoniumkväve, NH4-N, och nitrat + nitritkväve, NO23-N. Skillnaden ligger dock inommätosäkerheten.
A4: 14 Svalövsbäcken uppstr Svalöv44249 | B4: 14 Svalövsbäcken uppstr Svalöv2 | C4: 1 | D4: 14 Svalövsbäcken uppstr Svalöv | E4: 2021-02-22 | F4: 2.8 | G4: 12.2 | H4: 90 | I4: 7.46 | J4: 12 | K4: 36.5 | L4: 25 | M4: 75 | N4: 43 | O4: 6500 | P4: 11 | Q4: 7200 | R4: 4
A5: 14 Svalövsbäcken uppstr Svalöv44279 | B5: 14 Svalövsbäcken uppstr Svalöv3 | C5: 1 | D5: 14 Svalövsbäcken uppstr Svalöv | E5: 2021-03-24 | F5: 5.5 | G5: 12.6 | H5: 100 | I5: 7.96 | J5: 4.1 | K5: 40.8 | L5: 9.3 | M5: 22 | N5: 9 | O5: 5800 | P5: 16 | Q5: 6700 | R5: 2.2
A6: 14 Svalövsbäcken uppstr Svalöv44313 | B6: 14 Svalövsbäcken uppstr Svalöv4 | C6: 1 | D6: 14 Svalövsbäcken uppstr Svalöv | E6: 2021-04-27 | F6: 9.1 | G6: 11.9 | H6: 104 | I6: 8.25 | J6: 8 | K6: 44.6 | L6: 6.8 | M6: 41 | N6: 29 | O6: 2200 | P6: 39 | Q6: 3000 | R6: 5.6
A7: 14 Svalövsbäcken uppstr Svalöv44341 | B7: 14 Svalövsbäcken uppstr Svalöv5 | C7: 1 | D7: 14 Svalövsbäcken uppstr Svalöv | E7: 2021-05-25 | F7: 14.4 | G7: 8.3 | H7: 82 | I7: 8.09 | J7: 8.2 | K7: 46.9 | L7: 12 | M7: 56 | N7: 31 | O7: 2100 | P7: 70 | Q7: 2700 | R7: 9.7
A8: 14 Svalövsbäcken uppstr Svalöv44368 | B8: 14 Svalövsbäcken uppstr Svalöv6 | C8: 1 | D8: 14 Svalövsbäcken uppstr Svalöv | E8: 2021-06-21 | F8: 21.2 | G8: 3.3 | H8: 37 | I8: 7.7 | J8: 6.4 | K8: 51.1 | L8: 56 | M8: 130 | N8: 50 | O8: 640 | P8: 41 | Q8: 1800 | R8: 6.5
A9: 14 Svalövsbäcken uppstr Svalöv44398 | B9: 14 Svalövsbäcken uppstr Svalöv7 | C9: 1 | D9: 14 Svalövsbäcken uppstr Svalöv | E9: 2021-07-21 | F9: 21.3 | G9: 4.5 | H9: 51 | I9: 7.85 | J9: 13.8 | K9: 42.7 | L9: 56 | M9: 160 | N9: 74 | O9: 290 | P9: 55 | Q9: 1700 | R9: 11
A10: 14 Svalövsbäcken uppstr Svalöv44438 | B10: 14 Svalövsbäcken uppstr Svalöv8 | C10: 1 | D10: 14 Svalövsbäcken uppstr Svalöv | E10: 2021-08-30 | F10: 16.8 | G10: 11.3 | H10: 117 | I10: 8.53 | J10: 20 | K10: 47.6 | S10: Analys missad för närsalter och susp
A11: 14 Svalövsbäcken uppstr Svalöv44468 | B11: 14 Svalövsbäcken uppstr Svalöv9 | C11: 1 | D11: 14 Svalövsbäcken uppstr Svalöv | E11: 2021-09-29 | F11: 14.3 | G11: 10.5 | H11: 103 | I11: 7.98 | J11: 15 | K11: 52.4 | L11: 4.8 | M11: 85 | N11: 61 | O11: 2200 | P11: 41 | Q11: 2900 | R11: 14
A12: 14 Svalövsbäcken uppstr Svalöv44489 | B12: 14 Svalövsbäcken uppstr Svalöv10 | C12: 1 | D12: 14 Svalövsbäcken uppstr Svalöv | E12: 2021-10-20 | F12: 11.2 | G12: 9.5 | H12: 87 | I12: 7.67 | J12: 10 | K12: 51.4 | L12: 17 | M12: 57 | N12: 32 | O12: 6900 | P12: 41 | Q12: 8200 | R12: 12
A13: 14 Svalövsbäcken uppstr Svalöv44524 | B13: =CONCATENATE(D13,MONTH(E13)) -> 14 Svalövsbäcken uppstr Svalöv11 | C13: 1 | D13: 14 Svalövsbäcken uppstr Svalöv | E13: 2021-11-24 | F13: 6.7 | G13: 10.5 | H13: 86 | I13: 8.39 | J13: 4.6 | K13: 51.2 | L13: 23 | M13: 37 | N13: 11 | O13: 6200 | P13: 53 | Q13: 6300 | R13: 4.5
A14: 14 Svalövsbäcken uppstr Svalöv2021-12-21 | B14: 14 Svalövsbäcken uppstr Svalöv12 | C14: 1 | D14: 14 Svalövsbäcken uppstr Svalöv | E14: 2021-12-21 | F14: 2.2 | G14: 12.5 | H14: 91 | I14: 7.7 | J14: 5.1 | K14: 41.5 | L14: 14 | M14: 26 | N14: 5 | O14: 7100 | P14: 42 | Q14: 7000 | R14: 3.4
A15: 15:2 Svalövsbäcken nedstr Svalöv44221 | B15: 15:2 Svalövsbäcken nedstr Svalöv1 | C15: 2 | D15: 15:2 Svalövsbäcken nedstr Svalöv | E15: 2021-01-25 | F15: 3.6 | G15: 12.8 | H15: 97 | I15: 7.76 | J15: 13 | K15: 45.1 | L15: 28 | M15: 64 | O15: 8700 | P15: 290 | Q15: 8900 | R15: 5.1
A16: 15:2 Svalövsbäcken nedstr Svalöv44249 | B16: 15:2 Svalövsbäcken nedstr Svalöv2 | C16: 2 | D16: 15:2 Svalövsbäcken nedstr Svalöv | E16: 2021-02-22 | F16: 3.2 | G16: 12.9 | H16: 96 | I16: 7.69 | J16: 14 | K16: 39.9 | L16: 32 | M16: 81 | O16: 6600 | P16: 160 | Q16: 7500 | R16: 6.8
A17: 15:2 Svalövsbäcken nedstr Svalöv44279 | B17: 15:2 Svalövsbäcken nedstr Svalöv3 | C17: 2 | D17: 15:2 Svalövsbäcken nedstr Svalöv | E17: 2021-03-24 | F17: 6.5 | G17: 12.8 | H17: 104 | I17: 8.04 | J17: 4.1 | K17: 48.8 | L17: 16 | M17: 32 | O17: 6200 | P17: 610 | Q17: 7400 | R17: 3
A18: 15:2 Svalövsbäcken nedstr Svalöv44313 | B18: 15:2 Svalövsbäcken nedstr Svalöv4 | C18: 2 | D18: 15:2 Svalövsbäcken nedstr Svalöv | E18: 2021-04-27 | F18: 6.6 | G18: 14.8 | H18: 121 | I18: 8.1 | J18: 3.7 | K18: 54.2 | L18: 7.8 | M18: 27 | O18: 3700 | P18: 600 | Q18: 4900 | R18: <2
A19: 15:2 Svalövsbäcken nedstr Svalöv44341 | B19: 15:2 Svalövsbäcken nedstr Svalöv5 | C19: 2 | D19: 15:2 Svalövsbäcken nedstr Svalöv | E19: 2021-05-25 | F19: 12.4 | G19: 9.6 | H19: 90 | I19: 8 | J19: 1.8 | K19: 56.4 | L19: 14 | M19: 39 | O19: 4000 | P19: 67 | Q19: 4400 | R19: <2
A20: 15:2 Svalövsbäcken nedstr Svalöv44368 | B20: 15:2 Svalövsbäcken nedstr Svalöv6 | C20: 2 | D20: 15:2 Svalövsbäcken nedstr Svalöv | E20: 2021-06-21 | F20: 16.5 | G20: 6.8 | H20: 70 | I20: 7.65 | J20: 1.2 | K20: 69.1 | L20: 72 | M20: 110 | O20: 9500 | P20: 110 | Q20: 10000 | R20: <2
A21: 15:2 Svalövsbäcken nedstr Svalöv44398 | B21: 15:2 Svalövsbäcken nedstr Svalöv7 | C21: 2 | D21: 15:2 Svalövsbäcken nedstr Svalöv | E21: 2021-07-21 | F21: 17.4 | G21: 7.7 | H21: 80 | I21: 7.74 | J21: 4.8 | K21: 66.4 | L21: 72 | M21: 98 | O21: 7200 | P21: 110 | Q21: 7800 | R21: 3.3
A22: 15:2 Svalövsbäcken nedstr Svalöv44438 | B22: 15:2 Svalövsbäcken nedstr Svalöv8 | C22: 2 | D22: 15:2 Svalövsbäcken nedstr Svalöv | E22: 2021-08-30 | F22: 16.2 | G22: 9.6 | H22: 98 | I22: 8.02 | J22: 7.1 | K22: 55.8 | S22: Analys missad för närsalter och susp
A23: 15:2 Svalövsbäcken nedstr Svalöv44468 | B23: 15:2 Svalövsbäcken nedstr Svalöv9 | C23: 2 | D23: 15:2 Svalövsbäcken nedstr Svalöv | E23: 2021-09-29 | F23: 13.5 | G23: 10.3 | H23: 99 | I23: 7.97 | J23: 13 | K23: 55.9 | L23: 33 | M23: 110 | O23: 4000 | P23: 110 | Q23: 4500 | R23: 12
A24: 15:2 Svalövsbäcken nedstr Svalöv44489 | B24: 15:2 Svalövsbäcken nedstr Svalöv10 | C24: 2 | D24: 15:2 Svalövsbäcken nedstr Svalöv | E24: 2021-10-20 | F24: 12.1 | G24: 9.3 | H24: 87 | I24: 7.75 | J24: 55 | K24: 52.4 | L24: 30 | M24: 220 | O24: 7200 | P24: <10 | Q24: 8700 | R24: 86
A25: 15:2 Svalövsbäcken nedstr Svalöv44524 | B25: 15:2 Svalövsbäcken nedstr Svalöv11 | C25: 2 | D25: 15:2 Svalövsbäcken nedstr Svalöv | E25: 2021-11-24 | F25: 7.7 | G25: 11.5 | H25: 97 | I25: 8.04 | J25: 3.9 | K25: 57.4 | L25: 45 | M25: 60 | O25: 6600 | P25: 350 | Q25: 7100 | R25: 3.7
A26: 15:2 Svalövsbäcken nedstr Svalöv2021-12-21 | B26: 15:2 Svalövsbäcken nedstr Svalöv12 | C26: 2 | D26: 15:2 Svalövsbäcken nedstr Svalöv | E26: 2021-12-21 | F26: 2.5 | G26: 12.8 | H26: 94 | I26: 7.8 | J26: 5.4 | K26: 47.8 | L26: 23 | M26: 36 | O26: 7300 | P26: 400 | Q26: 7200 | R26: 3.5
A27: 3:2 Örstorpsbäcken44221 | B27: 3:2 Örstorpsbäcken1 | C27: 3 | D27: 3:2 Örstorpsbäcken | E27: 2021-01-25 | F27: 4.2 | G27: 11.9 | H27: 91 | I27: 7.9 | J27: 9.1 | K27: 69 | L27: 57 | M27: 210 | N27: 60 | O27: 16000 | P27: 35 | Q27: 17000 | R27: 6.3
A28: 3:2 Örstorpsbäcken44249 | B28: 3:2 Örstorpsbäcken2 | C28: 3 | D28: 3:2 Örstorpsbäcken | E28: 2021-02-22 | F28: 3.6 | G28: 12.4 | H28: 94 | I28: 7.85 | J28: 11 | K28: 58.5 | L28: 70 | M28: 110 | N28: 36 | O28: 13000 | P28: <10 | Q28: 13000 | R28: 4.4
A29: 3:2 Örstorpsbäcken44279 | B29: 3:2 Örstorpsbäcken3 | C29: 3 | D29: 3:2 Örstorpsbäcken | E29: 2021-03-24 | F29: 5.6 | G29: 13.1 | H29: 104 | I29: 8.11 | J29: 2.6 | K29: 72.8 | L29: 59 | M29: 75 | N29: 13 | O29: 13000 | P29: 10 | Q29: 15000 | R29: <2
A30: 3:2 Örstorpsbäcken44313 | B30: 3:2 Örstorpsbäcken4 | C30: 3 | D30: 3:2 Örstorpsbäcken | E30: 2021-04-27 | F30: 5.5 | G30: 11.4 | H30: 91 | I30: 8 | J30: 3.8 | K30: 70.9 | L30: 88 | M30: 120 | N30: 31 | O30: 6400 | P30: 26 | Q30: 7300 | R30: 3.3
A31: 3:2 Örstorpsbäcken44341 | B31: 3:2 Örstorpsbäcken5 | C31: 3 | D31: 3:2 Örstorpsbäcken | E31: 2021-05-25 | F31: 11.6 | G31: 8.5 | H31: 78 | I31: 8.02 | J31: 2 | K31: 72.1 | L31: 110 | M31: 140 | N31: 20 | O31: 6300 | P31: 57 | Q31: 6600 | R31: 2.4
A32: 3:2 Örstorpsbäcken44368 | B32: 3:2 Örstorpsbäcken6 | C32: 3 | D32: 3:2 Örstorpsbäcken | E32: 2021-06-21 | F32: 16.5 | G32: 7 | H32: 72 | I32: 7.91 | J32: 2.8 | K32: 73.5 | L32: 280 | M32: 280 | N32: 40 | O32: 3800 | P32: 64 | Q32: 4700 | R32: 2.2
A33: 3:2 Örstorpsbäcken44398 | B33: 3:2 Örstorpsbäcken7 | C33: 3 | D33: 3:2 Örstorpsbäcken | E33: 2021-07-21 | F33: 15.9 | G33: 8.3 | H33: 84 | I33: 7.94 | J33: 5.6 | K33: 72.8 | L33: 280 | M33: 300 | N33: 30 | O33: 5200 | P33: 35 | Q33: 5800 | R33: 5.1
A34: 3:2 Örstorpsbäcken44438 | B34: 3:2 Örstorpsbäcken8 | C34: 3 | D34: 3:2 Örstorpsbäcken | E34: 2021-08-30 | F34: 15.3 | G34: 11.6 | H34: 116 | I34: 8 | J34: 11 | K34: 71.8 | S34: Analys missad för närsalter och susp
A35: =TRIM(CONCATENATE(D35,E35)) -> 3:2 Örstorpsbäcken44468 | B35: 3:2 Örstorpsbäcken9 | C35: 3 | D35: 3:2 Örstorpsbäcken | E35: 2021-09-29 | F35: 13.4 | G35: 11 | H35: 106 | I35: 7.94 | J35: 7.1 | K35: 73.1 | L35: 130 | M35: 150 | N35: 20 | O35: 12000 | P35: 24 | Q35: 11000 | R35: 3.1
A36: 3:2 Örstorpsbäcken44489 | B36: 3:2 Örstorpsbäcken10 | C36: 3 | D36: 3:2 Örstorpsbäcken | E36: 2021-10-20 | F36: 12.4 | G36: 8.6 | H36: 81 | I36: 7.83 | J36: 78 | K36: 67.4 | L36: 140 | M36: 250 | N36: 100 | O36: 12000 | P36: 16 | Q36: 14000 | R36: 22
A37: 3:2 Örstorpsbäcken44524 | B37: 3:2 Örstorpsbäcken11 | C37: 3 | D37: 3:2 Örstorpsbäcken | E37: 2021-11-24 | F37: 8.2 | G37: 10.1 | H37: 86 | I37: 8.04 | J37: 2.7 | K37: 79.1 | L37: 120 | M37: 110 | N37: 10 | O37: 13000 | P37: 20 | Q37: 13000 | R37: 2.2
A38: 3:2 Örstorpsbäcken2021-12-21 | B38: 3:2 Örstorpsbäcken12 | C38: 3 | D38: 3:2 Örstorpsbäcken | E38: 2021-12-21 | F38: 3.4 | G38: 11.9 | H38: 89 | I38: 7.82 | J38: 6.2 | K38: 74.7 | L38: 76 | M38: 100 | N38: 19 | O38: 14000 | P38: 48 | Q38: 13000 | R38: 6.2
A39: 5 Braån vid Asmundtorp44221 | B39: 5 Braån vid Asmundtorp1 | C39: 4 | D39: 5 Braån vid Asmundtorp | E39: 2021-01-25 | F39: 3.3 | G39: 12.6 | H39: 94 | I39: 7.92 | J39: 14 | K39: 49 | L39: 42 | M39: 81 | N39: 30 | O39: 8900 | P39: 72 | Q39: 8900 | R39: 7.2
A40: 5 Braån vid Asmundtorp44249 | B40: 5 Braån vid Asmundtorp2 | C40: 4 | D40: 5 Braån vid Asmundtorp | E40: 2021-02-22 | F40: 3.3 | G40: 12.9 | H40: 97 | I40: 7.91 | J40: 19 | K40: 41.4 | L40: 60 | M40: 110 | N40: 46 | O40: 7400 | P40: 64 | Q40: 7900 | R40: 9.6
A41: 5 Braån vid Asmundtorp44279 | B41: 5 Braån vid Asmundtorp3 | C41: 4 | D41: 5 Braån vid Asmundtorp | E41: 2021-03-24 | F41: 5.7 | G41: 12.8 | H41: 102 | I41: 8.15 | J41: 3.8 | K41: 54.3 | L41: 21 | M41: 41 | N41: 14 | O41: 6800 | P41: 48 | Q41: 7600 | R41: 2.8
A42: 5 Braån vid Asmundtorp44313 | B42: 5 Braån vid Asmundtorp4 | C42: 4 | D42: 5 Braån vid Asmundtorp | E42: 2021-04-27 | F42: 6.2 | G42: 10.9 | H42: 88 | I42: 8.03 | J42: 2 | K42: 57.7 | L42: 14 | M42: 30 | N42: 10 | O42: 3900 | P42: 26 | Q42: 4600 | R42: <2
A43: 5 Braån vid Asmundtorp44341 | B43: 5 Braån vid Asmundtorp5 | C43: 4 | D43: 5 Braån vid Asmundtorp | E43: 2021-05-25 | F43: 11.8 | G43: 8.4 | H43: 78 | I43: 8.06 | J43: 2.1 | K43: 59.8 | L43: 45 | M43: 66 | N43: 11 | O43: 4100 | P43: 47 | Q43: 4500 | R43: 2.4
A44: 5 Braån vid Asmundtorp44368 | B44: 5 Braån vid Asmundtorp6 | C44: 4 | D44: 5 Braån vid Asmundtorp | E44: 2021-06-21 | F44: 18.4 | G44: 6.7 | H44: 71 | I44: 7.97 | J44: 2.9 | K44: 67.8 | L44: 170 | M44: 180 | N44: 20 | O44: 2900 | P44: 51 | Q44: 3700 | R44: 3
A45: 5 Braån vid Asmundtorp44398 | B45: 5 Braån vid Asmundtorp7 | C45: 4 | D45: 5 Braån vid Asmundtorp | E45: 2021-07-21 | F45: 17.3 | G45: 7.6 | H45: 79 | I45: 7.99 | J45: 4.3 | K45: 59.8 | L45: 160 | M45: 180 | N45: 10 | O45: 1900 | P45: 27 | Q45: 2300 | R45: 3.2
A46: 5 Braån vid Asmundtorp44438 | B46: 5 Braån vid Asmundtorp8 | C46: 4 | D46: 5 Braån vid Asmundtorp | E46: 2021-08-30 | F46: 16.4 | G46: 11.7 | H46: 120 | I46: 8.08 | J46: 4.6 | K46: 52.4 | S46: Analys missad för närsalter och susp
A47: 5 Braån vid Asmundtorp44468 | B47: 5 Braån vid Asmundtorp9 | C47: 4 | D47: 5 Braån vid Asmundtorp | E47: 2021-09-29 | F47: 13.9 | G47: 10.6 | H47: 103 | I47: 7.97 | J47: 21 | K47: 47.5 | L47: 230 | M47: 280 | N47: 60 | O47: 5300 | P47: 53 | Q47: 5600 | R47: 11
A48: 5 Braån vid Asmundtorp44489 | B48: 5 Braån vid Asmundtorp10 | C48: 4 | D48: 5 Braån vid Asmundtorp | E48: 2021-10-20 | F48: 12.1 | G48: 9.3 | H48: 87 | I48: 7.98 | J48: 22 | K48: 57.7 | L48: 180 | M48: 230 | N48: 40 | O48: 7500 | P48: 15 | Q48: 8700 | R48: 18
A49: 5 Braån vid Asmundtorp44524 | B49: 5 Braån vid Asmundtorp11 | C49: 4 | D49: 5 Braån vid Asmundtorp | E49: 2021-11-24 | F49: 7.4 | G49: 10.6 | H49: 88 | I49: 8.18 | J49: 4.2 | K49: 61.4 | L49: 84 | M49: 86 | N49: 8 | O49: 8200 | P49: 14 | Q49: 8200 | R49: 2.7
A50: 5 Braån vid Asmundtorp2021-12-21 | B50: 5 Braån vid Asmundtorp12 | C50: 4 | D50: 5 Braån vid Asmundtorp | E50: 2021-12-21 | F50: 2.8 | G50: 12.6 | H50: 93 | I50: 8.01 | J50: 6.6 | K50: 52.5 | L50: 60 | M50: 87 | N50: 14 | O50: 7700 | P50: 110 | Q50: 7200 | R50: 5.7
A51: 28:2 Bäck N Trolleholm44249 | B51: 28:2 Bäck N Trolleholm2 | C51: 5 | D51: 28:2 Bäck N Trolleholm | E51: 2021-02-22 | F51: 1.6 | G51: 13.3 | H51: 95 | I51: 7.75 | J51: 5.3 | K51: 36.6 | L51: 5 | M51: 22 | O51: 2300 | P51: 52 | Q51: 2500 | R51: 3 | S51: Is låg kvar i bäcken, vattnet rann ovan is.
A52: 28:2 Bäck N Trolleholm44279 | B52: 28:2 Bäck N Trolleholm3 | C52: 5 | D52: 28:2 Bäck N Trolleholm | E52: 2021-03-24 | F52: 6.7 | G52: 11.8 | H52: 97 | I52: 8.1 | J52: 2.5 | K52: 44.6 | L52: 4.1 | M52: 10 | O52: 1500 | P52: 11 | Q52: 2200 | R52: 2.3
A53: 28:2 Bäck N Trolleholm44341 | B53: 28:2 Bäck N Trolleholm5 | C53: 5 | D53: 28:2 Bäck N Trolleholm | E53: 2021-05-25 | F53: 11.2 | G53: 9.8 | H53: 90 | I53: 8.2 | J53: 1.6 | K53: 52.1 | L53: 5 | M53: 11 | O53: 460 | P53: 13 | Q53: 740 | R53: 2.1
A54: 28:2 Bäck N Trolleholm44438 | B54: 28:2 Bäck N Trolleholm8 | C54: 5 | D54: 28:2 Bäck N Trolleholm | E54: 2021-08-30 | F54: 14.6 | G54: 10.9 | H54: 108 | I54: 8.13 | J54: 5.3 | K54: 50.2 | S54: Analys missad för närsalter och susp
A55: 28:2 Bäck N Trolleholm44489 | B55: 28:2 Bäck N Trolleholm10 | C55: 5 | D55: 28:2 Bäck N Trolleholm | E55: 2021-10-20 | F55: 12.4 | G55: 9.4 | H55: 88 | I55: 7.91 | J55: 22 | K55: 43.9 | L55: 6.4 | M55: 67 | O55: 1600 | P55: <10 | Q55: 2500 | R55: 24
A56: 28:2 Bäck N Trolleholm2021-12-21 | B56: 28:2 Bäck N Trolleholm12 | C56: 5 | D56: 28:2 Bäck N Trolleholm | E56: 2021-12-21 | F56: 0.3 | G56: 13.7 | H56: 94 | I56: 7.97 | J56: 2.8 | K56: 38.2 | L56: 3 | M56: 12 | O56: 1400 | P56: 27 | Q56: 1700 | R56: <2
A57: 26 Långgropen uppstr Eslöv44221 | B57: 26 Långgropen uppstr Eslöv1 | C57: 6 | D57: 26 Långgropen uppstr Eslöv | E57: 2021-01-25 | F57: 3.3 | G57: 11.3 | H57: 85 | I57: 7.53 | J57: 14 | K57: 45.6 | L57: 45 | M57: 86 | N57: 31 | O57: 7100 | P57: 65 | Q57: 7400 | R57: 5.7
A58: 26 Långgropen uppstr Eslöv44249 | B58: 26 Långgropen uppstr Eslöv2 | C58: 6 | D58: 26 Långgropen uppstr Eslöv | E58: 2021-02-22 | F58: 2.9 | G58: 12.5 | H58: 93 | I58: 7.64 | J58: 16 | K58: 40.7 | L58: 55 | M58: 98 | N58: 36 | O58: 6300 | P58: 73 | Q58: 7000 | R58: 3.9
A59: 26 Långgropen uppstr Eslöv44279 | B59: 26 Långgropen uppstr Eslöv3 | C59: 6 | D59: 26 Långgropen uppstr Eslöv | E59: 2021-03-24 | F59: 6.4 | G59: 13.9 | H59: 113 | I59: 8.08 | J59: 4.5 | K59: 57.4 | L59: 15 | M59: 36 | N59: 19 | O59: 6100 | P59: 18 | Q59: 7000 | R59: 2.6
A60: 26 Långgropen uppstr Eslöv44313 | B60: 26 Långgropen uppstr Eslöv4 | C60: 6 | D60: 26 Långgropen uppstr Eslöv | E60: 2021-04-27 | F60: 6.1 | G60: 17.1 | H60: 138 | I60: 8.26 | J60: 1.8 | K60: 60.3 | L60: 2.7 | M60: 18 | N60: 12 | O60: 3700 | P60: <10 | Q60: 4300 | R60: <2
A61: 26 Långgropen uppstr Eslöv44341 | B61: 26 Långgropen uppstr Eslöv5 | C61: 6 | D61: 26 Långgropen uppstr Eslöv | E61: 2021-05-25 | F61: 12.6 | G61: 9.9 | H61: 93 | I61: 8.02 | J61: 1.8 | K61: 62.5 | L61: 11 | M61: 33 | N61: 17 | O61: 2700 | P61: 39 | Q61: 3200 | R61: 2.4
A62: 26 Långgropen uppstr Eslöv44368 | B62: 26 Långgropen uppstr Eslöv6 | C62: 6 | D62: 26 Långgropen uppstr Eslöv | E62: 2021-06-21 | F62: 16.3 | G62: 5.9 | H62: 60 | I62: 7.73 | J62: 2 | K62: 66.4 | L62: 68 | M62: 94 | N62: 29 | O62: 1200 | P62: 26 | Q62: 1800 | R62: <2
A63: 26 Långgropen uppstr Eslöv44398 | B63: 26 Långgropen uppstr Eslöv7 | C63: 6 | D63: 26 Långgropen uppstr Eslöv | E63: 2021-07-21 | F63: 16.1 | G63: 7.3 | H63: 74 | I63: 7.7 | J63: 1.9 | K63: 62.4 | L63: 77 | M63: 90 | N63: 16 | O63: 1200 | P63: 30 | Q63: 1800 | R63: <2
A64: 26 Långgropen uppstr Eslöv44438 | B64: 26 Långgropen uppstr Eslöv8 | C64: 6 | D64: 26 Långgropen uppstr Eslöv | E64: 2021-08-30 | F64: 14.6 | G64: 8.5 | H64: 84 | I64: 7.87 | J64: 6.5 | K64: 53.8 | S64: Analys missad för närsalter och susp
A65: 26 Långgropen uppstr Eslöv44468 | B65: 26 Långgropen uppstr Eslöv9 | C65: 6 | D65: 26 Långgropen uppstr Eslöv | E65: 2021-09-29 | F65: 12.8 | G65: 8.4 | H65: 80 | I65: 7.8 | J65: 8 | K65: 58.5 | L65: 100 | M65: 140 | N65: 20 | O65: 5900 | P65: 18 | Q65: 6000 | R65: 3.6
A66: 26 Långgropen uppstr Eslöv44489 | B66: 26 Långgropen uppstr Eslöv10 | C66: 6 | D66: 26 Långgropen uppstr Eslöv | E66: 2021-10-20 | F66: 12.3 | G66: 8 | H66: 75 | I66: 7.79 | J66: 40 | K66: 55.2 | L66: 65 | M66: 140 | N66: 68 | O66: 6700 | P66: <10 | Q66: 7900 | R66: 20
A67: =TRIM(CONCATENATE(D67,E67)) -> 26 Långgropen uppstr Eslöv44524 | B67: 26 Långgropen uppstr Eslöv11 | C67: 6 | D67: 26 Långgropen uppstr Eslöv | E67: 2021-11-24 | F67: 7.6 | G67: 9.7 | H67: 81 | I67: 7.94 | J67: 2.8 | K67: 61.8 | L67: 33 | M67: 40 | N67: 11 | O67: 7800 | P67: 23 | Q67: 8100 | R67: 2.6
A68: 26 Långgropen uppstr Eslöv2021-12-21 | B68: 26 Långgropen uppstr Eslöv12 | C68: 6 | D68: 26 Långgropen uppstr Eslöv | E68: 2021-12-21 | F68: 2.5 | G68: 11.4 | H68: 84 | I68: 7.7 | J68: 6.6 | K68: 53.7 | L68: 24 | M68: 39 | N68: 8 | O68: 6300 | P68: 83 | Q68: 6300 | R68: 4.6
A69: 24 Långgropen nedstr Eslöv44221 | B69: 24 Långgropen nedstr Eslöv1 | C69: 7 | D69: 24 Långgropen nedstr Eslöv | E69: 2021-01-25 | F69: 3.6 | G69: 11.7 | H69: 88 | I69: 7.59 | J69: 14 | K69: 47.2 | L69: 46 | M69: 84 | O69: 6900 | P69: 71 | Q69: 7200 | R69: 5.8
A70: 24 Långgropen nedstr Eslöv44249 | B70: 24 Långgropen nedstr Eslöv2 | C70: 7 | D70: 24 Långgropen nedstr Eslöv | E70: 2021-02-22 | F70: 2.6 | G70: 12.4 | H70: 91 | I70: 7.69 | J70: 15 | K70: 42.7 | L70: 56 | M70: 99 | O70: 6000 | P70: 83 | Q70: 6800 | R70: 6.4
A71: 24 Långgropen nedstr Eslöv44279 | B71: 24 Långgropen nedstr Eslöv3 | C71: 7 | D71: 24 Långgropen nedstr Eslöv | E71: 2021-03-24 | F71: 6.1 | G71: 13.4 | H71: 108 | I71: 8.03 | J71: 4.2 | K71: 60.1 | L71: 17 | M71: 35 | O71: 6000 | P71: 47 | Q71: 6500 | R71: 2.8
A72: 24 Långgropen nedstr Eslöv44313 | B72: 24 Långgropen nedstr Eslöv4 | C72: 7 | D72: 24 Långgropen nedstr Eslöv | E72: 2021-04-27 | F72: 6.1 | G72: 13.4 | H72: 108 | I72: 8 | J72: 2.7 | K72: 61.5 | L72: 9 | M72: 26 | O72: 2900 | P72: 52 | Q72: 3500 | R72: <2
A73: 24 Långgropen nedstr Eslöv44341 | B73: 24 Långgropen nedstr Eslöv5 | C73: 7 | D73: 24 Långgropen nedstr Eslöv | E73: 2021-05-25 | F73: 12.4 | G73: 8.9 | H73: 84 | I73: 7.9 | J73: 1.9 | K73: 62.5 | L73: 17 | M73: 39 | O73: 2400 | P73: 75 | Q73: 2900 | R73: 2
A74: 24 Långgropen nedstr Eslöv44368 | B74: 24 Långgropen nedstr Eslöv6 | C74: 7 | D74: 24 Långgropen nedstr Eslöv | E74: 2021-06-21 | F74: 16.3 | G74: 5.7 | H74: 58 | I74: 7.72 | J74: 2.6 | K74: 70.8 | L74: 70 | M74: 100 | O74: 1100 | P74: 52 | Q74: 1600 | R74: <2
A75: 24 Långgropen nedstr Eslöv44398 | B75: 24 Långgropen nedstr Eslöv7 | C75: 7 | D75: 24 Långgropen nedstr Eslöv | E75: 2021-07-21 | F75: 16 | G75: 6.6 | H75: 67 | I75: 7.67 | J75: 2.5 | K75: 65.2 | L75: 78 | M75: 92 | O75: 1100 | P75: 49 | Q75: 1500 | R75: 2.5
A76: 24 Långgropen nedstr Eslöv44438 | B76: 24 Långgropen nedstr Eslöv8 | C76: 7 | D76: 24 Långgropen nedstr Eslöv | E76: 2021-08-30 | F76: 14.7 | G76: 8.1 | H76: 80 | I76: 7.83 | J76: 7.3 | K76: 53.5 | S76: Analys missad för närsalter och susp
A77: 24 Långgropen nedstr Eslöv44468 | B77: =CONCATENATE(D77,MONTH(E77)) -> 24 Långgropen nedstr Eslöv9 | C77: 7 | D77: 24 Långgropen nedstr Eslöv | E77: 2021-09-29 | F77: 12.8 | G77: 8.6 | H77: 82 | I77: 7.77 | J77: 6.5 | K77: 55.4 | L77: 99 | M77: 130 | O77: 4400 | P77: 26 | Q77: 4800 | R77: 3.1
A78: 24 Långgropen nedstr Eslöv44489 | B78: 24 Långgropen nedstr Eslöv10 | C78: 7 | D78: 24 Långgropen nedstr Eslöv | E78: 2021-10-20 | F78: 12.5 | G78: 8 | H78: 75 | I78: 7.79 | J78: 13 | K78: 46.5 | L78: 46 | M78: 86 | O78: 4300 | P78: 77 | Q78: 5100 | R78: 9.3
A79: 24 Långgropen nedstr Eslöv44524 | B79: 24 Långgropen nedstr Eslöv11 | C79: 7 | D79: 24 Långgropen nedstr Eslöv | E79: 2021-11-24 | F79: 7.5 | G79: 9.7 | H79: 81 | I79: 7.92 | J79: 2.8 | K79: 62.5 | L79: 34 | M79: 39 | O79: 7400 | P79: 37 | Q79: 7600 | R79: <2
A80: 24 Långgropen nedstr Eslöv2021-12-21 | B80: 24 Långgropen nedstr Eslöv12 | C80: 7 | D80: 24 Långgropen nedstr Eslöv | E80: 2021-12-21 | F80: 2.2 | G80: 11.6 | H80: 84 | I80: 7.73 | J80: 6.8 | K80: 55.4 | L80: 25 | M80: 49 | O80: 5900 | P80: 130 | Q80: 5600 | R80: 5.5
A81: 19 Saxån vid Annelöv44249 | B81: 19 Saxån vid Annelöv2 | C81: 8 | D81: 19 Saxån vid Annelöv | E81: 2021-02-22 | F81: 3.2 | G81: 13.2 | H81: 99 | I81: 7.97 | J81: 17 | K81: 44.7 | L81: 65 | M81: 110 | O81: 6000 | P81: 41 | Q81: 6300 | R81: 15
A82: 19 Saxån vid Annelöv44279 | B82: 19 Saxån vid Annelöv3 | C82: 8 | D82: 19 Saxån vid Annelöv | E82: 2021-03-24 | F82: 5.9 | G82: 12.4 | H82: 100 | I82: 8.21 | J82: 5.6 | K82: 60 | L82: 23 | M82: 39 | O82: 5900 | P82: 16 | Q82: 6700 | R82: 4.8
A83: 19 Saxån vid Annelöv44341 | B83: 19 Saxån vid Annelöv5 | C83: 8 | D83: 19 Saxån vid Annelöv | E83: 2021-05-25 | F83: 12.9 | G83: 8.2 | H83: 78 | I83: 8.14 | J83: 2 | K83: 61.5 | L83: 39 | M83: 63 | O83: 2700 | P83: 60 | Q83: 3000 | R83: <2
A84: 19 Saxån vid Annelöv44438 | B84: 19 Saxån vid Annelöv8 | C84: 8 | D84: 19 Saxån vid Annelöv | E84: 2021-08-30 | F84: 15.9 | G84: 9.9 | H84: 100 | I84: 7.96 | J84: 2.5 | K84: 41 | S84: Analys missad för närsalter och susp
A85: 19 Saxån vid Annelöv44489 | B85: 19 Saxån vid Annelöv10 | C85: 8 | D85: 19 Saxån vid Annelöv | E85: 2021-10-20 | F85: 11.5 | G85: 8.8 | H85: 81 | I85: 7.96 | J85: 2.6 | K85: 64.1 | L85: 56 | M85: 73 | O85: 4900 | P85: <10 | Q85: 6000 | R85: 3.4
A86: 19 Saxån vid Annelöv2021-12-21 | B86: 19 Saxån vid Annelöv12 | C86: 8 | D86: 19 Saxån vid Annelöv | E86: 2021-12-21 | F86: 2.6 | G86: 12.8 | H86: 94 | I86: 8 | J86: 7.8 | K86: 56.3 | L86: 39 | M86: 65 | O86: 6100 | P86: 75 | Q86: 5900 | R86: 7.3
A87: 30 Välabäcken44221 | B87: 30 Välabäcken1 | C87: 9 | D87: 30 Välabäcken | E87: 2021-01-25 | F87: 4.1 | G87: 11.7 | H87: 90 | I87: 7.81 | J87: 4.9 | K87: 76.1 | L87: 40 | M87: 89 | N87: 26 | O87: 15000 | P87: <10 | Q87: 15000 | R87: 4.2
A88: 30 Välabäcken44249 | B88: 30 Välabäcken2 | C88: 9 | D88: 30 Välabäcken | E88: 2021-02-22 | F88: 3.2 | G88: 12.7 | H88: 95 | I88: 7.86 | J88: 13 | K88: 59.4 | L88: 74 | M88: 110 | N88: 36 | O88: 10000 | P88: 15 | Q88: 11000 | R88: 10
A89: 30 Välabäcken44279 | B89: 30 Välabäcken3 | C89: 9 | D89: 30 Välabäcken | E89: 2021-03-24 | F89: 6.4 | G89: 13.9 | H89: 113 | I89: 8.23 | J89: 1.6 | K89: 76.4 | L89: 14 | M89: 37 | N89: 20 | O89: 12000 | P89: <10 | Q89: 13000 | R89: <2
A90: 30 Välabäcken44313 | B90: 30 Välabäcken4 | C90: 9 | D90: 30 Välabäcken | E90: 2021-04-27 | F90: 5.6 | G90: 13.1 | H90: 104 | I90: 7.99 | J90: 1.6 | K90: 79.1 | L90: 4.4 | M90: 46 | N90: 19 | O90: 7200 | P90: 69 | Q90: 8200 | R90: <2
A91: 30 Välabäcken44341 | B91: 30 Välabäcken5 | C91: 9 | D91: 30 Välabäcken | E91: 2021-05-25 | F91: 11.6 | G91: 10.7 | H91: 99 | I91: 8.13 | J91: 1.2 | K91: 77.3 | L91: 63 | M91: 110 | N91: 22 | O91: 5100 | P91: 46 | Q91: 5500 | R91: <2
A92: 30 Välabäcken44368 | B92: 30 Välabäcken6 | C92: 9 | D92: 30 Välabäcken | E92: 2021-06-21 | F92: 15 | G92: 7.2 | H92: 72 | I92: 7.84 | J92: 1.2 | K92: 79.4 | L92: 140 | M92: 210 | N92: 60 | O92: 4200 | P92: 130 | Q92: 5300 | R92: 7.8
A93: 30 Välabäcken44398 | B93: 30 Välabäcken7 | C93: 9 | D93: 30 Välabäcken | E93: 2021-07-21 | F93: 15.4 | G93: 7.4 | H93: 74 | I93: 7.84 | J93: 1.2 | K93: 79.3 | L93: 230 | M93: 310 | N93: 60 | O93: 3000 | P93: 140 | Q93: 4000 | R93: 11
A94: 30 Välabäcken44438 | B94: 30 Välabäcken8 | C94: 9 | D94: 30 Välabäcken | E94: 2021-08-30 | F94: 15.2 | G94: 9.7 | H94: 97 | I94: 7.89 | J94: 1.1 | K94: 74.4 | S94: Analys missad för närsalter och susp
A95: 30 Välabäcken44468 | B95: 30 Välabäcken9 | C95: 9 | D95: 30 Välabäcken | E95: 2021-09-29 | F95: 12.2 | G95: 9.6 | H95: 90 | I95: 7.8 | J95: 1.8 | K95: 76.2 | L95: 130 | M95: 140 | N95: 10 | O95: 4200 | P95: 19 | Q95: 4600 | R95: <2
A96: 30 Välabäcken44489 | B96: 30 Välabäcken10 | C96: 9 | D96: 30 Välabäcken | E96: 2021-10-20 | F96: 12.6 | G96: 8.3 | H96: 78 | I96: 7.9 | J96: 2.3 | K96: 81.3 | L96: 71 | M96: 87 | N96: 11 | O96: 8800 | P96: 15 | Q96: 9900 | R96: 3
A97: 30 Välabäcken44524 | B97: 30 Välabäcken11 | C97: 9 | D97: 30 Välabäcken | E97: 2021-11-24 | F97: 8.4 | G97: 10 | H97: 86 | I97: 8.11 | J97: 1 | K97: 83.7 | L97: 70 | M97: 74 | N97: 5 | O97: 12000 | P97: 34 | Q97: 12000 | R97: <2
A98: 30 Välabäcken2021-12-21 | B98: 30 Välabäcken12 | C98: 9 | D98: 30 Välabäcken | E98: 2021-12-21 | F98: 3.5 | G98: 12.1 | H98: 91 | I98: 7.94 | J98: 3.1 | K98: 78.7 | L98: 45 | M98: 49 | N98: <5,0 | O98: 14000 | P98: 60 | Q98: 13000 | R98: <2
A99: =TRIM(CONCATENATE(D99,E99)) -> 16 Saxån vid Saxtorp44221 | B99: 16 Saxån vid Saxtorp1 | C99: 10 | D99: 16 Saxån vid Saxtorp | E99: 2021-01-25 | F99: 3.3 | G99: 12.8 | H99: 96 | I99: 7.99 | J99: 15 | K99: 54.7 | L99: 36 | M99: 100 | N99: 37 | O99: 9200 | P99: <10 | Q99: 9200 | R99: 9.3
A100: 16 Saxån vid Saxtorp44249 | B100: 16 Saxån vid Saxtorp2 | C100: 10 | D100: 16 Saxån vid Saxtorp | E100: 2021-02-22 | F100: 3.1 | G100: 12.8 | H100: 95 | I100: 7.96 | J100: 19 | K100: 44.9 | L100: 80 | M100: 130 | N100: 49 | O100: 6700 | P100: 69 | Q100: 7100 | R100: 13
A101: 16 Saxån vid Saxtorp44279 | B101: 16 Saxån vid Saxtorp3 | C101: 10 | D101: 16 Saxån vid Saxtorp | E101: 2021-03-24 | F101: 5.7 | G101: 12.4 | H101: 99 | I101: 8.19 | J101: 4.6 | K101: 65 | L101: 29 | M101: 48 | N101: 17 | O101: 7800 | P101: 22 | Q101: 9000 | R101: 3.2
A102: 16 Saxån vid Saxtorp44313 | B102: 16 Saxån vid Saxtorp4 | C102: 10 | D102: 16 Saxån vid Saxtorp | E102: 2021-04-27 | F102: 7.6 | G102: 11.6 | H102: 97 | I102: 8.02 | J102: 2.4 | K102: 64.6 | L102: 24 | M102: 43 | N102: 16 | O102: 4000 | P102: 30 | Q102: 4800 | R102: <2
A103: 16 Saxån vid Saxtorp44341 | B103: 16 Saxån vid Saxtorp5 | C103: 10 | D103: 16 Saxån vid Saxtorp | E103: 2021-05-25 | F103: 12.5 | G103: 8.9 | H103: 84 | I103: 8.16 | J103: 1.9 | K103: 66 | L103: 55 | M103: 77 | N103: 15 | O103: 3700 | P103: 63 | Q103: 4000 | R103: <2
A104: 16 Saxån vid Saxtorp44368 | B104: 16 Saxån vid Saxtorp6 | C104: 10 | D104: 16 Saxån vid Saxtorp | E104: 2021-06-21 | F104: 18.8 | G104: 6.1 | H104: 66 | I104: 7.92 | J104: 1.2 | K104: 70.5 | L104: 170 | M104: 190 | N104: 20 | O104: 2900 | P104: 70 | Q104: 3600 | R104: <2
A105: 16 Saxån vid Saxtorp44398 | B105: 16 Saxån vid Saxtorp7 | C105: 10 | D105: 16 Saxån vid Saxtorp | E105: 2021-07-21 | F105: 18.2 | G105: 7.2 | H105: 76 | I105: 7.96 | J105: 1.8 | K105: 62.4 | L105: 170 | M105: 200 | N105: 10 | O105: 2000 | P105: 34 | Q105: 2700 | R105: <2
A106: 16 Saxån vid Saxtorp44438 | B106: 16 Saxån vid Saxtorp8 | C106: 10 | D106: 16 Saxån vid Saxtorp | E106: 2021-08-30 | F106: 16 | G106: 11.3 | H106: 115 | I106: 8.12 | J106: 3.6 | K106: 61.2 | S106: Analys missad för närsalter och susp
A107: 16 Saxån vid Saxtorp44468 | B107: 16 Saxån vid Saxtorp9 | C107: 10 | D107: 16 Saxån vid Saxtorp | E107: 2021-09-29 | F107: 13.7 | G107: 9.3 | H107: 90 | I107: 7.88 | J107: 5.1 | K107: 66.7 | L107: 110 | M107: 130 | N107: 20 | O107: 3600 | P107: 16 | Q107: 3800 | R107: 2.8
A108: 16 Saxån vid Saxtorp44489 | B108: 16 Saxån vid Saxtorp10 | C108: 10 | D108: 16 Saxån vid Saxtorp | E108: 2021-10-20 | F108: 12.1 | G108: 9.3 | H108: 87 | I108: 8.02 | J108: 4.5 | K108: 67.9 | L108: 69 | M108: 95 | N108: 21 | O108: 6100 | P108: <10 | Q108: 7100 | R108: 3.8
A109: 16 Saxån vid Saxtorp44524 | B109: 16 Saxån vid Saxtorp11 | C109: 10 | D109: 16 Saxån vid Saxtorp | E109: 2021-11-24 | F109: 7.1 | G109: 10.8 | H109: 89 | I109: 8.23 | J109: 3.5 | K109: 67.5 | L109: 59 | M109: 64 | N109: 11 | O109: 8200 | P109: 25 | Q109: 8600 | R109: 2.7
A110: 16 Saxån vid Saxtorp2021-12-21 | B110: 16 Saxån vid Saxtorp12 | C110: 10 | D110: 16 Saxån vid Saxtorp | E110: 2021-12-21 | F110: 2.7 | G110: 12.4 | H110: 91 | I110: 8.07 | J110: 6.6 | K110: 61.9 | L110: 45 | M110: 350 | N110: 300 | O110: 8200 | P110: 73 | Q110: 7600 | R110: 6.2

Sheet Sorterat
B2: Saxån-Braån 2021
B3: Sorterat per provpunkt
D4: Värden < a räknas som a vid beräkning av statistik | AE4: <-värden omvandlade till värden. Medelvärde hämtas här
A5: Sorterings- | B5: Provtagningspunkt | C5: Provtagn | D5: Temp | E5: Syreh | F5: Syrem | G5: pH | H5: Gruml | I5: Kond | J5: PO4-P | K5: Tot-P | L5: Part.-P | M5: NO3+2-N | N5: NH4-N | O5: Tot-N | P5: Susp | Q5: Anmärkning | R5: provtagare/projektledare | AE5: Temp | AF5: Syreh | AG5: Syrem | AH5: pH | AI5: Gruml | AJ5: BOD7 | AK5: Susp | AL5: PO4-P | AM5: Tot-P | AN5: NO3+2-N | AO5: NH4-N | AP5: Tot-N | AQ5: Susp
A6: ordning | B6: Nr Läge | C6: datum | D6: °C | E6: mg/l | F6: % | H6: FNU | I6: mS/m | J6: µg/l | K6: µg/l | L6: µg/l | M6: µg/l | N6: µg/l | O6: µg/l | P6: mg/l | AE6: °C | AF6: mg/l | AG6: % | AI6: FNU | AJ6: mg/l | AK6: mg/l | AL6: µg/l | AM6: µg/l | AN6: µg/l | AO6: µg/l | AP6: µg/l | AQ6: mg/l
A7: 1 | B7: 14 Svalövsbäcken uppstr Svalöv | C7: 2021-01-25 | D7: 3 | E7: 12.7 | F7: 94 | G7: 7.55 | H7: 9.5 | I7: 39.3 | J7: 21 | K7: 48 | L7: 16 | M7: 8900 | N7: 28 | O7: 8800 | P7: 3.4 | Q7: Resultatet av kväve total, N, är mindre än summanav ammoniumkväve, NH4-N, och nitrat + nitritkväve, NO23-N. Skillnaden ligger dock inommätosäkerheten. | AE7: 3 | AF7: 12.7 | AG7: 94 | AH7: 7.55 | AI7: 9.5 | AJ7: 39.3 | AK7: 21 | AL7: 48 | AM7: 16 | AN7: 8900 | AO7: 28 | AP7: 8800 | AQ7: =IF(OR(LEFT(P7,1)="<",LEFT(P7,1)=">"),VALUE(MID(P7,2,5)),P7) -> 3.4
A8: 1 | B8: 14 Svalövsbäcken uppstr Svalöv | C8: 2021-02-22 | D8: 2.8 | E8: 12.2 | F8: 90 | G8: 7.46 | H8: 12 | I8: 36.5 | J8: 25 | K8: 75 | L8: 43 | M8: 6500 | N8: 11 | O8: 7200 | P8: 4 | AE8: 2.8 | AF8: 12.2 | AG8: 90 | AH8: 7.46 | AI8: 12 | AJ8: 36.5 | AK8: 25 | AL8: 75 | AM8: 43 | AN8: 6500 | AO8: 11 | AP8: 7200 | AQ8: =IF(OR(LEFT(P8,1)="<",LEFT(P8,1)=">"),VALUE(MID(P8,2,5)),P8) -> 4
A9: 1 | B9: 14 Svalövsbäcken uppstr Svalöv | C9: 2021-03-24 | D9: 5.5 | E9: 12.6 | F9: 100 | G9: 7.96 | H9: 4.1 | I9: 40.8 | J9: 9.3 | K9: 22 | L9: 9 | M9: 5800 | N9: 16 | O9: 6700 | P9: 2.2 | AE9: 5.5 | AF9: 12.6 | AG9: 100 | AH9: 7.96 | AI9: 4.1 | AJ9: 40.8 | AK9: 9.3 | AL9: 22 | AM9: 9 | AN9: 5800 | AO9: 16 | AP9: 6700 | AQ9: 2.2
A10: 1 | B10: 14 Svalövsbäcken uppstr Svalöv | C10: 2021-04-27 | D10: 9.1 | E10: 11.9 | F10: 104 | G10: 8.25 | H10: 8 | I10: 44.6 | J10: 6.8 | K10: 41 | L10: 29 | M10: 2200 | N10: 39 | O10: 3000 | P10: 5.6 | AE10: 9.1 | AF10: 11.9 | AG10: 104 | AH10: 8.25 | AI10: 8 | AJ10: 44.6 | AK10: 6.8 | AL10: 41 | AM10: 29 | AN10: 2200 | AO10: 39 | AP10: 3000 | AQ10: 5.6
A11: 1 | B11: 14 Svalövsbäcken uppstr Svalöv | C11: 2021-05-25 | D11: 14.4 | E11: 8.3 | F11: 82 | G11: 8.09 | H11: 8.2 | I11: 46.9 | J11: 12 | K11: 56 | L11: 31 | M11: 2100 | N11: 70 | O11: 2700 | P11: 9.7 | AE11: 14.4 | AF11: 8.3 | AG11: 82 | AH11: 8.09 | AI11: 8.2 | AJ11: 46.9 | AK11: 12 | AL11: 56 | AM11: 31 | AN11: 2100 | AO11: 70 | AP11: 2700 | AQ11: 9.7
A12: 1 | B12: 14 Svalövsbäcken uppstr Svalöv | C12: 2021-06-21 | D12: 21.2 | E12: 3.3 | F12: 37 | G12: 7.7 | H12: 6.4 | I12: 51.1 | J12: 56 | K12: 130 | L12: 50 | M12: 640 | N12: 41 | O12: 1800 | P12: 6.5 | AE12: 21.2 | AF12: 3.3 | AG12: 37 | AH12: 7.7 | AI12: 6.4 | AJ12: 51.1 | AK12: 56 | AL12: 130 | AM12: 50 | AN12: 640 | AO12: 41 | AP12: 1800 | AQ12: 6.5
A13: 1 | B13: 14 Svalövsbäcken uppstr Svalöv | C13: 2021-07-21 | D13: 21.3 | E13: 4.5 | F13: 51 | G13: 7.85 | H13: 13.8 | I13: 42.7 | J13: 56 | K13: 160 | L13: 74 | M13: 290 | N13: 55 | O13: 1700 | P13: 11 | AE13: 21.3 | AF13: 4.5 | AG13: 51 | AH13: 7.85 | AI13: 13.8 | AJ13: 42.7 | AK13: 56 | AL13: 160 | AM13: 74 | AN13: 290 | AO13: 55 | AP13: 1700 | AQ13: 11
A14: 1 | B14: 14 Svalövsbäcken uppstr Svalöv | C14: 2021-08-30 | D14: 16.8 | E14: 11.3 | F14: 117 | G14: 8.53 | H14: 20 | I14: 47.6 | Q14: Analys missad för närsalter och susp | AE14: 16.8 | AF14: 11.3 | AG14: 117 | AH14: 8.53 | AI14: 20 | AJ14: 47.6
A15: 1 | B15: 14 Svalövsbäcken uppstr Svalöv | C15: 2021-09-29 | D15: 14.3 | E15: 10.5 | F15: 103 | G15: 7.98 | H15: 15 | I15: 52.4 | J15: 4.8 | K15: 85 | L15: 61 | M15: 2200 | N15: 41 | O15: 2900 | P15: 14 | AE15: 14.3 | AF15: 10.5 | AG15: 103 | AH15: 7.98 | AI15: 15 | AJ15: 52.4 | AK15: 4.8 | AL15: 85 | AM15: 61 | AN15: 2200 | AO15: 41 | AP15: 2900 | AQ15: 14
A16: 1 | B16: 14 Svalövsbäcken uppstr Svalöv | C16: 2021-10-20 | D16: 11.2 | E16: 9.5 | F16: 87 | G16: 7.67 | H16: 10 | I16: 51.4 | J16: 17 | K16: 57 | L16: 32 | M16: 6900 | N16: 41 | O16: 8200 | P16: 12 | AE16: 11.2 | AF16: 9.5 | AG16: 87 | AH16: 7.67 | AI16: 10 | AJ16: 51.4 | AK16: 17 | AL16: 57 | AM16: 32 | AN16: 6900 | AO16: 41 | AP16: 8200 | AQ16: 12
A17: 1 | B17: 14 Svalövsbäcken uppstr Svalöv | C17: 2021-11-24 | D17: 6.7 | E17: 10.5 | F17: 86 | G17: 8.39 | H17: 4.6 | I17: 51.2 | J17: 23 | K17: 37 | L17: 11 | M17: 6200 | N17: 53 | O17: 6300 | P17: 4.5 | AE17: 6.7 | AF17: 10.5 | AG17: 86 | AH17: 8.39 | AI17: 4.6 | AJ17: 51.2 | AK17: 23 | AL17: 37 | AM17: 11 | AN17: 6200 | AO17: 53 | AP17: 6300 | AQ17: 4.5
A18: 1 | B18: 14 Svalövsbäcken uppstr Svalöv | C18: 2021-12-21 | D18: 2.2 | E18: 12.5 | F18: 91 | G18: 7.7 | H18: 5.1 | I18: 41.5 | J18: 14 | K18: 26 | L18: 5 | M18: 7100 | N18: 42 | O18: 7000 | P18: 3.4 | AE18: 2.2 | AF18: 12.5 | AG18: 91 | AH18: 7.7 | AI18: 5.1 | AJ18: 41.5 | AK18: 14 | AL18: 26 | AM18: 5 | AN18: 7100 | AO18: 42 | AP18: 7000 | AQ18: 3.4
C19: Medel | D19: 10.70833333 | E19: 9.983333333 | F19: 86.83333333 | G19: 7.9275 | H19: 9.725 | I19: 45.5 | J19: 22.26363636 | K19: 67 | L19: 32.81818182 | M19: 4439.090909 | N19: 39.72727273 | O19: 5118.181818 | P19: 6.936363636 | AE19: 10.70833333 | AF19: 9.983333333 | AG19: 86.83333333 | AH19: 7.9275 | AI19: 9.725 | AJ19: 45.5 | AK19: 22.26363636 | AL19: 67 | AM19: 32.81818182 | AN19: 4439.090909 | AO19: 39.72727273 | AP19: 5118.181818 | AQ19: 6.936363636
C20: Max | D20: 21.3 | E20: 12.7 | F20: 117 | G20: 8.53 | H20: 20 | I20: 52.4 | J20: 56 | K20: 160 | L20: 74 | M20: 8900 | N20: 70 | O20: 8800 | P20: 14 | AE20: 21.3 | AF20: 12.7 | AG20: 117 | AH20: 8.53 | AI20: 20 | AJ20: 52.4 | AK20: 56 | AL20: 160 | AM20: 74 | AN20: 8900 | AO20: 70 | AP20: 8800 | AQ20: 14
C21: Min | D21: 2.2 | E21: 3.3 | F21: 37 | G21: 7.46 | H21: 4.1 | I21: 36.5 | J21: 4.8 | K21: 22 | L21: 5 | M21: 290 | N21: 11 | O21: 1700 | P21: 2.2 | AE21: 2.2 | AF21: 3.3 | AG21: 37 | AH21: 7.46 | AI21: 4.1 | AJ21: 36.5 | AK21: 4.8 | AL21: 22 | AM21: 5 | AN21: 290 | AO21: 11 | AP21: 1700 | AQ21: 2.2
AE22: 0 | AF22: 0 | AG22: 0 | AH22: 0 | AI22: 0 | AJ22: 0 | AK22: 0 | AL22: 0 | AM22: 0 | AN22: 0 | AO22: 0 | AP22: 0 | AQ22: 0
A23: 2 | B23: 15:2 Svalövsbäcken nedstr Svalöv | C23: 2021-01-25 | D23: 3.6 | E23: 12.8 | F23: 97 | G23: 7.76 | H23: 13 | I23: 45.1 | J23: 28 | K23: 64 | M23: 8700 | N23: 290 | O23: 8900 | P23: 5.1 | AE23: 3.6 | AF23: 12.8 | AG23: 97 | AH23: 7.76 | AI23: 13 | AJ23: 45.1 | AK23: 28 | AL23: 64 | AN23: 8700 | AO23: 290 | AP23: 8900 | AQ23: 5.1
A24: 2 | B24: 15:2 Svalövsbäcken nedstr Svalöv | C24: 2021-02-22 | D24: 3.2 | E24: 12.9 | F24: 96 | G24: 7.69 | H24: 14 | I24: 39.9 | J24: 32 | K24: 81 | M24: 6600 | N24: 160 | O24: 7500 | P24: 6.8 | AE24: 3.2 | AF24: 12.9 | AG24: 96 | AH24: 7.69 | AI24: 14 | AJ24: 39.9 | AK24: 32 | AL24: 81 | AN24: 6600 | AO24: 160 | AP24: 7500 | AQ24: 6.8
A25: 2 | B25: 15:2 Svalövsbäcken nedstr Svalöv | C25: 2021-03-24 | D25: 6.5 | E25: 12.8 | F25: 104 | G25: 8.04 | H25: 4.1 | I25: 48.8 | J25: 16 | K25: 32 | M25: 6200 | N25: 610 | O25: 7400 | P25: 3 | AE25: 6.5 | AF25: 12.8 | AG25: 104 | AH25: 8.04 | AI25: 4.1 | AJ25: 48.8 | AK25: 16 | AL25: 32 | AN25: 6200 | AO25: 610 | AP25: 7400 | AQ25: 3
A26: 2 | B26: 15:2 Svalövsbäcken nedstr Svalöv | C26: 2021-04-27 | D26: 6.6 | E26: 14.8 | F26: 121 | G26: 8.1 | H26: 3.7 | I26: 54.2 | J26: 7.8 | K26: 27 | M26: 3700 | N26: 600 | O26: 4900 | P26: <2 | AE26: 6.6 | AF26: 14.8 | AG26: 121 | AH26: 8.1 | AI26: 3.7 | AJ26: 54.2 | AK26: 7.8 | AL26: 27 | AN26: 3700 | AO26: 600 | AP26: 4900 | AQ26: 2
A27: 2 | B27: 15:2 Svalövsbäcken nedstr Svalöv | C27: 2021-05-25 | D27: 12.4 | E27: 9.6 | F27: 90 | G27: 8 | H27: 1.8 | I27: 56.4 | J27: 14 | K27: 39 | M27: 4000 | N27: 67 | O27: 4400 | P27: <2 | AE27: 12.4 | AF27: 9.6 | AG27: 90 | AH27: 8 | AI27: 1.8 | AJ27: 56.4 | AK27: 14 | AL27: 39 | AN27: 4000 | AO27: 67 | AP27: 4400 | AQ27: 2
A28: 2 | B28: 15:2 Svalövsbäcken nedstr Svalöv | C28: 2021-06-21 | D28: 16.5 | E28: 6.8 | F28: 70 | G28: 7.65 | H28: 1.2 | I28: 69.1 | J28: 72 | K28: 110 | M28: 9500 | N28: 110 | O28: 10000 | P28: <2
A29: 2 | B29: 15:2 Svalövsbäcken nedstr Svalöv | C29: 2021-07-21 | D29: 17.4 | E29: 7.7 | F29: 80 | G29: 7.74 | H29: 4.8 | I29: 66.4 | J29: 72 | K29: 98 | M29: 7200 | N29: 110 | O29: 7800 | P29: 3.3
A30: 2 | B30: 15:2 Svalövsbäcken nedstr Svalöv | C30: 2021-08-30 | D30: 16.2 | E30: 9.6 | F30: 98 | G30: 8.02 | H30: 7.1 | I30: 55.8 | Q30: Analys missad för närsalter och susp
A31: 2 | B31: 15:2 Svalövsbäcken nedstr Svalöv | C31: 2021-09-29 | D31: 13.5 | E31: 10.3 | F31: 99 | G31: 7.97 | H31: 13 | I31: 55.9 | J31: 33 | K31: 110 | M31: 4000 | N31: 110 | O31: 4500 | P31: 12
A32: 2 | B32: 15:2 Svalövsbäcken nedstr Svalöv | C32: 2021-10-20 | D32: 12.1 | E32: 9.3 | F32: 87 | G32: 7.75 | H32: 55 | I32: 52.4 | J32: 30 | K32: 220 | M32: 7200 | N32: <10 | O32: 8700 | P32: 86
A33: 2 | B33: 15:2 Svalövsbäcken nedstr Svalöv | C33: 2021-11-24 | D33: 7.7 | E33: 11.5 | F33: 97 | G33: 8.04 | H33: 3.9 | I33: 57.4 | J33: 45 | K33: 60 | M33: 6600 | N33: 350 | O33: 7100 | P33: 3.7
A34: 2 | B34: 15:2 Svalövsbäcken nedstr Svalöv | C34: 2021-12-21 | D34: 2.5 | E34: 12.8 | F34: 94 | G34: 7.8 | H34: 5.4 | I34: 47.8 | J34: 23 | K34: 36 | M34: 7300 | N34: 400 | O34: 7200 | P34: 3.5 | AE34: 2.5 | AF34: 12.8 | AG34: 94 | AH34: 7.8 | AI34: 5.4 | AJ34: 47.8 | AK34: 23 | AL34: 36 | AN34: 7300 | AO34: 400 | AP34: 7200 | AQ34: 3.5
C35: Medel | D35: 5.8 | E35: 12.61666667 | F35: 100.3333333 | G35: 7.898333333 | H35: 7 | I35: 48.7 | K35: 46.5 | M35: 6083.333333 | N35: 354.5 | O35: 6716.666667 | P35: 3.733333333 | AE35: 5.8 | AF35: 12.61666667 | AG35: 100.3333333 | AH35: 7.898333333 | AI35: 7 | AJ35: 48.7 | AK35: 0 | AL35: 46.5 | AN35: 6083.333333 | AO35: 354.5 | AP35: 6716.666667 | AQ35: 3.733333333
C36: Max | D36: 12.4 | E36: 14.8 | F36: 121 | G36: 8.1 | H36: 14 | I36: 56.4 | K36: 81 | L36: 0 | M36: 8700 | N36: 610 | O36: 8900 | P36: 6.8 | AE36: 12.4 | AF36: 14.8 | AG36: 121 | AH36: 8.1 | AI36: 14 | AJ36: 56.4 | AK36: 0 | AL36: 81 | AM36: 0 | AN36: 8700 | AO36: 610 | AP36: 8900 | AQ36: 6.8
C37: Min | D37: 2.5 | E37: 9.6 | F37: 90 | G37: 7.69 | H37: 1.8 | I37: 39.9 | K37: 27 | L37: 0 | M37: 3700 | N37: 67 | O37: 4400 | P37: 2 | AE37: 2.5 | AF37: 9.6 | AG37: 90 | AH37: 7.69 | AI37: 1.8 | AJ37: 39.9 | AK37: 0 | AL37: 27 | AM37: 0 | AN37: 3700 | AO37: 67 | AP37: 4400 | AQ37: 2
AE38: 0 | AF38: 0 | AG38: 0 | AH38: 0 | AI38: 0 | AJ38: 0 | AK38: 0 | AL38: 0 | AM38: 0 | AN38: 0 | AO38: 0 | AP38: 0 | AQ38: 0
A39: 3 | B39: 3:2 Örstorpsbäcken | C39: 2021-01-25 | D39: 4.2 | E39: 11.9 | F39: 91 | G39: 7.9 | H39: 9.1 | I39: 69 | J39: 57 | K39: 210 | L39: 60 | M39: 16000 | N39: 35 | O39: 17000 | P39: 6.3 | AE39: 4.2 | AF39: 11.9 | AG39: 91 | AH39: 7.9 | AI39: 9.1 | AJ39: 69 | AK39: 57 | AL39: 210 | AM39: 60 | AN39: 16000 | AO39: 35 | AP39: 17000 | AQ39: 6.3
A40: 3 | B40: 3:2 Örstorpsbäcken | C40: 2021-02-22 | D40: 3.6 | E40: 12.4 | F40: 94 | G40: 7.85 | H40: 11 | I40: 58.5 | J40: 70 | K40: 110 | L40: 36 | M40: 13000 | N40: <10 | O40: 13000 | P40: 4.4 | AE40: 3.6 | AF40: 12.4 | AG40: 94 | AH40: 7.85 | AI40: 11 | AJ40: 58.5 | AK40: 70 | AL40: 110 | AM40: 36 | AN40: 13000 | AO40: 10 | AP40: 13000 | AQ40: 4.4
A41: 3 | B41: 3:2 Örstorpsbäcken | C41: 2021-03-24 | D41: 5.6 | E41: 13.1 | F41: 104 | G41: 8.11 | H41: 2.6 | I41: 72.8 | J41: 59 | K41: 75 | L41: 13 | M41: 13000 | N41: 10 | O41: 15000 | P41: <2 | AE41: 5.6 | AF41: 13.1 | AG41: 104 | AH41: 8.11 | AI41: 2.6 | AJ41: 72.8 | AK41: 59 | AL41: 75 | AM41: 13 | AN41: 13000 | AO41: 10 | AP41: 15000 | AQ41: 2
A42: 3 | B42: 3:2 Örstorpsbäcken | C42: 2021-04-27 | D42: 5.5 | E42: 11.4 | F42: 91 | G42: 8 | H42: 3.8 | I42: 70.9 | J42: 88 | K42: 120 | L42: 31 | M42: 6400 | N42: 26 | O42: 7300 | P42: 3.3 | AE42: 5.5 | AF42: 11.4 | AG42: 91 | AH42: 8 | AI42: 3.8 | AJ42: 70.9 | AK42: 88 | AL42: 120 | AM42: 31 | AN42: 6400 | AO42: 26 | AP42: 7300 | AQ42: 3.3
A43: 3 | B43: 3:2 Örstorpsbäcken | C43: 2021-05-25 | D43: 11.6 | E43: 8.5 | F43: 78 | G43: 8.02 | H43: 2 | I43: 72.1 | J43: 110 | K43: 140 | L43: 20 | M43: 6300 | N43: 57 | O43: 6600 | P43: 2.4
A44: 3 | B44: 3:2 Örstorpsbäcken | C44: 2021-06-21 | D44: 16.5 | E44: 7 | F44: 72 | G44: 7.91 | H44: 2.8 | I44: 73.5 | J44: 280 | K44: 280 | L44: 40 | M44: 3800 | N44: 64 | O44: 4700 | P44: 2.2
A45: 3 | B45: 3:2 Örstorpsbäcken | C45: 2021-07-21 | D45: 15.9 | E45: 8.3 | F45: 84 | G45: 7.94 | H45: 5.6 | I45: 72.8 | J45: 280 | K45: 300 | L45: 30 | M45: 5200 | N45: 35 | O45: 5800 | P45: 5.1
A46: 3 | B46: 3:2 Örstorpsbäcken | C46: 2021-08-30 | D46: 15.3 | E46: 11.6 | F46: 116 | G46: 8 | H46: 11 | I46: 71.8 | Q46: Analys missad för närsalter och susp
A47: 3 | B47: 3:2 Örstorpsbäcken | C47: 2021-09-29 | D47: 13.4 | E47: 11 | F47: 106 | G47: 7.94 | H47: 7.1 | I47: 73.1 | J47: 130 | K47: 150 | L47: 20 | M47: 12000 | N47: 24 | O47: 11000 | P47: 3.1
A48: 3 | B48: 3:2 Örstorpsbäcken | C48: 2021-10-20 | D48: 12.4 | E48: 8.6 | F48: 81 | G48: 7.83 | H48: 78 | I48: 67.4 | J48: 140 | K48: 250 | L48: 100 | M48: 12000 | N48: 16 | O48: 14000 | P48: 22
A49: 3 | B49: 3:2 Örstorpsbäcken | C49: 2021-11-24 | D49: 8.2 | E49: 10.1 | F49: 86 | G49: 8.04 | H49: 2.7 | I49: 79.1 | J49: 120 | K49: 110 | L49: 10 | M49: 13000 | N49: 20 | O49: 13000 | P49: 2.2 | AE49: 8.2 | AF49: 10.1 | AG49: 86 | AH49: 8.04 | AI49: 2.7 | AJ49: 79.1 | AK49: 120 | AL49: 110 | AM49: 10 | AN49: 13000 | AO49: 20 | AP49: 13000 | AQ49: 2.2
A50: 3 | B50: 3:2 Örstorpsbäcken | C50: 2021-12-21 | D50: 3.4 | E50: 11.9 | F50: 89 | G50: 7.82 | H50: 6.2 | I50: 74.7 | J50: 76 | K50: 100 | L50: 19 | M50: 14000 | N50: 48 | O50: 13000 | P50: 6.2 | AE50: 3.4 | AF50: 11.9 | AG50: 89 | AH50: 7.82 | AI50: 6.2 | AJ50: 74.7 | AK50: 76 | AL50: 100 | AM50: 19 | AN50: 14000 | AO50: 48 | AP50: 13000 | AQ50: 6.2
C51: Medel | D51: 5.083333333 | E51: 11.8 | F51: 92.5 | G51: 7.953333333 | H51: 5.9 | I51: 70.83333333 | K51: 120.8333333 | L51: 28.16666667 | M51: 12566.66667 | N51: 24.83333333 | O51: 13050 | P51: 4.066666667 | AE51: 5.083333333 | AF51: 11.8 | AG51: 92.5 | AH51: 7.953333333 | AI51: 5.9 | AJ51: 70.83333333 | AK51: 0 | AL51: 120.8333333 | AM51: 28.16666667 | AN51: 12566.66667 | AO51: 24.83333333 | AP51: 13050 | AQ51: 4.066666667
C52: Max | D52: 8.2 | E52: 13.1 | F52: 104 | G52: 8.11 | H52: 11 | I52: 79.1 | K52: 210 | L52: 60 | M52: 16000 | N52: 48 | O52: 17000 | P52: 6.3 | AE52: 8.2 | AF52: 13.1 | AG52: 104 | AH52: 8.11 | AI52: 11 | AJ52: 79.1 | AK52: 0 | AL52: 210 | AM52: 60 | AN52: 16000 | AO52: 48 | AP52: 17000 | AQ52: 6.3
C53: Min | D53: 3.4 | E53: 10.1 | F53: 86 | G53: 7.82 | H53: 2.6 | I53: 58.5 | K53: 75 | L53: 10 | M53: 6400 | N53: 10 | O53: 7300 | P53: 2 | AE53: 3.4 | AF53: 10.1 | AG53: 86 | AH53: 7.82 | AI53: 2.6 | AJ53: 58.5 | AK53: 0 | AL53: 75 | AM53: 10 | AN53: 6400 | AO53: 10 | AP53: 7300 | AQ53: 2
AE54: 0 | AF54: 0 | AG54: 0 | AH54: 0 | AI54: 0 | AJ54: 0 | AK54: 0 | AL54: 0 | AM54: 0 | AN54: 0 | AO54: 0 | AP54: 0 | AQ54: 0
A55: 4 | B55: 5 Braån vid Asmundtorp | C55: 2021-01-25 | D55: 3.3 | E55: 12.6 | F55: 94 | G55: 7.92 | H55: 14 | I55: 49 | J55: 42 | K55: 81 | L55: 30 | M55: 8900 | N55: 72 | O55: 8900 | P55: 7.2 | AE55: 3.3 | AF55: 12.6 | AG55: 94 | AH55: 7.92 | AI55: 14 | AJ55: 49 | AK55: 42 | AL55: 81 | AM55: 30 | AN55: 8900 | AO55: 72 | AP55: 8900 | AQ55: 7.2
A56: 4 | B56: 5 Braån vid Asmundtorp | C56: 2021-02-22 | D56: 3.3 | E56: 12.9 | F56: 97 | G56: 7.91 | H56: 19 | I56: 41.4 | J56: 60 | K56: 110 | L56: 46 | M56: 7400 | N56: 64 | O56: 7900 | P56: 9.6 | AE56: 3.3 | AF56: 12.9 | AG56: 97 | AH56: 7.91 | AI56: 19 | AJ56: 41.4 | AK56: 60 | AL56: 110 | AM56: 46 | AN56: 7400 | AO56: 64 | AP56: 7900 | AQ56: 9.6
A57: 4 | B57: 5 Braån vid Asmundtorp | C57: 2021-03-24 | D57: 5.7 | E57: 12.8 | F57: 102 | G57: 8.15 | H57: 3.8 | I57: 54.3 | J57: 21 | K57: 41 | L57: 14 | M57: 6800 | N57: 48 | O57: 7600 | P57: 2.8 | AE57: 5.7 | AF57: 12.8 | AG57: 102 | AH57: 8.15 | AI57: 3.8 | AJ57: 54.3 | AK57: 21 | AL57: 41 | AM57: 14 | AN57: 6800 | AO57: 48 | AP57: 7600 | AQ57: 2.8
A58: 4 | B58: 5 Braån vid Asmundtorp | C58: 2021-04-27 | D58: 6.2 | E58: 10.9 | F58: 88 | G58: 8.03 | H58: 2 | I58: 57.7 | J58: 14 | K58: 30 | L58: 10 | M58: 3900 | N58: 26 | O58: 4600 | P58: <2 | AE58: 6.2 | AF58: 10.9 | AG58: 88 | AH58: 8.03 | AI58: 2 | AJ58: 57.7 | AK58: 14 | AL58: 30 | AM58: 10 | AN58: 3900 | AO58: 26 | AP58: 4600 | AQ58: 2
A59: 4 | B59: 5 Braån vid Asmundtorp | C59: 2021-05-25 | D59: 11.8 | E59: 8.4 | F59: 78 | G59: 8.06 | H59: 2.1 | I59: 59.8 | J59: 45 | K59: 66 | L59: 11 | M59: 4100 | N59: 47 | O59: 4500 | P59: 2.4 | AE59: 11.8 | AF59: 8.4 | AG59: 78 | AH59: 8.06 | AI59: 2.1 | AJ59: 59.8 | AK59: 45 | AL59: 66 | AM59: 11 | AN59: 4100 | AO59: 47 | AP59: 4500 | AQ59: 2.4
A60: 4 | B60: 5 Braån vid Asmundtorp | C60: 2021-06-21 | D60: 18.4 | E60: 6.7 | F60: 71 | G60: 7.97 | H60: 2.9 | I60: 67.8 | J60: 170 | K60: 180 | L60: 20 | M60: 2900 | N60: 51 | O60: 3700 | P60: 3
A61: 4 | B61: 5 Braån vid Asmundtorp | C61: 2021-07-21 | D61: 17.3 | E61: 7.6 | F61: 79 | G61: 7.99 | H61: 4.3 | I61: 59.8 | J61: 160 | K61: 180 | L61: 10 | M61: 1900 | N61: 27 | O61: 2300 | P61: 3.2
A62: 4 | B62: 5 Braån vid Asmundtorp | C62: 2021-08-30 | D62: 16.4 | E62: 11.7 | F62: 120 | G62: 8.08 | H62: 4.6 | I62: 52.4 | Q62: Analys missad för närsalter och susp
A63: 4 | B63: 5 Braån vid Asmundtorp | C63: 2021-09-29 | D63: 13.9 | E63: 10.6 | F63: 103 | G63: 7.97 | H63: 21 | I63: 47.5 | J63: 230 | K63: 280 | L63: 60 | M63: 5300 | N63: 53 | O63: 5600 | P63: 11
A64: 4 | B64: 5 Braån vid Asmundtorp | C64: 2021-10-20 | D64: 12.1 | E64: 9.3 | F64: 87 | G64: 7.98 | H64: 22 | I64: 57.7 | J64: 180 | K64: 230 | L64: 40 | M64: 7500 | N64: 15 | O64: 8700 | P64: 18
A65: 4 | B65: 5 Braån vid Asmundtorp | C65: 2021-11-24 | D65: 7.4 | E65: 10.6 | F65: 88 | G65: 8.18 | H65: 4.2 | I65: 61.4 | J65: 84 | K65: 86 | L65: 8 | M65: 8200 | N65: 14 | O65: 8200 | P65: 2.7
A66: 4 | B66: 5 Braån vid Asmundtorp | C66: 2021-12-21 | D66: 2.8 | E66: 12.6 | F66: 93 | G66: 8.01 | H66: 6.6 | I66: 52.5 | J66: 60 | K66: 87 | L66: 14 | M66: 7700 | N66: 110 | O66: 7200 | P66: 5.7 | AE66: 2.8 | AF66: 12.6 | AG66: 93 | AH66: 8.01 | AI66: 6.6 | AJ66: 52.5 | AK66: 60 | AL66: 87 | AM66: 14 | AN66: 7700 | AO66: 110 | AP66: 7200 | AQ66: 5.7
C67: Medel | D67: 5.516666667 | E67: 11.7 | F67: 92 | G67: 8.013333333 | H67: 7.916666667 | I67: 52.45 | K67: 69.16666667 | L67: 20.83333333 | M67: 6466.666667 | N67: 61.16666667 | O67: 6783.333333 | P67: 4.95 | AE67: 5.516666667 | AF67: 11.7 | AG67: 92 | AH67: 8.013333333 | AI67: 7.916666667 | AJ67: 52.45 | AK67: 0 | AL67: 69.16666667 | AM67: 20.83333333 | AN67: 6466.666667 | AO67: 61.16666667 | AP67: 6783.333333 | AQ67: 4.95
C68: Max | D68: 11.8 | E68: 12.9 | F68: 102 | G68: 8.15 | H68: 19 | I68: 59.8 | K68: 110 | L68: 46 | M68: 8900 | N68: 110 | O68: 8900 | P68: 9.6 | AE68: 11.8 | AF68: 12.9 | AG68: 102 | AH68: 8.15 | AI68: 19 | AJ68: 59.8 | AK68: 0 | AL68: 110 | AM68: 46 | AN68: 8900 | AO68: 110 | AP68: 8900 | AQ68: 9.6
C69: Min | D69: 2.8 | E69: 8.4 | F69: 78 | G69: 7.91 | H69: 2 | I69: 41.4 | K69: 30 | L69: 10 | M69: 3900 | N69: 26 | O69: 4500 | P69: 2 | AE69: 2.8 | AF69: 8.4 | AG69: 78 | AH69: 7.91 | AI69: 2 | AJ69: 41.4 | AK69: 0 | AL69: 30 | AM69: 10 | AN69: 3900 | AO69: 26 | AP69: 4500 | AQ69: 2
AE70: 0 | AF70: 0 | AG70: 0 | AH70: 0 | AI70: 0 | AJ70: 0 | AK70: 0 | AL70: 0 | AM70: 0 | AN70: 0 | AO70: 0 | AP70: 0 | AQ70: 0
A71: 5 | B71: 28:2 Bäck N Trolleholm | C71: 2021-02-22 | D71: 1.6 | E71: 13.3 | F71: 95 | G71: 7.75 | H71: 5.3 | I71: 36.6 | J71: 5 | K71: 22 | M71: 2300 | N71: 52 | O71: 2500 | P71: 3 | Q71: Is låg kvar i bäcken, vattnet rann ovan is. | AE71: 1.6 | AF71: 13.3 | AG71: 95 | AH71: 7.75 | AI71: 5.3 | AJ71: 36.6 | AK71: 5 | AL71: 22 | AN71: 2300 | AO71: 52 | AP71: 2500 | AQ71: 3
A72: 5 | B72: 28:2 Bäck N Trolleholm | C72: 2021-03-24 | D72: 6.7 | E72: 11.8 | F72: 97 | G72: 8.1 | H72: 2.5 | I72: 44.6 | J72: 4.1 | K72: 10 | M72: 1500 | N72: 11 | O72: 2200 | P72: 2.3 | AE72: 6.7 | AF72: 11.8 | AG72: 97 | AH72: 8.1 | AI72: 2.5 | AJ72: 44.6 | AK72: 4.1 | AL72: 10 | AN72: 1500 | AO72: 11 | AP72: 2200 | AQ72: 2.3
A73: 5 | B73: 28:2 Bäck N Trolleholm | C73: 2021-05-25 | D73: 11.2 | E73: 9.8 | F73: 90 | G73: 8.2 | H73: 1.6 | I73: 52.1 | J73: 5 | K73: 11 | M73: 460 | N73: 13 | O73: 740 | P73: 2.1 | AE73: 11.2 | AF73: 9.8 | AG73: 90 | AH73: 8.2 | AI73: 1.6 | AJ73: 52.1 | AK73: 5 | AL73: 11 | AN73: 460 | AO73: 13 | AP73: 740 | AQ73: 2.1
A74: 5 | B74: 28:2 Bäck N Trolleholm | C74: 2021-08-30 | D74: 14.6 | E74: 10.9 | F74: 108 | G74: 8.13 | H74: 5.3 | I74: 50.2 | Q74: Analys missad för närsalter och susp | AE74: 14.6 | AF74: 10.9 | AG74: 108 | AH74: 8.13 | AI74: 5.3 | AJ74: 50.2
A75: 5 | B75: 28:2 Bäck N Trolleholm | C75: 2021-10-20 | D75: 12.4 | E75: 9.4 | F75: 88 | G75: 7.91 | H75: 22 | I75: 43.9 | J75: 6.4 | K75: 67 | M75: 1600 | N75: <10 | O75: 2500 | P75: 24 | AE75: 12.4 | AF75: 9.4 | AG75: 88 | AH75: 7.91 | AI75: 22 | AJ75: 43.9 | AK75: 6.4 | AL75: 67 | AN75: 1600 | AO75: 10 | AP75: 2500 | AQ75: 24
A76: 5 | B76: 28:2 Bäck N Trolleholm | C76: 2021-12-21 | D76: 0.3 | E76: 13.7 | F76: 94 | G76: 7.97 | H76: 2.8 | I76: 38.2 | J76: 3 | K76: 12 | M76: 1400 | N76: 27 | O76: 1700 | P76: <2 | AE76: 0.3 | AF76: 13.7 | AG76: 94 | AH76: 7.97 | AI76: 2.8 | AJ76: 38.2 | AK76: 3 | AL76: 12 | AN76: 1400 | AO76: 27 | AP76: 1700 | AQ76: 2
C77: Medel | D77: 7.8 | E77: 11.48333333 | F77: 95.33333333 | G77: 8.01 | H77: 6.583333333 | I77: 44.26666667 | K77: 24.4 | M77: 1452 | N77: 22.6 | O77: 1928 | P77: 6.68 | AE77: 7.8 | AF77: 11.48333333 | AG77: 95.33333333 | AH77: 8.01 | AI77: 6.583333333 | AJ77: 44.26666667 | AK77: 0 | AL77: 24.4 | AN77: 1452 | AO77: 22.6 | AP77: 1928 | AQ77: 6.68
C78: Max | D78: 14.6 | E78: 13.7 | F78: 108 | G78: 8.2 | H78: 22 | I78: 52.1 | K78: 67 | L78: 0 | M78: 2300 | N78: 52 | O78: 2500 | P78: 24 | AE78: 14.6 | AF78: 13.7 | AG78: 108 | AH78: 8.2 | AI78: 22 | AJ78: 52.1 | AK78: 0 | AL78: 67 | AM78: 0 | AN78: 2300 | AO78: 52 | AP78: 2500 | AQ78: =IF(OR(LEFT(P78,1)="<",LEFT(P78,1)=">"),VALUE(MID(P78,2,5)),P78) -> 24
C79: Min | D79: 0.3 | E79: 9.4 | F79: 88 | G79: 7.75 | H79: 1.6 | I79: 36.6 | K79: 10 | L79: 0 | M79: 460 | N79: 10 | O79: 740 | P79: 2 | AE79: 0.3 | AF79: 9.4 | AG79: 88 | AH79: 7.75 | AI79: 1.6 | AJ79: 36.6 | AK79: 0 | AL79: 10 | AM79: 0 | AN79: 460 | AO79: 10 | AP79: 740 | AQ79: 2
AE80: 0 | AF80: 0 | AG80: 0 | AH80: 0 | AI80: 0 | AJ80: 0 | AK80: 0 | AL80: 0 | AM80: 0 | AN80: 0 | AO80: 0 | AP80: 0 | AQ80: 0
A81: 6 | B81: 26 Långgropen uppstr Eslöv | C81: 2021-01-25 | D81: 3.3 | E81: 11.3 | F81: 85 | G81: 7.53 | H81: 14 | I81: 45.6 | J81: 45 | K81: 86 | L81: 31 | M81: 7100 | N81: 65 | O81: 7400 | P81: 5.7 | AE81: 3.3 | AF81: 11.3 | AG81: 85 | AH81: 7.53 | AI81: 14 | AJ81: 45.6 | AK81: 45 | AL81: 86 | AM81: 31 | AN81: 7100 | AO81: 65 | AP81: 7400 | AQ81: 5.7
A82: 6 | B82: 26 Långgropen uppstr Eslöv | C82: 2021-02-22 | D82: 2.9 | E82: 12.5 | F82: 93 | G82: 7.64 | H82: 16 | I82: 40.7 | J82: 55 | K82: 98 | L82: 36 | M82: 6300 | N82: 73 | O82: 7000 | P82: 3.9 | AE82: 2.9 | AF82: 12.5 | AG82: 93 | AH82: 7.64 | AI82: 16 | AJ82: 40.7 | AK82: 55 | AL82: 98 | AM82: 36 | AN82: 6300 | AO82: 73 | AP82: 7000 | AQ82: 3.9
A83: 6 | B83: 26 Långgropen uppstr Eslöv | C83: 2021-03-24 | D83: 6.4 | E83: 13.9 | F83: 113 | G83: 8.08 | H83: 4.5 | I83: 57.4 | J83: 15 | K83: 36 | L83: 19 | M83: 6100 | N83: 18 | O83: 7000 | P83: 2.6 | AE83: 6.4 | AF83: 13.9 | AG83: 113 | AH83: 8.08 | AI83: 4.5 | AJ83: 57.4 | AK83: 15 | AL83: 36 | AM83: 19 | AN83: 6100 | AO83: 18 | AP83: 7000 | AQ83: 2.6
A84: 6 | B84: 26 Långgropen uppstr Eslöv | C84: 2021-04-27 | D84: 6.1 | E84: 17.1 | F84: 138 | G84: 8.26 | H84: 1.8 | I84: 60.3 | J84: 2.7 | K84: 18 | L84: 12 | M84: 3700 | N84: <10 | O84: 4300 | P84: <2 | AE84: 6.1 | AF84: 17.1 | AG84: 138 | AH84: 8.26 | AI84: 1.8 | AJ84: 60.3 | AK84: 2.7 | AL84: 18 | AM84: 12 | AN84: 3700 | AO84: 10 | AP84: 4300 | AQ84: 2
A85: 6 | B85: 26 Långgropen uppstr Eslöv | C85: 2021-05-25 | D85: 12.6 | E85: 9.9 | F85: 93 | G85: 8.02 | H85: 1.8 | I85: 62.5 | J85: 11 | K85: 33 | L85: 17 | M85: 2700 | N85: 39 | O85: 3200 | P85: 2.4 | AE85: 12.6 | AF85: 9.9 | AG85: 93 | AH85: 8.02 | AI85: 1.8 | AJ85: 62.5 | AK85: 11 | AL85: 33 | AM85: 17 | AN85: 2700 | AO85: 39 | AP85: 3200 | AQ85: 2.4
A86: 6 | B86: 26 Långgropen uppstr Eslöv | C86: 2021-06-21 | D86: 16.3 | E86: 5.9 | F86: 60 | G86: 7.73 | H86: 2 | I86: 66.4 | J86: 68 | K86: 94 | L86: 29 | M86: 1200 | N86: 26 | O86: 1800 | P86: <2
A87: 6 | B87: 26 Långgropen uppstr Eslöv | C87: 2021-07-21 | D87: 16.1 | E87: 7.3 | F87: 74 | G87: 7.7 | H87: 1.9 | I87: 62.4 | J87: 77 | K87: 90 | L87: 16 | M87: 1200 | N87: 30 | O87: 1800 | P87: <2
A88: 6 | B88: 26 Långgropen uppstr Eslöv | C88: 2021-08-30 | D88: 14.6 | E88: 8.5 | F88: 84 | G88: 7.87 | H88: 6.5 | I88: 53.8 | Q88: Analys missad för närsalter och susp
A89: 6 | B89: 26 Långgropen uppstr Eslöv | C89: 2021-09-29 | D89: 12.8 | E89: 8.4 | F89: 80 | G89: 7.8 | H89: 8 | I89: 58.5 | J89: 100 | K89: 140 | L89: 20 | M89: 5900 | N89: 18 | O89: 6000 | P89: 3.6
A90: 6 | B90: 26 Långgropen uppstr Eslöv | C90: 2021-10-20 | D90: 12.3 | E90: 8 | F90: 75 | G90: 7.79 | H90: 40 | I90: 55.2 | J90: 65 | K90: 140 | L90: 68 | M90: 6700 | N90: <10 | O90: 7900 | P90: 20
A91: 6 | B91: 26 Långgropen uppstr Eslöv | C91: 2021-11-24 | D91: 7.6 | E91: 9.7 | F91: 81 | G91: 7.94 | H91: 2.8 | I91: 61.8 | J91: 33 | K91: 40 | L91: 11 | M91: 7800 | N91: 23 | O91: 8100 | P91: 2.6
A92: 6 | B92: 26 Långgropen uppstr Eslöv | C92: 2021-12-21 | D92: 2.5 | E92: 11.4 | F92: 84 | G92: 7.7 | H92: 6.6 | I92: 53.7 | J92: 24 | K92: 39 | L92: 8 | M92: 6300 | N92: 83 | O92: 6300 | P92: 4.6 | AE92: 2.5 | AF92: 11.4 | AG92: 84 | AH92: 7.7 | AI92: 6.6 | AJ92: 53.7 | AK92: 24 | AL92: 39 | AM92: 8 | AN92: 6300 | AO92: 83 | AP92: 6300 | AQ92: 4.6
C93: Medel | D93: 5.633333333 | E93: 12.68333333 | F93: 101 | G93: 7.871666667 | H93: 7.45 | I93: 53.36666667 | K93: 51.66666667 | L93: 20.5 | M93: 5366.666667 | N93: 48 | O93: 5866.666667 | P93: 3.533333333 | AE93: 5.633333333 | AF93: 12.68333333 | AG93: 101 | AH93: 7.871666667 | AI93: 7.45 | AJ93: 53.36666667 | AK93: 0 | AL93: 51.66666667 | AM93: 20.5 | AN93: 5366.666667 | AO93: 48 | AP93: 5866.666667 | AQ93: 3.533333333
C94: Max | D94: 12.6 | E94: 17.1 | F94: 138 | G94: 8.26 | H94: 16 | I94: 62.5 | K94: 98 | L94: 36 | M94: 7100 | N94: 83 | O94: 7400 | P94: 5.7 | AE94: 12.6 | AF94: 17.1 | AG94: 138 | AH94: 8.26 | AI94: 16 | AJ94: 62.5 | AK94: 0 | AL94: 98 | AM94: 36 | AN94: 7100 | AO94: 83 | AP94: 7400 | AQ94: 5.7
C95: Min | D95: 2.5 | E95: 9.9 | F95: 84 | G95: 7.53 | H95: 1.8 | I95: 40.7 | K95: 18 | L95: 8 | M95: 2700 | N95: 10 | O95: 3200 | P95: 2 | AE95: 2.5 | AF95: 9.9 | AG95: 84 | AH95: 7.53 | AI95: 1.8 | AJ95: 40.7 | AK95: 0 | AL95: 18 | AM95: 8 | AN95: 2700 | AO95: 10 | AP95: 3200 | AQ95: 2
AE96: 0 | AF96: 0 | AG96: 0 | AH96: 0 | AI96: 0 | AJ96: 0 | AK96: 0 | AL96: 0 | AM96: 0 | AN96: 0 | AO96: 0 | AP96: 0 | AQ96: 0
A97: 7 | B97: 24 Långgropen nedstr Eslöv | C97: 2021-01-25 | D97: 3.6 | E97: 11.7 | F97: 88 | G97: 7.59 | H97: 14 | I97: 47.2 | J97: 46 | K97: 84 | M97: 6900 | N97: 71 | O97: 7200 | P97: 5.8 | AE97: 3.6 | AF97: 11.7 | AG97: 88 | AH97: 7.59 | AI97: 14 | AJ97: 47.2 | AK97: 46 | AL97: 84 | AN97: 6900 | AO97: 71 | AP97: 7200 | AQ97: 5.8
A98: 7 | B98: 24 Långgropen nedstr Eslöv | C98: 2021-02-22 | D98: 2.6 | E98: 12.4 | F98: 91 | G98: 7.69 | H98: 15 | I98: 42.7 | J98: 56 | K98: 99 | M98: 6000 | N98: 83 | O98: 6800 | P98: 6.4 | AE98: 2.6 | AF98: 12.4 | AG98: 91 | AH98: 7.69 | AI98: 15 | AJ98: 42.7 | AK98: 56 | AL98: 99 | AN98: 6000 | AO98: 83 | AP98: 6800 | AQ98: 6.4
A99: 7 | B99: 24 Långgropen nedstr Eslöv | C99: 2021-03-24 | D99: 6.1 | E99: 13.4 | F99: 108 | G99: 8.03 | H99: 4.2 | I99: 60.1 | J99: 17 | K99: 35 | M99: 6000 | N99: 47 | O99: 6500 | P99: 2.8 | AE99: 6.1 | AF99: 13.4 | AG99: 108 | AH99: 8.03 | AI99: 4.2 | AJ99: 60.1 | AK99: 17 | AL99: 35 | AN99: 6000 | AO99: 47 | AP99: 6500 | AQ99: 2.8
A100: 7 | B100: 24 Långgropen nedstr Eslöv | C100: 2021-04-27 | D100: 6.1 | E100: 13.4 | F100: 108 | G100: 8 | H100: 2.7 | I100: 61.5 | J100: 9 | K100: 26 | M100: 2900 | N100: 52 | O100: 3500 | P100: <2 | AE100: 6.1 | AF100: 13.4 | AG100: 108 | AH100: 8 | AI100: 2.7 | AJ100: 61.5 | AK100: 9 | AL100: 26 | AN100: 2900 | AO100: 52 | AP100: 3500 | AQ100: 2
A101: 7 | B101: 24 Långgropen nedstr Eslöv | C101: 2021-05-25 | D101: 12.4 | E101: 8.9 | F101: 84 | G101: 7.9 | H101: 1.9 | I101: 62.5 | J101: 17 | K101: 39 | M101: 2400 | N101: 75 | O101: 2900 | P101: 2 | AE101: 12.4 | AF101: 8.9 | AG101: 84 | AH101: 7.9 | AI101: 1.9 | AJ101: 62.5 | AK101: 17 | AL101: 39 | AN101: 2400 | AO101: 75 | AP101: 2900 | AQ101: 2
A102: 7 | B102: 24 Långgropen nedstr Eslöv | C102: 2021-06-21 | D102: 16.3 | E102: 5.7 | F102: 58 | G102: 7.72 | H102: 2.6 | I102: 70.8 | J102: 70 | K102: 100 | M102: 1100 | N102: 52 | O102: 1600 | P102: <2
A103: 7 | B103: 24 Långgropen nedstr Eslöv | C103: 2021-07-21 | D103: 16 | E103: 6.6 | F103: 67 | G103: 7.67 | H103: 2.5 | I103: 65.2 | J103: 78 | K103: 92 | M103: 1100 | N103: 49 | O103: 1500 | P103: 2.5
A104: 7 | B104: 24 Långgropen nedstr Eslöv | C104: 2021-08-30 | D104: 14.7 | E104: 8.1 | F104: 80 | G104: 7.83 | H104: 7.3 | I104: 53.5 | Q104: Analys missad för närsalter och susp
A105: 7 | B105: 24 Långgropen nedstr Eslöv | C105: 2021-09-29 | D105: 12.8 | E105: 8.6 | F105: 82 | G105: 7.77 | H105: 6.5 | I105: 55.4 | J105: 99 | K105: 130 | M105: 4400 | N105: 26 | O105: 4800 | P105: 3.1
A106: 7 | B106: 24 Långgropen nedstr Eslöv | C106: 2021-10-20 | D106: 12.5 | E106: 8 | F106: 75 | G106: 7.79 | H106: 13 | I106: 46.5 | J106: 46 | K106: 86 | M106: 4300 | N106: 77 | O106: 5100 | P106: 9.3
A107: 7 | B107: 24 Långgropen nedstr Eslöv | C107: 2021-11-24 | D107: 7.5 | E107: 9.7 | F107: 81 | G107: 7.92 | H107: 2.8 | I107: 62.5 | J107: 34 | K107: 39 | M107: 7400 | N107: 37 | O107: 7600 | P107: <2
A108: 7 | B108: 24 Långgropen nedstr Eslöv | C108: 2021-12-21 | D108: 2.2 | E108: 11.6 | F108: 84 | G108: 7.73 | H108: 6.8 | I108: 55.4 | J108: 25 | K108: 49 | M108: 5900 | N108: 130 | O108: 5600 | P108: 5.5 | AE108: 2.2 | AF108: 11.6 | AG108: 84 | AH108: 7.73 | AI108: 6.8 | AJ108: 55.4 | AK108: 25 | AL108: 49 | AN108: 5900 | AO108: 130 | AP108: 5600 | AQ108: 5.5
C109: Medel | D109: 5.5 | E109: 11.9 | F109: 93.83333333 | G109: 7.823333333 | H109: 7.433333333 | I109: 54.9 | K109: 55.33333333 | M109: 5016.666667 | N109: 76.33333333 | O109: 5416.666667 | P109: 4.083333333 | AE109: 5.5 | AF109: 11.9 | AG109: 93.83333333 | AH109: 7.823333333 | AI109: 7.433333333 | AJ109: 54.9 | AK109: 0 | AL109: 55.33333333 | AN109: 5016.666667 | AO109: 76.33333333 | AP109: 5416.666667 | AQ109: 4.083333333
C110: Max | D110: 12.4 | E110: 13.4 | F110: 108 | G110: 8.03 | H110: 15 | I110: 62.5 | K110: 99 | L110: 0 | M110: 6900 | N110: 130 | O110: 7200 | P110: 6.4 | AE110: 12.4 | AF110: 13.4 | AG110: 108 | AH110: 8.03 | AI110: 15 | AJ110: 62.5 | AK110: 0 | AL110: 99 | AM110: 0 | AN110: 6900 | AO110: 130 | AP110: 7200 | AQ110: 6.4
C111: Min | D111: 2.2 | E111: 8.9 | F111: 84 | G111: 7.59 | H111: 1.9 | I111: 42.7 | K111: 26 | L111: 0 | M111: 2400 | N111: 47 | O111: 2900 | P111: 2 | AE111: 2.2 | AF111: 8.9 | AG111: 84 | AH111: 7.59 | AI111: 1.9 | AJ111: 42.7 | AK111: 0 | AL111: 26 | AM111: 0 | AN111: 2400 | AO111: 47 | AP111: 2900 | AQ111: 2
AE112: 0 | AF112: 0 | AG112: 0 | AH112: 0 | AI112: 0 | AJ112: 0 | AK112: 0 | AL112: 0 | AM112: 0 | AN112: 0 | AO112: 0 | AP112: 0 | AQ112: 0
A113: 8 | B113: 19 Saxån vid Annelöv | C113: 2021-02-22 | D113: 3.2 | E113: 13.2 | F113: 99 | G113: 7.97 | H113: 17 | I113: 44.7 | J113: 65 | K113: 110 | M113: 6000 | N113: 41 | O113: 6300 | P113: 15 | AE113: 3.2 | AF113: 13.2 | AG113: 99 | AH113: 7.97 | AI113: 17 | AJ113: 44.7 | AK113: 65 | AL113: 110 | AN113: 6000 | AO113: 41 | AP113: 6300 | AQ113: 15
A114: 8 | B114: 19 Saxån vid Annelöv | C114: 2021-03-24 | D114: 5.9 | E114: 12.4 | F114: 100 | G114: 8.21 | H114: 5.6 | I114: 60 | J114: 23 | K114: 39 | M114: 5900 | N114: 16 | O114: 6700 | P114: 4.8 | AE114: 5.9 | AF114: 12.4 | AG114: 100 | AH114: 8.21 | AI114: 5.6 | AJ114: 60 | AK114: 23 | AL114: 39 | AN114: 5900 | AO114: 16 | AP114: 6700 | AQ114: 4.8
A115: 8 | B115: 19 Saxån vid Annelöv | C115: 2021-05-25 | D115: 12.9 | E115: 8.2 | F115: 78 | G115: 8.14 | H115: 2 | I115: 61.5 | J115: 39 | K115: 63 | M115: 2700 | N115: 60 | O115: 3000 | P115: <2 | AE115: 12.9 | AF115: 8.2 | AG115: 78 | AH115: 8.14 | AI115: 2 | AJ115: 61.5 | AK115: 39 | AL115: 63 | AN115: 2700 | AO115: 60 | AP115: 3000 | AQ115: 2
A116: 8 | B116: 19 Saxån vid Annelöv | C116: 2021-08-30 | D116: 15.9 | E116: 9.9 | F116: 100 | G116: 7.96 | H116: 2.5 | I116: 41 | Q116: Analys missad för närsalter och susp | AE116: 15.9 | AF116: 9.9 | AG116: 100 | AH116: 7.96 | AI116: 2.5 | AJ116: 41
A117: 8 | B117: 19 Saxån vid Annelöv | C117: 2021-10-20 | D117: 11.5 | E117: 8.8 | F117: 81 | G117: 7.96 | H117: 2.6 | I117: 64.1 | J117: 56 | K117: 73 | M117: 4900 | N117: <10 | O117: 6000 | P117: 3.4 | AE117: 11.5 | AF117: 8.8 | AG117: 81 | AH117: 7.96 | AI117: 2.6 | AJ117: 64.1 | AK117: 56 | AL117: 73 | AN117: 4900 | AO117: 10 | AP117: 6000 | AQ117: 3.4
A118: 8 | B118: 19 Saxån vid Annelöv | C118: 2021-12-21 | D118: 2.6 | E118: 12.8 | F118: 94 | G118: 8 | H118: 7.8 | I118: 56.3 | J118: 39 | K118: 65 | M118: 6100 | N118: 75 | O118: 5900 | P118: 7.3 | AE118: 2.6 | AF118: 12.8 | AG118: 94 | AH118: 8 | AI118: 7.8 | AJ118: 56.3 | AK118: 39 | AL118: 65 | AN118: 6100 | AO118: 75 | AP118: 5900 | AQ118: 7.3
C119: Medel | D119: 8.666666667 | E119: 10.88333333 | F119: 92 | G119: 8.04 | H119: 6.25 | I119: 54.6 | K119: 70 | M119: 5120 | N119: 40.4 | O119: 5580 | P119: 6.5 | AE119: 8.666666667 | AF119: 10.88333333 | AG119: 92 | AH119: 8.04 | AI119: 6.25 | AJ119: 54.6 | AK119: 0 | AL119: 70 | AN119: 5120 | AO119: 40.4 | AP119: 5580 | AQ119: 6.5
C120: Max | D120: 15.9 | E120: 13.2 | F120: 100 | G120: 8.21 | H120: 17 | I120: 64.1 | K120: 110 | L120: 0 | M120: 6100 | N120: 75 | O120: 6700 | P120: 15 | AE120: 15.9 | AF120: 13.2 | AG120: 100 | AH120: 8.21 | AI120: 17 | AJ120: 64.1 | AK120: 0 | AL120: 110 | AM120: 0 | AN120: 6100 | AO120: 75 | AP120: 6700 | AQ120: 15
C121: Min | D121: 2.6 | E121: 8.2 | F121: 78 | G121: 7.96 | H121: 2 | I121: 41 | K121: 39 | L121: 0 | M121: 2700 | N121: 10 | O121: 3000 | P121: 2 | AE121: 2.6 | AF121: 8.2 | AG121: 78 | AH121: 7.96 | AI121: 2 | AJ121: 41 | AK121: 0 | AL121: 39 | AM121: 0 | AN121: 2700 | AO121: 10 | AP121: 3000 | AQ121: 2
AE122: 0 | AF122: 0 | AG122: 0 | AH122: 0 | AI122: 0 | AJ122: 0 | AK122: 0 | AL122: 0 | AM122: 0 | AN122: 0 | AO122: 0 | AP122: 0 | AQ122: 0
A123: 9 | B123: 30 Välabäcken | C123: 2021-01-25 | D123: 4.1 | E123: 11.7 | F123: 90 | G123: 7.81 | H123: 4.9 | I123: 76.1 | J123: 40 | K123: 89 | L123: 26 | M123: 15000 | N123: <10 | O123: 15000 | P123: 4.2 | AE123: 4.1 | AF123: 11.7 | AG123: 90 | AH123: 7.81 | AI123: 4.9 | AJ123: 76.1 | AK123: 40 | AL123: 89 | AM123: 26 | AN123: 15000 | AO123: 10 | AP123: 15000 | AQ123: 4.2
A124: 9 | B124: 30 Välabäcken | C124: 2021-02-22 | D124: 3.2 | E124: 12.7 | F124: 95 | G124: 7.86 | H124: 13 | I124: 59.4 | J124: 74 | K124: 110 | L124: 36 | M124: 10000 | N124: 15 | O124: 11000 | P124: 10 | AE124: 3.2 | AF124: 12.7 | AG124: 95 | AH124: 7.86 | AI124: 13 | AJ124: 59.4 | AK124: 74 | AL124: 110 | AM124: 36 | AN124: 10000 | AO124: 15 | AP124: 11000 | AQ124: 10
A125: 9 | B125: 30 Välabäcken | C125: 2021-03-24 | D125: 6.4 | E125: 13.9 | F125: 113 | G125: 8.23 | H125: 1.6 | I125: 76.4 | J125: 14 | K125: 37 | L125: 20 | M125: 12000 | N125: <10 | O125: 13000 | P125: <2 | AE125: 6.4 | AF125: 13.9 | AG125: 113 | AH125: 8.23 | AI125: 1.6 | AJ125: 76.4 | AK125: 14 | AL125: 37 | AM125: 20 | AN125: 12000 | AO125: 10 | AP125: 13000 | AQ125: 2
A126: 9 | B126: 30 Välabäcken | C126: 2021-04-27 | D126: 5.6 | E126: 13.1 | F126: 104 | G126: 7.99 | H126: 1.6 | I126: 79.1 | J126: 4.4 | K126: 46 | L126: 19 | M126: 7200 | N126: 69 | O126: 8200 | P126: <2 | AE126: 5.6 | AF126: 13.1 | AG126: 104 | AH126: 7.99 | AI126: 1.6 | AJ126: 79.1 | AK126: 4.4 | AL126: 46 | AM126: 19 | AN126: 7200 | AO126: 69 | AP126: 8200 | AQ126: 2
A127: 9 | B127: 30 Välabäcken | C127: 2021-05-25 | D127: 11.6 | E127: 10.7 | F127: 99 | G127: 8.13 | H127: 1.2 | I127: 77.3 | J127: 63 | K127: 110 | L127: 22 | M127: 5100 | N127: 46 | O127: 5500 | P127: <2 | AE127: 11.6 | AF127: 10.7 | AG127: 99 | AH127: 8.13 | AI127: 1.2 | AJ127: 77.3 | AK127: 63 | AL127: 110 | AM127: 22 | AN127: 5100 | AO127: 46 | AP127: 5500 | AQ127: 2
A128: 9 | B128: 30 Välabäcken | C128: 2021-06-21 | D128: 15 | E128: 7.2 | F128: 72 | G128: 7.84 | H128: 1.2 | I128: 79.4 | J128: 140 | K128: 210 | L128: 60 | M128: 4200 | N128: 130 | O128: 5300 | P128: 7.8 | AE128: 15 | AF128: 7.2 | AG128: 72 | AH128: 7.84 | AI128: 1.2 | AJ128: 79.4 | AK128: 140 | AL128: 210 | AM128: 60 | AN128: 4200 | AO128: 130 | AP128: 5300 | AQ128: 7.8
A129: 9 | B129: 30 Välabäcken | C129: 2021-07-21 | D129: 15.4 | E129: 7.4 | F129: 74 | G129: 7.84 | H129: 1.2 | I129: 79.3 | J129: 230 | K129: 310 | L129: 60 | M129: 3000 | N129: 140 | O129: 4000 | P129: 11 | AE129: 15.4 | AF129: 7.4 | AG129: 74 | AH129: 7.84 | AI129: 1.2 | AJ129: 79.3 | AK129: 230 | AL129: 310 | AM129: 60 | AN129: 3000 | AO129: 140 | AP129: 4000 | AQ129: 11
A130: 9 | B130: 30 Välabäcken | C130: 2021-08-30 | D130: 15.2 | E130: 9.7 | F130: 97 | G130: 7.89 | H130: 1.1 | I130: 74.4 | Q130: Analys missad för närsalter och susp | AE130: 15.2 | AF130: 9.7 | AG130: 97 | AH130: 7.89 | AI130: 1.1 | AJ130: 74.4
A131: 9 | B131: 30 Välabäcken | C131: 2021-09-29 | D131: 12.2 | E131: 9.6 | F131: 90 | G131: 7.8 | H131: 1.8 | I131: 76.2 | J131: 130 | K131: 140 | L131: 10 | M131: 4200 | N131: 19 | O131: 4600 | P131: <2 | AE131: 12.2 | AF131: 9.6 | AG131: 90 | AH131: 7.8 | AI131: 1.8 | AJ131: 76.2 | AK131: 130 | AL131: 140 | AM131: 10 | AN131: 4200 | AO131: 19 | AP131: 4600 | AQ131: 2
A132: 9 | B132: 30 Välabäcken | C132: 2021-10-20 | D132: 12.6 | E132: 8.3 | F132: 78 | G132: 7.9 | H132: 2.3 | I132: 81.3 | J132: 71 | K132: 87 | L132: 11 | M132: 8800 | N132: 15 | O132: 9900 | P132: 3 | AE132: 12.6 | AF132: 8.3 | AG132: 78 | AH132: 7.9 | AI132: 2.3 | AJ132: 81.3 | AK132: 71 | AL132: 87 | AM132: 11 | AN132: 8800 | AO132: 15 | AP132: 9900 | AQ132: 3
A133: 9 | B133: 30 Välabäcken | C133: 2021-11-24 | D133: 8.4 | E133: 10 | F133: 86 | G133: 8.11 | H133: 1 | I133: 83.7 | J133: 70 | K133: 74 | L133: 5 | M133: 12000 | N133: 34 | O133: 12000 | P133: <2 | AE133: 8.4 | AF133: 10 | AG133: 86 | AH133: 8.11 | AI133: 1 | AJ133: 83.7 | AK133: 70 | AL133: 74 | AM133: 5 | AN133: 12000 | AO133: 34 | AP133: 12000 | AQ133: 2
A134: 9 | B134: 30 Välabäcken | C134: 2021-12-21 | D134: 3.5 | E134: 12.1 | F134: 91 | G134: 7.94 | H134: 3.1 | I134: 78.7 | J134: 45 | K134: 49 | L134: <5,0 | M134: 14000 | N134: 60 | O134: 13000 | P134: <2 | AE134: 3.5 | AF134: 12.1 | AG134: 91 | AH134: 7.94 | AI134: 3.1 | AJ134: 78.7 | AK134: 45 | AL134: 49 | AM134: 5 | AN134: 14000 | AO134: 60 | AP134: 13000 | AQ134: 2
C135: Medel | D135: 9.433333333 | E135: 10.53333333 | F135: 90.75 | G135: 7.945 | H135: 2.833333333 | I135: 76.775 | K135: 114.7272727 | L135: 24.90909091 | M135: 8681.818182 | N135: 49.81818182 | O135: 9227.272727 | P135: 4.363636364 | AE135: 9.433333333 | AF135: 10.53333333 | AG135: 90.75 | AH135: 7.945 | AI135: 2.833333333 | AJ135: 76.775 | AK135: 0 | AL135: 114.7272727 | AM135: 24.90909091 | AN135: 8681.818182 | AO135: 49.81818182 | AP135: 9227.272727 | AQ135: 4.363636364
C136: Max | D136: 15.4 | E136: 13.9 | F136: 113 | G136: 8.23 | H136: 13 | I136: 83.7 | K136: 310 | L136: 60 | M136: 15000 | N136: 140 | O136: 15000 | P136: 11 | AE136: 15.4 | AF136: 13.9 | AG136: 113 | AH136: 8.23 | AI136: 13 | AJ136: 83.7 | AK136: 0 | AL136: 310 | AM136: 60 | AN136: 15000 | AO136: 140 | AP136: 15000 | AQ136: 11
C137: Min | D137: 3.2 | E137: 7.2 | F137: 72 | G137: 7.8 | H137: 1 | I137: 59.4 | K137: 37 | L137: 5 | M137: 3000 | N137: 10 | O137: 4000 | P137: 2 | AE137: 3.2 | AF137: 7.2 | AG137: 72 | AH137: 7.8 | AI137: 1 | AJ137: 59.4 | AK137: 0 | AL137: 37 | AM137: 5 | AN137: 3000 | AO137: 10 | AP137: 4000 | AQ137: 2
AE138: 0 | AF138: 0 | AG138: 0 | AH138: 0 | AI138: 0 | AJ138: 0 | AK138: 0 | AL138: 0 | AM138: 0 | AN138: 0 | AO138: 0 | AP138: 0 | AQ138: =IF(OR(LEFT(P138,1)="<",LEFT(P138,1)=">"),VALUE(MID(P138,2,5)),P138) -> 0
A139: 10 | B139: 16 Saxån vid Saxtorp | C139: 2021-01-25 | D139: 3.3 | E139: 12.8 | F139: 96 | G139: 7.99 | H139: 15 | I139: 54.7 | J139: 36 | K139: 100 | L139: 37 | M139: 9200 | N139: <10 | O139: 9200 | P139: 9.3 | AE139: 3.3 | AF139: 12.8 | AG139: 96 | AH139: 7.99 | AI139: 15 | AJ139: 54.7 | AK139: 36 | AL139: 100 | AM139: 37 | AN139: 9200 | AO139: 10 | AP139: 9200 | AQ139: 9.3
A140: 10 | B140: 16 Saxån vid Saxtorp | C140: 2021-02-22 | D140: 3.1 | E140: 12.8 | F140: 95 | G140: 7.96 | H140: 19 | I140: 44.9 | J140: 80 | K140: 130 | L140: 49 | M140: 6700 | N140: 69 | O140: 7100 | P140: 13 | AE140: 3.1 | AF140: 12.8 | AG140: 95 | AH140: 7.96 | AI140: 19 | AJ140: 44.9 | AK140: 80 | AL140: 130 | AM140: 49 | AN140: 6700 | AO140: 69 | AP140: 7100 | AQ140: 13
A141: 10 | B141: 16 Saxån vid Saxtorp | C141: 2021-03-24 | D141: 5.7 | E141: 12.4 | F141: 99 | G141: 8.19 | H141: 4.6 | I141: 65 | J141: 29 | K141: 48 | L141: 17 | M141: 7800 | N141: 22 | O141: 9000 | P141: 3.2 | AE141: 5.7 | AF141: 12.4 | AG141: 99 | AH141: 8.19 | AI141: 4.6 | AJ141: 65 | AK141: 29 | AL141: 48 | AM141: 17 | AN141: 7800 | AO141: 22 | AP141: 9000 | AQ141: 3.2
A142: 10 | B142: 16 Saxån vid Saxtorp | C142: 2021-04-27 | D142: 7.6 | E142: 11.6 | F142: 97 | G142: 8.02 | H142: 2.4 | I142: 64.6 | J142: 24 | K142: 43 | L142: 16 | M142: 4000 | N142: 30 | O142: 4800 | P142: <2 | AE142: 7.6 | AF142: 11.6 | AG142: 97 | AH142: 8.02 | AI142: 2.4 | AJ142: 64.6 | AK142: 24 | AL142: 43 | AM142: 16 | AN142: 4000 | AO142: 30 | AP142: 4800 | AQ142: 2
A143: 10 | B143: 16 Saxån vid Saxtorp | C143: 2021-05-25 | D143: 12.5 | E143: 8.9 | F143: 84 | G143: 8.16 | H143: 1.9 | I143: 66 | J143: 55 | K143: 77 | L143: 15 | M143: 3700 | N143: 63 | O143: 4000 | P143: <2 | AE143: 12.5 | AF143: 8.9 | AG143: 84 | AH143: 8.16 | AI143: 1.9 | AJ143: 66 | AK143: 55 | AL143: 77 | AM143: 15 | AN143: 3700 | AO143: 63 | AP143: 4000 | AQ143: 2
A144: 10 | B144: 16 Saxån vid Saxtorp | C144: 2021-06-21 | D144: 18.8 | E144: 6.1 | F144: 66 | G144: 7.92 | H144: 1.2 | I144: 70.5 | J144: 170 | K144: 190 | L144: 20 | M144: 2900 | N144: 70 | O144: 3600 | P144: <2 | AE144: 18.8 | AF144: 6.1 | AG144: 66 | AH144: 7.92 | AI144: 1.2 | AJ144: 70.5 | AK144: 170 | AL144: 190 | AM144: 20 | AN144: 2900 | AO144: 70 | AP144: 3600 | AQ144: 2
A145: 10 | B145: 16 Saxån vid Saxtorp | C145: 2021-07-21 | D145: 18.2 | E145: 7.2 | F145: 76 | G145: 7.96 | H145: 1.8 | I145: 62.4 | J145: 170 | K145: 200 | L145: 10 | M145: 2000 | N145: 34 | O145: 2700 | P145: <2 | AE145: 18.2 | AF145: 7.2 | AG145: 76 | AH145: 7.96 | AI145: 1.8 | AJ145: 62.4 | AK145: 170 | AL145: 200 | AM145: 10 | AN145: 2000 | AO145: 34 | AP145: 2700 | AQ145: 2
A146: 10 | B146: 16 Saxån vid Saxtorp | C146: 2021-08-30 | D146: 16 | E146: 11.3 | F146: 115 | G146: 8.12 | H146: 3.6 | I146: 61.2 | Q146: Analys missad för närsalter och susp | AE146: 16 | AF146: 11.3 | AG146: 115 | AH146: 8.12 | AI146: 3.6 | AJ146: 61.2
A147: 10 | B147: 16 Saxån vid Saxtorp | C147: 2021-09-29 | D147: 13.7 | E147: 9.3 | F147: 90 | G147: 7.88 | H147: 5.1 | I147: 66.7 | J147: 110 | K147: 130 | L147: 20 | M147: 3600 | N147: 16 | O147: 3800 | P147: 2.8 | AE147: 13.7 | AF147: 9.3 | AG147: 90 | AH147: 7.88 | AI147: 5.1 | AJ147: 66.7 | AK147: 110 | AL147: 130 | AM147: 20 | AN147: 3600 | AO147: 16 | AP147: 3800 | AQ147: 2.8
A148: 10 | B148: 16 Saxån vid Saxtorp | C148: 2021-10-20 | D148: 12.1 | E148: 9.3 | F148: 87 | G148: 8.02 | H148: 4.5 | I148: 67.9 | J148: 69 | K148: 95 | L148: 21 | M148: 6100 | N148: <10 | O148: 7100 | P148: 3.8 | AE148: 12.1 | AF148: 9.3 | AG148: 87 | AH148: 8.02 | AI148: 4.5 | AJ148: 67.9 | AK148: 69 | AL148: 95 | AM148: 21 | AN148: 6100 | AO148: 10 | AP148: 7100 | AQ148: 3.8
A149: 10 | B149: 16 Saxån vid Saxtorp | C149: 2021-11-24 | D149: 7.1 | E149: 10.8 | F149: 89 | G149: 8.23 | H149: 3.5 | I149: 67.5 | J149: 59 | K149: 64 | L149: 11 | M149: 8200 | N149: 25 | O149: 8600 | P149: 2.7 | AE149: 7.1 | AF149: 10.8 | AG149: 89 | AH149: 8.23 | AI149: 3.5 | AJ149: 67.5 | AK149: 59 | AL149: 64 | AM149: 11 | AN149: 8200 | AO149: 25 | AP149: 8600 | AQ149: 2.7
A150: 10 | B150: 16 Saxån vid Saxtorp | C150: 2021-12-21 | D150: 2.7 | E150: 12.4 | F150: 91 | G150: 8.07 | H150: 6.6 | I150: 61.9 | J150: 45 | K150: 350 | L150: 300 | M150: 8200 | N150: 73 | O150: 7600 | P150: 6.2 | AE150: 2.7 | AF150: 12.4 | AG150: 91 | AH150: 8.07 | AI150: 6.6 | AJ150: 61.9 | AK150: 45 | AL150: 350 | AM150: 300 | AN150: 8200 | AO150: 73 | AP150: 7600 | AQ150: 6.2
C151: Medel | D151: 10.06666667 | E151: 10.40833333 | F151: 90.41666667 | G151: 8.043333333 | H151: 5.766666667 | I151: 62.775 | K151: 129.7272727 | L151: 46.90909091 | M151: 5672.727273 | N151: 38.36363636 | O151: 6136.363636 | P151: 4.454545455 | AE151: 10.06666667 | AF151: 10.40833333 | AG151: 90.41666667 | AH151: 8.043333333 | AI151: 5.766666667 | AJ151: 62.775 | AK151: 0 | AL151: 129.7272727 | AM151: 46.90909091 | AN151: 5672.727273 | AO151: 38.36363636 | AP151: 6136.363636 | AQ151: 4.454545455
C152: Max | D152: 18.8 | E152: 12.8 | F152: 115 | G152: 8.23 | H152: 19 | I152: 70.5 | K152: 350 | L152: 300 | M152: 9200 | N152: 73 | O152: 9200 | P152: 13 | AE152: 18.8 | AF152: 12.8 | AG152: 115 | AH152: 8.23 | AI152: 19 | AJ152: 70.5 | AK152: 0 | AL152: 350 | AM152: 300 | AN152: 9200 | AO152: 73 | AP152: 9200 | AQ152: 13
C153: Min | D153: 2.7 | E153: 6.1 | F153: 66 | G153: 7.88 | H153: 1.2 | I153: 44.9 | K153: 43 | L153: 10 | M153: 2000 | N153: 10 | O153: 2700 | P153: 2 | AE153: 2.7 | AF153: 6.1 | AG153: 66 | AH153: 7.88 | AI153: 1.2 | AJ153: 44.9 | AK153: 0 | AL153: 43 | AM153: 10 | AN153: 2000 | AO153: 10 | AP153: 2700 | AQ153: 2

Sheet Rapport
B1: Saxån-Braån 2021 Rapport
B2: Metoder och mätosäkerhet
B3: Saxån-Braån 2021
B4: Vattenkontroll
B5: På uppdrag av Saxån-Braåns vattenvårdskommitté
A7: Sorterings- | B7: Provtagningspunkt | C7: Provtagn | D7: Temp | E7: Syreh | F7: Syrem | G7: pH | H7: Gruml | I7: Kond | J7: PO4-P | K7: Tot-P | L7: Part.-P | M7: NO3+2-N | N7: NH4-N | O7: Tot-N | P7: Susp | Q7: Anmärkning
A8: ordning | B8: Nr Läge | C8: datum | D8: °C | E8: mg/l | F8: % | H8: FNU | I8: mS/m | J8: µg/l | K8: µg/l | L8: µg/l | M8: µg/l | N8: µg/l | O8: µg/l | P8: mg/l
A9: 250 | B9: januari
A10: 1 | B10: 14 Svalövsbäcken uppstr Svalöv | C10: 2021-01-25 | D10: 3 | E10: 12.7 | F10: 94 | G10: 7.55 | H10: 9.5 | I10: 39.3 | J10: 21 | K10: 48 | L10: 16 | M10: 8900 | N10: 28 | O10: 8800 | P10: 3.4 | Q10: Resultatet av kväve total, N, är mindre än summanav ammoniumkväve, NH4-N, och nitrat + nitritkväve, NO23-N. Skillnaden ligger dock inommätosäkerheten.
A11: 2 | B11: 15:2 Svalövsbäcken nedstr Svalöv | C11: 2021-01-25 | D11: 3.6 | E11: 12.8 | F11: 97 | G11: 7.76 | H11: 13 | I11: 45.1 | J11: 28 | K11: 64 | M11: 8700 | N11: 290 | O11: 8900 | P11: 5.1
A12: 3 | B12: 3:2 Örstorpsbäcken | C12: 2021-01-25 | D12: 4.2 | E12: 11.9 | F12: 91 | G12: 7.9 | H12: 9.1 | I12: 69 | J12: 57 | K12: 210 | L12: 60 | M12: 16000 | N12: 35 | O12: 17000 | P12: 6.3
A13: 4 | B13: 5 Braån vid Asmundtorp | C13: 2021-01-25 | D13: 3.3 | E13: 12.6 | F13: 94 | G13: 7.92 | H13: 14 | I13: 49 | J13: 42 | K13: 81 | L13: 30 | M13: 8900 | N13: 72 | O13: 8900 | P13: 7.2
A14: 6 | B14: 26 Långgropen uppstr Eslöv | C14: 2021-01-25 | D14: 3.3 | E14: 11.3 | F14: 85 | G14: 7.53 | H14: 14 | I14: 45.6 | J14: 45 | K14: 86 | L14: 31 | M14: 7100 | N14: 65 | O14: 7400 | P14: 5.7
A15: 7 | B15: 24 Långgropen nedstr Eslöv | C15: 2021-01-25 | D15: 3.6 | E15: 11.7 | F15: 88 | G15: 7.59 | H15: 14 | I15: 47.2 | J15: 46 | K15: 84 | M15: 6900 | N15: 71 | O15: 7200 | P15: 5.8
A16: 9 | B16: 30 Välabäcken | C16: 2021-01-25 | D16: 4.1 | E16: 11.7 | F16: 90 | G16: 7.81 | H16: 4.9 | I16: 76.1 | J16: 40 | K16: 89 | L16: 26 | M16: 15000 | N16: <10 | O16: 15000 | P16: 4.2
A17: 10 | B17: 16 Saxån vid Saxtorp | C17: 2021-01-25 | D17: 3.3 | E17: 12.8 | F17: 96 | G17: 7.99 | H17: 15 | I17: 54.7 | J17: 36 | K17: 100 | L17: 37 | M17: 9200 | N17: <10 | O17: 9200 | P17: 9.3
A18: 200 | B18: provtagningsuppgifter | D18: Provtagning:Nina Svenbro Analysansvarig Ekologigruppen:Jan Pröjts Analysansvarig SYNLAB:Magnus Casselgren
A19: 250 | B19: februari
A20: 1 | B20: 14 Svalövsbäcken uppstr Svalöv | C20: 2021-02-22 | D20: 2.8 | E20: 12.2 | F20: 90 | G20: 7.46 | H20: 12 | I20: 36.5 | J20: 25 | K20: 75 | L20: 43 | M20: 6500 | N20: 11 | O20: 7200 | P20: 4
A21: 2 | B21: 15:2 Svalövsbäcken nedstr Svalöv | C21: 2021-02-22 | D21: 3.2 | E21: 12.9 | F21: 96 | G21: 7.69 | H21: 14 | I21: 39.9 | J21: 32 | K21: 81 | M21: 6600 | N21: 160 | O21: 7500 | P21: 6.8
A22: 3 | B22: 3:2 Örstorpsbäcken | C22: 2021-02-22 | D22: 3.6 | E22: 12.4 | F22: 94 | G22: 7.85 | H22: 11 | I22: 58.5 | J22: 70 | K22: 110 | L22: 36 | M22: 13000 | N22: <10 | O22: 13000 | P22: 4.4
A23: 4 | B23: 5 Braån vid Asmundtorp | C23: 2021-02-22 | D23: 3.3 | E23: 12.9 | F23: 97 | G23: 7.91 | H23: 19 | I23: 41.4 | J23: 60 | K23: 110 | L23: 46 | M23: 7400 | N23: 64 | O23: 7900 | P23: 9.6
A24: 5 | B24: 28:2 Bäck N Trolleholm | C24: 2021-02-22 | D24: 1.6 | E24: 13.3 | F24: 95 | G24: 7.75 | H24: 5.3 | I24: 36.6 | J24: 5 | K24: 22 | M24: 2300 | N24: 52 | O24: 2500 | P24: 3
A25: 6 | B25: 26 Långgropen uppstr Eslöv | C25: 2021-02-22 | D25: 2.9 | E25: 12.5 | F25: 93 | G25: 7.64 | H25: 16 | I25: 40.7 | J25: 55 | K25: 98 | L25: 36 | M25: 6300 | N25: 73 | O25: 7000 | P25: 3.9
A26: 7 | B26: 24 Långgropen nedstr Eslöv | C26: 2021-02-22 | D26: 2.6 | E26: 12.4 | F26: 91 | G26: 7.69 | H26: 15 | I26: 42.7 | J26: 56 | K26: 99 | M26: 6000 | N26: 83 | O26: 6800 | P26: 6.4
A27: 8 | B27: 19 Saxån vid Annelöv | C27: 2021-02-22 | D27: 3.2 | E27: 13.2 | F27: 99 | G27: 7.97 | H27: 17 | I27: 44.7 | J27: 65 | K27: 110 | M27: 6000 | N27: 41 | O27: 6300 | P27: 15
A28: 9 | B28: 30 Välabäcken | C28: 2021-02-22 | D28: 3.2 | E28: 12.7 | F28: 95 | G28: 7.86 | H28: 13 | I28: 59.4 | J28: 74 | K28: 110 | L28: 36 | M28: 10000 | N28: 15 | O28: 11000 | P28: 10
A29: 10 | B29: 16 Saxån vid Saxtorp | C29: 2021-02-22 | D29: 3.1 | E29: 12.8 | F29: 95 | G29: 7.96 | H29: 19 | I29: 44.9 | J29: 80 | K29: 130 | L29: 49 | M29: 6700 | N29: 69 | O29: 7100 | P29: 13
A30: 200 | B30: provtagningsuppgifter | D30: Provtagning:Birgitta Bengtsson Analysansvarig Ekologigruppen:Birgitta Bengtsson Analysansvarig SYNLAB:Patric Eklundh
A31: 250 | B31: mars
A32: 1 | B32: 14 Svalövsbäcken uppstr Svalöv | C32: 2021-03-24 | D32: 5.5 | E32: 12.6 | F32: 100 | G32: 7.96 | H32: 4.1 | I32: 40.8 | J32: 9.3 | K32: 22 | L32: 9 | M32: 5800 | N32: 16 | O32: 6700 | P32: 2.2
A33: 2 | B33: 15:2 Svalövsbäcken nedstr Svalöv | C33: 2021-03-24 | D33: 6.5 | E33: 12.8 | F33: 104 | G33: 8.04 | H33: 4.1 | I33: 48.8 | J33: 16 | K33: 32 | M33: 6200 | N33: 610 | O33: 7400 | P33: 3
A34: 3 | B34: 3:2 Örstorpsbäcken | C34: 2021-03-24 | D34: 5.6 | E34: 13.1 | F34: 104 | G34: 8.11 | H34: 2.6 | I34: 72.8 | J34: 59 | K34: 75 | L34: 13 | M34: 13000 | N34: 10 | O34: 15000 | P34: <2
A35: 4 | B35: 5 Braån vid Asmundtorp | C35: 2021-03-24 | D35: 5.7 | E35: 12.8 | F35: 102 | G35: 8.15 | H35: 3.8 | I35: 54.3 | J35: 21 | K35: 41 | L35: 14 | M35: 6800 | N35: 48 | O35: 7600 | P35: 2.8
A36: 5 | B36: 28:2 Bäck N Trolleholm | C36: 2021-03-24 | D36: 6.7 | E36: 11.8 | F36: 97 | G36: 8.1 | H36: 2.5 | I36: 44.6 | J36: 4.1 | K36: 10 | M36: 1500 | N36: 11 | O36: 2200 | P36: 2.3
A37: 6 | B37: 26 Långgropen uppstr Eslöv | C37: 2021-03-24 | D37: 6.4 | E37: 13.9 | F37: 113 | G37: 8.08 | H37: 4.5 | I37: 57.4 | J37: 15 | K37: 36 | L37: 19 | M37: 6100 | N37: 18 | O37: 7000 | P37: 2.6
A38: 7 | B38: 24 Långgropen nedstr Eslöv | C38: 2021-03-24 | D38: 6.1 | E38: 13.4 | F38: 108 | G38: 8.03 | H38: 4.2 | I38: 60.1 | J38: 17 | K38: 35 | M38: 6000 | N38: 47 | O38: 6500 | P38: 2.8
A39: 8 | B39: 19 Saxån vid Annelöv | C39: 2021-03-24 | D39: 5.9 | E39: 12.4 | F39: 100 | G39: 8.21 | H39: 5.6 | I39: 60 | J39: 23 | K39: 39 | M39: 5900 | N39: 16 | O39: 6700 | P39: 4.8
A40: 9 | B40: 30 Välabäcken | C40: 2021-03-24 | D40: 6.4 | E40: 13.9 | F40: 113 | G40: 8.23 | H40: 1.6 | I40: 76.4 | J40: 14 | K40: 37 | L40: 20 | M40: 12000 | N40: <10 | O40: 13000 | P40: <2
A41: 10 | B41: 16 Saxån vid Saxtorp | C41: 2021-03-24 | D41: 5.7 | E41: 12.4 | F41: 99 | G41: 8.19 | H41: 4.6 | I41: 65 | J41: 29 | K41: 48 | L41: 17 | M41: 7800 | N41: 22 | O41: 9000 | P41: 3.2
A42: 200 | B42: provtagningsuppgifter | D42: Provtagning:Nina Svenbro Analysansvarig Ekologigruppen:Jan Pröjts Analysansvarig SYNLAB:Patric Eklundh
A43: 250 | B43: april
A44: 1 | B44: 14 Svalövsbäcken uppstr Svalöv | C44: 2021-04-27 | D44: 9.1 | E44: 11.9 | F44: 104 | G44: 8.25 | H44: 8 | I44: 44.6 | J44: 6.8 | K44: 41 | L44: 29 | M44: 2200 | N44: 39 | O44: 3000 | P44: 5.6
A45: 2 | B45: 15:2 Svalövsbäcken nedstr Svalöv | C45: 2021-04-27 | D45: 6.6 | E45: 14.8 | F45: 121 | G45: 8.1 | H45: 3.7 | I45: 54.2 | J45: 7.8 | K45: 27 | M45: 3700 | N45: 600 | O45: 4900 | P45: <2
A46: 3 | B46: 3:2 Örstorpsbäcken | C46: 2021-04-27 | D46: 5.5 | E46: 11.4 | F46: 91 | G46: 8 | H46: 3.8 | I46: 70.9 | J46: 88 | K46: 120 | L46: 31 | M46: 6400 | N46: 26 | O46: 7300 | P46: 3.3
A47: 4 | B47: 5 Braån vid Asmundtorp | C47: 2021-04-27 | D47: 6.2 | E47: 10.9 | F47: 88 | G47: 8.03 | H47: 2 | I47: 57.7 | J47: 14 | K47: 30 | L47: 10 | M47: 3900 | N47: 26 | O47: 4600 | P47: <2
A48: 6 | B48: 26 Långgropen uppstr Eslöv | C48: 2021-04-27 | D48: 6.1 | E48: 17.1 | F48: 138 | G48: 8.26 | H48: 1.8 | I48: 60.3 | J48: 2.7 | K48: 18 | L48: 12 | M48: 3700 | N48: <10 | O48: 4300 | P48: <2
A49: 7 | B49: 24 Långgropen nedstr Eslöv | C49: 2021-04-27 | D49: 6.1 | E49: 13.4 | F49: 108 | G49: 8 | H49: 2.7 | I49: 61.5 | J49: 9 | K49: 26 | M49: 2900 | N49: 52 | O49: 3500 | P49: <2
A50: 9 | B50: 30 Välabäcken | C50: 2021-04-27 | D50: 5.6 | E50: 13.1 | F50: 104 | G50: 7.99 | H50: 1.6 | I50: 79.1 | J50: 4.4 | K50: 46 | L50: 19 | M50: 7200 | N50: 69 | O50: 8200 | P50: <2
A51: 10 | B51: 16 Saxån vid Saxtorp | C51: 2021-04-27 | D51: 7.6 | E51: 11.6 | F51: 97 | G51: 8.02 | H51: 2.4 | I51: 64.6 | J51: 24 | K51: 43 | L51: 16 | M51: 4000 | N51: 30 | O51: 4800 | P51: <2
A52: 200 | B52: provtagningsuppgifter | D52: Provtagning:Nina Svenbro Analysansvarig Ekologigruppen:Jan Pröjts Analysansvarig SGS Analytics:Patric Eklundh
A53: 250 | B53: maj
A54: 1 | B54: 14 Svalövsbäcken uppstr Svalöv | C54: 2021-05-25 | D54: 14.4 | E54: 8.3 | F54: 82 | G54: 8.09 | H54: 8.2 | I54: 46.9 | J54: 12 | K54: 56 | L54: 31 | M54: 2100 | N54: 70 | O54: 2700 | P54: 9.7
A55: 2 | B55: 15:2 Svalövsbäcken nedstr Svalöv | C55: 2021-05-25 | D55: 12.4 | E55: 9.6 | F55: 90 | G55: 8 | H55: 1.8 | I55: 56.4 | J55: 14 | K55: 39 | M55: 4000 | N55: 67 | O55: 4400 | P55: <2
A56: 3 | B56: 3:2 Örstorpsbäcken | C56: 2021-05-25 | D56: 11.6 | E56: 8.5 | F56: 78 | G56: 8.02 | H56: 2 | I56: 72.1 | J56: 110 | K56: 140 | L56: 20 | M56: 6300 | N56: 57 | O56: 6600 | P56: 2.4
A57: 4 | B57: 5 Braån vid Asmundtorp | C57: 2021-05-25 | D57: 11.8 | E57: 8.4 | F57: 78 | G57: 8.06 | H57: 2.1 | I57: 59.8 | J57: 45 | K57: 66 | L57: 11 | M57: 4100 | N57: 47 | O57: 4500 | P57: 2.4
A58: 5 | B58: 28:2 Bäck N Trolleholm | C58: 2021-05-25 | D58: 11.2 | E58: 9.8 | F58: 90 | G58: 8.2 | H58: 1.6 | I58: 52.1 | J58: 5 | K58: 11 | M58: 460 | N58: 13 | O58: 740 | P58: 2.1
A59: 6 | B59: 26 Långgropen uppstr Eslöv | C59: 2021-05-25 | D59: 12.6 | E59: 9.9 | F59: 93 | G59: 8.02 | H59: 1.8 | I59: 62.5 | J59: 11 | K59: 33 | L59: 17 | M59: 2700 | N59: 39 | O59: 3200 | P59: 2.4
A60: 7 | B60: 24 Långgropen nedstr Eslöv | C60: 2021-05-25 | D60: 12.4 | E60: 8.9 | F60: 84 | G60: 7.9 | H60: 1.9 | I60: 62.5 | J60: 17 | K60: 39 | M60: 2400 | N60: 75 | O60: 2900 | P60: 2
A61: 8 | B61: 19 Saxån vid Annelöv | C61: 2021-05-25 | D61: 12.9 | E61: 8.2 | F61: 78 | G61: 8.14 | H61: 2 | I61: 61.5 | J61: 39 | K61: 63 | M61: 2700 | N61: 60 | O61: 3000 | P61: <2
A62: 9 | B62: 30 Välabäcken | C62: 2021-05-25 | D62: 11.6 | E62: 10.7 | F62: 99 | G62: 8.13 | H62: 1.2 | I62: 77.3 | J62: 63 | K62: 110 | L62: 22 | M62: 5100 | N62: 46 | O62: 5500 | P62: <2
A63: 10 | B63: 16 Saxån vid Saxtorp | C63: 2021-05-25 | D63: 12.5 | E63: 8.9 | F63: 84 | G63: 8.16 | H63: 1.9 | I63: 66 | J63: 55 | K63: 77 | L63: 15 | M63: 3700 | N63: 63 | O63: 4000 | P63: <2
A64: 200 | B64: provtagningsuppgifter | D64: Provtagning:Nina Svenbro Analysansvarig Ekologigruppen:Birgitta Bengtsson Analysansvarig SGS Analytics:Patric Eklundh
A65: 250 | B65: juni
A66: 1 | B66: 14 Svalövsbäcken uppstr Svalöv | C66: 2021-06-21 | D66: 21.2 | E66: 3.3 | F66: 37 | G66: 7.7 | H66: 6.4 | I66: 51.1 | J66: 56 | K66: 130 | L66: 50 | M66: 640 | N66: 41 | O66: 1800 | P66: 6.5
A67: 2 | B67: 15:2 Svalövsbäcken nedstr Svalöv | C67: 2021-06-21 | D67: 16.5 | E67: 6.8 | F67: 70 | G67: 7.65 | H67: 1.2 | I67: 69.1 | J67: 72 | K67: 110 | M67: 9500 | N67: 110 | O67: 10000 | P67: <2
A68: 3 | B68: 3:2 Örstorpsbäcken | C68: 2021-06-21 | D68: 16.5 | E68: 7 | F68: 72 | G68: 7.91 | H68: 2.8 | I68: 73.5 | J68: 280 | K68: 280 | L68: 40 | M68: 3800 | N68: 64 | O68: 4700 | P68: 2.2
A69: 4 | B69: 5 Braån vid Asmundtorp | C69: 2021-06-21 | D69: 18.4 | E69: 6.7 | F69: 71 | G69: 7.97 | H69: 2.9 | I69: 67.8 | J69: 170 | K69: 180 | L69: 20 | M69: 2900 | N69: 51 | O69: 3700 | P69: 3
A70: 6 | B70: 26 Långgropen uppstr Eslöv | C70: 2021-06-21 | D70: 16.3 | E70: 5.9 | F70: 60 | G70: 7.73 | H70: 2 | I70: 66.4 | J70: 68 | K70: 94 | L70: 29 | M70: 1200 | N70: 26 | O70: 1800 | P70: <2
A71: 7 | B71: 24 Långgropen nedstr Eslöv | C71: 2021-06-21 | D71: 16.3 | E71: 5.7 | F71: 58 | G71: 7.72 | H71: 2.6 | I71: 70.8 | J71: 70 | K71: 100 | M71: 1100 | N71: 52 | O71: 1600 | P71: <2
A72: 9 | B72: 30 Välabäcken | C72: 2021-06-21 | D72: 15 | E72: 7.2 | F72: 72 | G72: 7.84 | H72: 1.2 | I72: 79.4 | J72: 140 | K72: 210 | L72: 60 | M72: 4200 | N72: 130 | O72: 5300 | P72: 7.8
A73: 10 | B73: 16 Saxån vid Saxtorp | C73: 2021-06-21 | D73: 18.8 | E73: 6.1 | F73: 66 | G73: 7.92 | H73: 1.2 | I73: 70.5 | J73: 170 | K73: 190 | L73: 20 | M73: 2900 | N73: 70 | O73: 3600 | P73: <2
A74: 200 | B74: provtagningsuppgifter | D74: Provtagning:Nina Svenbro Analysansvarig Ekologigruppen:Birgitta Bengtsson Analysansvarig SGS Analytics:Patric Eklundh
A75: 250 | B75: juli
A76: 1 | B76: 14 Svalövsbäcken uppstr Svalöv | C76: 2021-07-21 | D76: 21.3 | E76: 4.5 | F76: 51 | G76: 7.85 | H76: 13.8 | I76: 42.7 | J76: 56 | K76: 160 | L76: 74 | M76: 290 | N76: 55 | O76: 1700 | P76: 11
A77: 2 | B77: 15:2 Svalövsbäcken nedstr Svalöv | C77: 2021-07-21 | D77: 17.4 | E77: 7.7 | F77: 80 | G77: 7.74 | H77: 4.8 | I77: 66.4 | J77: 72 | K77: 98 | M77: 7200 | N77: 110 | O77: 7800 | P77: 3.3
A78: 3 | B78: 3:2 Örstorpsbäcken | C78: 2021-07-21 | D78: 15.9 | E78: 8.3 | F78: 84 | G78: 7.94 | H78: 5.6 | I78: 72.8 | J78: 280 | K78: 300 | L78: 30 | M78: 5200 | N78: 35 | O78: 5800 | P78: 5.1
A79: 4 | B79: 5 Braån vid Asmundtorp | C79: 2021-07-21 | D79: 17.3 | E79: 7.6 | F79: 79 | G79: 7.99 | H79: 4.3 | I79: 59.8 | J79: 160 | K79: 180 | L79: 10 | M79: 1900 | N79: 27 | O79: 2300 | P79: 3.2
A80: 6 | B80: 26 Långgropen uppstr Eslöv | C80: 2021-07-21 | D80: 16.1 | E80: 7.3 | F80: 74 | G80: 7.7 | H80: 1.9 | I80: 62.4 | J80: 77 | K80: 90 | L80: 16 | M80: 1200 | N80: 30 | O80: 1800 | P80: <2
A81: 7 | B81: 24 Långgropen nedstr Eslöv | C81: 2021-07-21 | D81: 16 | E81: 6.6 | F81: 67 | G81: 7.67 | H81: 2.5 | I81: 65.2 | J81: 78 | K81: 92 | M81: 1100 | N81: 49 | O81: 1500 | P81: 2.5
A82: 9 | B82: 30 Välabäcken | C82: 2021-07-21 | D82: 15.4 | E82: 7.4 | F82: 74 | G82: 7.84 | H82: 1.2 | I82: 79.3 | J82: 230 | K82: 310 | L82: 60 | M82: 3000 | N82: 140 | O82: 4000 | P82: 11
A83: 10 | B83: 16 Saxån vid Saxtorp | C83: 2021-07-21 | D83: 18.2 | E83: 7.2 | F83: 76 | G83: 7.96 | H83: 1.8 | I83: 62.4 | J83: 170 | K83: 200 | L83: 10 | M83: 2000 | N83: 34 | O83: 2700 | P83: <2
A84: 200 | B84: provtagningsuppgifter | D84: Provtagning:Bengt Wedding Analysansvarig Ekologigruppen:Bengt Wedding Analysansvarig SGS Analytics:Patric Eklundh
A85: 250 | B85: augusti
A86: 1 | B86: 14 Svalövsbäcken uppstr Svalöv | C86: 2021-08-30 | D86: 16.8 | E86: 11.3 | F86: 117 | G86: 8.53 | H86: 20 | I86: 47.6 | Q86: Analys missad för närsalter och susp
A87: 2 | B87: 15:2 Svalövsbäcken nedstr Svalöv | C87: 2021-08-30 | D87: 16.2 | E87: 9.6 | F87: 98 | G87: 8.02 | H87: 7.1 | I87: 55.8 | Q87: Analys missad för närsalter och susp
A88: 3 | B88: 3:2 Örstorpsbäcken | C88: 2021-08-30 | D88: 15.3 | E88: 11.6 | F88: 116 | G88: 8 | H88: 11 | I88: 71.8 | Q88: Analys missad för närsalter och susp
A89: 4 | B89: 5 Braån vid Asmundtorp | C89: 2021-08-30 | D89: 16.4 | E89: 11.7 | F89: 120 | G89: 8.08 | H89: 4.6 | I89: 52.4 | Q89: Analys missad för närsalter och susp
A90: 5 | B90: 28:2 Bäck N Trolleholm | C90: 2021-08-30 | D90: 14.6 | E90: 10.9 | F90: 108 | G90: 8.13 | H90: 5.3 | I90: 50.2 | Q90: Analys missad för närsalter och susp
A91: 6 | B91: 26 Långgropen uppstr Eslöv | C91: 2021-08-30 | D91: 14.6 | E91: 8.5 | F91: 84 | G91: 7.87 | H91: 6.5 | I91: 53.8 | Q91: Analys missad för närsalter och susp
A92: 7 | B92: 24 Långgropen nedstr Eslöv | C92: 2021-08-30 | D92: 14.7 | E92: 8.1 | F92: 80 | G92: 7.83 | H92: 7.3 | I92: 53.5 | Q92: Analys missad för närsalter och susp
A93: 8 | B93: 19 Saxån vid Annelöv | C93: 2021-08-30 | D93: 15.9 | E93: 9.9 | F93: 100 | G93: 7.96 | H93: 2.5 | I93: 41 | Q93: Analys missad för närsalter och susp
A94: 9 | B94: 30 Välabäcken | C94: 2021-08-30 | D94: 15.2 | E94: 9.7 | F94: 97 | G94: 7.89 | H94: 1.1 | I94: 74.4 | Q94: Analys missad för närsalter och susp
A95: 10 | B95: 16 Saxån vid Saxtorp | C95: 2021-08-30 | D95: 16 | E95: 11.3 | F95: 115 | G95: 8.12 | H95: 3.6 | I95: 61.2 | Q95: Analys missad för närsalter och susp
A96: 200 | B96: provtagningsuppgifter | D96: Provtagning:Birgitta Bengtsson Analysansvarig Ekologigruppen:Birgitta Bengtson
A97: 250 | B97: september
A98: 1 | B98: 14 Svalövsbäcken uppstr Svalöv | C98: 2021-09-29 | D98: 14.3 | E98: 10.5 | F98: 103 | G98: 7.98 | H98: 15 | I98: 52.4 | J98: 4.8 | K98: 85 | L98: 61 | M98: 2200 | N98: 41 | O98: 2900 | P98: 14
A99: 2 | B99: 15:2 Svalövsbäcken nedstr Svalöv | C99: 2021-09-29 | D99: 13.5 | E99: 10.3 | F99: 99 | G99: 7.97 | H99: 13 | I99: 55.9 | J99: 33 | K99: 110 | M99: 4000 | N99: 110 | O99: 4500 | P99: 12
A100: 3 | B100: 3:2 Örstorpsbäcken | C100: 2021-09-29 | D100: 13.4 | E100: 11 | F100: 106 | G100: 7.94 | H100: 7.1 | I100: 73.1 | J100: 130 | K100: 150 | L100: 20 | M100: 12000 | N100: 24 | O100: 11000 | P100: 3.1
A101: 4 | B101: 5 Braån vid Asmundtorp | C101: 2021-09-29 | D101: 13.9 | E101: 10.6 | F101: 103 | G101: 7.97 | H101: 21 | I101: 47.5 | J101: 230 | K101: 280 | L101: 60 | M101: 5300 | N101: 53 | O101: 5600 | P101: 11
A102: 6 | B102: 26 Långgropen uppstr Eslöv | C102: 2021-09-29 | D102: 12.8 | E102: 8.4 | F102: 80 | G102: 7.8 | H102: 8 | I102: 58.5 | J102: 100 | K102: 140 | L102: 20 | M102: 5900 | N102: 18 | O102: 6000 | P102: 3.6
A103: 7 | B103: 24 Långgropen nedstr Eslöv | C103: 2021-09-29 | D103: 12.8 | E103: 8.6 | F103: 82 | G103: 7.77 | H103: 6.5 | I103: 55.4 | J103: 99 | K103: 130 | M103: 4400 | N103: 26 | O103: 4800 | P103: 3.1
A104: 9 | B104: 30 Välabäcken | C104: 2021-09-29 | D104: 12.2 | E104: 9.6 | F104: 90 | G104: 7.8 | H104: 1.8 | I104: 76.2 | J104: 130 | K104: 140 | L104: 10 | M104: 4200 | N104: 19 | O104: 4600 | P104: <2
A105: 10 | B105: 16 Saxån vid Saxtorp | C105: 2021-09-29 | D105: 13.7 | E105: 9.3 | F105: 90 | G105: 7.88 | H105: 5.1 | I105: 66.7 | J105: 110 | K105: 130 | L105: 20 | M105: 3600 | N105: 16 | O105: 3800 | P105: 2.8
A106: 200 | B106: provtagningsuppgifter | D106: Provtagning:Birgitta Bengtsson Analysansvarig Ekologigruppen:Birgitta Bengtsson Analysansvarig SGS Analytics:Patric Eklundh
A107: 250 | B107: oktober
A108: 1 | B108: 14 Svalövsbäcken uppstr Svalöv | C108: 2021-10-20 | D108: 11.2 | E108: 9.5 | F108: 87 | G108: 7.67 | H108: 10 | I108: 51.4 | J108: 17 | K108: 57 | L108: 32 | M108: 6900 | N108: 41 | O108: 8200 | P108: 12
A109: 2 | B109: 15:2 Svalövsbäcken nedstr Svalöv | C109: 2021-10-20 | D109: 12.1 | E109: 9.3 | F109: 87 | G109: 7.75 | H109: 55 | I109: 52.4 | J109: 30 | K109: 220 | M109: 7200 | N109: <10 | O109: 8700 | P109: 86
A110: 3 | B110: 3:2 Örstorpsbäcken | C110: 2021-10-20 | D110: 12.4 | E110: 8.6 | F110: 81 | G110: 7.83 | H110: 78 | I110: 67.4 | J110: 140 | K110: 250 | L110: 100 | M110: 12000 | N110: 16 | O110: 14000 | P110: 22
A111: 4 | B111: 5 Braån vid Asmundtorp | C111: 2021-10-20 | D111: 12.1 | E111: 9.3 | F111: 87 | G111: 7.98 | H111: 22 | I111: 57.7 | J111: 180 | K111: 230 | L111: 40 | M111: 7500 | N111: 15 | O111: 8700 | P111: 18
A112: 5 | B112: 28:2 Bäck N Trolleholm | C112: 2021-10-20 | D112: 12.4 | E112: 9.4 | F112: 88 | G112: 7.91 | H112: 22 | I112: 43.9 | J112: 6.4 | K112: 67 | M112: 1600 | N112: <10 | O112: 2500 | P112: 24
A113: 6 | B113: 26 Långgropen uppstr Eslöv | C113: 2021-10-20 | D113: 12.3 | E113: 8 | F113: 75 | G113: 7.79 | H113: 40 | I113: 55.2 | J113: 65 | K113: 140 | L113: 68 | M113: 6700 | N113: <10 | O113: 7900 | P113: 20
A114: 7 | B114: 24 Långgropen nedstr Eslöv | C114: 2021-10-20 | D114: 12.5 | E114: 8 | F114: 75 | G114: 7.79 | H114: 13 | I114: 46.5 | J114: 46 | K114: 86 | M114: 4300 | N114: 77 | O114: 5100 | P114: 9.3
A115: 8 | B115: 19 Saxån vid Annelöv | C115: 2021-10-20 | D115: 11.5 | E115: 8.8 | F115: 81 | G115: 7.96 | H115: 2.6 | I115: 64.1 | J115: 56 | K115: 73 | M115: 4900 | N115: <10 | O115: 6000 | P115: 3.4
A116: 9 | B116: 30 Välabäcken | C116: 2021-10-20 | D116: 12.6 | E116: 8.3 | F116: 78 | G116: 7.9 | H116: 2.3 | I116: 81.3 | J116: 71 | K116: 87 | L116: 11 | M116: 8800 | N116: 15 | O116: 9900 | P116: 3
A117: 10 | B117: 16 Saxån vid Saxtorp | C117: 2021-10-20 | D117: 12.1 | E117: 9.3 | F117: 87 | G117: 8.02 | H117: 4.5 | I117: 67.9 | J117: 69 | K117: 95 | L117: 21 | M117: 6100 | N117: <10 | O117: 7100 | P117: 3.8
A118: 200 | B118: provtagningsuppgifter | D118: Provtagning:Birgitta Bengtsson Analysansvarig Ekologigruppen:Birgitta Bengtsson Analysansvarig SGS Analytics:Patric Eklund
A119: 250 | B119: november
A120: 1 | B120: 14 Svalövsbäcken uppstr Svalöv | C120: 2021-11-24 | D120: 6.7 | E120: 10.5 | F120: 86 | G120: 8.39 | H120: 4.6 | I120: 51.2 | J120: 23 | K120: 37 | L120: 11 | M120: 6200 | N120: 53 | O120: 6300 | P120: 4.5
A121: 2 | B121: 15:2 Svalövsbäcken nedstr Svalöv | C121: 2021-11-24 | D121: 7.7 | E121: 11.5 | F121: 97 | G121: 8.04 | H121: 3.9 | I121: 57.4 | J121: 45 | K121: 60 | M121: 6600 | N121: 350 | O121: 7100 | P121: 3.7
A122: 3 | B122: 3:2 Örstorpsbäcken | C122: 2021-11-24 | D122: 8.2 | E122: 10.1 | F122: 86 | G122: 8.04 | H122: 2.7 | I122: 79.1 | J122: 120 | K122: 110 | L122: 10 | M122: 13000 | N122: 20 | O122: 13000 | P122: 2.2
A123: 4 | B123: 5 Braån vid Asmundtorp | C123: 2021-11-24 | D123: 7.4 | E123: 10.6 | F123: 88 | G123: 8.18 | H123: 4.2 | I123: 61.4 | J123: 84 | K123: 86 | L123: 8 | M123: 8200 | N123: 14 | O123: 8200 | P123: 2.7
A124: 6 | B124: 26 Långgropen uppstr Eslöv | C124: 2021-11-24 | D124: 7.6 | E124: 9.7 | F124: 81 | G124: 7.94 | H124: 2.8 | I124: 61.8 | J124: 33 | K124: 40 | L124: 11 | M124: 7800 | N124: 23 | O124: 8100 | P124: 2.6
A125: 7 | B125: 24 Långgropen nedstr Eslöv | C125: 2021-11-24 | D125: 7.5 | E125: 9.7 | F125: 81 | G125: 7.92 | H125: 2.8 | I125: 62.5 | J125: 34 | K125: 39 | M125: 7400 | N125: 37 | O125: 7600 | P125: <2
A126: 9 | B126: 30 Välabäcken | C126: 2021-11-24 | D126: 8.4 | E126: 10 | F126: 86 | G126: 8.11 | H126: 1 | I126: 83.7 | J126: 70 | K126: 74 | L126: 5 | M126: 12000 | N126: 34 | O126: 12000 | P126: <2
A127: 10 | B127: 16 Saxån vid Saxtorp | C127: 2021-11-24 | D127: 7.1 | E127: 10.8 | F127: 89 | G127: 8.23 | H127: 3.5 | I127: 67.5 | J127: 59 | K127: 64 | L127: 11 | M127: 8200 | N127: 25 | O127: 8600 | P127: 2.7
A128: 200 | B128: provtagningsuppgifter | D128: Provtagning:Birgitta Bengtsson Analysansvarig Ekologigruppen:Birgitta Bengtsson Analysansvarig SGS Analytics:Kristina Larsson
A129: 250 | B129: december
A130: 1 | B130: 14 Svalövsbäcken uppstr Svalöv | C130: 2021-12-21 | D130: 2.2 | E130: 12.5 | F130: 91 | G130: 7.7 | H130: 5.1 | I130: 41.5 | J130: 14 | K130: 26 | L130: 5 | M130: 7100 | N130: 42 | O130: 7000 | P130: 3.4
A131: 2 | B131: 15:2 Svalövsbäcken nedstr Svalöv | C131: 2021-12-21 | D131: 2.5 | E131: 12.8 | F131: 94 | G131: 7.8 | H131: 5.4 | I131: 47.8 | J131: 23 | K131: 36 | M131: 7300 | N131: 400 | O131: 7200 | P131: 3.5
A132: 3 | B132: 3:2 Örstorpsbäcken | C132: 2021-12-21 | D132: 3.4 | E132: 11.9 | F132: 89 | G132: 7.82 | H132: 6.2 | I132: 74.7 | J132: 76 | K132: 100 | L132: 19 | M132: 14000 | N132: 48 | O132: 13000 | P132: 6.2
A133: 4 | B133: 5 Braån vid Asmundtorp | C133: 2021-12-21 | D133: 2.8 | E133: 12.6 | F133: 93 | G133: 8.01 | H133: 6.6 | I133: 52.5 | J133: 60 | K133: 87 | L133: 14 | M133: 7700 | N133: 110 | O133: 7200 | P133: 5.7
A134: 5 | B134: 28:2 Bäck N Trolleholm | C134: 2021-12-21 | D134: 0.3 | E134: 13.7 | F134: 94 | G134: 7.97 | H134: 2.8 | I134: 38.2 | J134: 3 | K134: 12 | M134: 1400 | N134: 27 | O134: 1700 | P134: <2
A135: 6 | B135: 26 Långgropen uppstr Eslöv | C135: 2021-12-21 | D135: 2.5 | E135: 11.4 | F135: 84 | G135: 7.7 | H135: 6.6 | I135: 53.7 | J135: 24 | K135: 39 | L135: 8 | M135: 6300 | N135: 83 | O135: 6300 | P135: 4.6
A136: 7 | B136: 24 Långgropen nedstr Eslöv | C136: 2021-12-21 | D136: 2.2 | E136: 11.6 | F136: 84 | G136: 7.73 | H136: 6.8 | I136: 55.4 | J136: 25 | K136: 49 | M136: 5900 | N136: 130 | O136: 5600 | P136: 5.5
A137: 8 | B137: 19 Saxån vid Annelöv | C137: 2021-12-21 | D137: 2.6 | E137: 12.8 | F137: 94 | G137: 8 | H137: 7.8 | I137: 56.3 | J137: 39 | K137: 65 | M137: 6100 | N137: 75 | O137: 5900 | P137: 7.3
A138: 9 | B138: 30 Välabäcken | C138: 2021-12-21 | D138: 3.5 | E138: 12.1 | F138: 91 | G138: 7.94 | H138: 3.1 | I138: 78.7 | J138: 45 | K138: 49 | L138: <5,0 | M138: 14000 | N138: 60 | O138: 13000 | P138: <2
A139: 10 | B139: 16 Saxån vid Saxtorp | C139: 2021-12-21 | D139: 2.7 | E139: 12.4 | F139: 91 | G139: 8.07 | H139: 6.6 | I139: 61.9 | J139: 45 | K139: 350 | L139: 300 | M139: 8200 | N139: 73 | O139: 7600 | P139: 6.2
A140: 200 | B140: provtagningsuppgifter | D140: Provtagning:Birgitta Bengtsson Analysansvarig Ekologigruppen:Birgitta Bengtsson Analysansvarig SGS Analytics:Kristina Larsson

Sheet Vattenföring
A2: Saxån-Braån 2020
A3: Vattenföring
B37: Modellberäknad vattenföring för Saxåns myning
B38: SMHI, S-Hype, delavrinningsområde 198
B39: http://vattenweb.smhi.se/modelarea/basindownload/198
A99: Data från SMHI S-Hype, delavrinningsområde 198
A100: Datum | B100: S-hype, Saxåns mynning
A101: 2021-01-01 | B101: 10.7
A102: 2021-01-02 | B102: 9.64
A103: 2021-01-03 | B103: 8.08
A104: 2021-01-04 | B104: 6.66
A105: 2021-01-05 | B105: 5.52
A106: 2021-01-06 | B106: 4.96
A107: 2021-01-07 | B107: 5.5
A108: 2021-01-08 | B108: 6.3
A109: 2021-01-09 | B109: 6.49
A110: 2021-01-10 | B110: 5.97
A111: 2021-01-11 | B111: 8.36
A112: 2021-01-12 | B112: 13
A113: 2021-01-13 | B113: 14.3
A114: 2021-01-14 | B114: 14.4
A115: 2021-01-15 | B115: 12.2
A116: 2021-01-16 | B116: 9.89
A117: 2021-01-17 | B117: 8.02
A118: 2021-01-18 | B118: 6.6
A119: 2021-01-19 | B119: 6.71
A120: 2021-01-20 | B120: 14.5
A121: 2021-01-21 | B121: 21
A122: 2021-01-22 | B122: 20
A123: 2021-01-23 | B123: 16.1
A124: 2021-01-24 | B124: 12.5
A125: 2021-01-25 | B125: 10.1
A126: 2021-01-26 | B126: 8.56
A127: 2021-01-27 | B127: 7.53
A128: 2021-01-28 | B128: 7.91
A129: 2021-01-29 | B129: 7.19
A130: 2021-01-30 | B130: 6.1
A131: 2021-01-31 | B131: 5.1
A132: 2021-02-01 | B132: 4.37
A133: 2021-02-02 | B133: 3.72
A134: 2021-02-03 | B134: 3.15
A135: 2021-02-04 | B135: 2.7
A136: 2021-02-05 | B136: 2.31
A137: 2021-02-06 | B137: 1.99
A138: 2021-02-07 | B138: 1.73
A139: 2021-02-08 | B139: 1.51
A140: 2021-02-09 | B140: 1.32
A141: 2021-02-10 | B141: 1.17
A142: 2021-02-11 | B142: 1.04
A143: 2021-02-12 | B143: 0.946
A144: 2021-02-13 | B144: 0.876
A145: 2021-02-14 | B145: 0.819
A146: 2021-02-15 | B146: 0.774
A147: 2021-02-16 | B147: 0.814
A148: 2021-02-17 | B148: 2.84
A149: 2021-02-18 | B149: 5.02
A150: 2021-02-19 | B150: 9.11
A151: 2021-02-20 | B151: 13.4
A152: 2021-02-21 | B152: 13.6
A153: 2021-02-22 | B153: 11.5
A154: 2021-02-23 | B154: 9.16
A155: 2021-02-24 | B155: 7.17
A156: 2021-02-25 | B156: 5.55
A157: 2021-02-26 | B157: 4.26
A158: 2021-02-27 | B158: 3.34
A159: 2021-02-28 | B159: 2.68
A160: 2021-03-01 | B160: 2.15
A161: 2021-03-02 | B161: 1.75
A162: 2021-03-03 | B162: 1.44
A163: 2021-03-04 | B163: 1.22
A164: 2021-03-05 | B164: 1.04
A165: 2021-03-06 | B165: 0.924
A166: 2021-03-07 | B166: 0.835
A167: 2021-03-08 | B167: 0.76
A168: 2021-03-09 | B168: 0.711
A169: 2021-03-10 | B169: 0.685
A170: 2021-03-11 | B170: 0.914
A171: 2021-03-12 | B171: 4.44
A172: 2021-03-13 | B172: 9.45
A173: 2021-03-14 | B173: 12.3
A174: 2021-03-15 | B174: 12.1
A175: 2021-03-16 | B175: 11.3
A176: 2021-03-17 | B176: 9.42
A177: 2021-03-18 | B177: 7.63
A178: 2021-03-19 | B178: 6.19
A179: 2021-03-20 | B179: 5.09
A180: 2021-03-21 | B180: 4.21
A181: 2021-03-22 | B181: 3.39
A182: 2021-03-23 | B182: 2.7
A183: 2021-03-24 | B183: 2.11
A184: 2021-03-25 | B184: 1.57
A185: 2021-03-26 | B185: 1.16
A186: 2021-03-27 | B186: 0.936
A187: 2021-03-28 | B187: 0.9
A188: 2021-03-29 | B188: 1.8
A189: 2021-03-30 | B189: 2.02
A190: 2021-03-31 | B190: 1.66
A191: 2021-04-01 | B191: 1.27
A192: 2021-04-02 | B192: 1
A193: 2021-04-03 | B193: 0.858
A194: 2021-04-04 | B194: 0.805
A195: 2021-04-05 | B195: 0.92
A196: 2021-04-06 | B196: 1.18
A197: 2021-04-07 | B197: 1.28
A198: 2021-04-08 | B198: 1.15
A199: 2021-04-09 | B199: 1.01
A200: 2021-04-10 | B200: 0.87
A201: 2021-04-11 | B201: 0.966
A202: 2021-04-12 | B202: 3.25
A203: 2021-04-13 | B203: 3.7
A204: 2021-04-14 | B204: 3.17
A205: 2021-04-15 | B205: 2.51
A206: 2021-04-16 | B206: 1.92
A207: 2021-04-17 | B207: 1.44
A208: 2021-04-18 | B208: 1.04
A209: 2021-04-19 | B209: 0.808
A210: 2021-04-20 | B210: 0.689
A211: 2021-04-21 | B211: 0.629
A212: 2021-04-22 | B212: 0.581
A213: 2021-04-23 | B213: 0.542
A214: 2021-04-24 | B214: 0.51
A215: 2021-04-25 | B215: 0.481
A216: 2021-04-26 | B216: 0.454
A217: 2021-04-27 | B217: 0.429
A218: 2021-04-28 | B218: 0.404
A219: 2021-04-29 | B219: 0.386
A220: 2021-04-30 | B220: 0.361
A221: 2021-05-01 | B221: 0.342
A222: 2021-05-02 | B222: 0.327
A223: 2021-05-03 | B223: 0.319
A224: 2021-05-04 | B224: 0.667
A225: 2021-05-05 | B225: 0.86
A226: 2021-05-06 | B226: 1.6
A227: 2021-05-07 | B227: 2.22
A228: 2021-05-08 | B228: 2.97
A229: 2021-05-09 | B229: 3.45
A230: 2021-05-10 | B230: 2.92
A231: 2021-05-11 | B231: 2.02
A232: 2021-05-12 | B232: 1.31
A233: 2021-05-13 | B233: 0.92
A234: 2021-05-14 | B234: 0.74
A235: 2021-05-15 | B235: 0.653
A236: 2021-05-16 | B236: 0.615
A237: 2021-05-17 | B237: 0.579
A238: 2021-05-18 | B238: 0.539
A239: 2021-05-19 | B239: 0.497
A240: 2021-05-20 | B240: 0.461
A241: 2021-05-21 | B241: 0.43
A242: 2021-05-22 | B242: 0.428
A243: 2021-05-23 | B243: 0.396
A244: 2021-05-24 | B244: 0.369
A245: 2021-05-25 | B245: 1.02
A246: 2021-05-26 | B246: 0.972
A247: 2021-05-27 | B247: 0.887
A248: 2021-05-28 | B248: 0.82
A249: 2021-05-29 | B249: 0.736
A250: 2021-05-30 | B250: 0.649
A251: 2021-05-31 | B251: 0.569
A252: 2021-06-01 | B252: 0.512
A253: 2021-06-02 | B253: 0.469
A254: 2021-06-03 | B254: 0.434
A255: 2021-06-04 | B255: 0.403
A256: 2021-06-05 | B256: 0.374
A257: 2021-06-06 | B257: 0.347
A258: 2021-06-07 | B258: 0.324
A259: 2021-06-08 | B259: 0.306
A260: 2021-06-09 | B260: 0.292
A261: 2021-06-10 | B261: 0.281
A262: 2021-06-11 | B262: 0.273
A263: 2021-06-12 | B263: 0.267
A264: 2021-06-13 | B264: 0.261
A265: 2021-06-14 | B265: 0.254
A266: 2021-06-15 | B266: 0.248
A267: 2021-06-16 | B267: 0.242
A268: 2021-06-17 | B268: 0.233
A269: 2021-06-18 | B269: 0.225
A270: 2021-06-19 | B270: 0.219
A271: 2021-06-20 | B271: 0.215
A272: 2021-06-21 | B272: 0.216
A273: 2021-06-22 | B273: 0.21
A274: 2021-06-23 | B274: 0.205
A275: 2021-06-24 | B275: 0.2
A276: 2021-06-25 | B276: 0.196
A277: 2021-06-26 | B277: 0.191
A278: 2021-06-27 | B278: 0.187
A279: 2021-06-28 | B279: 0.182
A280: 2021-06-29 | B280: 0.179
A281: 2021-06-30 | B281: 0.279
A282: 2021-07-01 | B282: 0.283
A283: 2021-07-02 | B283: 0.232
A284: 2021-07-03 | B284: 0.2
A285: 2021-07-04 | B285: 0.18
A286: 2021-07-05 | B286: 0.206
A287: 2021-07-06 | B287: 0.352
A288: 2021-07-07 | B288: 0.255
A289: 2021-07-08 | B289: 0.195
A290: 2021-07-09 | B290: 1.97
A291: 2021-07-10 | B291: 1.14
A292: 2021-07-11 | B292: 0.622
A293: 2021-07-12 | B293: 0.455
... 174 more rows

Sheet Statistik
B1: Saxån-Braån, Vattenkontroll - Statistik
B3: =CONCATENATE("Statistik för åren: ",MIN(R:R)," - ",MAX(R:R)) -> Statistik för åren: 2010 - 2020
B4: (kan vara annorlunda för vissa parametrar)
AA6: Stödlinjer i diagram--> | CD6: Värden omvandlade för statisitk -->
D7: °C | E7: mg/l | F7: % | H7: FNU | I7: mS/m | J7: µg/l | K7: µg/l | L7: µg/l | M7: µg/l | N7: µg/l | O7: µg/l | P7: mg/l | AA7: Syre | AE7: pH | AI7: Turb | AM7: Kond | AP7: PO4-P | AS7: Tot_P | AW7: Part-P | AZ7: NO2,3-N | BC7: NH4-N | BF7: Tot-N | BJ7: Susp | CD7: °C | CE7: mg/l | CF7: % | CH7: FNU | CI7: mS/m | CJ7: µg/l | CK7: µg/l | CL7: µg/l | CM7: µg/l | CN7: µg/l | CO7: µg/l | CP7: mg/l
B8: =INDEX(Provpunkter!B1:B10,Provpunkter!G1) -> 15:2 Svalövsbäcken nedstr Svalöv | C8: Datum | D8: Temp | E8: Syreh | F8: Syrem | G8: pH | H8: Gruml | I8: Kond | J8: PO4-P | K8: Tot-P | L8: Part.-P | M8: NO3+2-N | N8: NH4-N | O8: Tot-N | P8: Susp | R8: År | S8: Månad | AA8: Medel | AB8: +/- 1 std | AC8: - 1 std | AD8: Klass 4 | AE8: Medel | AF8: +/- 1 std | AG8: - 1 std | AH8: Klass 3 | AI8: Medel | AJ8: +/- 1 std | AK8: - 1 std | AL8: Klass 5 | AM8: Medel | AN8: +/- 1 std | AO8: - 1 std | AP8: Medel | AQ8: +/- 1 std | AR8: - 1 std | AS8: Medel | AT8: +/- 1 std | AU8: - 1 std | AV8: Klass 5 | AW8: Medel | AX8: +/- 1 std | AY8: - 1 std | AZ8: Medel | BA8: +/- 1 std | BB8: - 1 std | BC8: Medel | BD8: +/- 1 std | BE8: - 1 std | BF8: Medel | BG8: +/- 1 std | BH8: - 1 std | BI8: Klass 5 | BJ8: Medel | BK8: +/- 1 std | BL8: - 1 std | BO8: Test datum | CD8: Temp | CE8: Syrehalt | CF8: Syrem | CG8: pH | CH8: Gruml | CI8: BOD7 | CJ8: Susp | CK8: PO4-P | CL8: Tot-P | CM8: NO3+2-N | CN8: NH4-N | CO8: Tot-N | CP8: Susp
A9: =IF(B9=B$8,1,"") ->  | AA9: =$E$145 -> 10.54159091 | AB9: =AA9+E$146 -> 13.08665043 | AC9: =AA9-E$146 -> 7.996531384 | AD9: 2.95 | AE9: =$G$145 -> 7.835530303 | AF9: =AE9+G$146 -> 8.035470425 | AG9: =AE9-G$146 -> 7.635590181 | AH9: 6.5 | AI9: =$H$145 -> 13.16174242 | AJ9: =AI9+H$146 -> 43.81000234 | AK9: =AI9-H$146 -> -17.48651749 | AL9: 7 | AM9: =$I$145 -> 52.6719697 | AN9: =AM9+I$146 -> 62.81683313 | AO9: =AM9-I$146 -> 42.52710626 | AP9: =$J$145 -> 53.60381679 | AQ9: =AP9+J$146 -> 125.1744386 | AR9: =AP9-J$146 -> -17.96680503 | AS9: =$K$145 -> 95.71755725 | AT9: =AS9+$K$146 -> 195.1950595 | AU9: =AS9-$K$146 -> -3.759945022 | AV9: 100 | AW9: =$L$145 -> 23 | AX9: =AW9+$L$146 -> 34.3137085 | AY9: =AW9-$L$146 -> 11.6862915 | AZ9: =$M$145 -> 5893.587786 | BA9: =AZ9+$M$146 -> 8596.419939 | BB9: =AZ9-$M$146 -> 3190.755634 | BC9: =$N$145 -> 432.7633588 | BD9: =BC9+$N$146 -> 1842.440413 | BE9: =BC9-$N$146 -> -976.9136955 | BF9: =$O$145 -> 6806.10687 | BG9: =BF9+$O$146 -> 9445.359554 | BH9: =BF9-$O$146 -> 4166.854187 | BI9: 5000 | BJ9: =$P$145 -> 10.09007634 | BK9: =BJ9+$P$146 -> 29.1136603 | BL9: =BJ9-$P$146 -> -8.93350763 | BO9: =C9 -> 0 | CD9: =IF(D9="","",IF(OR(LEFT(D9,1)="<",LEFT(D9,1)=">"),VALUE(MID(D9,2,3)),D9)) ->  | CE9: =IF(E9="","",IF(OR(LEFT(E9,1)="<",LEFT(E9,1)=">"),VALUE(MID(E9,2,3)),E9)) ->  | CF9: =IF(F9="","",IF(OR(LEFT(F9,1)="<",LEFT(F9,1)=">"),VALUE(MID(F9,2,3)),F9)) ->  | CG9: =IF(G9="","",IF(OR(LEFT(G9,1)="<",LEFT(G9,1)=">"),VALUE(MID(G9,2,3)),G9)) ->  | CH9: =IF(H9="","",IF(OR(LEFT(H9,1)="<",LEFT(H9,1)=">"),VALUE(MID(H9,2,3)),H9)) ->  | CI9: =IF(I9="","",IF(OR(LEFT(I9,1)="<",LEFT(I9,1)=">"),VALUE(MID(I9,2,3)),I9)) ->  | CJ9: =IF(J9="","",IF(OR(LEFT(J9,1)="<",LEFT(J9,1)=">"),VALUE(MID(J9,2,3)),J9)) ->  | CK9: =IF(K9="","",IF(OR(LEFT(K9,1)="<",LEFT(K9,1)=">"),VALUE(MID(K9,2,3)),K9)) ->  | CL9: =IF(L9="","",IF(OR(LEFT(L9,1)="<",LEFT(L9,1)=">"),VALUE(MID(L9,2,3)),L9)) ->  | CM9: =IF(M9="","",IF(OR(LEFT(M9,1)="<",LEFT(M9,1)=">"),VALUE(MID(M9,2,3)),M9)) ->  | CN9: =IF(N9="","",IF(OR(LEFT(N9,1)="<",LEFT(N9,1)=">"),VALUE(MID(N9,2,3)),N9)) ->  | CO9: =IF(O9="","",IF(OR(LEFT(O9,1)="<",LEFT(O9,1)=">"),VALUE(MID(O9,2,3)),O9)) ->  | CP9: =IF(P9="","",IF(OR(LEFT(P9,1)="<",LEFT(P9,1)=">"),VALUE(MID(P9,2,3)),P9)) -> 
B10: 15:2 Svalövsbäcken nedstr Svalöv | C10: 2010-01-26 | D10: -0.1 | E10: 15.7 | F10: 106.9314542 | G10: 7.86 | H10: 9.2 | I10: 62 | J10: 40 | K10: 51 | M10: 4500 | N10: 980 | O10: 6200 | P10: <5 | Q10: fruset | R10: 2010 | S10: 1 | AA10: =$E$145 -> 10.54159091 | AB10: =AA10+E$146 -> 13.08665043 | AC10: =AA10-E$146 -> 7.996531384 | AD10: 2.95 | AE10: =$G$145 -> 7.835530303 | AF10: =AE10+G$146 -> 8.035470425 | AG10: =AE10-G$146 -> 7.635590181 | AH10: 6.5 | AI10: =$H$145 -> 13.16174242 | AJ10: =AI10+H$146 -> 43.81000234 | AK10: =AI10-H$146 -> -17.48651749 | AL10: 7 | AM10: =$I$145 -> 52.6719697 | AN10: =AM10+I$146 -> 62.81683313 | AO10: =AM10-I$146 -> 42.52710626 | AP10: =$J$145 -> 53.60381679 | AQ10: =AP10+J$146 -> 125.1744386 | AR10: =AP10-J$146 -> -17.96680503 | AS10: =$K$145 -> 95.71755725 | AT10: =AS10+$K$146 -> 195.1950595 | AU10: =AS10-$K$146 -> -3.759945022 | AV10: 100 | AW10: =$L$145 -> 23 | AX10: =AW10+$L$146 -> 34.3137085 | AY10: =AW10-$L$146 -> 11.6862915 | AZ10: =$M$145 -> 5893.587786 | BA10: =AZ10+$M$146 -> 8596.419939 | BB10: =AZ10-$M$146 -> 3190.755634 | BC10: =$N$145 -> 432.7633588 | BD10: =BC10+$N$146 -> 1842.440413 | BE10: =BC10-$N$146 -> -976.9136955 | BF10: =$O$145 -> 6806.10687 | BG10: =BF10+$O$146 -> 9445.359554 | BH10: =BF10-$O$146 -> 4166.854187 | BI10: 5000 | BJ10: =$P$145 -> 10.09007634 | BK10: =BJ10+$P$146 -> 29.1136603 | BL10: =BJ10-$P$146 -> -8.93350763 | BO10: =C10 -> 40204 | CD10: =IF(D10="","",IF(OR(LEFT(D10,1)="<",LEFT(D10,1)=">"),VALUE(MID(D10,2,3)),D10)) -> -0.1 | CE10: =IF(E10="","",IF(OR(LEFT(E10,1)="<",LEFT(E10,1)=">"),VALUE(MID(E10,2,3)),E10)) -> 15.7 | CF10: =IF(F10="","",IF(OR(LEFT(F10,1)="<",LEFT(F10,1)=">"),VALUE(MID(F10,2,3)),F10)) -> 106.9314542 | CG10: =IF(G10="","",IF(OR(LEFT(G10,1)="<",LEFT(G10,1)=">"),VALUE(MID(G10,2,3)),G10)) -> 7.86 | CH10: =IF(H10="","",IF(OR(LEFT(H10,1)="<",LEFT(H10,1)=">"),VALUE(MID(H10,2,3)),H10)) -> 9.2 | CI10: =IF(I10="","",IF(OR(LEFT(I10,1)="<",LEFT(I10,1)=">"),VALUE(MID(I10,2,3)),I10)) -> 62 | CJ10: =IF(J10="","",IF(OR(LEFT(J10,1)="<",LEFT(J10,1)=">"),VALUE(MID(J10,2,3)),J10)) -> 40 | CK10: =IF(K10="","",IF(OR(LEFT(K10,1)="<",LEFT(K10,1)=">"),VALUE(MID(K10,2,3)),K10)) -> 51 | CL10: =IF(L10="","",IF(OR(LEFT(L10,1)="<",LEFT(L10,1)=">"),VALUE(MID(L10,2,3)),L10)) ->  | CM10: =IF(M10="","",IF(OR(LEFT(M10,1)="<",LEFT(M10,1)=">"),VALUE(MID(M10,2,3)),M10)) -> 4500 | CN10: =IF(N10="","",IF(OR(LEFT(N10,1)="<",LEFT(N10,1)=">"),VALUE(MID(N10,2,3)),N10)) -> 980 | CO10: =IF(O10="","",IF(OR(LEFT(O10,1)="<",LEFT(O10,1)=">"),VALUE(MID(O10,2,3)),O10)) -> 6200 | CP10: =IF(P10="","",IF(OR(LEFT(P10,1)="<",LEFT(P10,1)=">"),VALUE(MID(P10,2,3)),P10)) -> 5
B11: 15:2 Svalövsbäcken nedstr Svalöv | C11: 2010-02-22 | D11: 0 | E11: 14.9 | F11: 101.7759563 | G11: 7.99 | H11: 9.75 | I11: 68.8 | J11: 28 | K11: 50 | M11: 4000 | N11: 700 | O11: 5200 | P11: 7.4 | R11: 2010 | S11: 2 | AA11: 10.54159091 | AB11: 13.08665043 | AC11: 7.996531384 | AD11: 2.95 | AE11: 7.835530303 | AF11: 8.035470425 | AG11: 7.635590181 | AH11: 6.5 | AI11: 13.16174242 | AJ11: 43.81000234 | AK11: -17.48651749 | AL11: 7 | AM11: 52.6719697 | AN11: 62.81683313 | AO11: 42.52710626 | AP11: 53.60381679 | AQ11: 125.1744386 | AR11: -17.96680503 | AS11: 95.71755725 | AT11: 195.1950595 | AU11: -3.759945022 | AV11: 100 | AW11: 23 | AX11: 34.3137085 | AY11: 11.6862915 | AZ11: 5893.587786 | BA11: 8596.419939 | BB11: 3190.755634 | BC11: 432.7633588 | BD11: 1842.440413 | BE11: -976.9136955 | BF11: 6806.10687 | BG11: 9445.359554 | BH11: 4166.854187 | BI11: 5000 | BJ11: 10.09007634 | BK11: 29.1136603 | BL11: -8.93350763 | BO11: 40231 | CD11: 0 | CE11: 14.9 | CF11: 101.7759563 | CG11: 7.99 | CH11: 9.75 | CI11: 68.8 | CJ11: 28 | CK11: 50 | CM11: 4000 | CN11: 700 | CO11: 5200 | CP11: 7.4
B12: 15:2 Svalövsbäcken nedstr Svalöv | C12: 2010-03-24 | D12: 3.7 | E12: 12.8 | F12: 96.94869823 | G12: 7.66 | H12: 19 | I12: 34 | J12: 41 | K12: 68 | M12: 5700 | N12: 60 | O12: 6600 | P12: 15 | R12: 2010 | S12: 3 | AA12: 10.54159091 | AB12: 13.08665043 | AC12: 7.996531384 | AD12: 2.95 | AE12: 7.835530303 | AF12: 8.035470425 | AG12: 7.635590181 | AH12: 6.5 | AI12: 13.16174242 | AJ12: 43.81000234 | AK12: -17.48651749 | AL12: 7 | AM12: 52.6719697 | AN12: 62.81683313 | AO12: 42.52710626 | AP12: 53.60381679 | AQ12: 125.1744386 | AR12: -17.96680503 | AS12: 95.71755725 | AT12: 195.1950595 | AU12: -3.759945022 | AV12: 100 | AW12: 23 | AX12: 34.3137085 | AY12: 11.6862915 | AZ12: 5893.587786 | BA12: 8596.419939 | BB12: 3190.755634 | BC12: 432.7633588 | BD12: 1842.440413 | BE12: -976.9136955 | BF12: 6806.10687 | BG12: 9445.359554 | BH12: 4166.854187 | BI12: 5000 | BJ12: 10.09007634 | BK12: 29.1136603 | BL12: -8.93350763 | BO12: 40261 | CD12: 3.7 | CE12: 12.8 | CF12: 96.94869823 | CG12: 7.66 | CH12: 19 | CI12: 34 | CJ12: 41 | CK12: 68 | CM12: 5700 | CN12: 60 | CO12: 6600 | CP12: 15
B13: 15:2 Svalövsbäcken nedstr Svalöv | C13: 2010-04-27 | D13: 8.8 | E13: 7.8 | F13: 67.35768547 | G13: 8 | H13: 2.6 | I13: 49.9 | J13: 9 | K13: 25 | M13: 2800 | N13: 370 | O13: 4000 | P13: <5 | R13: 2010 | S13: 4 | AA13: 10.54159091 | AB13: 13.08665043 | AC13: 7.996531384 | AD13: 2.95 | AE13: 7.835530303 | AF13: 8.035470425 | AG13: 7.635590181 | AH13: 6.5 | AI13: 13.16174242 | AJ13: 43.81000234 | AK13: -17.48651749 | AL13: 7 | AM13: 52.6719697 | AN13: 62.81683313 | AO13: 42.52710626 | AP13: 53.60381679 | AQ13: 125.1744386 | AR13: -17.96680503 | AS13: 95.71755725 | AT13: 195.1950595 | AU13: -3.759945022 | AV13: 100 | AW13: 23 | AX13: 34.3137085 | AY13: 11.6862915 | AZ13: 5893.587786 | BA13: 8596.419939 | BB13: 3190.755634 | BC13: 432.7633588 | BD13: 1842.440413 | BE13: -976.9136955 | BF13: 6806.10687 | BG13: 9445.359554 | BH13: 4166.854187 | BI13: 5000 | BJ13: 10.09007634 | BK13: 29.1136603 | BL13: -8.93350763 | BO13: 40295 | CD13: 8.8 | CE13: 7.8 | CF13: 67.35768547 | CG13: 8 | CH13: 2.6 | CI13: 49.9 | CJ13: 9 | CK13: 25 | CM13: 2800 | CN13: 370 | CO13: 4000 | CP13: 5
B14: 15:2 Svalövsbäcken nedstr Svalöv | C14: 2010-05-27 | D14: 13.6 | E14: 13.1 | F14: 126.4334047 | G14: 8.24 | H14: 3.2 | I14: 53.1 | J14: 3 | K14: 44 | M14: 3200 | N14: 210 | O14: 4400 | P14: <5 | R14: 2010 | S14: 5 | AA14: 10.54159091 | AB14: 13.08665043 | AC14: 7.996531384 | AD14: 2.95 | AE14: 7.835530303 | AF14: 8.035470425 | AG14: 7.635590181 | AH14: 6.5 | AI14: 13.16174242 | AJ14: 43.81000234 | AK14: -17.48651749 | AL14: 7 | AM14: 52.6719697 | AN14: 62.81683313 | AO14: 42.52710626 | AP14: 53.60381679 | AQ14: 125.1744386 | AR14: -17.96680503 | AS14: 95.71755725 | AT14: 195.1950595 | AU14: -3.759945022 | AV14: 100 | AW14: 23 | AX14: 34.3137085 | AY14: 11.6862915 | AZ14: 5893.587786 | BA14: 8596.419939 | BB14: 3190.755634 | BC14: 432.7633588 | BD14: 1842.440413 | BE14: -976.9136955 | BF14: 6806.10687 | BG14: 9445.359554 | BH14: 4166.854187 | BI14: 5000 | BJ14: 10.09007634 | BK14: 29.1136603 | BL14: -8.93350763 | BO14: 40325 | CD14: 13.6 | CE14: 13.1 | CF14: 126.4334047 | CG14: 8.24 | CH14: 3.2 | CI14: 53.1 | CJ14: 3 | CK14: 44 | CM14: 3200 | CN14: 210 | CO14: 4400 | CP14: 5
B15: 15:2 Svalövsbäcken nedstr Svalöv | C15: 2010-06-23 | D15: 16.5 | E15: 8.73 | F15: 89.59304245 | G15: 8.09 | H15: 5.9 | I15: 55.2 | J15: 11 | K15: 62 | M15: 3800 | N15: 150 | O15: 5100 | P15: 9.2 | R15: 2010 | S15: 6 | AA15: 10.54159091 | AB15: 13.08665043 | AC15: 7.996531384 | AD15: 2.95 | AE15: 7.835530303 | AF15: 8.035470425 | AG15: 7.635590181 | AH15: 6.5 | AI15: 13.16174242 | AJ15: 43.81000234 | AK15: -17.48651749 | AL15: 7 | AM15: 52.6719697 | AN15: 62.81683313 | AO15: 42.52710626 | AP15: 53.60381679 | AQ15: 125.1744386 | AR15: -17.96680503 | AS15: 95.71755725 | AT15: 195.1950595 | AU15: -3.759945022 | AV15: 100 | AW15: 23 | AX15: 34.3137085 | AY15: 11.6862915 | AZ15: 5893.587786 | BA15: 8596.419939 | BB15: 3190.755634 | BC15: 432.7633588 | BD15: 1842.440413 | BE15: -976.9136955 | BF15: 6806.10687 | BG15: 9445.359554 | BH15: 4166.854187 | BI15: 5000 | BJ15: 10.09007634 | BK15: 29.1136603 | BL15: -8.93350763 | BO15: 40352 | CD15: 16.5 | CE15: 8.73 | CF15: 89.59304245 | CG15: 8.09 | CH15: 5.9 | CI15: 55.2 | CJ15: 11 | CK15: 62 | CM15: 3800 | CN15: 150 | CO15: 5100 | CP15: 9.2
B16: 15:2 Svalövsbäcken nedstr Svalöv | C16: 2010-07-19 | D16: 16.4 | E16: 9.92 | F16: 101.5975889 | G16: 7.95 | H16: 1.1 | I16: 66.9 | J16: 49 | K16: 68 | M16: 7600 | N16: 43 | O16: 8200 | P16: <5 | R16: 2010 | S16: 7 | AA16: 10.54159091 | AB16: 13.08665043 | AC16: 7.996531384 | AD16: 2.95 | AE16: 7.835530303 | AF16: 8.035470425 | AG16: 7.635590181 | AH16: 6.5 | AI16: 13.16174242 | AJ16: 43.81000234 | AK16: -17.48651749 | AL16: 7 | AM16: 52.6719697 | AN16: 62.81683313 | AO16: 42.52710626 | AP16: 53.60381679 | AQ16: 125.1744386 | AR16: -17.96680503 | AS16: 95.71755725 | AT16: 195.1950595 | AU16: -3.759945022 | AV16: 100 | AW16: 23 | AX16: 34.3137085 | AY16: 11.6862915 | AZ16: 5893.587786 | BA16: 8596.419939 | BB16: 3190.755634 | BC16: 432.7633588 | BD16: 1842.440413 | BE16: -976.9136955 | BF16: 6806.10687 | BG16: 9445.359554 | BH16: 4166.854187 | BI16: 5000 | BJ16: 10.09007634 | BK16: 29.1136603 | BL16: -8.93350763 | BO16: 40378 | CD16: 16.4 | CE16: 9.92 | CF16: 101.5975889 | CG16: 7.95 | CH16: 1.1 | CI16: 66.9 | CJ16: 49 | CK16: 68 | CM16: 7600 | CN16: 43 | CO16: 8200 | CP16: 5
B17: 15:2 Svalövsbäcken nedstr Svalöv | C17: 2010-08-25 | D17: 20.1 | E17: 11.6 | F17: 127.7093101 | G17: 8.16 | H17: 5 | I17: 45 | J17: 16 | K17: 68 | M17: 3400 | N17: 24 | O17: 4200 | P17: 5.7 | R17: 2010 | S17: 8 | AA17: 10.54159091 | AB17: 13.08665043 | AC17: 7.996531384 | AD17: 2.95 | AE17: 7.835530303 | AF17: 8.035470425 | AG17: 7.635590181 | AH17: 6.5 | AI17: 13.16174242 | AJ17: 43.81000234 | AK17: -17.48651749 | AL17: 7 | AM17: 52.6719697 | AN17: 62.81683313 | AO17: 42.52710626 | AP17: 53.60381679 | AQ17: 125.1744386 | AR17: -17.96680503 | AS17: 95.71755725 | AT17: 195.1950595 | AU17: -3.759945022 | AV17: 100 | AW17: 23 | AX17: 34.3137085 | AY17: 11.6862915 | AZ17: 5893.587786 | BA17: 8596.419939 | BB17: 3190.755634 | BC17: 432.7633588 | BD17: 1842.440413 | BE17: -976.9136955 | BF17: 6806.10687 | BG17: 9445.359554 | BH17: 4166.854187 | BI17: 5000 | BJ17: 10.09007634 | BK17: 29.1136603 | BL17: -8.93350763 | BO17: 40415 | CD17: 20.1 | CE17: 11.6 | CF17: 127.7093101 | CG17: 8.16 | CH17: 5 | CI17: 45 | CJ17: 16 | CK17: 68 | CM17: 3400 | CN17: 24 | CO17: 4200 | CP17: 5.7
B18: 15:2 Svalövsbäcken nedstr Svalöv | C18: 2010-09-28 | D18: 11 | E18: 10.13 | F18: 92.18967716 | G18: 8.08 | H18: 2.4 | I18: 56.3 | J18: 29 | K18: 49 | M18: 5100 | N18: 21 | O18: 6000 | P18: <5 | R18: 2010 | S18: 9 | AA18: 10.54159091 | AB18: 13.08665043 | AC18: 7.996531384 | AD18: 2.95 | AE18: 7.835530303 | AF18: 8.035470425 | AG18: 7.635590181 | AH18: 6.5 | AI18: 13.16174242 | AJ18: 43.81000234 | AK18: -17.48651749 | AL18: 7 | AM18: 52.6719697 | AN18: 62.81683313 | AO18: 42.52710626 | AP18: 53.60381679 | AQ18: 125.1744386 | AR18: -17.96680503 | AS18: 95.71755725 | AT18: 195.1950595 | AU18: -3.759945022 | AV18: 100 | AW18: 23 | AX18: 34.3137085 | AY18: 11.6862915 | AZ18: 5893.587786 | BA18: 8596.419939 | BB18: 3190.755634 | BC18: 432.7633588 | BD18: 1842.440413 | BE18: -976.9136955 | BF18: 6806.10687 | BG18: 9445.359554 | BH18: 4166.854187 | BI18: 5000 | BJ18: 10.09007634 | BK18: 29.1136603 | BL18: -8.93350763 | BO18: 40449 | CD18: 11 | CE18: 10.13 | CF18: 92.18967716 | CG18: 8.08 | CH18: 2.4 | CI18: 56.3 | CJ18: 29 | CK18: 49 | CM18: 5100 | CN18: 21 | CO18: 6000 | CP18: 5
B19: 15:2 Svalövsbäcken nedstr Svalöv | C19: 2010-10-26 | D19: 7.5 | E19: 10.7 | F19: 89.47569177 | G19: 7.5 | H19: 52 | I19: 44 | J19: 67 | K19: 120 | M19: 9500 | N19: 13 | O19: 10000 | P19: 20 | R19: 2010 | S19: 10 | AA19: 10.54159091 | AB19: 13.08665043 | AC19: 7.996531384 | AD19: 2.95 | AE19: 7.835530303 | AF19: 8.035470425 | AG19: 7.635590181 | AH19: 6.5 | AI19: 13.16174242 | AJ19: 43.81000234 | AK19: -17.48651749 | AL19: 7 | AM19: 52.6719697 | AN19: 62.81683313 | AO19: 42.52710626 | AP19: 53.60381679 | AQ19: 125.1744386 | AR19: -17.96680503 | AS19: 95.71755725 | AT19: 195.1950595 | AU19: -3.759945022 | AV19: 100 | AW19: 23 | AX19: 34.3137085 | AY19: 11.6862915 | AZ19: 5893.587786 | BA19: 8596.419939 | BB19: 3190.755634 | BC19: 432.7633588 | BD19: 1842.440413 | BE19: -976.9136955 | BF19: 6806.10687 | BG19: 9445.359554 | BH19: 4166.854187 | BI19: 5000 | BJ19: 10.09007634 | BK19: 29.1136603 | BL19: -8.93350763 | BO19: 40477 | CD19: 7.5 | CE19: 10.7 | CF19: 89.47569177 | CG19: 7.5 | CH19: 52 | CI19: 44 | CJ19: 67 | CK19: 120 | CM19: 9500 | CN19: 13 | CO19: 10000 | CP19: 20
B20: 15:2 Svalövsbäcken nedstr Svalöv | C20: 2010-11-23 | D20: 4.9 | E20: 11.4 | F20: 89.15709965 | G20: 7.5 | H20: 146 | I20: 40.9 | J20: 92 | K20: 260 | M20: 6700 | N20: <10 | O20: 7700 | P20: 61 | R20: 2010 | S20: 11 | AA20: 10.54159091 | AB20: 13.08665043 | AC20: 7.996531384 | AD20: 2.95 | AE20: 7.835530303 | AF20: 8.035470425 | AG20: 7.635590181 | AH20: 6.5 | AI20: 13.16174242 | AJ20: 43.81000234 | AK20: -17.48651749 | AL20: 7 | AM20: 52.6719697 | AN20: 62.81683313 | AO20: 42.52710626 | AP20: 53.60381679 | AQ20: 125.1744386 | AR20: -17.96680503 | AS20: 95.71755725 | AT20: 195.1950595 | AU20: -3.759945022 | AV20: 100 | AW20: 23 | AX20: 34.3137085 | AY20: 11.6862915 | AZ20: 5893.587786 | BA20: 8596.419939 | BB20: 3190.755634 | BC20: 432.7633588 | BD20: 1842.440413 | BE20: -976.9136955 | BF20: 6806.10687 | BG20: 9445.359554 | BH20: 4166.854187 | BI20: 5000 | BJ20: 10.09007634 | BK20: 29.1136603 | BL20: -8.93350763 | BO20: 40505 | CD20: 4.9 | CE20: 11.4 | CF20: 89.15709965 | CG20: 7.5 | CH20: 146 | CI20: 40.9 | CJ20: 92 | CK20: 260 | CM20: 6700 | CN20: 10 | CO20: 7700 | CP20: 61
B21: 15:2 Svalövsbäcken nedstr Svalöv | C21: 2010-12-21 | D21: 0.1 | E21: 14.8 | F21: 101.3845197 | G21: 7.82 | H21: 7.5 | I21: 53.3 | J21: 29 | K21: 42 | M21: 4800 | N21: 490 | O21: 6000 | P21: <5 | Q21: istäckt | R21: 2010 | S21: 12 | AA21: 10.54159091 | AB21: 13.08665043 | AC21: 7.996531384 | AD21: 2.95 | AE21: 7.835530303 | AF21: 8.035470425 | AG21: 7.635590181 | AH21: 6.5 | AI21: 13.16174242 | AJ21: 43.81000234 | AK21: -17.48651749 | AL21: 7 | AM21: 52.6719697 | AN21: 62.81683313 | AO21: 42.52710626 | AP21: 53.60381679 | AQ21: 125.1744386 | AR21: -17.96680503 | AS21: 95.71755725 | AT21: 195.1950595 | AU21: -3.759945022 | AV21: 100 | AW21: 23 | AX21: 34.3137085 | AY21: 11.6862915 | AZ21: 5893.587786 | BA21: 8596.419939 | BB21: 3190.755634 | BC21: 432.7633588 | BD21: 1842.440413 | BE21: -976.9136955 | BF21: 6806.10687 | BG21: 9445.359554 | BH21: 4166.854187 | BI21: 5000 | BJ21: 10.09007634 | BK21: 29.1136603 | BL21: -8.93350763 | BO21: 40533 | CD21: 0.1 | CE21: 14.8 | CF21: 101.3845197 | CG21: 7.82 | CH21: 7.5 | CI21: 53.3 | CJ21: 29 | CK21: 42 | CM21: 4800 | CN21: 490 | CO21: 6000 | CP21: 5
B22: 15:2 Svalövsbäcken nedstr Svalöv | C22: 2011-01-27 | D22: 1.4 | E22: 13.6 | F22: 96.67636871 | G22: 7.58 | H22: 21 | I22: 39.1 | J22: 41 | K22: 58 | M22: 4900 | N22: 130 | O22: 5600 | P22: <5 | R22: 2011 | S22: 1 | AA22: 10.54159091 | AB22: 13.08665043 | AC22: 7.996531384 | AD22: 2.95 | AE22: 7.835530303 | AF22: 8.035470425 | AG22: 7.635590181 | AH22: 6.5 | AI22: 13.16174242 | AJ22: 43.81000234 | AK22: -17.48651749 | AL22: 7 | AM22: 52.6719697 | AN22: 62.81683313 | AO22: 42.52710626 | AP22: 53.60381679 | AQ22: 125.1744386 | AR22: -17.96680503 | AS22: 95.71755725 | AT22: 195.1950595 | AU22: -3.759945022 | AV22: 100 | AW22: 23 | AX22: 34.3137085 | AY22: 11.6862915 | AZ22: 5893.587786 | BA22: 8596.419939 | BB22: 3190.755634 | BC22: 432.7633588 | BD22: 1842.440413 | BE22: -976.9136955 | BF22: 6806.10687 | BG22: 9445.359554 | BH22: 4166.854187 | BI22: 5000 | BJ22: 10.09007634 | BK22: 29.1136603 | BL22: -8.93350763 | BO22: 40570 | CD22: 1.4 | CE22: 13.6 | CF22: 96.67636871 | CG22: 7.58 | CH22: 21 | CI22: 39.1 | CJ22: 41 | CK22: 58 | CM22: 4900 | CN22: 130 | CO22: 5600 | CP22: 5
B23: 15:2 Svalövsbäcken nedstr Svalöv | C23: 2011-02-24 | D23: 0.2 | E23: 14 | F23: 96.18046702 | G23: 7.95 | H23: 6.6 | I23: 49.7 | J23: 27 | K23: 43 | M23: 4600 | N23: 600 | O23: 6200 | P23: <5 | R23: 2011 | S23: 2 | AA23: 10.54159091 | AB23: 13.08665043 | AC23: 7.996531384 | AD23: 2.95 | AE23: 7.835530303 | AF23: 8.035470425 | AG23: 7.635590181 | AH23: 6.5 | AI23: 13.16174242 | AJ23: 43.81000234 | AK23: -17.48651749 | AL23: 7 | AM23: 52.6719697 | AN23: 62.81683313 | AO23: 42.52710626 | AP23: 53.60381679 | AQ23: 125.1744386 | AR23: -17.96680503 | AS23: 95.71755725 | AT23: 195.1950595 | AU23: -3.759945022 | AV23: 100 | AW23: 23 | AX23: 34.3137085 | AY23: 11.6862915 | AZ23: 5893.587786 | BA23: 8596.419939 | BB23: 3190.755634 | BC23: 432.7633588 | BD23: 1842.440413 | BE23: -976.9136955 | BF23: 6806.10687 | BG23: 9445.359554 | BH23: 4166.854187 | BI23: 5000 | BJ23: 10.09007634 | BK23: 29.1136603 | BL23: -8.93350763 | BO23: 40598 | CD23: 0.2 | CE23: 14 | CF23: 96.18046702 | CG23: 7.95 | CH23: 6.6 | CI23: 49.7 | CJ23: 27 | CK23: 43 | CM23: 4600 | CN23: 600 | CO23: 6200 | CP23: 5
B24: 15:2 Svalövsbäcken nedstr Svalöv | C24: 2011-03-29 | D24: 5 | E24: 15.3 | F24: 119.974294 | G24: 8.38 | H24: 3.2 | I24: 44.7 | J24: 6 | K24: 28 | M24: 3600 | N24: 210 | O24: 4700 | P24: <5 | R24: 2011 | S24: 3 | AA24: 10.54159091 | AB24: 13.08665043 | AC24: 7.996531384 | AD24: 2.95 | AE24: 7.835530303 | AF24: 8.035470425 | AG24: 7.635590181 | AH24: 6.5 | AI24: 13.16174242 | AJ24: 43.81000234 | AK24: -17.48651749 | AL24: 7 | AM24: 52.6719697 | AN24: 62.81683313 | AO24: 42.52710626 | AP24: 53.60381679 | AQ24: 125.1744386 | AR24: -17.96680503 | AS24: 95.71755725 | AT24: 195.1950595 | AU24: -3.759945022 | AV24: 100 | AW24: 23 | AX24: 34.3137085 | AY24: 11.6862915 | AZ24: 5893.587786 | BA24: 8596.419939 | BB24: 3190.755634 | BC24: 432.7633588 | BD24: 1842.440413 | BE24: -976.9136955 | BF24: 6806.10687 | BG24: 9445.359554 | BH24: 4166.854187 | BI24: 5000 | BJ24: 10.09007634 | BK24: 29.1136603 | BL24: -8.93350763 | BO24: 40631 | CD24: 5 | CE24: 15.3 | CF24: 119.974294 | CG24: 8.38 | CH24: 3.2 | CI24: 44.7 | CJ24: 6 | CK24: 28 | CM24: 3600 | CN24: 210 | CO24: 4700 | CP24: 5
B25: 15:2 Svalövsbäcken nedstr Svalöv | C25: 2011-04-27 | D25: 12.7 | E25: 13.1 | F25: 123.9370263 | G25: 8.19 | H25: 2.7 | I25: 50.4 | J25: 14 | K25: 33 | M25: 3000 | N25: 230 | O25: 3800 | P25: <5 | R25: 2011 | S25: 4 | AA25: 10.54159091 | AB25: 13.08665043 | AC25: 7.996531384 | AD25: 2.95 | AE25: 7.835530303 | AF25: 8.035470425 | AG25: 7.635590181 | AH25: 6.5 | AI25: 13.16174242 | AJ25: 43.81000234 | AK25: -17.48651749 | AL25: 7 | AM25: 52.6719697 | AN25: 62.81683313 | AO25: 42.52710626 | AP25: 53.60381679 | AQ25: 125.1744386 | AR25: -17.96680503 | AS25: 95.71755725 | AT25: 195.1950595 | AU25: -3.759945022 | AV25: 100 | AW25: 23 | AX25: 34.3137085 | AY25: 11.6862915 | AZ25: 5893.587786 | BA25: 8596.419939 | BB25: 3190.755634 | BC25: 432.7633588 | BD25: 1842.440413 | BE25: -976.9136955 | BF25: 6806.10687 | BG25: 9445.359554 | BH25: 4166.854187 | BI25: 5000 | BJ25: 10.09007634 | BK25: 29.1136603 | BL25: -8.93350763 | BO25: 40660 | CD25: 12.7 | CE25: 13.1 | CF25: 123.9370263 | CG25: 8.19 | CH25: 2.7 | CI25: 50.4 | CJ25: 14 | CK25: 33 | CM25: 3000 | CN25: 230 | CO25: 3800 | CP25: 5
B26: 15:2 Svalövsbäcken nedstr Svalöv | C26: 2011-05-24 | D26: 12.7 | E26: 8.4 | F26: 79.47107031 | G26: 7.8 | H26: 9 | I26: 54.2 | J26: 44 | K26: 75 | M26: 3600 | N26: 750 | O26: 5300 | P26: <5 | R26: 2011 | S26: 5 | AA26: 10.54159091 | AB26: 13.08665043 | AC26: 7.996531384 | AD26: 2.95 | AE26: 7.835530303 | AF26: 8.035470425 | AG26: 7.635590181 | AH26: 6.5 | AI26: 13.16174242 | AJ26: 43.81000234 | AK26: -17.48651749 | AL26: 7 | AM26: 52.6719697 | AN26: 62.81683313 | AO26: 42.52710626 | AP26: 53.60381679 | AQ26: 125.1744386 | AR26: -17.96680503 | AS26: 95.71755725 | AT26: 195.1950595 | AU26: -3.759945022 | AV26: 100 | AW26: 23 | AX26: 34.3137085 | AY26: 11.6862915 | AZ26: 5893.587786 | BA26: 8596.419939 | BB26: 3190.755634 | BC26: 432.7633588 | BD26: 1842.440413 | BE26: -976.9136955 | BF26: 6806.10687 | BG26: 9445.359554 | BH26: 4166.854187 | BI26: 5000 | BJ26: 10.09007634 | BK26: 29.1136603 | BL26: -8.93350763 | BO26: 40687 | CD26: 12.7 | CE26: 8.4 | CF26: 79.47107031 | CG26: 7.8 | CH26: 9 | CI26: 54.2 | CJ26: 44 | CK26: 75 | CM26: 3600 | CN26: 750 | CO26: 5300 | CP26: 5
B27: 15:2 Svalövsbäcken nedstr Svalöv | C27: 2011-06-28 | D27: 16.1 | E27: 10.8 | F27: 109.9302376 | G27: 7.91 | H27: 4.6 | I27: 54.6 | J27: 13 | K27: 41 | M27: 3700 | N27: 73 | O27: 4700 | P27: <5 | R27: 2011 | S27: 6 | AA27: 10.54159091 | AB27: 13.08665043 | AC27: 7.996531384 | AD27: 2.95 | AE27: 7.835530303 | AF27: 8.035470425 | AG27: 7.635590181 | AH27: 6.5 | AI27: 13.16174242 | AJ27: 43.81000234 | AK27: -17.48651749 | AL27: 7 | AM27: 52.6719697 | AN27: 62.81683313 | AO27: 42.52710626 | AP27: 53.60381679 | AQ27: 125.1744386 | AR27: -17.96680503 | AS27: 95.71755725 | AT27: 195.1950595 | AU27: -3.759945022 | AV27: 100 | AW27: 23 | AX27: 34.3137085 | AY27: 11.6862915 | AZ27: 5893.587786 | BA27: 8596.419939 | BB27: 3190.755634 | BC27: 432.7633588 | BD27: 1842.440413 | BE27: -976.9136955 | BF27: 6806.10687 | BG27: 9445.359554 | BH27: 4166.854187 | BI27: 5000 | BJ27: 10.09007634 | BK27: 29.1136603 | BL27: -8.93350763 | BO27: 40722 | CD27: 16.1 | CE27: 10.8 | CF27: 109.9302376 | CG27: 7.91 | CH27: 4.6 | CI27: 54.6 | CJ27: 13 | CK27: 41 | CM27: 3700 | CN27: 73 | CO27: 4700 | CP27: 5
B28: 15:2 Svalövsbäcken nedstr Svalöv | C28: 2011-07-27 | D28: 16 | E28: 9.6 | F28: 97.51409788 | G28: 7.93 | H28: 6.9 | I28: 45.5 | J28: 42 | K28: 96 | M28: 2400 | N28: 18 | O28: 3400 | P28: 5.4 | R28: 2011 | S28: 7 | AA28: 10.54159091 | AB28: 13.08665043 | AC28: 7.996531384 | AD28: 2.95 | AE28: 7.835530303 | AF28: 8.035470425 | AG28: 7.635590181 | AH28: 6.5 | AI28: 13.16174242 | AJ28: 43.81000234 | AK28: -17.48651749 | AL28: 7 | AM28: 52.6719697 | AN28: 62.81683313 | AO28: 42.52710626 | AP28: 53.60381679 | AQ28: 125.1744386 | AR28: -17.96680503 | AS28: 95.71755725 | AT28: 195.1950595 | AU28: -3.759945022 | AV28: 100 | AW28: 23 | AX28: 34.3137085 | AY28: 11.6862915 | AZ28: 5893.587786 | BA28: 8596.419939 | BB28: 3190.755634 | BC28: 432.7633588 | BD28: 1842.440413 | BE28: -976.9136955 | BF28: 6806.10687 | BG28: 9445.359554 | BH28: 4166.854187 | BI28: 5000 | BJ28: 10.09007634 | BK28: 29.1136603 | BL28: -8.93350763 | BO28: 40751 | CD28: 16 | CE28: 9.6 | CF28: 97.51409788 | CG28: 7.93 | CH28: 6.9 | CI28: 45.5 | CJ28: 42 | CK28: 96 | CM28: 2400 | CN28: 18 | CO28: 3400 | CP28: 5.4
B29: 15:2 Svalövsbäcken nedstr Svalöv | C29: 2011-08-30 | D29: 14.4 | E29: 9.2 | F29: 90.34910421 | G29: 7.8 | H29: 12 | I29: 47.7 | J29: 19 | K29: 84 | M29: 4400 | N29: 46 | O29: 5400 | P29: 9.2 | R29: 2011 | S29: 8 | AA29: 10.54159091 | AB29: 13.08665043 | AC29: 7.996531384 | AD29: 2.95 | AE29: 7.835530303 | AF29: 8.035470425 | AG29: 7.635590181 | AH29: 6.5 | AI29: 13.16174242 | AJ29: 43.81000234 | AK29: -17.48651749 | AL29: 7 | AM29: 52.6719697 | AN29: 62.81683313 | AO29: 42.52710626 | AP29: 53.60381679 | AQ29: 125.1744386 | AR29: -17.96680503 | AS29: 95.71755725 | AT29: 195.1950595 | AU29: -3.759945022 | AV29: 100 | AW29: 23 | AX29: 34.3137085 | AY29: 11.6862915 | AZ29: 5893.587786 | BA29: 8596.419939 | BB29: 3190.755634 | BC29: 432.7633588 | BD29: 1842.440413 | BE29: -976.9136955 | BF29: 6806.10687 | BG29: 9445.359554 | BH29: 4166.854187 | BI29: 5000 | BJ29: 10.09007634 | BK29: 29.1136603 | BL29: -8.93350763 | BO29: 40785 | CD29: 14.4 | CE29: 9.2 | CF29: 90.34910421 | CG29: 7.8 | CH29: 12 | CI29: 47.7 | CJ29: 19 | CK29: 84 | CM29: 4400 | CN29: 46 | CO29: 5400 | CP29: 9.2
B30: 15:2 Svalövsbäcken nedstr Svalöv | C30: 2011-09-27 | D30: 12.6 | E30: 8.5 | F30: 80.23708412 | G30: 7.96 | H30: 2.9 | I30: 51.3 | J30: 31 | K30: 37 | M30: 3000 | N30: 61 | O30: 4000 | P30: <5 | R30: 2011 | S30: 9 | AA30: 10.54159091 | AB30: 13.08665043 | AC30: 7.996531384 | AD30: 2.95 | AE30: 7.835530303 | AF30: 8.035470425 | AG30: 7.635590181 | AH30: 6.5 | AI30: 13.16174242 | AJ30: 43.81000234 | AK30: -17.48651749 | AL30: 7 | AM30: 52.6719697 | AN30: 62.81683313 | AO30: 42.52710626 | AP30: 53.60381679 | AQ30: 125.1744386 | AR30: -17.96680503 | AS30: 95.71755725 | AT30: 195.1950595 | AU30: -3.759945022 | AV30: 100 | AW30: 23 | AX30: 34.3137085 | AY30: 11.6862915 | AZ30: 5893.587786 | BA30: 8596.419939 | BB30: 3190.755634 | BC30: 432.7633588 | BD30: 1842.440413 | BE30: -976.9136955 | BF30: 6806.10687 | BG30: 9445.359554 | BH30: 4166.854187 | BI30: 5000 | BJ30: 10.09007634 | BK30: 29.1136603 | BL30: -8.93350763 | BO30: 40813 | CD30: 12.6 | CE30: 8.5 | CF30: 80.23708412 | CG30: 7.96 | CH30: 2.9 | CI30: 51.3 | CJ30: 31 | CK30: 37 | CM30: 3000 | CN30: 61 | CO30: 4000 | CP30: 5
B31: 15:2 Svalövsbäcken nedstr Svalöv | C31: 2011-10-26 | D31: 8.8 | E31: 10.5 | F31: 90.67380736 | G31: 7.91 | H31: 4.7 | I31: 51.6 | J31: 30 | K31: 44 | M31: 4200 | N31: 150 | O31: 5000 | P31: <5 | R31: 2011 | S31: 10 | AA31: 10.54159091 | AB31: 13.08665043 | AC31: 7.996531384 | AD31: 2.95 | AE31: 7.835530303 | AF31: 8.035470425 | AG31: 7.635590181 | AH31: 6.5 | AI31: 13.16174242 | AJ31: 43.81000234 | AK31: -17.48651749 | AL31: 7 | AM31: 52.6719697 | AN31: 62.81683313 | AO31: 42.52710626 | AP31: 53.60381679 | AQ31: 125.1744386 | AR31: -17.96680503 | AS31: 95.71755725 | AT31: 195.1950595 | AU31: -3.759945022 | AV31: 100 | AW31: 23 | AX31: 34.3137085 | AY31: 11.6862915 | AZ31: 5893.587786 | BA31: 8596.419939 | BB31: 3190.755634 | BC31: 432.7633588 | BD31: 1842.440413 | BE31: -976.9136955 | BF31: 6806.10687 | BG31: 9445.359554 | BH31: 4166.854187 | BI31: 5000 | BJ31: 10.09007634 | BK31: 29.1136603 | BL31: -8.93350763 | BO31: 40842 | CD31: 8.8 | CE31: 10.5 | CF31: 90.67380736 | CG31: 7.91 | CH31: 4.7 | CI31: 51.6 | CJ31: 30 | CK31: 44 | CM31: 4200 | CN31: 150 | CO31: 5000 | CP31: 5
B32: 15:2 Svalövsbäcken nedstr Svalöv | C32: 2011-11-29 | D32: 5.4 | E32: 11.6 | F32: 91.92116965 | G32: 7.99 | H32: 9.1 | I32: 49.9 | J32: 35 | K32: 59 | M32: 3200 | N32: 230 | O32: 3900 | P32: 7.2 | R32: 2011 | S32: 11 | AA32: 10.54159091 | AB32: 13.08665043 | AC32: 7.996531384 | AD32: 2.95 | AE32: 7.835530303 | AF32: 8.035470425 | AG32: 7.635590181 | AH32: 6.5 | AI32: 13.16174242 | AJ32: 43.81000234 | AK32: -17.48651749 | AL32: 7 | AM32: 52.6719697 | AN32: 62.81683313 | AO32: 42.52710626 | AP32: 53.60381679 | AQ32: 125.1744386 | AR32: -17.96680503 | AS32: 95.71755725 | AT32: 195.1950595 | AU32: -3.759945022 | AV32: 100 | AW32: 23 | AX32: 34.3137085 | AY32: 11.6862915 | AZ32: 5893.587786 | BA32: 8596.419939 | BB32: 3190.755634 | BC32: 432.7633588 | BD32: 1842.440413 | BE32: -976.9136955 | BF32: 6806.10687 | BG32: 9445.359554 | BH32: 4166.854187 | BI32: 5000 | BJ32: 10.09007634 | BK32: 29.1136603 | BL32: -8.93350763 | BO32: 40876 | CD32: 5.4 | CE32: 11.6 | CF32: 91.92116965 | CG32: 7.99 | CH32: 9.1 | CI32: 49.9 | CJ32: 35 | CK32: 59 | CM32: 3200 | CN32: 230 | CO32: 3900 | CP32: 7.2
B33: 15:2 Svalövsbäcken nedstr Svalöv | C33: 2011-12-22 | D33: 4.1 | E33: 12.2 | F33: 93.40421632 | G33: 7.87 | H33: 8 | I33: 48.2 | J33: 28 | K33: 45 | M33: 5400 | N33: 97 | O33: 6000 | P33: <5 | R33: 2011 | S33: 12 | AA33: 10.54159091 | AB33: 13.08665043 | AC33: 7.996531384 | AD33: 2.95 | AE33: 7.835530303 | AF33: 8.035470425 | AG33: 7.635590181 | AH33: 6.5 | AI33: 13.16174242 | AJ33: 43.81000234 | AK33: -17.48651749 | AL33: 7 | AM33: 52.6719697 | AN33: 62.81683313 | AO33: 42.52710626 | AP33: 53.60381679 | AQ33: 125.1744386 | AR33: -17.96680503 | AS33: 95.71755725 | AT33: 195.1950595 | AU33: -3.759945022 | AV33: 100 | AW33: 23 | AX33: 34.3137085 | AY33: 11.6862915 | AZ33: 5893.587786 | BA33: 8596.419939 | BB33: 3190.755634 | BC33: 432.7633588 | BD33: 1842.440413 | BE33: -976.9136955 | BF33: 6806.10687 | BG33: 9445.359554 | BH33: 4166.854187 | BI33: 5000 | BJ33: 10.09007634 | BK33: 29.1136603 | BL33: -8.93350763 | BO33: 40899 | CD33: 4.1 | CE33: 12.2 | CF33: 93.40421632 | CG33: 7.87 | CH33: 8 | CI33: 48.2 | CJ33: 28 | CK33: 45 | CM33: 5400 | CN33: 97 | CO33: 6000 | CP33: 5
B34: 15:2 Svalövsbäcken nedstr Svalöv | C34: 2012-01-27 | D34: 2 | E34: 13.3 | F34: 96.14567079 | G34: 7.81 | H34: 10 | I34: 49.6 | J34: 22 | K34: 46 | M34: 4900 | N34: 190 | O34: 5900 | P34: 8.9 | R34: 2012 | S34: 1 | AA34: 10.54159091 | AB34: 13.08665043 | AC34: 7.996531384 | AD34: 2.95 | AE34: 7.835530303 | AF34: 8.035470425 | AG34: 7.635590181 | AH34: 6.5 | AI34: 13.16174242 | AJ34: 43.81000234 | AK34: -17.48651749 | AL34: 7 | AM34: 52.6719697 | AN34: 62.81683313 | AO34: 42.52710626 | AP34: 53.60381679 | AQ34: 125.1744386 | AR34: -17.96680503 | AS34: 95.71755725 | AT34: 195.1950595 | AU34: -3.759945022 | AV34: 100 | AW34: 23 | AX34: 34.3137085 | AY34: 11.6862915 | AZ34: 5893.587786 | BA34: 8596.419939 | BB34: 3190.755634 | BC34: 432.7633588 | BD34: 1842.440413 | BE34: -976.9136955 | BF34: 6806.10687 | BG34: 9445.359554 | BH34: 4166.854187 | BI34: 5000 | BJ34: 10.09007634 | BK34: 29.1136603 | BL34: -8.93350763 | BO34: 40935 | CD34: 2 | CE34: 13.3 | CF34: 96.14567079 | CG34: 7.81 | CH34: 10 | CI34: 49.6 | CJ34: 22 | CK34: 46 | CM34: 4900 | CN34: 190 | CO34: 5900 | CP34: 8.9
B35: 15:2 Svalövsbäcken nedstr Svalöv | C35: 2012-02-28 | D35: 2.9 | E35: 12.6 | F35: 93.37895566 | G35: 7.61 | H35: 15 | I35: 37.7 | J35: 38 | K35: 66 | M35: 4000 | N35: 180 | O35: 5300 | P35: 7 | R35: 2012 | S35: 2 | AA35: 10.54159091 | AB35: 13.08665043 | AC35: 7.996531384 | AD35: 2.95 | AE35: 7.835530303 | AF35: 8.035470425 | AG35: 7.635590181 | AH35: 6.5 | AI35: 13.16174242 | AJ35: 43.81000234 | AK35: -17.48651749 | AL35: 7 | AM35: 52.6719697 | AN35: 62.81683313 | AO35: 42.52710626 | AP35: 53.60381679 | AQ35: 125.1744386 | AR35: -17.96680503 | AS35: 95.71755725 | AT35: 195.1950595 | AU35: -3.759945022 | AV35: 100 | AW35: 23 | AX35: 34.3137085 | AY35: 11.6862915 | AZ35: 5893.587786 | BA35: 8596.419939 | BB35: 3190.755634 | BC35: 432.7633588 | BD35: 1842.440413 | BE35: -976.9136955 | BF35: 6806.10687 | BG35: 9445.359554 | BH35: 4166.854187 | BI35: 5000 | BJ35: 10.09007634 | BK35: 29.1136603 | BL35: -8.93350763 | BO35: 40967 | CD35: 2.9 | CE35: 12.6 | CF35: 93.37895566 | CG35: 7.61 | CH35: 15 | CI35: 37.7 | CJ35: 38 | CK35: 66 | CM35: 4000 | CN35: 180 | CO35: 5300 | CP35: 7
B36: 15:2 Svalövsbäcken nedstr Svalöv | C36: 2012-03-29 | D36: 6.9 | E36: 13.2 | F36: 108.7225754 | G36: 8.22 | H36: 2.7 | I36: 47.2 | J36: 8 | K36: 21 | L36: 15 | M36: 3200 | N36: 28 | O36: 4100 | P36: <5 | R36: 2012 | S36: 3 | AA36: 10.54159091 | AB36: 13.08665043 | AC36: 7.996531384 | AD36: 2.95 | AE36: 7.835530303 | AF36: 8.035470425 | AG36: 7.635590181 | AH36: 6.5 | AI36: 13.16174242 | AJ36: 43.81000234 | AK36: -17.48651749 | AL36: 7 | AM36: 52.6719697 | AN36: 62.81683313 | AO36: 42.52710626 | AP36: 53.60381679 | AQ36: 125.1744386 | AR36: -17.96680503 | AS36: 95.71755725 | AT36: 195.1950595 | AU36: -3.759945022 | AV36: 100 | AW36: 23 | AX36: 34.3137085 | AY36: 11.6862915 | AZ36: 5893.587786 | BA36: 8596.419939 | BB36: 3190.755634 | BC36: 432.7633588 | BD36: 1842.440413 | BE36: -976.9136955 | BF36: 6806.10687 | BG36: 9445.359554 | BH36: 4166.854187 | BI36: 5000 | BJ36: 10.09007634 | BK36: 29.1136603 | BL36: -8.93350763 | BO36: 40997 | CD36: 6.9 | CE36: 13.2 | CF36: 108.7225754 | CG36: 8.22 | CH36: 2.7 | CI36: 47.2 | CJ36: 8 | CK36: 21 | CL36: 15 | CM36: 3200 | CN36: 28 | CO36: 4100 | CP36: 5
B37: 15:2 Svalövsbäcken nedstr Svalöv | C37: 2012-04-25 | D37: 8.9 | E37: 9.7 | F37: 83.96984183 | G37: 7.86 | H37: 2.7 | I37: 48.9 | J37: 4 | K37: 24 | M37: 2500 | N37: 300 | O37: 3500 | P37: <5 | R37: 2012 | S37: 4 | AA37: 10.54159091 | AB37: 13.08665043 | AC37: 7.996531384 | AD37: 2.95 | AE37: 7.835530303 | AF37: 8.035470425 | AG37: 7.635590181 | AH37: 6.5 | AI37: 13.16174242 | AJ37: 43.81000234 | AK37: -17.48651749 | AL37: 7 | AM37: 52.6719697 | AN37: 62.81683313 | AO37: 42.52710626 | AP37: 53.60381679 | AQ37: 125.1744386 | AR37: -17.96680503 | AS37: 95.71755725 | AT37: 195.1950595 | AU37: -3.759945022 | AV37: 100 | AW37: 23 | AX37: 34.3137085 | AY37: 11.6862915 | AZ37: 5893.587786 | BA37: 8596.419939 | BB37: 3190.755634 | BC37: 432.7633588 | BD37: 1842.440413 | BE37: -976.9136955 | BF37: 6806.10687 | BG37: 9445.359554 | BH37: 4166.854187 | BI37: 5000 | BJ37: 10.09007634 | BK37: 29.1136603 | BL37: -8.93350763 | BO37: 41024 | CD37: 8.9 | CE37: 9.7 | CF37: 83.96984183 | CG37: 7.86 | CH37: 2.7 | CI37: 48.9 | CJ37: 4 | CK37: 24 | CM37: 2500 | CN37: 300 | CO37: 3500 | CP37: 5
B38: 15:2 Svalövsbäcken nedstr Svalöv | C38: 2012-05-29 | D38: 13.1 | E38: 7.8 | F38: 74.45538547 | G38: 7.93 | H38: 3 | I38: 60.8 | J38: 5 | K38: 49 | M38: 3600 | N38: 230 | O38: 4500 | P38: <5 | R38: 2012 | S38: 5 | AA38: 10.54159091 | AB38: 13.08665043 | AC38: 7.996531384 | AD38: 2.95 | AE38: 7.835530303 | AF38: 8.035470425 | AG38: 7.635590181 | AH38: 6.5 | AI38: 13.16174242 | AJ38: 43.81000234 | AK38: -17.48651749 | AL38: 7 | AM38: 52.6719697 | AN38: 62.81683313 | AO38: 42.52710626 | AP38: 53.60381679 | AQ38: 125.1744386 | AR38: -17.96680503 | AS38: 95.71755725 | AT38: 195.1950595 | AU38: -3.759945022 | AV38: 100 | AW38: 23 | AX38: 34.3137085 | AY38: 11.6862915 | AZ38: 5893.587786 | BA38: 8596.419939 | BB38: 3190.755634 | BC38: 432.7633588 | BD38: 1842.440413 | BE38: -976.9136955 | BF38: 6806.10687 | BG38: 9445.359554 | BH38: 4166.854187 | BI38: 5000 | BJ38: 10.09007634 | BK38: 29.1136603 | BL38: -8.93350763 | BO38: 41058 | CD38: 13.1 | CE38: 7.8 | CF38: 74.45538547 | CG38: 7.93 | CH38: 3 | CI38: 60.8 | CJ38: 5 | CK38: 49 | CM38: 3600 | CN38: 230 | CO38: 4500 | CP38: 5
B39: 15:2 Svalövsbäcken nedstr Svalöv | C39: 2012-06-26 | D39: 14.2 | E39: 9.8 | F39: 95.82729137 | G39: 7.91 | H39: 7.8 | I39: 49.7 | J39: 25 | K39: 74 | M39: 2400 | N39: 88 | O39: 3300 | P39: <5 | R39: 2012 | S39: 6 | AA39: 10.54159091 | AB39: 13.08665043 | AC39: 7.996531384 | AD39: 2.95 | AE39: 7.835530303 | AF39: 8.035470425 | AG39: 7.635590181 | AH39: 6.5 | AI39: 13.16174242 | AJ39: 43.81000234 | AK39: -17.48651749 | AL39: 7 | AM39: 52.6719697 | AN39: 62.81683313 | AO39: 42.52710626 | AP39: 53.60381679 | AQ39: 125.1744386 | AR39: -17.96680503 | AS39: 95.71755725 | AT39: 195.1950595 | AU39: -3.759945022 | AV39: 100 | AW39: 23 | AX39: 34.3137085 | AY39: 11.6862915 | AZ39: 5893.587786 | BA39: 8596.419939 | BB39: 3190.755634 | BC39: 432.7633588 | BD39: 1842.440413 | BE39: -976.9136955 | BF39: 6806.10687 | BG39: 9445.359554 | BH39: 4166.854187 | BI39: 5000 | BJ39: 10.09007634 | BK39: 29.1136603 | BL39: -8.93350763 | BO39: 41086 | CD39: 14.2 | CE39: 9.8 | CF39: 95.82729137 | CG39: 7.91 | CH39: 7.8 | CI39: 49.7 | CJ39: 25 | CK39: 74 | CM39: 2400 | CN39: 88 | CO39: 3300 | CP39: 5
B40: 15:2 Svalövsbäcken nedstr Svalöv | C40: 2012-07-25 | D40: 16.2 | E40: 9 | F40: 91.79751502 | G40: 7.88 | H40: 2.1 | I40: 59.8 | J40: 20 | K40: 46 | M40: 6100 | N40: 49 | O40: 6200 | P40: <5 | R40: 2012 | S40: 7 | AA40: 10.54159091 | AB40: 13.08665043 | AC40: 7.996531384 | AD40: 2.95 | AE40: 7.835530303 | AF40: 8.035470425 | AG40: 7.635590181 | AH40: 6.5 | AI40: 13.16174242 | AJ40: 43.81000234 | AK40: -17.48651749 | AL40: 7 | AM40: 52.6719697 | AN40: 62.81683313 | AO40: 42.52710626 | AP40: 53.60381679 | AQ40: 125.1744386 | AR40: -17.96680503 | AS40: 95.71755725 | AT40: 195.1950595 | AU40: -3.759945022 | AV40: 100 | AW40: 23 | AX40: 34.3137085 | AY40: 11.6862915 | AZ40: 5893.587786 | BA40: 8596.419939 | BB40: 3190.755634 | BC40: 432.7633588 | BD40: 1842.440413 | BE40: -976.9136955 | BF40: 6806.10687 | BG40: 9445.359554 | BH40: 4166.854187 | BI40: 5000 | BJ40: 10.09007634 | BK40: 29.1136603 | BL40: -8.93350763 | BO40: 41115 | CD40: 16.2 | CE40: 9 | CF40: 91.79751502 | CG40: 7.88 | CH40: 2.1 | CI40: 59.8 | CJ40: 20 | CK40: 46 | CM40: 6100 | CN40: 49 | CO40: 6200 | CP40: 5
B41: 15:2 Svalövsbäcken nedstr Svalöv | C41: 2012-08-27 | D41: 18.5 | E41: 10.4 | F41: 111.0690639 | G41: 8.11 | H41: 1.6 | I41: 43.5 | J41: 58 | K41: 100 | M41: 7100 | N41: 520 | O41: 8900 | P41: <5 | R41: 2012 | S41: 8 | AA41: 10.54159091 | AB41: 13.08665043 | AC41: 7.996531384 | AD41: 2.95 | AE41: 7.835530303 | AF41: 8.035470425 | AG41: 7.635590181 | AH41: 6.5 | AI41: 13.16174242 | AJ41: 43.81000234 | AK41: -17.48651749 | AL41: 7 | AM41: 52.6719697 | AN41: 62.81683313 | AO41: 42.52710626 | AP41: 53.60381679 | AQ41: 125.1744386 | AR41: -17.96680503 | AS41: 95.71755725 | AT41: 195.1950595 | AU41: -3.759945022 | AV41: 100 | AW41: 23 | AX41: 34.3137085 | AY41: 11.6862915 | AZ41: 5893.587786 | BA41: 8596.419939 | BB41: 3190.755634 | BC41: 432.7633588 | BD41: 1842.440413 | BE41: -976.9136955 | BF41: 6806.10687 | BG41: 9445.359554 | BH41: 4166.854187 | BI41: 5000 | BJ41: 10.09007634 | BK41: 29.1136603 | BL41: -8.93350763 | BO41: 41148 | CD41: 18.5 | CE41: 10.4 | CF41: 111.0690639 | CG41: 8.11 | CH41: 1.6 | CI41: 43.5 | CJ41: 58 | CK41: 100 | CM41: 7100 | CN41: 520 | CO41: 8900 | CP41: 5
B42: 15:2 Svalövsbäcken nedstr Svalöv | C42: 2012-09-24 | D42: 11.9 | E42: 10.2 | F42: 94.77163376 | G42: 8.01 | H42: 3.5 | I42: 51.7 | J42: 22 | K42: 62 | M42: 3300 | N42: 31 | O42: 3800 | P42: <5 | R42: 2012 | S42: 9 | AA42: 10.54159091 | AB42: 13.08665043 | AC42: 7.996531384 | AD42: 2.95 | AE42: 7.835530303 | AF42: 8.035470425 | AG42: 7.635590181 | AH42: 6.5 | AI42: 13.16174242 | AJ42: 43.81000234 | AK42: -17.48651749 | AL42: 7 | AM42: 52.6719697 | AN42: 62.81683313 | AO42: 42.52710626 | AP42: 53.60381679 | AQ42: 125.1744386 | AR42: -17.96680503 | AS42: 95.71755725 | AT42: 195.1950595 | AU42: -3.759945022 | AV42: 100 | AW42: 23 | AX42: 34.3137085 | AY42: 11.6862915 | AZ42: 5893.587786 | BA42: 8596.419939 | BB42: 3190.755634 | BC42: 432.7633588 | BD42: 1842.440413 | BE42: -976.9136955 | BF42: 6806.10687 | BG42: 9445.359554 | BH42: 4166.854187 | BI42: 5000 | BJ42: 10.09007634 | BK42: 29.1136603 | BL42: -8.93350763 | BO42: 41176 | CD42: 11.9 | CE42: 10.2 | CF42: 94.77163376 | CG42: 8.01 | CH42: 3.5 | CI42: 51.7 | CJ42: 22 | CK42: 62 | CM42: 3300 | CN42: 31 | CO42: 3800 | CP42: 5
B43: 15:2 Svalövsbäcken nedstr Svalöv | C43: 2012-10-30 | D43: 7 | E43: 10.9 | F43: 90.00647981 | G43: 7.65 | H43: 136 | I43: 41.7 | J43: 52 | K43: 280 | M43: 4700 | N43: <10 | O43: 6200 | P43: 110 | R43: 2012 | S43: 10 | AA43: 10.54159091 | AB43: 13.08665043 | AC43: 7.996531384 | AD43: 2.95 | AE43: 7.835530303 | AF43: 8.035470425 | AG43: 7.635590181 | AH43: 6.5 | AI43: 13.16174242 | AJ43: 43.81000234 | AK43: -17.48651749 | AL43: 7 | AM43: 52.6719697 | AN43: 62.81683313 | AO43: 42.52710626 | AP43: 53.60381679 | AQ43: 125.1744386 | AR43: -17.96680503 | AS43: 95.71755725 | AT43: 195.1950595 | AU43: -3.759945022 | AV43: 100 | AW43: 23 | AX43: 34.3137085 | AY43: 11.6862915 | AZ43: 5893.587786 | BA43: 8596.419939 | BB43: 3190.755634 | BC43: 432.7633588 | BD43: 1842.440413 | BE43: -976.9136955 | BF43: 6806.10687 | BG43: 9445.359554 | BH43: 4166.854187 | BI43: 5000 | BJ43: 10.09007634 | BK43: 29.1136603 | BL43: -8.93350763 | BO43: 41212 | CD43: 7 | CE43: 10.9 | CF43: 90.00647981 | CG43: 7.65 | CH43: 136 | CI43: 41.7 | CJ43: 52 | CK43: 280 | CM43: 4700 | CN43: 10 | CO43: 6200 | CP43: 110
B44: 15:2 Svalövsbäcken nedstr Svalöv | C44: 2012-11-25 | D44: 5.5 | E44: 12.7 | F44: 100.9011148 | G44: 7.41 | H44: 75 | I44: 34 | J44: 93 | K44: 240 | M44: 7900 | N44: 15 | O44: 8300 | P44: 47 | R44: 2012 | S44: 11 | AA44: 10.54159091 | AB44: 13.08665043 | AC44: 7.996531384 | AD44: 2.95 | AE44: 7.835530303 | AF44: 8.035470425 | AG44: 7.635590181 | AH44: 6.5 | AI44: 13.16174242 | AJ44: 43.81000234 | AK44: -17.48651749 | AL44: 7 | AM44: 52.6719697 | AN44: 62.81683313 | AO44: 42.52710626 | AP44: 53.60381679 | AQ44: 125.1744386 | AR44: -17.96680503 | AS44: 95.71755725 | AT44: 195.1950595 | AU44: -3.759945022 | AV44: 100 | AW44: 23 | AX44: 34.3137085 | AY44: 11.6862915 | AZ44: 5893.587786 | BA44: 8596.419939 | BB44: 3190.755634 | BC44: 432.7633588 | BD44: 1842.440413 | BE44: -976.9136955 | BF44: 6806.10687 | BG44: 9445.359554 | BH44: 4166.854187 | BI44: 5000 | BJ44: 10.09007634 | BK44: 29.1136603 | BL44: -8.93350763 | BO44: 41238 | CD44: 5.5 | CE44: 12.7 | CF44: 100.9011148 | CG44: 7.41 | CH44: 75 | CI44: 34 | CJ44: 93 | CK44: 240 | CM44: 7900 | CN44: 15 | CO44: 8300 | CP44: 47
B45: 15:2 Svalövsbäcken nedstr Svalöv | C45: 2012-11-28 | D45: 6.8 | E45: 12.8 | F45: 105.1603609 | G45: 7.65 | H45: 24 | I45: 43.8 | J45: 37 | K45: 56 | M45: 6800 | N45: 32 | O45: 7300 | P45: 11 | R45: 2012 | S45: 11 | AA45: 10.54159091 | AB45: 13.08665043 | AC45: 7.996531384 | AD45: 2.95 | AE45: 7.835530303 | AF45: 8.035470425 | AG45: 7.635590181 | AH45: 6.5 | AI45: 13.16174242 | AJ45: 43.81000234 | AK45: -17.48651749 | AL45: 7 | AM45: 52.6719697 | AN45: 62.81683313 | AO45: 42.52710626 | AP45: 53.60381679 | AQ45: 125.1744386 | AR45: -17.96680503 | AS45: 95.71755725 | AT45: 195.1950595 | AU45: -3.759945022 | AV45: 100 | AW45: 23 | AX45: 34.3137085 | AY45: 11.6862915 | AZ45: 5893.587786 | BA45: 8596.419939 | BB45: 3190.755634 | BC45: 432.7633588 | BD45: 1842.440413 | BE45: -976.9136955 | BF45: 6806.10687 | BG45: 9445.359554 | BH45: 4166.854187 | BI45: 5000 | BJ45: 10.09007634 | BK45: 29.1136603 | BL45: -8.93350763 | BO45: 41241 | CD45: 6.8 | CE45: 12.8 | CF45: 105.1603609 | CG45: 7.65 | CH45: 24 | CI45: 43.8 | CJ45: 37 | CK45: 56 | CM45: 6800 | CN45: 32 | CO45: 7300 | CP45: 11
B46: 15:2 Svalövsbäcken nedstr Svalöv | C46: 2012-12-20 | D46: 3.1 | E46: 13.6 | F46: 101.3430003 | G46: 7.48 | H46: 14 | I46: 45.3 | J46: 28 | K46: 59 | M46: 7100 | N46: 72 | O46: 7800 | P46: 8.9 | R46: 2012 | S46: 12 | AA46: 10.54159091 | AB46: 13.08665043 | AC46: 7.996531384 | AD46: 2.95 | AE46: 7.835530303 | AF46: 8.035470425 | AG46: 7.635590181 | AH46: 6.5 | AI46: 13.16174242 | AJ46: 43.81000234 | AK46: -17.48651749 | AL46: 7 | AM46: 52.6719697 | AN46: 62.81683313 | AO46: 42.52710626 | AP46: 53.60381679 | AQ46: 125.1744386 | AR46: -17.96680503 | AS46: 95.71755725 | AT46: 195.1950595 | AU46: -3.759945022 | AV46: 100 | AW46: 23 | AX46: 34.3137085 | AY46: 11.6862915 | AZ46: 5893.587786 | BA46: 8596.419939 | BB46: 3190.755634 | BC46: 432.7633588 | BD46: 1842.440413 | BE46: -976.9136955 | BF46: 6806.10687 | BG46: 9445.359554 | BH46: 4166.854187 | BI46: 5000 | BJ46: 10.09007634 | BK46: 29.1136603 | BL46: -8.93350763 | BO46: 41263 | CD46: 3.1 | CE46: 13.6 | CF46: 101.3430003 | CG46: 7.48 | CH46: 14 | CI46: 45.3 | CJ46: 28 | CK46: 59 | CM46: 7100 | CN46: 72 | CO46: 7800 | CP46: 8.9
B47: 15:2 Svalövsbäcken nedstr Svalöv | C47: 2013-01-30 | D47: 2.7 | E47: 12.8 | F47: 94.34163907 | G47: 7.6 | H47: 131 | I47: 29.6 | J47: 180 | K47: 310 | M47: 2900 | N47: 210 | O47: 4000 | P47: 110 | R47: 2013 | S47: 1 | AA47: 10.54159091 | AB47: 13.08665043 | AC47: 7.996531384 | AD47: 2.95 | AE47: 7.835530303 | AF47: 8.035470425 | AG47: 7.635590181 | AH47: 6.5 | AI47: 13.16174242 | AJ47: 43.81000234 | AK47: -17.48651749 | AL47: 7 | AM47: 52.6719697 | AN47: 62.81683313 | AO47: 42.52710626 | AP47: 53.60381679 | AQ47: 125.1744386 | AR47: -17.96680503 | AS47: 95.71755725 | AT47: 195.1950595 | AU47: -3.759945022 | AV47: 100 | AW47: 23 | AX47: 34.3137085 | AY47: 11.6862915 | AZ47: 5893.587786 | BA47: 8596.419939 | BB47: 3190.755634 | BC47: 432.7633588 | BD47: 1842.440413 | BE47: -976.9136955 | BF47: 6806.10687 | BG47: 9445.359554 | BH47: 4166.854187 | BI47: 5000 | BJ47: 10.09007634 | BK47: 29.1136603 | BL47: -8.93350763 | BO47: 41304 | CD47: 2.7 | CE47: 12.8 | CF47: 94.34163907 | CG47: 7.6 | CH47: 131 | CI47: 29.6 | CJ47: 180 | CK47: 310 | CM47: 2900 | CN47: 210 | CO47: 4000 | CP47: 110
B48: 15:2 Svalövsbäcken nedstr Svalöv | C48: 2013-02-26 | D48: 2.3 | E48: 13.5 | F48: 98.40820915 | G48: 7.92 | H48: 2.3 | I48: 47.9 | J48: 7 | K48: 28 | M48: 4700 | N48: 210 | O48: 5300 | P48: <5 | R48: 2013 | S48: 2 | AA48: 10.54159091 | AB48: 13.08665043 | AC48: 7.996531384 | AD48: 2.95 | AE48: 7.835530303 | AF48: 8.035470425 | AG48: 7.635590181 | AH48: 6.5 | AI48: 13.16174242 | AJ48: 43.81000234 | AK48: -17.48651749 | AL48: 7 | AM48: 52.6719697 | AN48: 62.81683313 | AO48: 42.52710626 | AP48: 53.60381679 | AQ48: 125.1744386 | AR48: -17.96680503 | AS48: 95.71755725 | AT48: 195.1950595 | AU48: -3.759945022 | AV48: 100 | AW48: 23 | AX48: 34.3137085 | AY48: 11.6862915 | AZ48: 5893.587786 | BA48: 8596.419939 | BB48: 3190.755634 | BC48: 432.7633588 | BD48: 1842.440413 | BE48: -976.9136955 | BF48: 6806.10687 | BG48: 9445.359554 | BH48: 4166.854187 | BI48: 5000 | BJ48: 10.09007634 | BK48: 29.1136603 | BL48: -8.93350763 | BO48: 41331 | CD48: 2.3 | CE48: 13.5 | CF48: 98.40820915 | CG48: 7.92 | CH48: 2.3 | CI48: 47.9 | CJ48: 7 | CK48: 28 | CM48: 4700 | CN48: 210 | CO48: 5300 | CP48: 5
B49: 15:2 Svalövsbäcken nedstr Svalöv | C49: 2013-03-26 | D49: 0.5 | E49: 14 | F49: 97.01100871 | G49: 7.96 | H49: 2.5 | I49: 53.5 | J49: 9 | K49: 21 | M49: 4700 | N49: 840 | O49: 5600 | P49: <5 | R49: 2013 | S49: 3 | AA49: 10.54159091 | AB49: 13.08665043 | AC49: 7.996531384 | AD49: 2.95 | AE49: 7.835530303 | AF49: 8.035470425 | AG49: 7.635590181 | AH49: 6.5 | AI49: 13.16174242 | AJ49: 43.81000234 | AK49: -17.48651749 | AL49: 7 | AM49: 52.6719697 | AN49: 62.81683313 | AO49: 42.52710626 | AP49: 53.60381679 | AQ49: 125.1744386 | AR49: -17.96680503 | AS49: 95.71755725 | AT49: 195.1950595 | AU49: -3.759945022 | AV49: 100 | AW49: 23 | AX49: 34.3137085 | AY49: 11.6862915 | AZ49: 5893.587786 | BA49: 8596.419939 | BB49: 3190.755634 | BC49: 432.7633588 | BD49: 1842.440413 | BE49: -976.9136955 | BF49: 6806.10687 | BG49: 9445.359554 | BH49: 4166.854187 | BI49: 5000 | BJ49: 10.09007634 | BK49: 29.1136603 | BL49: -8.93350763 | BO49: 41359 | CD49: 0.5 | CE49: 14 | CF49: 97.01100871 | CG49: 7.96 | CH49: 2.5 | CI49: 53.5 | CJ49: 9 | CK49: 21 | CM49: 4700 | CN49: 840 | CO49: 5600 | CP49: 5
B50: 15:2 Svalövsbäcken nedstr Svalöv | C50: 2013-04-25 | D50: 8.5 | E50: 12.2 | F50: 104.5831688 | G50: 8.01 | H50: 3.6 | I50: 43.9 | J50: 6 | K50: 27 | M50: 2800 | N50: 280 | O50: 3500 | P50: <5 | R50: 2013 | S50: 4 | AA50: 10.54159091 | AB50: 13.08665043 | AC50: 7.996531384 | AD50: 2.95 | AE50: 7.835530303 | AF50: 8.035470425 | AG50: 7.635590181 | AH50: 6.5 | AI50: 13.16174242 | AJ50: 43.81000234 | AK50: -17.48651749 | AL50: 7 | AM50: 52.6719697 | AN50: 62.81683313 | AO50: 42.52710626 | AP50: 53.60381679 | AQ50: 125.1744386 | AR50: -17.96680503 | AS50: 95.71755725 | AT50: 195.1950595 | AU50: -3.759945022 | AV50: 100 | AW50: 23 | AX50: 34.3137085 | AY50: 11.6862915 | AZ50: 5893.587786 | BA50: 8596.419939 | BB50: 3190.755634 | BC50: 432.7633588 | BD50: 1842.440413 | BE50: -976.9136955 | BF50: 6806.10687 | BG50: 9445.359554 | BH50: 4166.854187 | BI50: 5000 | BJ50: 10.09007634 | BK50: 29.1136603 | BL50: -8.93350763 | BO50: 41389 | CD50: 8.5 | CE50: 12.2 | CF50: 104.5831688 | CG50: 8.01 | CH50: 3.6 | CI50: 43.9 | CJ50: 6 | CK50: 27 | CM50: 2800 | CN50: 280 | CO50: 3500 | CP50: 5
B51: 15:2 Svalövsbäcken nedstr Svalöv | C51: 2013-05-29 | D51: 12.2 | E51: 9 | F51: 84.19415486 | G51: 7.77 | H51: 3.7 | I51: 64.3 | J51: 35 | K51: 62 | M51: 6500 | N51: 320 | O51: 7500 | P51: <5 | R51: 2013 | S51: 5 | AA51: 10.54159091 | AB51: 13.08665043 | AC51: 7.996531384 | AD51: 2.95 | AE51: 7.835530303 | AF51: 8.035470425 | AG51: 7.635590181 | AH51: 6.5 | AI51: 13.16174242 | AJ51: 43.81000234 | AK51: -17.48651749 | AL51: 7 | AM51: 52.6719697 | AN51: 62.81683313 | AO51: 42.52710626 | AP51: 53.60381679 | AQ51: 125.1744386 | AR51: -17.96680503 | AS51: 95.71755725 | AT51: 195.1950595 | AU51: -3.759945022 | AV51: 100 | AW51: 23 | AX51: 34.3137085 | AY51: 11.6862915 | AZ51: 5893.587786 | BA51: 8596.419939 | BB51: 3190.755634 | BC51: 432.7633588 | BD51: 1842.440413 | BE51: -976.9136955 | BF51: 6806.10687 | BG51: 9445.359554 | BH51: 4166.854187 | BI51: 5000 | BJ51: 10.09007634 | BK51: 29.1136603 | BL51: -8.93350763 | BO51: 41423 | CD51: 12.2 | CE51: 9 | CF51: 84.19415486 | CG51: 7.77 | CH51: 3.7 | CI51: 64.3 | CJ51: 35 | CK51: 62 | CM51: 6500 | CN51: 320 | CO51: 7500 | CP51: 5
B52: 15:2 Svalövsbäcken nedstr Svalöv | C52: 2013-06-26 | D52: 14.4 | E52: 8.7 | F52: 85.43882681 | G52: 7.85 | H52: 1.9 | I52: 51.1 | J52: 16 | K52: 39 | M52: 6200 | N52: 73 | O52: 6900 | P52: <5 | R52: 2013 | S52: 6 | AA52: 10.54159091 | AB52: 13.08665043 | AC52: 7.996531384 | AD52: 2.95 | AE52: 7.835530303 | AF52: 8.035470425 | AG52: 7.635590181 | AH52: 6.5 | AI52: 13.16174242 | AJ52: 43.81000234 | AK52: -17.48651749 | AL52: 7 | AM52: 52.6719697 | AN52: 62.81683313 | AO52: 42.52710626 | AP52: 53.60381679 | AQ52: 125.1744386 | AR52: -17.96680503 | AS52: 95.71755725 | AT52: 195.1950595 | AU52: -3.759945022 | AV52: 100 | AW52: 23 | AX52: 34.3137085 | AY52: 11.6862915 | AZ52: 5893.587786 | BA52: 8596.419939 | BB52: 3190.755634 | BC52: 432.7633588 | BD52: 1842.440413 | BE52: -976.9136955 | BF52: 6806.10687 | BG52: 9445.359554 | BH52: 4166.854187 | BI52: 5000 | BJ52: 10.09007634 | BK52: 29.1136603 | BL52: -8.93350763 | BO52: 41451 | CD52: 14.4 | CE52: 8.7 | CF52: 85.43882681 | CG52: 7.85 | CH52: 1.9 | CI52: 51.1 | CJ52: 16 | CK52: 39 | CM52: 6200 | CN52: 73 | CO52: 6900 | CP52: 5
B53: 15:2 Svalövsbäcken nedstr Svalöv | C53: 2013-07-25 | D53: 15.9 | E53: 9.5 | F53: 96.29867441 | G53: 7.88 | H53: 1.1 | I53: 63.6 | J53: 17 | K53: 35 | M53: 8500 | N53: 43 | O53: 8900 | P53: <5 | R53: 2013 | S53: 7 | AA53: 10.54159091 | AB53: 13.08665043 | AC53: 7.996531384 | AD53: 2.95 | AE53: 7.835530303 | AF53: 8.035470425 | AG53: 7.635590181 | AH53: 6.5 | AI53: 13.16174242 | AJ53: 43.81000234 | AK53: -17.48651749 | AL53: 7 | AM53: 52.6719697 | AN53: 62.81683313 | AO53: 42.52710626 | AP53: 53.60381679 | AQ53: 125.1744386 | AR53: -17.96680503 | AS53: 95.71755725 | AT53: 195.1950595 | AU53: -3.759945022 | AV53: 100 | AW53: 23 | AX53: 34.3137085 | AY53: 11.6862915 | AZ53: 5893.587786 | BA53: 8596.419939 | BB53: 3190.755634 | BC53: 432.7633588 | BD53: 1842.440413 | BE53: -976.9136955 | BF53: 6806.10687 | BG53: 9445.359554 | BH53: 4166.854187 | BI53: 5000 | BJ53: 10.09007634 | BK53: 29.1136603 | BL53: -8.93350763 | BO53: 41480 | CD53: 15.9 | CE53: 9.5 | CF53: 96.29867441 | CG53: 7.88 | CH53: 1.1 | CI53: 63.6 | CJ53: 17 | CK53: 35 | CM53: 8500 | CN53: 43 | CO53: 8900 | CP53: 5
B54: 15:2 Svalövsbäcken nedstr Svalöv | C54: 2013-08-27 | D54: 14.4 | E54: 9 | F54: 88.38499325 | G54: 7.8 | H54: 1.7 | I54: 60.7 | J54: 66 | K54: 100 | M54: 7600 | N54: 36 | O54: 8300 | P54: <5 | R54: 2013 | S54: 8 | AA54: 10.54159091 | AB54: 13.08665043 | AC54: 7.996531384 | AD54: 2.95 | AE54: 7.835530303 | AF54: 8.035470425 | AG54: 7.635590181 | AH54: 6.5 | AI54: 13.16174242 | AJ54: 43.81000234 | AK54: -17.48651749 | AL54: 7 | AM54: 52.6719697 | AN54: 62.81683313 | AO54: 42.52710626 | AP54: 53.60381679 | AQ54: 125.1744386 | AR54: -17.96680503 | AS54: 95.71755725 | AT54: 195.1950595 | AU54: -3.759945022 | AV54: 100 | AW54: 23 | AX54: 34.3137085 | AY54: 11.6862915 | AZ54: 5893.587786 | BA54: 8596.419939 | BB54: 3190.755634 | BC54: 432.7633588 | BD54: 1842.440413 | BE54: -976.9136955 | BF54: 6806.10687 | BG54: 9445.359554 | BH54: 4166.854187 | BI54: 5000 | BJ54: 10.09007634 | BK54: 29.1136603 | BL54: -8.93350763 | BO54: 41513 | CD54: 14.4 | CE54: 9 | CF54: 88.38499325 | CG54: 7.8 | CH54: 1.7 | CI54: 60.7 | CJ54: 66 | CK54: 100 | CM54: 7600 | CN54: 36 | CO54: 8300 | CP54: 5
B55: 15:2 Svalövsbäcken nedstr Svalöv | C55: 2013-09-26 | D55: 9.9 | E55: 10.3 | F55: 91.33892575 | G55: 7.87 | H55: 0.89 | I55: 60.3 | J55: 22 | K55: 42 | M55: 7200 | N55: 23 | O55: 7900 | P55: <5 | R55: 2013 | S55: 9 | AA55: 10.54159091 | AB55: 13.08665043 | AC55: 7.996531384 | AD55: 2.95 | AE55: 7.835530303 | AF55: 8.035470425 | AG55: 7.635590181 | AH55: 6.5 | AI55: 13.16174242 | AJ55: 43.81000234 | AK55: -17.48651749 | AL55: 7 | AM55: 52.6719697 | AN55: 62.81683313 | AO55: 42.52710626 | AP55: 53.60381679 | AQ55: 125.1744386 | AR55: -17.96680503 | AS55: 95.71755725 | AT55: 195.1950595 | AU55: -3.759945022 | AV55: 100 | AW55: 23 | AX55: 34.3137085 | AY55: 11.6862915 | AZ55: 5893.587786 | BA55: 8596.419939 | BB55: 3190.755634 | BC55: 432.7633588 | BD55: 1842.440413 | BE55: -976.9136955 | BF55: 6806.10687 | BG55: 9445.359554 | BH55: 4166.854187 | BI55: 5000 | BJ55: 10.09007634 | BK55: 29.1136603 | BL55: -8.93350763 | BO55: 41543 | CD55: 9.9 | CE55: 10.3 | CF55: 91.33892575 | CG55: 7.87 | CH55: 0.89 | CI55: 60.3 | CJ55: 22 | CK55: 42 | CM55: 7200 | CN55: 23 | CO55: 7900 | CP55: 5
B56: 15:2 Svalövsbäcken nedstr Svalöv | C56: 2013-10-29 | D56: 10.7 | E56: 9.4 | F56: 84.94902237 | G56: 7.84 | H56: 14 | I56: 50.4 | J56: 46 | K56: 80 | M56: 7200 | N56: 61 | O56: 8200 | P56: 6.2 | R56: 2013 | S56: 10 | AA56: 10.54159091 | AB56: 13.08665043 | AC56: 7.996531384 | AD56: 2.95 | AE56: 7.835530303 | AF56: 8.035470425 | AG56: 7.635590181 | AH56: 6.5 | AI56: 13.16174242 | AJ56: 43.81000234 | AK56: -17.48651749 | AL56: 7 | AM56: 52.6719697 | AN56: 62.81683313 | AO56: 42.52710626 | AP56: 53.60381679 | AQ56: 125.1744386 | AR56: -17.96680503 | AS56: 95.71755725 | AT56: 195.1950595 | AU56: -3.759945022 | AV56: 100 | AW56: 23 | AX56: 34.3137085 | AY56: 11.6862915 | AZ56: 5893.587786 | BA56: 8596.419939 | BB56: 3190.755634 | BC56: 432.7633588 | BD56: 1842.440413 | BE56: -976.9136955 | BF56: 6806.10687 | BG56: 9445.359554 | BH56: 4166.854187 | BI56: 5000 | BJ56: 10.09007634 | BK56: 29.1136603 | BL56: -8.93350763 | BO56: 41576 | CD56: 10.7 | CE56: 9.4 | CF56: 84.94902237 | CG56: 7.84 | CH56: 14 | CI56: 50.4 | CJ56: 46 | CK56: 80 | CM56: 7200 | CN56: 61 | CO56: 8200 | CP56: 6.2
B57: 15:2 Svalövsbäcken nedstr Svalöv | C57: 2013-11-27 | D57: 5.2 | E57: 12 | F57: 94.59382975 | G57: 7.83 | H57: 5.1 | I57: 53.5 | J57: 30 | K57: 48 | M57: 6700 | N57: 350 | O57: 8300 | P57: 6 | R57: 2013 | S57: 11 | AA57: 10.54159091 | AB57: 13.08665043 | AC57: 7.996531384 | AD57: 2.95 | AE57: 7.835530303 | AF57: 8.035470425 | AG57: 7.635590181 | AH57: 6.5 | AI57: 13.16174242 | AJ57: 43.81000234 | AK57: -17.48651749 | AL57: 7 | AM57: 52.6719697 | AN57: 62.81683313 | AO57: 42.52710626 | AP57: 53.60381679 | AQ57: 125.1744386 | AR57: -17.96680503 | AS57: 95.71755725 | AT57: 195.1950595 | AU57: -3.759945022 | AV57: 100 | AW57: 23 | AX57: 34.3137085 | AY57: 11.6862915 | AZ57: 5893.587786 | BA57: 8596.419939 | BB57: 3190.755634 | BC57: 432.7633588 | BD57: 1842.440413 | BE57: -976.9136955 | BF57: 6806.10687 | BG57: 9445.359554 | BH57: 4166.854187 | BI57: 5000 | BJ57: 10.09007634 | BK57: 29.1136603 | BL57: -8.93350763 | BO57: 41605 | CD57: 5.2 | CE57: 12 | CF57: 94.59382975 | CG57: 7.83 | CH57: 5.1 | CI57: 53.5 | CJ57: 30 | CK57: 48 | CM57: 6700 | CN57: 350 | CO57: 8300 | CP57: 6
B58: 15:2 Svalövsbäcken nedstr Svalöv | C58: 2013-12-23 | D58: 5.3 | E58: 12.1 | F58: 95.63261444 | G58: 7.75 | H58: 8.8 | I58: 43.3 | J58: 20 | K58: 40 | M58: 7300 | N58: 72 | O58: 7500 | P58: 6 | R58: 2013 | S58: 12 | AA58: 10.54159091 | AB58: 13.08665043 | AC58: 7.996531384 | AD58: 2.95 | AE58: 7.835530303 | AF58: 8.035470425 | AG58: 7.635590181 | AH58: 6.5 | AI58: 13.16174242 | AJ58: 43.81000234 | AK58: -17.48651749 | AL58: 7 | AM58: 52.6719697 | AN58: 62.81683313 | AO58: 42.52710626 | AP58: 53.60381679 | AQ58: 125.1744386 | AR58: -17.96680503 | AS58: 95.71755725 | AT58: 195.1950595 | AU58: -3.759945022 | AV58: 100 | AW58: 23 | AX58: 34.3137085 | AY58: 11.6862915 | AZ58: 5893.587786 | BA58: 8596.419939 | BB58: 3190.755634 | BC58: 432.7633588 | BD58: 1842.440413 | BE58: -976.9136955 | BF58: 6806.10687 | BG58: 9445.359554 | BH58: 4166.854187 | BI58: 5000 | BJ58: 10.09007634 | BK58: 29.1136603 | BL58: -8.93350763 | BO58: 41631 | CD58: 5.3 | CE58: 12.1 | CF58: 95.63261444 | CG58: 7.75 | CH58: 8.8 | CI58: 43.3 | CJ58: 20 | CK58: 40 | CM58: 7300 | CN58: 72 | CO58: 7500 | CP58: 6
B59: 15:2 Svalövsbäcken nedstr Svalöv | C59: 2014-01-28 | D59: 0.6 | E59: 14 | F59: 97.28850386 | G59: 7.87 | H59: 11 | I59: 48.9 | J59: 21 | K59: 39 | M59: 5100 | N59: 290 | O59: 6500 | P59: 7 | R59: 2014 | S59: 1 | AA59: 10.54159091 | AB59: 13.08665043 | AC59: 7.996531384 | AD59: 2.95 | AE59: 7.835530303 | AF59: 8.035470425 | AG59: 7.635590181 | AH59: 6.5 | AI59: 13.16174242 | AJ59: 43.81000234 | AK59: -17.48651749 | AL59: 7 | AM59: 52.6719697 | AN59: 62.81683313 | AO59: 42.52710626 | AP59: 53.60381679 | AQ59: 125.1744386 | AR59: -17.96680503 | AS59: 95.71755725 | AT59: 195.1950595 | AU59: -3.759945022 | AV59: 100 | AW59: 23 | AX59: 34.3137085 | AY59: 11.6862915 | AZ59: 5893.587786 | BA59: 8596.419939 | BB59: 3190.755634 | BC59: 432.7633588 | BD59: 1842.440413 | BE59: -976.9136955 | BF59: 6806.10687 | BG59: 9445.359554 | BH59: 4166.854187 | BI59: 5000 | BJ59: 10.09007634 | BK59: 29.1136603 | BL59: -8.93350763 | BO59: 41667 | CD59: 0.6 | CE59: 14 | CF59: 97.28850386 | CG59: 7.87 | CH59: 11 | CI59: 48.9 | CJ59: 21 | CK59: 39 | CM59: 5100 | CN59: 290 | CO59: 6500 | CP59: 7
B60: 15:2 Svalövsbäcken nedstr Svalöv | C60: 2014-02-27 | D60: 4.3 | E60: 12.8 | F60: 98.52373195 | G60: 7.84 | H60: 6.7 | I60: 43.7 | J60: 19 | K60: 42 | M60: 5800 | N60: 210 | O60: 6400 | P60: <5 | R60: 2014 | S60: 2 | AA60: 10.54159091 | AB60: 13.08665043 | AC60: 7.996531384 | AD60: 2.95 | AE60: 7.835530303 | AF60: 8.035470425 | AG60: 7.635590181 | AH60: 6.5 | AI60: 13.16174242 | AJ60: 43.81000234 | AK60: -17.48651749 | AL60: 7 | AM60: 52.6719697 | AN60: 62.81683313 | AO60: 42.52710626 | AP60: 53.60381679 | AQ60: 125.1744386 | AR60: -17.96680503 | AS60: 95.71755725 | AT60: 195.1950595 | AU60: -3.759945022 | AV60: 100 | AW60: 23 | AX60: 34.3137085 | AY60: 11.6862915 | AZ60: 5893.587786 | BA60: 8596.419939 | BB60: 3190.755634 | BC60: 432.7633588 | BD60: 1842.440413 | BE60: -976.9136955 | BF60: 6806.10687 | BG60: 9445.359554 | BH60: 4166.854187 | BI60: 5000 | BJ60: 10.09007634 | BK60: 29.1136603 | BL60: -8.93350763 | BO60: 41697 | CD60: 4.3 | CE60: 12.8 | CF60: 98.52373195 | CG60: 7.84 | CH60: 6.7 | CI60: 43.7 | CJ60: 19 | CK60: 42 | CM60: 5800 | CN60: 210 | CO60: 6400 | CP60: 5
B61: 15:2 Svalövsbäcken nedstr Svalöv | C61: 2014-03-27 | D61: 4.8 | E61: 14 | F61: 109.2021602 | G61: 8.06 | H61: 3.5 | I61: 44.7 | J61: 8 | K61: 21 | M61: 2900 | N61: 170 | O61: 3800 | P61: <5 | R61: 2014 | S61: 3 | AA61: 10.54159091 | AB61: 13.08665043 | AC61: 7.996531384 | AD61: 2.95 | AE61: 7.835530303 | AF61: 8.035470425 | AG61: 7.635590181 | AH61: 6.5 | AI61: 13.16174242 | AJ61: 43.81000234 | AK61: -17.48651749 | AL61: 7 | AM61: 52.6719697 | AN61: 62.81683313 | AO61: 42.52710626 | AP61: 53.60381679 | AQ61: 125.1744386 | AR61: -17.96680503 | AS61: 95.71755725 | AT61: 195.1950595 | AU61: -3.759945022 | AV61: 100 | AW61: 23 | AX61: 34.3137085 | AY61: 11.6862915 | AZ61: 5893.587786 | BA61: 8596.419939 | BB61: 3190.755634 | BC61: 432.7633588 | BD61: 1842.440413 | BE61: -976.9136955 | BF61: 6806.10687 | BG61: 9445.359554 | BH61: 4166.854187 | BI61: 5000 | BJ61: 10.09007634 | BK61: 29.1136603 | BL61: -8.93350763 | BO61: 41725 | CD61: 4.8 | CE61: 14 | CF61: 109.2021602 | CG61: 8.06 | CH61: 3.5 | CI61: 44.7 | CJ61: 8 | CK61: 21 | CM61: 2900 | CN61: 170 | CO61: 3800 | CP61: 5
B62: 15:2 Svalövsbäcken nedstr Svalöv | C62: 2014-04-29 | D62: 10.1 | E62: 9.5 | F62: 84.64644814 | G62: 7.81 | H62: 1.8 | I62: 51.2 | J62: <2 | K62: 20 | M62: 3700 | N62: 120 | O62: 4600 | P62: <5 | R62: 2014 | S62: 4 | AA62: 10.54159091 | AB62: 13.08665043 | AC62: 7.996531384 | AD62: 2.95 | AE62: 7.835530303 | AF62: 8.035470425 | AG62: 7.635590181 | AH62: 6.5 | AI62: 13.16174242 | AJ62: 43.81000234 | AK62: -17.48651749 | AL62: 7 | AM62: 52.6719697 | AN62: 62.81683313 | AO62: 42.52710626 | AP62: 53.60381679 | AQ62: 125.1744386 | AR62: -17.96680503 | AS62: 95.71755725 | AT62: 195.1950595 | AU62: -3.759945022 | AV62: 100 | AW62: 23 | AX62: 34.3137085 | AY62: 11.6862915 | AZ62: 5893.587786 | BA62: 8596.419939 | BB62: 3190.755634 | BC62: 432.7633588 | BD62: 1842.440413 | BE62: -976.9136955 | BF62: 6806.10687 | BG62: 9445.359554 | BH62: 4166.854187 | BI62: 5000 | BJ62: 10.09007634 | BK62: 29.1136603 | BL62: -8.93350763 | BO62: 41758 | CD62: 10.1 | CE62: 9.5 | CF62: 84.64644814 | CG62: 7.81 | CH62: 1.8 | CI62: 51.2 | CJ62: 2 | CK62: 20 | CM62: 3700 | CN62: 120 | CO62: 4600 | CP62: 5
B63: 15:2 Svalövsbäcken nedstr Svalöv | C63: 2014-05-28 | D63: 12.7 | E63: 9.6 | F63: 90.82408035 | G63: 7.78 | H63: 2.8 | I63: 51.8 | J63: 19 | K63: 41 | M63: 4800 | N63: 88 | O63: 6300 | P63: <5 | R63: 2014 | S63: 5 | AA63: 10.54159091 | AB63: 13.08665043 | AC63: 7.996531384 | AD63: 2.95 | AE63: 7.835530303 | AF63: 8.035470425 | AG63: 7.635590181 | AH63: 6.5 | AI63: 13.16174242 | AJ63: 43.81000234 | AK63: -17.48651749 | AL63: 7 | AM63: 52.6719697 | AN63: 62.81683313 | AO63: 42.52710626 | AP63: 53.60381679 | AQ63: 125.1744386 | AR63: -17.96680503 | AS63: 95.71755725 | AT63: 195.1950595 | AU63: -3.759945022 | AV63: 100 | AW63: 23 | AX63: 34.3137085 | AY63: 11.6862915 | AZ63: 5893.587786 | BA63: 8596.419939 | BB63: 3190.755634 | BC63: 432.7633588 | BD63: 1842.440413 | BE63: -976.9136955 | BF63: 6806.10687 | BG63: 9445.359554 | BH63: 4166.854187 | BI63: 5000 | BJ63: 10.09007634 | BK63: 29.1136603 | BL63: -8.93350763 | BO63: 41787 | CD63: 12.7 | CE63: 9.6 | CF63: 90.82408035 | CG63: 7.78 | CH63: 2.8 | CI63: 51.8 | CJ63: 19 | CK63: 41 | CM63: 4800 | CN63: 88 | CO63: 6300 | CP63: 5
B64: 15:2 Svalövsbäcken nedstr Svalöv | C64: 2014-06-24 | D64: 12.8 | E64: 9 | F64: 85.33822343 | G64: 7.8 | H64: 4 | I64: 55.2 | J64: 17 | K64: 47 | M64: 4100 | N64: 57 | O64: 5400 | P64: 7.4 | Q64: igenväxt | R64: 2014 | S64: 6 | AA64: 10.54159091 | AB64: 13.08665043 | AC64: 7.996531384 | AD64: 2.95 | AE64: 7.835530303 | AF64: 8.035470425 | AG64: 7.635590181 | AH64: 6.5 | AI64: 13.16174242 | AJ64: 43.81000234 | AK64: -17.48651749 | AL64: 7 | AM64: 52.6719697 | AN64: 62.81683313 | AO64: 42.52710626 | AP64: 53.60381679 | AQ64: 125.1744386 | AR64: -17.96680503 | AS64: 95.71755725 | AT64: 195.1950595 | AU64: -3.759945022 | AV64: 100 | AW64: 23 | AX64: 34.3137085 | AY64: 11.6862915 | AZ64: 5893.587786 | BA64: 8596.419939 | BB64: 3190.755634 | BC64: 432.7633588 | BD64: 1842.440413 | BE64: -976.9136955 | BF64: 6806.10687 | BG64: 9445.359554 | BH64: 4166.854187 | BI64: 5000 | BJ64: 10.09007634 | BK64: 29.1136603 | BL64: -8.93350763 | BO64: 41814 | CD64: 12.8 | CE64: 9 | CF64: 85.33822343 | CG64: 7.8 | CH64: 4 | CI64: 55.2 | CJ64: 17 | CK64: 47 | CM64: 4100 | CN64: 57 | CO64: 5400 | CP64: 7.4
B65: 15:2 Svalövsbäcken nedstr Svalöv | C65: 2014-07-21 | D65: 17.7 | E65: 7.7 | F65: 80.95375185 | G65: 7.75 | H65: 0.91 | I65: 64.5 | J65: 39 | K65: 56 | M65: 6700 | N65: 36 | O65: 7500 | P65: <5 | Q65: igenväxt | R65: 2014 | S65: 7 | AA65: 10.54159091 | AB65: 13.08665043 | AC65: 7.996531384 | AD65: 2.95 | AE65: 7.835530303 | AF65: 8.035470425 | AG65: 7.635590181 | AH65: 6.5 | AI65: 13.16174242 | AJ65: 43.81000234 | AK65: -17.48651749 | AL65: 7 | AM65: 52.6719697 | AN65: 62.81683313 | AO65: 42.52710626 | AP65: 53.60381679 | AQ65: 125.1744386 | AR65: -17.96680503 | AS65: 95.71755725 | AT65: 195.1950595 | AU65: -3.759945022 | AV65: 100 | AW65: 23 | AX65: 34.3137085 | AY65: 11.6862915 | AZ65: 5893.587786 | BA65: 8596.419939 | BB65: 3190.755634 | BC65: 432.7633588 | BD65: 1842.440413 | BE65: -976.9136955 | BF65: 6806.10687 | BG65: 9445.359554 | BH65: 4166.854187 | BI65: 5000 | BJ65: 10.09007634 | BK65: 29.1136603 | BL65: -8.93350763 | BO65: 41841 | CD65: 17.7 | CE65: 7.7 | CF65: 80.95375185 | CG65: 7.75 | CH65: 0.91 | CI65: 64.5 | CJ65: 39 | CK65: 56 | CM65: 6700 | CN65: 36 | CO65: 7500 | CP65: 5
B66: 15:2 Svalövsbäcken nedstr Svalöv | C66: 2014-08-28 | D66: 14.2 | E66: 8.3 | F66: 81.15984881 | G66: 7.85 | H66: 1.8 | I66: 60.2 | J66: 24 | K66: 58 | M66: 6700 | N66: 22 | O66: 7900 | P66: <5 | R66: 2014 | S66: 8 | AA66: 10.54159091 | AB66: 13.08665043 | AC66: 7.996531384 | AD66: 2.95 | AE66: 7.835530303 | AF66: 8.035470425 | AG66: 7.635590181 | AH66: 6.5 | AI66: 13.16174242 | AJ66: 43.81000234 | AK66: -17.48651749 | AL66: 7 | AM66: 52.6719697 | AN66: 62.81683313 | AO66: 42.52710626 | AP66: 53.60381679 | AQ66: 125.1744386 | AR66: -17.96680503 | AS66: 95.71755725 | AT66: 195.1950595 | AU66: -3.759945022 | AV66: 100 | AW66: 23 | AX66: 34.3137085 | AY66: 11.6862915 | AZ66: 5893.587786 | BA66: 8596.419939 | BB66: 3190.755634 | BC66: 432.7633588 | BD66: 1842.440413 | BE66: -976.9136955 | BF66: 6806.10687 | BG66: 9445.359554 | BH66: 4166.854187 | BI66: 5000 | BJ66: 10.09007634 | BK66: 29.1136603 | BL66: -8.93350763 | BO66: 41879 | CD66: 14.2 | CE66: 8.3 | CF66: 81.15984881 | CG66: 7.85 | CH66: 1.8 | CI66: 60.2 | CJ66: 24 | CK66: 58 | CM66: 6700 | CN66: 22 | CO66: 7900 | CP66: 5
B67: 15:2 Svalövsbäcken nedstr Svalöv | C67: 2014-09-30 | D67: 12.6 | E67: 8.5 | F67: 80.23708412 | G67: 7.79 | H67: 1.2 | I67: 64.6 | J67: 63 | K67: 85 | M67: 9100 | N67: 130 | O67: 9700 | P67: <5 | R67: 2014 | S67: 9 | AA67: 10.54159091 | AB67: 13.08665043 | AC67: 7.996531384 | AD67: 2.95 | AE67: 7.835530303 | AF67: 8.035470425 | AG67: 7.635590181 | AH67: 6.5 | AI67: 13.16174242 | AJ67: 43.81000234 | AK67: -17.48651749 | AL67: 7 | AM67: 52.6719697 | AN67: 62.81683313 | AO67: 42.52710626 | AP67: 53.60381679 | AQ67: 125.1744386 | AR67: -17.96680503 | AS67: 95.71755725 | AT67: 195.1950595 | AU67: -3.759945022 | AV67: 100 | AW67: 23 | AX67: 34.3137085 | AY67: 11.6862915 | AZ67: 5893.587786 | BA67: 8596.419939 | BB67: 3190.755634 | BC67: 432.7633588 | BD67: 1842.440413 | BE67: -976.9136955 | BF67: 6806.10687 | BG67: 9445.359554 | BH67: 4166.854187 | BI67: 5000 | BJ67: 10.09007634 | BK67: 29.1136603 | BL67: -8.93350763 | BO67: 41912 | CD67: 12.6 | CE67: 8.5 | CF67: 80.23708412 | CG67: 7.79 | CH67: 1.2 | CI67: 64.6 | CJ67: 63 | CK67: 85 | CM67: 9100 | CN67: 130 | CO67: 9700 | CP67: 5
B68: 15:2 Svalövsbäcken nedstr Svalöv | C68: 2014-10-29 | D68: 10.4 | E68: 10.2 | F68: 91.53098348 | G68: 7.86 | H68: 10 | I68: 52.1 | J68: 39 | K68: 65 | M68: 7800 | N68: 78 | O68: 9000 | P68: 6.1 | R68: 2014 | S68: 10 | AA68: 10.54159091 | AB68: 13.08665043 | AC68: 7.996531384 | AD68: 2.95 | AE68: 7.835530303 | AF68: 8.035470425 | AG68: 7.635590181 | AH68: 6.5 | AI68: 13.16174242 | AJ68: 43.81000234 | AK68: -17.48651749 | AL68: 7 | AM68: 52.6719697 | AN68: 62.81683313 | AO68: 42.52710626 | AP68: 53.60381679 | AQ68: 125.1744386 | AR68: -17.96680503 | AS68: 95.71755725 | AT68: 195.1950595 | AU68: -3.759945022 | AV68: 100 | AW68: 23 | AX68: 34.3137085 | AY68: 11.6862915 | AZ68: 5893.587786 | BA68: 8596.419939 | BB68: 3190.755634 | BC68: 432.7633588 | BD68: 1842.440413 | BE68: -976.9136955 | BF68: 6806.10687 | BG68: 9445.359554 | BH68: 4166.854187 | BI68: 5000 | BJ68: 10.09007634 | BK68: 29.1136603 | BL68: -8.93350763 | BO68: 41941 | CD68: 10.4 | CE68: 10.2 | CF68: 91.53098348 | CG68: 7.86 | CH68: 10 | CI68: 52.1 | CJ68: 39 | CK68: 65 | CM68: 7800 | CN68: 78 | CO68: 9000 | CP68: 6.1
B69: 15:2 Svalövsbäcken nedstr Svalöv | C69: 2014-11-27 | D69: 6.4 | E69: 11.7 | F69: 95.14609018 | G69: 7.95 | H69: 5.1 | I69: 53.5 | J69: 43 | K69: 60 | M69: 6200 | N69: 81 | O69: 6800 | P69: <5 | R69: 2014 | S69: 11 | AA69: 10.54159091 | AB69: 13.08665043 | AC69: 7.996531384 | AD69: 2.95 | AE69: 7.835530303 | AF69: 8.035470425 | AG69: 7.635590181 | AH69: 6.5 | AI69: 13.16174242 | AJ69: 43.81000234 | AK69: -17.48651749 | AL69: 7 | AM69: 52.6719697 | AN69: 62.81683313 | AO69: 42.52710626 | AP69: 53.60381679 | AQ69: 125.1744386 | AR69: -17.96680503 | AS69: 95.71755725 | AT69: 195.1950595 | AU69: -3.759945022 | AV69: 100 | AW69: 23 | AX69: 34.3137085 | AY69: 11.6862915 | AZ69: 5893.587786 | BA69: 8596.419939 | BB69: 3190.755634 | BC69: 432.7633588 | BD69: 1842.440413 | BE69: -976.9136955 | BF69: 6806.10687 | BG69: 9445.359554 | BH69: 4166.854187 | BI69: 5000 | BJ69: 10.09007634 | BK69: 29.1136603 | BL69: -8.93350763 | BO69: 41970 | CD69: 6.4 | CE69: 11.7 | CF69: 95.14609018 | CG69: 7.95 | CH69: 5.1 | CI69: 53.5 | CJ69: 43 | CK69: 60 | CM69: 6200 | CN69: 81 | CO69: 6800 | CP69: 5
B70: 15:2 Svalövsbäcken nedstr Svalöv | C70: 2014-12-22 | D70: 6.5 | E70: 11.2 | F70: 91.31364719 | G70: 7.49 | H70: 250 | I70: 34.5 | J70: 74 | K70: 490 | M70: 6700 | N70: 12 | O70: 8200 | P70: 150 | Q70: grumligt | R70: 2014 | S70: 12 | AA70: 10.54159091 | AB70: 13.08665043 | AC70: 7.996531384 | AD70: 2.95 | AE70: 7.835530303 | AF70: 8.035470425 | AG70: 7.635590181 | AH70: 6.5 | AI70: 13.16174242 | AJ70: 43.81000234 | AK70: -17.48651749 | AL70: 7 | AM70: 52.6719697 | AN70: 62.81683313 | AO70: 42.52710626 | AP70: 53.60381679 | AQ70: 125.1744386 | AR70: -17.96680503 | AS70: 95.71755725 | AT70: 195.1950595 | AU70: -3.759945022 | AV70: 100 | AW70: 23 | AX70: 34.3137085 | AY70: 11.6862915 | AZ70: 5893.587786 | BA70: 8596.419939 | BB70: 3190.755634 | BC70: 432.7633588 | BD70: 1842.440413 | BE70: -976.9136955 | BF70: 6806.10687 | BG70: 9445.359554 | BH70: 4166.854187 | BI70: 5000 | BJ70: 10.09007634 | BK70: 29.1136603 | BL70: -8.93350763 | BO70: 41995 | CD70: 6.5 | CE70: 11.2 | CF70: 91.31364719 | CG70: 7.49 | CH70: 250 | CI70: 34.5 | CJ70: 74 | CK70: 490 | CM70: 6700 | CN70: 12 | CO70: 8200 | CP70: 150
B71: 15:2 Svalövsbäcken nedstr Svalöv | C71: 2015-01-27 | D71: 3.5 | E71: 12.6 | F71: 94.91878762 | G71: 7.66 | H71: 51 | I71: 35.7 | J71: 43 | K71: 110 | M71: 5900 | N71: 31 | O71: 7000 | P71: 21 | R71: 2015 | S71: 1 | AA71: 10.54159091 | AB71: 13.08665043 | AC71: 7.996531384 | AD71: 2.95 | AE71: 7.835530303 | AF71: 8.035470425 | AG71: 7.635590181 | AH71: 6.5 | AI71: 13.16174242 | AJ71: 43.81000234 | AK71: -17.48651749 | AL71: 7 | AM71: 52.6719697 | AN71: 62.81683313 | AO71: 42.52710626 | AP71: 53.60381679 | AQ71: 125.1744386 | AR71: -17.96680503 | AS71: 95.71755725 | AT71: 195.1950595 | AU71: -3.759945022 | AV71: 100 | AW71: 23 | AX71: 34.3137085 | AY71: 11.6862915 | AZ71: 5893.587786 | BA71: 8596.419939 | BB71: 3190.755634 | BC71: 432.7633588 | BD71: 1842.440413 | BE71: -976.9136955 | BF71: 6806.10687 | BG71: 9445.359554 | BH71: 4166.854187 | BI71: 5000 | BJ71: 10.09007634 | BK71: 29.1136603 | BL71: -8.93350763 | BO71: 42031 | CD71: 3.5 | CE71: 12.6 | CF71: 94.91878762 | CG71: 7.66 | CH71: 51 | CI71: 35.7 | CJ71: 43 | CK71: 110 | CM71: 5900 | CN71: 31 | CO71: 7000 | CP71: 21
B72: 15:2 Svalövsbäcken nedstr Svalöv | C72: 2015-02-24 | D72: 3.5 | E72: 12.8 | F72: 96.42543504 | G72: 7.72 | H72: 22 | I72: 42.6 | J72: 20 | K72: 52 | M72: 6500 | N72: 24 | O72: 6800 | P72: 9 | R72: 2015 | S72: 2 | AA72: 10.54159091 | AB72: 13.08665043 | AC72: 7.996531384 | AD72: 2.95 | AE72: 7.835530303 | AF72: 8.035470425 | AG72: 7.635590181 | AH72: 6.5 | AI72: 13.16174242 | AJ72: 43.81000234 | AK72: -17.48651749 | AL72: 7 | AM72: 52.6719697 | AN72: 62.81683313 | AO72: 42.52710626 | AP72: 53.60381679 | AQ72: 125.1744386 | AR72: -17.96680503 | AS72: 95.71755725 | AT72: 195.1950595 | AU72: -3.759945022 | AV72: 100 | AW72: 23 | AX72: 34.3137085 | AY72: 11.6862915 | AZ72: 5893.587786 | BA72: 8596.419939 | BB72: 3190.755634 | BC72: 432.7633588 | BD72: 1842.440413 | BE72: -976.9136955 | BF72: 6806.10687 | BG72: 9445.359554 | BH72: 4166.854187 | BI72: 5000 | BJ72: 10.09007634 | BK72: 29.1136603 | BL72: -8.93350763 | BO72: 42059 | CD72: 3.5 | CE72: 12.8 | CF72: 96.42543504 | CG72: 7.72 | CH72: 22 | CI72: 42.6 | CJ72: 20 | CK72: 52 | CM72: 6500 | CN72: 24 | CO72: 6800 | CP72: 9
B73: 15:2 Svalövsbäcken nedstr Svalöv | C73: 2015-03-31 | D73: 5 | E73: 10.8 | F73: 84.68773697 | G73: 7.46 | H73: 45 | I73: 39.9 | J73: 70 | K73: 110 | M73: 12000 | N73: 110 | O73: 12000 | P73: 22 | R73: 2015 | S73: 3 | AA73: 10.54159091 | AB73: 13.08665043 | AC73: 7.996531384 | AD73: 2.95 | AE73: 7.835530303 | AF73: 8.035470425 | AG73: 7.635590181 | AH73: 6.5 | AI73: 13.16174242 | AJ73: 43.81000234 | AK73: -17.48651749 | AL73: 7 | AM73: 52.6719697 | AN73: 62.81683313 | AO73: 42.52710626 | AP73: 53.60381679 | AQ73: 125.1744386 | AR73: -17.96680503 | AS73: 95.71755725 | AT73: 195.1950595 | AU73: -3.759945022 | AV73: 100 | AW73: 23 | AX73: 34.3137085 | AY73: 11.6862915 | AZ73: 5893.587786 | BA73: 8596.419939 | BB73: 3190.755634 | BC73: 432.7633588 | BD73: 1842.440413 | BE73: -976.9136955 | BF73: 6806.10687 | BG73: 9445.359554 | BH73: 4166.854187 | BI73: 5000 | BJ73: 10.09007634 | BK73: 29.1136603 | BL73: -8.93350763 | BO73: 42094 | CD73: 5 | CE73: 10.8 | CF73: 84.68773697 | CG73: 7.46 | CH73: 45 | CI73: 39.9 | CJ73: 70 | CK73: 110 | CM73: 12000 | CN73: 110 | CO73: 12000 | CP73: 22
B74: 15:2 Svalövsbäcken nedstr Svalöv | C74: 2015-04-29 | D74: 8.1 | E74: 10.6 | F74: 89.9751079 | G74: 7.94 | H74: 2.8 | I74: 46.9 | J74: 5.8 | K74: 25 | M74: 4400 | N74: 190 | O74: 4900 | P74: <5 | R74: 2015 | S74: 4 | AA74: =$E$145 -> 10.54159091 | AB74: =AA74+E$146 -> 13.08665043 | AC74: =AA74-E$146 -> 7.996531384 | AD74: 2.95 | AE74: =$G$145 -> 7.835530303 | AF74: =AE74+G$146 -> 8.035470425 | AG74: =AE74-G$146 -> 7.635590181 | AH74: 6.5 | AI74: =$H$145 -> 13.16174242 | AJ74: =AI74+H$146 -> 43.81000234 | AK74: =AI74-H$146 -> -17.48651749 | AL74: 7 | AM74: =$I$145 -> 52.6719697 | AN74: =AM74+I$146 -> 62.81683313 | AO74: =AM74-I$146 -> 42.52710626 | AP74: =$J$145 -> 53.60381679 | AQ74: =AP74+J$146 -> 125.1744386 | AR74: =AP74-J$146 -> -17.96680503 | AS74: =$K$145 -> 95.71755725 | AT74: =AS74+$K$146 -> 195.1950595 | AU74: =AS74-$K$146 -> -3.759945022 | AV74: 100 | AW74: =$L$145 -> 23 | AX74: =AW74+$L$146 -> 34.3137085 | AY74: =AW74-$L$146 -> 11.6862915 | AZ74: =$M$145 -> 5893.587786 | BA74: =AZ74+$M$146 -> 8596.419939 | BB74: =AZ74-$M$146 -> 3190.755634 | BC74: =$N$145 -> 432.7633588 | BD74: =BC74+$N$146 -> 1842.440413 | BE74: =BC74-$N$146 -> -976.9136955 | BF74: =$O$145 -> 6806.10687 | BG74: =BF74+$O$146 -> 9445.359554 | BH74: =BF74-$O$146 -> 4166.854187 | BI74: 5000 | BJ74: =$P$145 -> 10.09007634 | BK74: =BJ74+$P$146 -> 29.1136603 | BL74: =BJ74-$P$146 -> -8.93350763 | BO74: =C74 -> 42123 | CD74: =IF(D74="","",IF(OR(LEFT(D74,1)="<",LEFT(D74,1)=">"),VALUE(MID(D74,2,3)),D74)) -> 8.1 | CE74: =IF(E74="","",IF(OR(LEFT(E74,1)="<",LEFT(E74,1)=">"),VALUE(MID(E74,2,3)),E74)) -> 10.6 | CF74: =IF(F74="","",IF(OR(LEFT(F74,1)="<",LEFT(F74,1)=">"),VALUE(MID(F74,2,3)),F74)) -> 89.9751079 | CG74: =IF(G74="","",IF(OR(LEFT(G74,1)="<",LEFT(G74,1)=">"),VALUE(MID(G74,2,3)),G74)) -> 7.94 | CH74: =IF(H74="","",IF(OR(LEFT(H74,1)="<",LEFT(H74,1)=">"),VALUE(MID(H74,2,3)),H74)) -> 2.8 | CI74: =IF(I74="","",IF(OR(LEFT(I74,1)="<",LEFT(I74,1)=">"),VALUE(MID(I74,2,3)),I74)) -> 46.9 | CJ74: =IF(J74="","",IF(OR(LEFT(J74,1)="<",LEFT(J74,1)=">"),VALUE(MID(J74,2,3)),J74)) -> 5.8 | CK74: =IF(K74="","",IF(OR(LEFT(K74,1)="<",LEFT(K74,1)=">"),VALUE(MID(K74,2,3)),K74)) -> 25 | CL74: =IF(L74="","",IF(OR(LEFT(L74,1)="<",LEFT(L74,1)=">"),VALUE(MID(L74,2,3)),L74)) ->  | CM74: =IF(M74="","",IF(OR(LEFT(M74,1)="<",LEFT(M74,1)=">"),VALUE(MID(M74,2,3)),M74)) -> 4400 | CN74: =IF(N74="","",IF(OR(LEFT(N74,1)="<",LEFT(N74,1)=">"),VALUE(MID(N74,2,3)),N74)) -> 190 | CO74: =IF(O74="","",IF(OR(LEFT(O74,1)="<",LEFT(O74,1)=">"),VALUE(MID(O74,2,3)),O74)) -> 4900 | CP74: =IF(P74="","",IF(OR(LEFT(P74,1)="<",LEFT(P74,1)=">"),VALUE(MID(P74,2,3)),P74)) -> 5
B75: 15:2 Svalövsbäcken nedstr Svalöv | C75: 2015-05-27 | D75: 11.6 | E75: 10.8 | F75: 99.65989849 | G75: 8.04 | H75: 2.8 | I75: 49.6 | J75: 25 | K75: 56 | M75: 1100 | N75: 34 | O75: 4600 | P75: <5 | R75: 2015 | S75: 5 | AA75: 10.54159091 | AB75: 13.08665043 | AC75: 7.996531384 | AD75: 2.95 | AE75: 7.835530303 | AF75: 8.035470425 | AG75: 7.635590181 | AH75: 6.5 | AI75: 13.16174242 | AJ75: 43.81000234 | AK75: -17.48651749 | AL75: 7 | AM75: 52.6719697 | AN75: 62.81683313 | AO75: 42.52710626 | AP75: 53.60381679 | AQ75: 125.1744386 | AR75: -17.96680503 | AS75: 95.71755725 | AT75: 195.1950595 | AU75: -3.759945022 | AV75: 100 | AW75: 23 | AX75: 34.3137085 | AY75: 11.6862915 | AZ75: 5893.587786 | BA75: 8596.419939 | BB75: 3190.755634 | BC75: 432.7633588 | BD75: 1842.440413 | BE75: -976.9136955 | BF75: 6806.10687 | BG75: 9445.359554 | BH75: 4166.854187 | BI75: 5000 | BJ75: 10.09007634 | BK75: 29.1136603 | BL75: -8.93350763 | BO75: 42151 | CD75: 11.6 | CE75: 10.8 | CF75: 99.65989849 | CG75: 8.04 | CH75: 2.8 | CI75: 49.6 | CJ75: 25 | CK75: 56 | CM75: 1100 | CN75: 34 | CO75: 4600 | CP75: 5
B76: 15:2 Svalövsbäcken nedstr Svalöv | C76: 2015-06-25 | D76: 12.7 | E76: 9.11 | F76: 86.18826792 | G76: 7.83 | H76: 3.6 | I76: 53.8 | J76: 71 | K76: 110 | M76: 4500 | N76: 120 | O76: 5000 | P76: <5 | R76: 2015 | S76: 6 | AA76: 10.54159091 | AB76: 13.08665043 | AC76: 7.996531384 | AD76: 2.95 | AE76: 7.835530303 | AF76: 8.035470425 | AG76: 7.635590181 | AH76: 6.5 | AI76: 13.16174242 | AJ76: 43.81000234 | AK76: -17.48651749 | AL76: 7 | AM76: 52.6719697 | AN76: 62.81683313 | AO76: 42.52710626 | AP76: 53.60381679 | AQ76: 125.1744386 | AR76: -17.96680503 | AS76: 95.71755725 | AT76: 195.1950595 | AU76: -3.759945022 | AV76: 100 | AW76: 23 | AX76: 34.3137085 | AY76: 11.6862915 | AZ76: 5893.587786 | BA76: 8596.419939 | BB76: 3190.755634 | BC76: 432.7633588 | BD76: 1842.440413 | BE76: -976.9136955 | BF76: 6806.10687 | BG76: 9445.359554 | BH76: 4166.854187 | BI76: 5000 | BJ76: 10.09007634 | BK76: 29.1136603 | BL76: -8.93350763 | BO76: 42180 | CD76: 12.7 | CE76: 9.11 | CF76: 86.18826792 | CG76: 7.83 | CH76: 3.6 | CI76: 53.8 | CJ76: 71 | CK76: 110 | CM76: 4500 | CN76: 120 | CO76: 5000 | CP76: 5
B77: 15:2 Svalövsbäcken nedstr Svalöv | C77: 2015-07-28 | D77: 15.7 | E77: 7.4 | F77: 74.70037417 | G77: 7.76 | H77: 11 | I77: 38.9 | J77: 74 | K77: 120 | M77: 2900 | N77: 130 | O77: 3200 | P77: 9.4 | R77: 2015 | S77: 7 | AA77: 10.54159091 | AB77: 13.08665043 | AC77: 7.996531384 | AD77: 2.95 | AE77: 7.835530303 | AF77: 8.035470425 | AG77: 7.635590181 | AH77: 6.5 | AI77: 13.16174242 | AJ77: 43.81000234 | AK77: -17.48651749 | AL77: 7 | AM77: 52.6719697 | AN77: 62.81683313 | AO77: 42.52710626 | AP77: 53.60381679 | AQ77: 125.1744386 | AR77: -17.96680503 | AS77: 95.71755725 | AT77: 195.1950595 | AU77: -3.759945022 | AV77: 100 | AW77: 23 | AX77: 34.3137085 | AY77: 11.6862915 | AZ77: 5893.587786 | BA77: 8596.419939 | BB77: 3190.755634 | BC77: 432.7633588 | BD77: 1842.440413 | BE77: -976.9136955 | BF77: 6806.10687 | BG77: 9445.359554 | BH77: 4166.854187 | BI77: 5000 | BJ77: 10.09007634 | BK77: 29.1136603 | BL77: -8.93350763 | BO77: 42213 | CD77: 15.7 | CE77: 7.4 | CF77: 74.70037417 | CG77: 7.76 | CH77: 11 | CI77: 38.9 | CJ77: 74 | CK77: 120 | CM77: 2900 | CN77: 130 | CO77: 3200 | CP77: 9.4
B78: 15:2 Svalövsbäcken nedstr Svalöv | C78: 2015-08-26 | D78: 15.2 | E78: 8.5 | F78: 84.90958451 | G78: 7.71 | H78: 1 | I78: 49.7 | J78: 100 | K78: 150 | M78: 4500 | N78: 170 | O78: 4800 | P78: 7.2 | R78: 2015 | S78: 8 | AA78: 10.54159091 | AB78: 13.08665043 | AC78: 7.996531384 | AD78: 2.95 | AE78: 7.835530303 | AF78: 8.035470425 | AG78: 7.635590181 | AH78: 6.5 | AI78: 13.16174242 | AJ78: 43.81000234 | AK78: -17.48651749 | AL78: 7 | AM78: 52.6719697 | AN78: 62.81683313 | AO78: 42.52710626 | AP78: 53.60381679 | AQ78: 125.1744386 | AR78: -17.96680503 | AS78: 95.71755725 | AT78: 195.1950595 | AU78: -3.759945022 | AV78: 100 | AW78: 23 | AX78: 34.3137085 | AY78: 11.6862915 | AZ78: 5893.587786 | BA78: 8596.419939 | BB78: 3190.755634 | BC78: 432.7633588 | BD78: 1842.440413 | BE78: -976.9136955 | BF78: 6806.10687 | BG78: 9445.359554 | BH78: 4166.854187 | BI78: 5000 | BJ78: 10.09007634 | BK78: 29.1136603 | BL78: -8.93350763 | BO78: 42242 | CD78: 15.2 | CE78: 8.5 | CF78: 84.90958451 | CG78: 7.71 | CH78: 1 | CI78: 49.7 | CJ78: 100 | CK78: 150 | CM78: 4500 | CN78: 170 | CO78: 4800 | CP78: 7.2
B79: 15:2 Svalövsbäcken nedstr Svalöv | C79: 2015-09-30 | D79: 13.1 | E79: 10.5 | F79: 100.2284035 | G79: 7.89 | H79: 4.7 | I79: 59 | J79: 26 | K79: 60 | M79: 6800 | N79: 98 | O79: 6500 | P79: <5 | R79: 2015 | S79: 9 | AA79: 10.54159091 | AB79: 13.08665043 | AC79: 7.996531384 | AD79: 2.95 | AE79: 7.835530303 | AF79: 8.035470425 | AG79: 7.635590181 | AH79: 6.5 | AI79: 13.16174242 | AJ79: 43.81000234 | AK79: -17.48651749 | AL79: 7 | AM79: 52.6719697 | AN79: 62.81683313 | AO79: 42.52710626 | AP79: 53.60381679 | AQ79: 125.1744386 | AR79: -17.96680503 | AS79: 95.71755725 | AT79: 195.1950595 | AU79: -3.759945022 | AV79: 100 | AW79: 23 | AX79: 34.3137085 | AY79: 11.6862915 | AZ79: 5893.587786 | BA79: 8596.419939 | BB79: 3190.755634 | BC79: 432.7633588 | BD79: 1842.440413 | BE79: -976.9136955 | BF79: 6806.10687 | BG79: 9445.359554 | BH79: 4166.854187 | BI79: 5000 | BJ79: 10.09007634 | BK79: 29.1136603 | BL79: -8.93350763 | BO79: 42277 | CD79: 13.1 | CE79: 10.5 | CF79: 100.2284035 | CG79: 7.89 | CH79: 4.7 | CI79: 59 | CJ79: 26 | CK79: 60 | CM79: 6800 | CN79: 98 | CO79: 6500 | CP79: 5
B80: 15:2 Svalövsbäcken nedstr Svalöv | C80: 2015-10-28 | D80: 8.2 | E80: 9.7 | F80: 82.53971483 | G80: 7.86 | H80: 2 | I80: 60.6 | J80: 36 | K80: 56 | M80: 6300 | N80: 44 | O80: 6300 | P80: <5 | R80: 2015 | S80: 10 | AA80: 10.54159091 | AB80: 13.08665043 | AC80: 7.996531384 | AD80: 2.95 | AE80: 7.835530303 | AF80: 8.035470425 | AG80: 7.635590181 | AH80: 6.5 | AI80: 13.16174242 | AJ80: 43.81000234 | AK80: -17.48651749 | AL80: 7 | AM80: 52.6719697 | AN80: 62.81683313 | AO80: 42.52710626 | AP80: 53.60381679 | AQ80: 125.1744386 | AR80: -17.96680503 | AS80: 95.71755725 | AT80: 195.1950595 | AU80: -3.759945022 | AV80: 100 | AW80: 23 | AX80: 34.3137085 | AY80: 11.6862915 | AZ80: 5893.587786 | BA80: 8596.419939 | BB80: 3190.755634 | BC80: 432.7633588 | BD80: 1842.440413 | BE80: -976.9136955 | BF80: 6806.10687 | BG80: 9445.359554 | BH80: 4166.854187 | BI80: 5000 | BJ80: 10.09007634 | BK80: 29.1136603 | BL80: -8.93350763 | BO80: 42305 | CD80: 8.2 | CE80: 9.7 | CF80: 82.53971483 | CG80: 7.86 | CH80: 2 | CI80: 60.6 | CJ80: 36 | CK80: 56 | CM80: 6300 | CN80: 44 | CO80: 6300 | CP80: 5
B81: 15:2 Svalövsbäcken nedstr Svalöv | C81: 2015-12-21 | D81: 7.7 | E81: 11.1 | F81: 93.28638622 | G81: 7.81 | H81: 9.8 | I81: 48.1 | J81: 30 | K81: 60 | M81: 6800 | N81: 120 | O81: 7000 | P81: 6.1 | R81: 2015 | S81: 12 | AA81: 10.54159091 | AB81: 13.08665043 | AC81: 7.996531384 | AD81: 2.95 | AE81: 7.835530303 | AF81: 8.035470425 | AG81: 7.635590181 | AH81: 6.5 | AI81: 13.16174242 | AJ81: 43.81000234 | AK81: -17.48651749 | AL81: 7 | AM81: 52.6719697 | AN81: 62.81683313 | AO81: 42.52710626 | AP81: 53.60381679 | AQ81: 125.1744386 | AR81: -17.96680503 | AS81: 95.71755725 | AT81: 195.1950595 | AU81: -3.759945022 | AV81: 100 | AW81: 23 | AX81: 34.3137085 | AY81: 11.6862915 | AZ81: 5893.587786 | BA81: 8596.419939 | BB81: 3190.755634 | BC81: 432.7633588 | BD81: 1842.440413 | BE81: -976.9136955 | BF81: 6806.10687 | BG81: 9445.359554 | BH81: 4166.854187 | BI81: 5000 | BJ81: 10.09007634 | BK81: 29.1136603 | BL81: -8.93350763 | BO81: 42359 | CD81: 7.7 | CE81: 11.1 | CF81: 93.28638622 | CG81: 7.81 | CH81: 9.8 | CI81: 48.1 | CJ81: 30 | CK81: 60 | CM81: 6800 | CN81: 120 | CO81: 7000 | CP81: 6.1
B82: 15:2 Svalövsbäcken nedstr Svalöv | C82: 2016-01-27 | D82: 3.6 | E82: 11.8 | F82: 89.13328621 | G82: 7.61 | H82: 33 | I82: 38.8 | J82: 41 | K82: 100 | M82: 4100 | N82: 180 | O82: 4700 | P82: 31 | R82: 2016 | S82: 1 | AA82: 10.54159091 | AB82: 13.08665043 | AC82: 7.996531384 | AD82: 2.95 | AE82: 7.835530303 | AF82: 8.035470425 | AG82: 7.635590181 | AH82: 6.5 | AI82: 13.16174242 | AJ82: 43.81000234 | AK82: -17.48651749 | AL82: 7 | AM82: 52.6719697 | AN82: 62.81683313 | AO82: 42.52710626 | AP82: 53.60381679 | AQ82: 125.1744386 | AR82: -17.96680503 | AS82: 95.71755725 | AT82: 195.1950595 | AU82: -3.759945022 | AV82: 100 | AW82: 23 | AX82: 34.3137085 | AY82: 11.6862915 | AZ82: 5893.587786 | BA82: 8596.419939 | BB82: 3190.755634 | BC82: 432.7633588 | BD82: 1842.440413 | BE82: -976.9136955 | BF82: 6806.10687 | BG82: 9445.359554 | BH82: 4166.854187 | BI82: 5000 | BJ82: 10.09007634 | BK82: 29.1136603 | BL82: -8.93350763 | BO82: 42396 | CD82: 3.6 | CE82: 11.8 | CF82: 89.13328621 | CG82: 7.61 | CH82: 33 | CI82: 38.8 | CJ82: 41 | CK82: 100 | CM82: 4100 | CN82: 180 | CO82: 4700 | CP82: 31
B83: 15:2 Svalövsbäcken nedstr Svalöv | C83: 2016-02-25 | D83: 3.4 | E83: 11.6 | F83: 87.14875384 | G83: 7.84 | H83: 8.5 | I83: 40.7 | J83: 24 | K83: 54 | M83: 6000 | N83: 17 | O83: 5900 | P83: 5.9 | R83: 2016 | S83: 2 | AA83: 10.54159091 | AB83: 13.08665043 | AC83: 7.996531384 | AD83: 2.95 | AE83: 7.835530303 | AF83: 8.035470425 | AG83: 7.635590181 | AH83: 6.5 | AI83: 13.16174242 | AJ83: 43.81000234 | AK83: -17.48651749 | AL83: 7 | AM83: 52.6719697 | AN83: 62.81683313 | AO83: 42.52710626 | AP83: 53.60381679 | AQ83: 125.1744386 | AR83: -17.96680503 | AS83: 95.71755725 | AT83: 195.1950595 | AU83: -3.759945022 | AV83: 100 | AW83: 23 | AX83: 34.3137085 | AY83: 11.6862915 | AZ83: 5893.587786 | BA83: 8596.419939 | BB83: 3190.755634 | BC83: 432.7633588 | BD83: 1842.440413 | BE83: -976.9136955 | BF83: 6806.10687 | BG83: 9445.359554 | BH83: 4166.854187 | BI83: 5000 | BJ83: 10.09007634 | BK83: 29.1136603 | BL83: -8.93350763 | BO83: 42425 | CD83: 3.4 | CE83: 11.6 | CF83: 87.14875384 | CG83: 7.84 | CH83: 8.5 | CI83: 40.7 | CJ83: 24 | CK83: 54 | CM83: 6000 | CN83: 17 | CO83: 5900 | CP83: 5.9
B84: 15:2 Svalövsbäcken nedstr Svalöv | C84: 2016-03-30 | D84: 6.5 | E84: 11.3 | F84: 92.12894761 | G84: 7.94 | H84: 2.5 | I84: 45.9 | J84: 22 | K84: 29 | M84: 3900 | N84: 130 | O84: 3700 | P84: <5 | R84: 2016 | S84: 3 | AA84: 10.54159091 | AB84: 13.08665043 | AC84: 7.996531384 | AD84: 2.95 | AE84: 7.835530303 | AF84: 8.035470425 | AG84: 7.635590181 | AH84: 6.5 | AI84: 13.16174242 | AJ84: 43.81000234 | AK84: -17.48651749 | AL84: 7 | AM84: 52.6719697 | AN84: 62.81683313 | AO84: 42.52710626 | AP84: 53.60381679 | AQ84: 125.1744386 | AR84: -17.96680503 | AS84: 95.71755725 | AT84: 195.1950595 | AU84: -3.759945022 | AV84: 100 | AW84: 23 | AX84: 34.3137085 | AY84: 11.6862915 | AZ84: 5893.587786 | BA84: 8596.419939 | BB84: 3190.755634 | BC84: 432.7633588 | BD84: 1842.440413 | BE84: -976.9136955 | BF84: 6806.10687 | BG84: 9445.359554 | BH84: 4166.854187 | BI84: 5000 | BJ84: 10.09007634 | BK84: 29.1136603 | BL84: -8.93350763 | BO84: 42459 | CD84: 6.5 | CE84: 11.3 | CF84: 92.12894761 | CG84: 7.94 | CH84: 2.5 | CI84: 45.9 | CJ84: 22 | CK84: 29 | CM84: 3900 | CN84: 130 | CO84: 3700 | CP84: 5
B85: 15:2 Svalövsbäcken nedstr Svalöv | C85: 2016-04-27 | D85: 5.9 | E85: 10.3 | F85: 82.68870146 | G85: 7.88 | H85: 5.4 | I85: 43.2 | J85: 33 | K85: 52 | M85: 2900 | N85: 190 | O85: 3700 | P85: 7.1 | R85: 2016 | S85: 4 | AA85: 10.54159091 | AB85: 13.08665043 | AC85: 7.996531384 | AD85: 2.95 | AE85: 7.835530303 | AF85: 8.035470425 | AG85: 7.635590181 | AH85: 6.5 | AI85: 13.16174242 | AJ85: 43.81000234 | AK85: -17.48651749 | AL85: 7 | AM85: 52.6719697 | AN85: 62.81683313 | AO85: 42.52710626 | AP85: 53.60381679 | AQ85: 125.1744386 | AR85: -17.96680503 | AS85: 95.71755725 | AT85: 195.1950595 | AU85: -3.759945022 | AV85: 100 | AW85: 23 | AX85: 34.3137085 | AY85: 11.6862915 | AZ85: 5893.587786 | BA85: 8596.419939 | BB85: 3190.755634 | BC85: 432.7633588 | BD85: 1842.440413 | BE85: -976.9136955 | BF85: 6806.10687 | BG85: 9445.359554 | BH85: 4166.854187 | BI85: 5000 | BJ85: 10.09007634 | BK85: 29.1136603 | BL85: -8.93350763 | BO85: 42487 | CD85: 5.9 | CE85: 10.3 | CF85: 82.68870146 | CG85: 7.88 | CH85: 5.4 | CI85: 43.2 | CJ85: 33 | CK85: 52 | CM85: 2900 | CN85: 190 | CO85: 3700 | CP85: 7.1
B86: 15:2 Svalövsbäcken nedstr Svalöv | C86: 2016-05-31 | D86: 16.7 | E86: 7.3 | F86: 75.22337929 | G86: 7.74 | H86: 2 | I86: 55.8 | J86: 130 | K86: 150 | M86: 3500 | N86: 240 | O86: 4100 | P86: <5 | R86: 2016 | S86: 5 | AA86: 10.54159091 | AB86: 13.08665043 | AC86: 7.996531384 | AD86: 2.95 | AE86: 7.835530303 | AF86: 8.035470425 | AG86: 7.635590181 | AH86: 6.5 | AI86: 13.16174242 | AJ86: 43.81000234 | AK86: -17.48651749 | AL86: 7 | AM86: 52.6719697 | AN86: 62.81683313 | AO86: 42.52710626 | AP86: 53.60381679 | AQ86: 125.1744386 | AR86: -17.96680503 | AS86: 95.71755725 | AT86: 195.1950595 | AU86: -3.759945022 | AV86: 100 | AW86: 23 | AX86: 34.3137085 | AY86: 11.6862915 | AZ86: 5893.587786 | BA86: 8596.419939 | BB86: 3190.755634 | BC86: 432.7633588 | BD86: 1842.440413 | BE86: -976.9136955 | BF86: 6806.10687 | BG86: 9445.359554 | BH86: 4166.854187 | BI86: 5000 | BJ86: 10.09007634 | BK86: 29.1136603 | BL86: -8.93350763 | BO86: 42521 | CD86: 16.7 | CE86: 7.3 | CF86: 75.22337929 | CG86: 7.74 | CH86: 2 | CI86: 55.8 | CJ86: 130 | CK86: 150 | CM86: 3500 | CN86: 240 | CO86: 4100 | CP86: 5
B87: 15:2 Svalövsbäcken nedstr Svalöv | C87: 2016-06-28 | D87: 16.4 | E87: 7.3 | F87: 74.76435475 | G87: 7.68 | H87: 2.7 | I87: 39.8 | J87: 100 | K87: 160 | M87: 3100 | N87: 120 | O87: 3200 | P87: <5 | R87: 2016 | S87: 6 | AA87: 10.54159091 | AB87: 13.08665043 | AC87: 7.996531384 | AD87: 2.95 | AE87: 7.835530303 | AF87: 8.035470425 | AG87: 7.635590181 | AH87: 6.5 | AI87: 13.16174242 | AJ87: 43.81000234 | AK87: -17.48651749 | AL87: 7 | AM87: 52.6719697 | AN87: 62.81683313 | AO87: 42.52710626 | AP87: 53.60381679 | AQ87: 125.1744386 | AR87: -17.96680503 | AS87: 95.71755725 | AT87: 195.1950595 | AU87: -3.759945022 | AV87: 100 | AW87: 23 | AX87: 34.3137085 | AY87: 11.6862915 | AZ87: 5893.587786 | BA87: 8596.419939 | BB87: 3190.755634 | BC87: 432.7633588 | BD87: 1842.440413 | BE87: -976.9136955 | BF87: 6806.10687 | BG87: 9445.359554 | BH87: 4166.854187 | BI87: 5000 | BJ87: 10.09007634 | BK87: 29.1136603 | BL87: -8.93350763 | BO87: 42549 | CD87: 16.4 | CE87: 7.3 | CF87: 74.76435475 | CG87: 7.68 | CH87: 2.7 | CI87: 39.8 | CJ87: 100 | CK87: 160 | CM87: 3100 | CN87: 120 | CO87: 3200 | CP87: 5
B88: 15:2 Svalövsbäcken nedstr Svalöv | C88: 2016-07-26 | D88: 18.3 | E88: 7.7 | F88: 81.91442139 | G88: 7.77 | H88: 1.8 | I88: 66.3 | J88: 59 | K88: 94 | M88: 7500 | N88: 110 | O88: 7700 | P88: <5 | R88: 2016 | S88: 7 | AA88: 10.54159091 | AB88: 13.08665043 | AC88: 7.996531384 | AD88: 2.95 | AE88: 7.835530303 | AF88: 8.035470425 | AG88: 7.635590181 | AH88: 6.5 | AI88: 13.16174242 | AJ88: 43.81000234 | AK88: -17.48651749 | AL88: 7 | AM88: 52.6719697 | AN88: 62.81683313 | AO88: 42.52710626 | AP88: 53.60381679 | AQ88: 125.1744386 | AR88: -17.96680503 | AS88: 95.71755725 | AT88: 195.1950595 | AU88: -3.759945022 | AV88: 100 | AW88: 23 | AX88: 34.3137085 | AY88: 11.6862915 | AZ88: 5893.587786 | BA88: 8596.419939 | BB88: 3190.755634 | BC88: 432.7633588 | BD88: 1842.440413 | BE88: -976.9136955 | BF88: 6806.10687 | BG88: 9445.359554 | BH88: 4166.854187 | BI88: 5000 | BJ88: 10.09007634 | BK88: 29.1136603 | BL88: -8.93350763 | BO88: 42577 | CD88: 18.3 | CE88: 7.7 | CF88: 81.91442139 | CG88: 7.77 | CH88: 1.8 | CI88: 66.3 | CJ88: 59 | CK88: 94 | CM88: 7500 | CN88: 110 | CO88: 7700 | CP88: 5
B89: 15:2 Svalövsbäcken nedstr Svalöv | C89: 2016-08-30 | D89: 14.9 | E89: 7.1 | F89: 70.47535937 | G89: 7.63 | H89: 1.4 | I89: 54.2 | J89: 58 | K89: 77 | M89: 7200 | N89: 200 | O89: 6800 | P89: <5 | R89: 2016 | S89: 8 | AA89: 10.54159091 | AB89: 13.08665043 | AC89: 7.996531384 | AD89: 2.95 | AE89: 7.835530303 | AF89: 8.035470425 | AG89: 7.635590181 | AH89: 6.5 | AI89: 13.16174242 | AJ89: 43.81000234 | AK89: -17.48651749 | AL89: 7 | AM89: 52.6719697 | AN89: 62.81683313 | AO89: 42.52710626 | AP89: 53.60381679 | AQ89: 125.1744386 | AR89: -17.96680503 | AS89: 95.71755725 | AT89: 195.1950595 | AU89: -3.759945022 | AV89: 100 | AW89: 23 | AX89: 34.3137085 | AY89: 11.6862915 | AZ89: 5893.587786 | BA89: 8596.419939 | BB89: 3190.755634 | BC89: 432.7633588 | BD89: 1842.440413 | BE89: -976.9136955 | BF89: 6806.10687 | BG89: 9445.359554 | BH89: 4166.854187 | BI89: 5000 | BJ89: 10.09007634 | BK89: 29.1136603 | BL89: -8.93350763 | BO89: 42612 | CD89: 14.9 | CE89: 7.1 | CF89: 70.47535937 | CG89: 7.63 | CH89: 1.4 | CI89: 54.2 | CJ89: 58 | CK89: 77 | CM89: 7200 | CN89: 200 | CO89: 6800 | CP89: 5
B90: 15:2 Svalövsbäcken nedstr Svalöv | C90: 2016-09-27 | D90: 12.2 | E90: 8.7 | F90: 81.38768303 | G90: 7.83 | H90: 2.5 | I90: 70.55 | J90: 30 | K90: 58 | M90: 11000 | N90: 54 | O90: 12000 | P90: <5 | R90: 2016 | S90: 9 | AA90: 10.54159091 | AB90: 13.08665043 | AC90: 7.996531384 | AD90: 2.95 | AE90: 7.835530303 | AF90: 8.035470425 | AG90: 7.635590181 | AH90: 6.5 | AI90: 13.16174242 | AJ90: 43.81000234 | AK90: -17.48651749 | AL90: 7 | AM90: 52.6719697 | AN90: 62.81683313 | AO90: 42.52710626 | AP90: 53.60381679 | AQ90: 125.1744386 | AR90: -17.96680503 | AS90: 95.71755725 | AT90: 195.1950595 | AU90: -3.759945022 | AV90: 100 | AW90: 23 | AX90: 34.3137085 | AY90: 11.6862915 | AZ90: 5893.587786 | BA90: 8596.419939 | BB90: 3190.755634 | BC90: 432.7633588 | BD90: 1842.440413 | BE90: -976.9136955 | BF90: 6806.10687 | BG90: 9445.359554 | BH90: 4166.854187 | BI90: 5000 | BJ90: 10.09007634 | BK90: 29.1136603 | BL90: -8.93350763 | BO90: 42640 | CD90: 12.2 | CE90: 8.7 | CF90: 81.38768303 | CG90: 7.83 | CH90: 2.5 | CI90: 70.55 | CJ90: 30 | CK90: 58 | CM90: 11000 | CN90: 54 | CO90: 12000 | CP90: 5
B91: 15:2 Svalövsbäcken nedstr Svalöv | C91: 2016-10-26 | D91: 8.1 | E91: 9.4 | F91: 79.78924663 | G91: 7.78 | H91: 1.3 | I91: 65.7 | J91: 170 | K91: 230 | M91: 6900 | N91: 210 | O91: 7400 | P91: <5 | R91: 2016 | S91: 10 | AA91: 10.54159091 | AB91: 13.08665043 | AC91: 7.996531384 | AD91: 2.95 | AE91: 7.835530303 | AF91: 8.035470425 | AG91: 7.635590181 | AH91: 6.5 | AI91: 13.16174242 | AJ91: 43.81000234 | AK91: -17.48651749 | AL91: 7 | AM91: 52.6719697 | AN91: 62.81683313 | AO91: 42.52710626 | AP91: 53.60381679 | AQ91: 125.1744386 | AR91: -17.96680503 | AS91: 95.71755725 | AT91: 195.1950595 | AU91: -3.759945022 | AV91: 100 | AW91: 23 | AX91: 34.3137085 | AY91: 11.6862915 | AZ91: 5893.587786 | BA91: 8596.419939 | BB91: 3190.755634 | BC91: 432.7633588 | BD91: 1842.440413 | BE91: -976.9136955 | BF91: 6806.10687 | BG91: 9445.359554 | BH91: 4166.854187 | BI91: 5000 | BJ91: 10.09007634 | BK91: 29.1136603 | BL91: -8.93350763 | BO91: 42669 | CD91: 8.1 | CE91: 9.4 | CF91: 79.78924663 | CG91: 7.78 | CH91: 1.3 | CI91: 65.7 | CJ91: 170 | CK91: 230 | CM91: 6900 | CN91: 210 | CO91: 7400 | CP91: 5
B92: 15:2 Svalövsbäcken nedstr Svalöv | C92: 2016-11-29 | D92: 2.8 | E92: 12.1 | F92: 89.42777111 | G92: 7.85 | H92: 3.6 | I92: 59.5 | J92: 19 | K92: 99 | M92: 8600 | N92: 240 | O92: 9300 | P92: <5 | R92: 2016 | S92: 11 | AA92: 10.54159091 | AB92: 13.08665043 | AC92: 7.996531384 | AD92: 2.95 | AE92: 7.835530303 | AF92: 8.035470425 | AG92: 7.635590181 | AH92: 6.5 | AI92: 13.16174242 | AJ92: 43.81000234 | AK92: -17.48651749 | AL92: 7 | AM92: 52.6719697 | AN92: 62.81683313 | AO92: 42.52710626 | AP92: 53.60381679 | AQ92: 125.1744386 | AR92: -17.96680503 | AS92: 95.71755725 | AT92: 195.1950595 | AU92: -3.759945022 | AV92: 100 | AW92: 23 | AX92: 34.3137085 | AY92: 11.6862915 | AZ92: 5893.587786 | BA92: 8596.419939 | BB92: 3190.755634 | BC92: 432.7633588 | BD92: 1842.440413 | BE92: -976.9136955 | BF92: 6806.10687 | BG92: 9445.359554 | BH92: 4166.854187 | BI92: 5000 | BJ92: 10.09007634 | BK92: 29.1136603 | BL92: -8.93350763 | BO92: 42703 | CD92: 2.8 | CE92: 12.1 | CF92: 89.42777111 | CG92: 7.85 | CH92: 3.6 | CI92: 59.5 | CJ92: 19 | CK92: 99 | CM92: 8600 | CN92: 240 | CO92: 9300 | CP92: 5
B93: 15:2 Svalövsbäcken nedstr Svalöv | C93: 2016-12-28 | D93: 3.1 | E93: 12.7 | G93: 7.95 | H93: 11 | I93: 54.4 | J93: 27 | K93: 69 | M93: 10000 | N93: 140 | O93: 10000 | P93: 9.6 | R93: 2016 | S93: 12 | AA93: 10.54159091 | AB93: 13.08665043 | AC93: 7.996531384 | AD93: 2.95 | AE93: 7.835530303 | AF93: 8.035470425 | AG93: 7.635590181 | AH93: 6.5 | AI93: 13.16174242 | AJ93: 43.81000234 | AK93: -17.48651749 | AL93: 7 | AM93: 52.6719697 | AN93: 62.81683313 | AO93: 42.52710626 | AP93: 53.60381679 | AQ93: 125.1744386 | AR93: -17.96680503 | AS93: 95.71755725 | AT93: 195.1950595 | AU93: -3.759945022 | AV93: 100 | AW93: 23 | AX93: 34.3137085 | AY93: 11.6862915 | AZ93: 5893.587786 | BA93: 8596.419939 | BB93: 3190.755634 | BC93: 432.7633588 | BD93: 1842.440413 | BE93: -976.9136955 | BF93: 6806.10687 | BG93: 9445.359554 | BH93: 4166.854187 | BI93: 5000 | BJ93: 10.09007634 | BK93: 29.1136603 | BL93: -8.93350763 | BO93: 42732 | CD93: 3.1 | CE93: 12.7 | CG93: 7.95 | CH93: 11 | CI93: 54.4 | CJ93: 27 | CK93: 69 | CM93: 10000 | CN93: 140 | CO93: 10000 | CP93: 9.6
B94: 15:2 Svalövsbäcken nedstr Svalöv | C94: 2017-01-31 | D94: 3.2 | E94: 12.4 | F94: 92.65342576 | G94: 7.86 | H94: 3.1 | I94: 55.8 | J94: 19 | K94: 40 | M94: 9800 | N94: 480 | O94: 10000 | P94: <5 | R94: 2017 | S94: 1 | AA94: 10.54159091 | AB94: 13.08665043 | AC94: 7.996531384 | AD94: 2.95 | AE94: 7.835530303 | AF94: 8.035470425 | AG94: 7.635590181 | AH94: 6.5 | AI94: 13.16174242 | AJ94: 43.81000234 | AK94: -17.48651749 | AL94: 7 | AM94: 52.6719697 | AN94: 62.81683313 | AO94: 42.52710626 | AP94: 53.60381679 | AQ94: 125.1744386 | AR94: -17.96680503 | AS94: 95.71755725 | AT94: 195.1950595 | AU94: -3.759945022 | AV94: 100 | AW94: 23 | AX94: 34.3137085 | AY94: 11.6862915 | AZ94: 5893.587786 | BA94: 8596.419939 | BB94: 3190.755634 | BC94: 432.7633588 | BD94: 1842.440413 | BE94: -976.9136955 | BF94: 6806.10687 | BG94: 9445.359554 | BH94: 4166.854187 | BI94: 5000 | BJ94: 10.09007634 | BK94: 29.1136603 | BL94: -8.93350763 | BO94: 42766 | CD94: 3.2 | CE94: 12.4 | CF94: 92.65342576 | CG94: 7.86 | CH94: 3.1 | CI94: 55.8 | CJ94: 19 | CK94: 40 | CM94: 9800 | CN94: 480 | CO94: 10000 | CP94: 5
B95: 15:2 Svalövsbäcken nedstr Svalöv | C95: 2017-02-28 | D95: 4.9 | E95: 11.7 | F95: 91.50333911 | G95: 7.68 | H95: 24 | I95: 45.3 | J95: 38 | K95: 77 | M95: 14000 | N95: 88 | O95: 14000 | P95: 12 | R95: 2017 | S95: 2 | AA95: 10.54159091 | AB95: 13.08665043 | AC95: 7.996531384 | AD95: 2.95 | AE95: 7.835530303 | AF95: 8.035470425 | AG95: 7.635590181 | AH95: 6.5 | AI95: 13.16174242 | AJ95: 43.81000234 | AK95: -17.48651749 | AL95: 7 | AM95: 52.6719697 | AN95: 62.81683313 | AO95: 42.52710626 | AP95: 53.60381679 | AQ95: 125.1744386 | AR95: -17.96680503 | AS95: 95.71755725 | AT95: 195.1950595 | AU95: -3.759945022 | AV95: 100 | AW95: 23 | AX95: 34.3137085 | AY95: 11.6862915 | AZ95: 5893.587786 | BA95: 8596.419939 | BB95: 3190.755634 | BC95: 432.7633588 | BD95: 1842.440413 | BE95: -976.9136955 | BF95: 6806.10687 | BG95: 9445.359554 | BH95: 4166.854187 | BI95: 5000 | BJ95: 10.09007634 | BK95: 29.1136603 | BL95: -8.93350763 | BO95: 42794 | CD95: 4.9 | CE95: 11.7 | CF95: 91.50333911 | CG95: 7.68 | CH95: 24 | CI95: 45.3 | CJ95: 38 | CK95: 77 | CM95: 14000 | CN95: 88 | CO95: 14000 | CP95: 12
B96: 15:2 Svalövsbäcken nedstr Svalöv | C96: 2017-03-28 | D96: 6.4 | E96: 11.5 | F96: 93.51966128 | G96: 7.89 | H96: 4.7 | I96: 49.2 | J96: 3.8 | K96: 25 | M96: 8300 | N96: 200 | O96: 8600 | P96: <5 | R96: 2017 | S96: 3 | AA96: 10.54159091 | AB96: 13.08665043 | AC96: 7.996531384 | AD96: 2.95 | AE96: 7.835530303 | AF96: 8.035470425 | AG96: 7.635590181 | AH96: 6.5 | AI96: 13.16174242 | AJ96: 43.81000234 | AK96: -17.48651749 | AL96: 7 | AM96: 52.6719697 | AN96: 62.81683313 | AO96: 42.52710626 | AP96: 53.60381679 | AQ96: 125.1744386 | AR96: -17.96680503 | AS96: 95.71755725 | AT96: 195.1950595 | AU96: -3.759945022 | AV96: 100 | AW96: 23 | AX96: 34.3137085 | AY96: 11.6862915 | AZ96: 5893.587786 | BA96: 8596.419939 | BB96: 3190.755634 | BC96: 432.7633588 | BD96: 1842.440413 | BE96: -976.9136955 | BF96: 6806.10687 | BG96: 9445.359554 | BH96: 4166.854187 | BI96: 5000 | BJ96: 10.09007634 | BK96: 29.1136603 | BL96: -8.93350763 | BO96: 42822 | CD96: 6.4 | CE96: 11.5 | CF96: 93.51966128 | CG96: 7.89 | CH96: 4.7 | CI96: 49.2 | CJ96: 3.8 | CK96: 25 | CM96: 8300 | CN96: 200 | CO96: 8600 | CP96: 5
B97: 15:2 Svalövsbäcken nedstr Svalöv | C97: 2017-04-26 | D97: 6.4 | E97: 12.8 | F97: 104.0914491 | G97: 8.04 | H97: 2.3 | I97: 49.9 | J97: 6.2 | K97: 23 | M97: 4400 | N97: 180 | O97: 5100 | P97: <5 | R97: 2017 | S97: 4 | AA97: 10.54159091 | AB97: 13.08665043 | AC97: 7.996531384 | AD97: 2.95 | AE97: 7.835530303 | AF97: 8.035470425 | AG97: 7.635590181 | AH97: 6.5 | AI97: 13.16174242 | AJ97: 43.81000234 | AK97: -17.48651749 | AL97: 7 | AM97: 52.6719697 | AN97: 62.81683313 | AO97: 42.52710626 | AP97: 53.60381679 | AQ97: 125.1744386 | AR97: -17.96680503 | AS97: 95.71755725 | AT97: 195.1950595 | AU97: -3.759945022 | AV97: 100 | AW97: 23 | AX97: 34.3137085 | AY97: 11.6862915 | AZ97: 5893.587786 | BA97: 8596.419939 | BB97: 3190.755634 | BC97: 432.7633588 | BD97: 1842.440413 | BE97: -976.9136955 | BF97: 6806.10687 | BG97: 9445.359554 | BH97: 4166.854187 | BI97: 5000 | BJ97: 10.09007634 | BK97: 29.1136603 | BL97: -8.93350763 | BO97: 42851 | CD97: 6.4 | CE97: 12.8 | CF97: 104.0914491 | CG97: 8.04 | CH97: 2.3 | CI97: 49.9 | CJ97: 6.2 | CK97: 23 | CM97: 4400 | CN97: 180 | CO97: 5100 | CP97: 5
B98: 15:2 Svalövsbäcken nedstr Svalöv | C98: 2017-05-30 | D98: 14.6 | E98: 7.2 | F98: 71.0121111 | G98: 7.69 | H98: 2.4 | I98: 63.3 | J98: 140 | K98: 170 | M98: 6300 | N98: 440 | O98: 6500 | P98: <5 | R98: 2017 | S98: 5 | AA98: 10.54159091 | AB98: 13.08665043 | AC98: 7.996531384 | AD98: 2.95 | AE98: 7.835530303 | AF98: 8.035470425 | AG98: 7.635590181 | AH98: 6.5 | AI98: 13.16174242 | AJ98: 43.81000234 | AK98: -17.48651749 | AL98: 7 | AM98: 52.6719697 | AN98: 62.81683313 | AO98: 42.52710626 | AP98: 53.60381679 | AQ98: 125.1744386 | AR98: -17.96680503 | AS98: 95.71755725 | AT98: 195.1950595 | AU98: -3.759945022 | AV98: 100 | AW98: 23 | AX98: 34.3137085 | AY98: 11.6862915 | AZ98: 5893.587786 | BA98: 8596.419939 | BB98: 3190.755634 | BC98: 432.7633588 | BD98: 1842.440413 | BE98: -976.9136955 | BF98: 6806.10687 | BG98: 9445.359554 | BH98: 4166.854187 | BI98: 5000 | BJ98: 10.09007634 | BK98: 29.1136603 | BL98: -8.93350763 | BO98: 42885 | CD98: 14.6 | CE98: 7.2 | CF98: 71.0121111 | CG98: 7.69 | CH98: 2.4 | CI98: 63.3 | CJ98: 140 | CK98: 170 | CM98: 6300 | CN98: 440 | CO98: 6500 | CP98: 5
B99: 15:2 Svalövsbäcken nedstr Svalöv | C99: 2017-06-27 | D99: 13.7 | E99: 8.2 | F99: 79.31502117 | G99: 7.82 | H99: 1.9 | I99: 61.3 | J99: 100 | K99: 130 | M99: 5200 | N99: 110 | O99: 5500 | P99: <5 | R99: 2017 | S99: 6 | AA99: 10.54159091 | AB99: 13.08665043 | AC99: 7.996531384 | AD99: 2.95 | AE99: 7.835530303 | AF99: 8.035470425 | AG99: 7.635590181 | AH99: 6.5 | AI99: 13.16174242 | AJ99: 43.81000234 | AK99: -17.48651749 | AL99: 7 | AM99: 52.6719697 | AN99: 62.81683313 | AO99: 42.52710626 | AP99: 53.60381679 | AQ99: 125.1744386 | AR99: -17.96680503 | AS99: 95.71755725 | AT99: 195.1950595 | AU99: -3.759945022 | AV99: 100 | AW99: 23 | AX99: 34.3137085 | AY99: 11.6862915 | AZ99: 5893.587786 | BA99: 8596.419939 | BB99: 3190.755634 | BC99: 432.7633588 | BD99: 1842.440413 | BE99: -976.9136955 | BF99: 6806.10687 | BG99: 9445.359554 | BH99: 4166.854187 | BI99: 5000 | BJ99: 10.09007634 | BK99: 29.1136603 | BL99: -8.93350763 | BO99: 42913 | CD99: 13.7 | CE99: 8.2 | CF99: 79.31502117 | CG99: 7.82 | CH99: 1.9 | CI99: 61.3 | CJ99: 100 | CK99: 130 | CM99: 5200 | CN99: 110 | CO99: 5500 | CP99: 5
B100: 15:2 Svalövsbäcken nedstr Svalöv | C100: 2017-07-31 | D100: 16.4 | E100: 6.8 | F100: 69.64350854 | G100: 7.69 | H100: 3.7 | I100: 52 | J100: 42 | K100: 88 | M100: 3200 | N100: 640 | O100: 4200 | P100: <5 | R100: 2017 | S100: 7 | AA100: 10.54159091 | AB100: 13.08665043 | AC100: 7.996531384 | AD100: 2.95 | AE100: 7.835530303 | AF100: 8.035470425 | AG100: 7.635590181 | AH100: 6.5 | AI100: 13.16174242 | AJ100: 43.81000234 | AK100: -17.48651749 | AL100: 7 | AM100: 52.6719697 | AN100: 62.81683313 | AO100: 42.52710626 | AP100: 53.60381679 | AQ100: 125.1744386 | AR100: -17.96680503 | AS100: 95.71755725 | AT100: 195.1950595 | AU100: -3.759945022 | AV100: 100 | AW100: 23 | AX100: 34.3137085 | AY100: 11.6862915 | AZ100: 5893.587786 | BA100: 8596.419939 | BB100: 3190.755634 | BC100: 432.7633588 | BD100: 1842.440413 | BE100: -976.9136955 | BF100: 6806.10687 | BG100: 9445.359554 | BH100: 4166.854187 | BI100: 5000 | BJ100: 10.09007634 | BK100: 29.1136603 | BL100: -8.93350763 | BO100: 42947 | CD100: 16.4 | CE100: 6.8 | CF100: 69.64350854 | CG100: 7.69 | CH100: 3.7 | CI100: 52 | CJ100: 42 | CK100: 88 | CM100: 3200 | CN100: 640 | CO100: 4200 | CP100: 5
B101: 15:2 Svalövsbäcken nedstr Svalöv | C101: 2017-08-29 | D101: 16.1 | E101: 7.4 | F101: 75.32257023 | G101: 7.76 | H101: 9.1 | I101: 55.2 | J101: 8.1 | K101: 58 | M101: 3400 | N101: 190 | O101: 4200 | P101: 6 | R101: 2017 | S101: 8 | AA101: 10.54159091 | AB101: 13.08665043 | AC101: 7.996531384 | AD101: 2.95 | AE101: 7.835530303 | AF101: 8.035470425 | AG101: 7.635590181 | AH101: 6.5 | AI101: 13.16174242 | AJ101: 43.81000234 | AK101: -17.48651749 | AL101: 7 | AM101: 52.6719697 | AN101: 62.81683313 | AO101: 42.52710626 | AP101: 53.60381679 | AQ101: 125.1744386 | AR101: -17.96680503 | AS101: 95.71755725 | AT101: 195.1950595 | AU101: -3.759945022 | AV101: 100 | AW101: 23 | AX101: 34.3137085 | AY101: 11.6862915 | AZ101: 5893.587786 | BA101: 8596.419939 | BB101: 3190.755634 | BC101: 432.7633588 | BD101: 1842.440413 | BE101: -976.9136955 | BF101: 6806.10687 | BG101: 9445.359554 | BH101: 4166.854187 | BI101: 5000 | BJ101: 10.09007634 | BK101: 29.1136603 | BL101: -8.93350763 | BO101: 42976 | CD101: 16.1 | CE101: 7.4 | CF101: 75.32257023 | CG101: 7.76 | CH101: 9.1 | CI101: 55.2 | CJ101: 8.1 | CK101: 58 | CM101: 3400 | CN101: 190 | CO101: 4200 | CP101: 6
B102: 15:2 Svalövsbäcken nedstr Svalöv | C102: 2017-09-25 | D102: 13.7 | E102: 9.3 | F102: 89.95484109 | G102: 7.82 | H102: 5.9 | I102: 53.7 | J102: 39 | K102: 75 | M102: 6300 | N102: 140 | O102: 6900 | P102: 9.7 | R102: 2017 | S102: 9 | AA102: 10.54159091 | AB102: 13.08665043 | AC102: 7.996531384 | AD102: 2.95 | AE102: 7.835530303 | AF102: 8.035470425 | AG102: 7.635590181 | AH102: 6.5 | AI102: 13.16174242 | AJ102: 43.81000234 | AK102: -17.48651749 | AL102: 7 | AM102: 52.6719697 | AN102: 62.81683313 | AO102: 42.52710626 | AP102: 53.60381679 | AQ102: 125.1744386 | AR102: -17.96680503 | AS102: 95.71755725 | AT102: 195.1950595 | AU102: -3.759945022 | AV102: 100 | AW102: 23 | AX102: 34.3137085 | AY102: 11.6862915 | AZ102: 5893.587786 | BA102: 8596.419939 | BB102: 3190.755634 | BC102: 432.7633588 | BD102: 1842.440413 | BE102: -976.9136955 | BF102: 6806.10687 | BG102: 9445.359554 | BH102: 4166.854187 | BI102: 5000 | BJ102: 10.09007634 | BK102: 29.1136603 | BL102: -8.93350763 | BO102: 43003 | CD102: 13.7 | CE102: 9.3 | CF102: 89.95484109 | CG102: 7.82 | CH102: 5.9 | CI102: 53.7 | CJ102: 39 | CK102: 75 | CM102: 6300 | CN102: 140 | CO102: 6900 | CP102: 9.7
B103: 15:2 Svalövsbäcken nedstr Svalöv | C103: 2017-10-31 | D103: 7.3 | E103: 11.1 | F103: 92.35519803 | G103: 7.75 | H103: 31 | I103: 46.3 | J103: 48 | K103: 99 | M103: 7900 | N103: 48 | O103: 7200 | P103: 13 | R103: 2017 | S103: 10 | AA103: 10.54159091 | AB103: 13.08665043 | AC103: 7.996531384 | AD103: 2.95 | AE103: 7.835530303 | AF103: 8.035470425 | AG103: 7.635590181 | AH103: 6.5 | AI103: 13.16174242 | AJ103: 43.81000234 | AK103: -17.48651749 | AL103: 7 | AM103: 52.6719697 | AN103: 62.81683313 | AO103: 42.52710626 | AP103: 53.60381679 | AQ103: 125.1744386 | AR103: -17.96680503 | AS103: 95.71755725 | AT103: 195.1950595 | AU103: -3.759945022 | AV103: 100 | AW103: 23 | AX103: 34.3137085 | AY103: 11.6862915 | AZ103: 5893.587786 | BA103: 8596.419939 | BB103: 3190.755634 | BC103: 432.7633588 | BD103: 1842.440413 | BE103: -976.9136955 | BF103: 6806.10687 | BG103: 9445.359554 | BH103: 4166.854187 | BI103: 5000 | BJ103: 10.09007634 | BK103: 29.1136603 | BL103: -8.93350763 | BO103: 43039 | CD103: 7.3 | CE103: 11.1 | CF103: 92.35519803 | CG103: 7.75 | CH103: 31 | CI103: 46.3 | CJ103: 48 | CK103: 99 | CM103: 7900 | CN103: 48 | CO103: 7200 | CP103: 13
B104: 15:2 Svalövsbäcken nedstr Svalöv | C104: 2017-11-21 | D104: 4.7 | E104: 11.9 | F104: 92.57635437 | G104: 7.81 | H104: 15 | I104: 50.9 | J104: 32 | K104: 60 | M104: 7000 | N104: 160 | O104: 7000 | P104: <5 | R104: 2017 | S104: 11 | AA104: 10.54159091 | AB104: 13.08665043 | AC104: 7.996531384 | AD104: 2.95 | AE104: 7.835530303 | AF104: 8.035470425 | AG104: 7.635590181 | AH104: 6.5 | AI104: 13.16174242 | AJ104: 43.81000234 | AK104: -17.48651749 | AL104: 7 | AM104: 52.6719697 | AN104: 62.81683313 | AO104: 42.52710626 | AP104: 53.60381679 | AQ104: 125.1744386 | AR104: -17.96680503 | AS104: 95.71755725 | AT104: 195.1950595 | AU104: -3.759945022 | AV104: 100 | AW104: 23 | AX104: 34.3137085 | AY104: 11.6862915 | AZ104: 5893.587786 | BA104: 8596.419939 | BB104: 3190.755634 | BC104: 432.7633588 | BD104: 1842.440413 | BE104: -976.9136955 | BF104: 6806.10687 | BG104: 9445.359554 | BH104: 4166.854187 | BI104: 5000 | BJ104: 10.09007634 | BK104: 29.1136603 | BL104: -8.93350763 | BO104: 43060 | CD104: 4.7 | CE104: 11.9 | CF104: 92.57635437 | CG104: 7.81 | CH104: 15 | CI104: 50.9 | CJ104: 32 | CK104: 60 | CM104: 7000 | CN104: 160 | CO104: 7000 | CP104: 5
B105: 15:2 Svalövsbäcken nedstr Svalöv | C105: 2017-12-28 | D105: 5.4 | E105: 11.1 | F105: 87.95905027 | G105: 7.73 | H105: 21 | I105: 43.9 | J105: 39 | K105: 72 | M105: 5900 | N105: 310 | O105: 6300 | P105: 10 | R105: 2017 | S105: 12 | AA105: 10.54159091 | AB105: 13.08665043 | AC105: 7.996531384 | AD105: 2.95 | AE105: 7.835530303 | AF105: 8.035470425 | AG105: 7.635590181 | AH105: 6.5 | AI105: 13.16174242 | AJ105: 43.81000234 | AK105: -17.48651749 | AL105: 7 | AM105: 52.6719697 | AN105: 62.81683313 | AO105: 42.52710626 | AP105: 53.60381679 | AQ105: 125.1744386 | AR105: -17.96680503 | AS105: 95.71755725 | AT105: 195.1950595 | AU105: -3.759945022 | AV105: 100 | AW105: 23 | AX105: 34.3137085 | AY105: 11.6862915 | AZ105: 5893.587786 | BA105: 8596.419939 | BB105: 3190.755634 | BC105: 432.7633588 | BD105: 1842.440413 | BE105: -976.9136955 | BF105: 6806.10687 | BG105: 9445.359554 | BH105: 4166.854187 | BI105: 5000 | BJ105: 10.09007634 | BK105: 29.1136603 | BL105: -8.93350763 | BO105: 43097 | CD105: 5.4 | CE105: 11.1 | CF105: 87.95905027 | CG105: 7.73 | CH105: 21 | CI105: 43.9 | CJ105: 39 | CK105: 72 | CM105: 5900 | CN105: 310 | CO105: 6300 | CP105: 10
B106: 15:2 Svalövsbäcken nedstr Svalöv | C106: 2018-01-30 | D106: 4.5 | E106: 12.3 | F106: 95 | G106: 7.81 | H106: 51 | I106: 38.8 | J106: 30 | K106: 130 | M106: 5100 | N106: 120 | O106: 5200 | P106: 20 | R106: 2018 | S106: 1 | AA106: 10.54159091 | AB106: 13.08665043 | AC106: 7.996531384 | AD106: 2.95 | AE106: 7.835530303 | AF106: 8.035470425 | AG106: 7.635590181 | AH106: 6.5 | AI106: 13.16174242 | AJ106: 43.81000234 | AK106: -17.48651749 | AL106: 7 | AM106: 52.6719697 | AN106: 62.81683313 | AO106: 42.52710626 | AP106: 53.60381679 | AQ106: 125.1744386 | AR106: -17.96680503 | AS106: 95.71755725 | AT106: 195.1950595 | AU106: -3.759945022 | AV106: 100 | AW106: 23 | AX106: 34.3137085 | AY106: 11.6862915 | AZ106: 5893.587786 | BA106: 8596.419939 | BB106: 3190.755634 | BC106: 432.7633588 | BD106: 1842.440413 | BE106: -976.9136955 | BF106: 6806.10687 | BG106: 9445.359554 | BH106: 4166.854187 | BI106: 5000 | BJ106: 10.09007634 | BK106: 29.1136603 | BL106: -8.93350763 | BO106: 43130 | CD106: 4.5 | CE106: 12.3 | CF106: 95 | CG106: 7.81 | CH106: 51 | CI106: 38.8 | CJ106: 30 | CK106: 130 | CM106: 5100 | CN106: 120 | CO106: 5200 | CP106: 20
B107: 15:2 Svalövsbäcken nedstr Svalöv | C107: 2018-02-28 | D107: 0 | E107: 14 | F107: 96 | G107: 7.89 | H107: 5.8 | I107: 54.1 | J107: 23 | K107: 46 | M107: 4800 | N107: 640 | O107: 5100 | P107: <5 | Q107: is | R107: 2018 | S107: 2 | AA107: 10.54159091 | AB107: 13.08665043 | AC107: 7.996531384 | AD107: 2.95 | AE107: 7.835530303 | AF107: 8.035470425 | AG107: 7.635590181 | AH107: 6.5 | AI107: 13.16174242 | AJ107: 43.81000234 | AK107: -17.48651749 | AL107: 7 | AM107: 52.6719697 | AN107: 62.81683313 | AO107: 42.52710626 | AP107: 53.60381679 | AQ107: 125.1744386 | AR107: -17.96680503 | AS107: 95.71755725 | AT107: 195.1950595 | AU107: -3.759945022 | AV107: 100 | AW107: 23 | AX107: 34.3137085 | AY107: 11.6862915 | AZ107: 5893.587786 | BA107: 8596.419939 | BB107: 3190.755634 | BC107: 432.7633588 | BD107: 1842.440413 | BE107: -976.9136955 | BF107: 6806.10687 | BG107: 9445.359554 | BH107: 4166.854187 | BI107: 5000 | BJ107: 10.09007634 | BK107: 29.1136603 | BL107: -8.93350763 | BO107: 43159 | CD107: 0 | CE107: 14 | CF107: 96 | CG107: 7.89 | CH107: 5.8 | CI107: 54.1 | CJ107: 23 | CK107: 46 | CM107: 4800 | CN107: 640 | CO107: 5100 | CP107: 5
B108: 15:2 Svalövsbäcken nedstr Svalöv | C108: 2018-03-27 | D108: 3 | E108: 12.3 | F108: 91 | G108: 7.84 | H108: 7.1 | I108: 44.6 | J108: 20 | K108: 44 | M108: 3800 | N108: 270 | O108: 4400 | P108: 6.5 | R108: 2018 | S108: 3 | AA108: 10.54159091 | AB108: 13.08665043 | AC108: 7.996531384 | AD108: 2.95 | AE108: 7.835530303 | AF108: 8.035470425 | AG108: 7.635590181 | AH108: 6.5 | AI108: 13.16174242 | AJ108: 43.81000234 | AK108: -17.48651749 | AL108: 7 | AM108: 52.6719697 | AN108: 62.81683313 | AO108: 42.52710626 | AP108: 53.60381679 | AQ108: 125.1744386 | AR108: -17.96680503 | AS108: 95.71755725 | AT108: 195.1950595 | AU108: -3.759945022 | AV108: 100 | AW108: 23 | AX108: 34.3137085 | AY108: 11.6862915 | AZ108: 5893.587786 | BA108: 8596.419939 | BB108: 3190.755634 | BC108: 432.7633588 | BD108: 1842.440413 | BE108: -976.9136955 | BF108: 6806.10687 | BG108: 9445.359554 | BH108: 4166.854187 | BI108: 5000 | BJ108: 10.09007634 | BK108: 29.1136603 | BL108: -8.93350763 | BO108: 43186 | CD108: 3 | CE108: 12.3 | CF108: 91 | CG108: 7.84 | CH108: 7.1 | CI108: 44.6 | CJ108: 20 | CK108: 44 | CM108: 3800 | CN108: 270 | CO108: 4400 | CP108: 6.5
B109: 15:2 Svalövsbäcken nedstr Svalöv | C109: 2018-04-25 | D109: 9.5 | E109: 9.6 | F109: 84 | G109: 7.78 | H109: 3.3 | I109: 52.5 | J109: 3.2 | K109: 29 | M109: 3500 | N109: 360 | O109: 3800 | P109: <5 | R109: 2018 | S109: 4 | AA109: 10.54159091 | AB109: 13.08665043 | AC109: 7.996531384 | AD109: 2.95 | AE109: 7.835530303 | AF109: 8.035470425 | AG109: 7.635590181 | AH109: 6.5 | AI109: 13.16174242 | AJ109: 43.81000234 | AK109: -17.48651749 | AL109: 7 | AM109: 52.6719697 | AN109: 62.81683313 | AO109: 42.52710626 | AP109: 53.60381679 | AQ109: 125.1744386 | AR109: -17.96680503 | AS109: 95.71755725 | AT109: 195.1950595 | AU109: -3.759945022 | AV109: 100 | AW109: 23 | AX109: 34.3137085 | AY109: 11.6862915 | AZ109: 5893.587786 | BA109: 8596.419939 | BB109: 3190.755634 | BC109: 432.7633588 | BD109: 1842.440413 | BE109: -976.9136955 | BF109: 6806.10687 | BG109: 9445.359554 | BH109: 4166.854187 | BI109: 5000 | BJ109: 10.09007634 | BK109: 29.1136603 | BL109: -8.93350763 | BO109: 43215 | CD109: 9.5 | CE109: 9.6 | CF109: 84 | CG109: 7.78 | CH109: 3.3 | CI109: 52.5 | CJ109: 3.2 | CK109: 29 | CM109: 3500 | CN109: 360 | CO109: 3800 | CP109: 5
B110: 15:2 Svalövsbäcken nedstr Svalöv | C110: 2018-05-29 | D110: 16.1 | E110: 8.3 | F110: 84 | G110: 7.74 | H110: 8 | I110: 62.6 | J110: 45 | K110: 86 | M110: 3800 | N110: 200 | O110: 4200 | P110: 7 | R110: 2018 | S110: 5 | AA110: 10.54159091 | AB110: 13.08665043 | AC110: 7.996531384 | AD110: 2.95 | AE110: 7.835530303 | AF110: 8.035470425 | AG110: 7.635590181 | AH110: 6.5 | AI110: 13.16174242 | AJ110: 43.81000234 | AK110: -17.48651749 | AL110: 7 | AM110: 52.6719697 | AN110: 62.81683313 | AO110: 42.52710626 | AP110: 53.60381679 | AQ110: 125.1744386 | AR110: -17.96680503 | AS110: 95.71755725 | AT110: 195.1950595 | AU110: -3.759945022 | AV110: 100 | AW110: 23 | AX110: 34.3137085 | AY110: 11.6862915 | AZ110: 5893.587786 | BA110: 8596.419939 | BB110: 3190.755634 | BC110: 432.7633588 | BD110: 1842.440413 | BE110: -976.9136955 | BF110: 6806.10687 | BG110: 9445.359554 | BH110: 4166.854187 | BI110: 5000 | BJ110: 10.09007634 | BK110: 29.1136603 | BL110: -8.93350763 | BO110: 43249 | CD110: 16.1 | CE110: 8.3 | CF110: 84 | CG110: 7.74 | CH110: 8 | CI110: 62.6 | CJ110: 45 | CK110: 86 | CM110: 3800 | CN110: 200 | CO110: 4200 | CP110: 7
B111: 15:2 Svalövsbäcken nedstr Svalöv | C111: 2018-06-18 | D111: 15 | E111: 7.4 | F111: 74 | G111: 7.66 | H111: 2.6 | I111: 55.9 | Q111: Proverna försvunna | R111: 2018 | S111: 6 | AA111: 10.54159091 | AB111: 13.08665043 | AC111: 7.996531384 | AD111: 2.95 | AE111: 7.835530303 | AF111: 8.035470425 | AG111: 7.635590181 | AH111: 6.5 | AI111: 13.16174242 | AJ111: 43.81000234 | AK111: -17.48651749 | AL111: 7 | AM111: 52.6719697 | AN111: 62.81683313 | AO111: 42.52710626 | AP111: 53.60381679 | AQ111: 125.1744386 | AR111: -17.96680503 | AS111: 95.71755725 | AT111: 195.1950595 | AU111: -3.759945022 | AV111: 100 | AW111: 23 | AX111: 34.3137085 | AY111: 11.6862915 | AZ111: 5893.587786 | BA111: 8596.419939 | BB111: 3190.755634 | BC111: 432.7633588 | BD111: 1842.440413 | BE111: -976.9136955 | BF111: 6806.10687 | BG111: 9445.359554 | BH111: 4166.854187 | BI111: 5000 | BJ111: 10.09007634 | BK111: 29.1136603 | BL111: -8.93350763 | BO111: 43269 | CD111: 15 | CE111: 7.4 | CF111: 74 | CG111: 7.66 | CH111: 2.6 | CI111: 55.9
B112: 15:2 Svalövsbäcken nedstr Svalöv | C112: 2018-07-16 | D112: 19.1 | E112: 2.1 | F112: 23 | G112: 7.68 | H112: 6.6 | I112: 88.1 | J112: 120 | K112: 250 | M112: <10 | N112: 10000 | O112: 13000 | P112: 7.5 | R112: 2018 | S112: 7 | AA112: 10.54159091 | AB112: 13.08665043 | AC112: 7.996531384 | AD112: 2.95 | AE112: 7.835530303 | AF112: 8.035470425 | AG112: 7.635590181 | AH112: 6.5 | AI112: 13.16174242 | AJ112: 43.81000234 | AK112: -17.48651749 | AL112: 7 | AM112: 52.6719697 | AN112: 62.81683313 | AO112: 42.52710626 | AP112: 53.60381679 | AQ112: 125.1744386 | AR112: -17.96680503 | AS112: 95.71755725 | AT112: 195.1950595 | AU112: -3.759945022 | AV112: 100 | AW112: 23 | AX112: 34.3137085 | AY112: 11.6862915 | AZ112: 5893.587786 | BA112: 8596.419939 | BB112: 3190.755634 | BC112: 432.7633588 | BD112: 1842.440413 | BE112: -976.9136955 | BF112: 6806.10687 | BG112: 9445.359554 | BH112: 4166.854187 | BI112: 5000 | BJ112: 10.09007634 | BK112: 29.1136603 | BL112: -8.93350763 | BO112: 43297 | CD112: 19.1 | CE112: 2.1 | CF112: 23 | CG112: 7.68 | CH112: 6.6 | CI112: 88.1 | CJ112: 120 | CK112: 250 | CM112: 10 | CN112: 10000 | CO112: 13000 | CP112: 7.5
B113: 15:2 Svalövsbäcken nedstr Svalöv | C113: 2018-08-28 | D113: 15.2 | E113: 4.4 | F113: 44 | G113: 7.41 | H113: 1.9 | I113: 38.5 | J113: 81 | K113: 110 | M113: 4000 | N113: 330 | O113: 4600 | P113: <5 | R113: 2018 | S113: 8 | AA113: 10.54159091 | AB113: 13.08665043 | AC113: 7.996531384 | AD113: 2.95 | AE113: 7.835530303 | AF113: 8.035470425 | AG113: 7.635590181 | AH113: 6.5 | AI113: 13.16174242 | AJ113: 43.81000234 | AK113: -17.48651749 | AL113: 7 | AM113: 52.6719697 | AN113: 62.81683313 | AO113: 42.52710626 | AP113: 53.60381679 | AQ113: 125.1744386 | AR113: -17.96680503 | AS113: 95.71755725 | AT113: 195.1950595 | AU113: -3.759945022 | AV113: 100 | AW113: 23 | AX113: 34.3137085 | AY113: 11.6862915 | AZ113: 5893.587786 | BA113: 8596.419939 | BB113: 3190.755634 | BC113: 432.7633588 | BD113: 1842.440413 | BE113: -976.9136955 | BF113: 6806.10687 | BG113: 9445.359554 | BH113: 4166.854187 | BI113: 5000 | BJ113: 10.09007634 | BK113: 29.1136603 | BL113: -8.93350763 | BO113: 43340 | CD113: 15.2 | CE113: 4.4 | CF113: 44 | CG113: 7.41 | CH113: 1.9 | CI113: 38.5 | CJ113: 81 | CK113: 110 | CM113: 4000 | CN113: 330 | CO113: 4600 | CP113: 5
B114: 15:2 Svalövsbäcken nedstr Svalöv | C114: 2018-10-30 | D114: 8.3 | E114: 10.4 | F114: 89 | G114: 7.88 | H114: 2.1 | I114: 67.6 | J114: 51 | K114: 76 | M114: 7000 | N114: 200 | O114: 7100 | P114: <5 | R114: 2018 | S114: 10 | AA114: 10.54159091 | AB114: 13.08665043 | AC114: 7.996531384 | AD114: 2.95 | AE114: 7.835530303 | AF114: 8.035470425 | AG114: 7.635590181 | AH114: 6.5 | AI114: 13.16174242 | AJ114: 43.81000234 | AK114: -17.48651749 | AL114: 7 | AM114: 52.6719697 | AN114: 62.81683313 | AO114: 42.52710626 | AP114: 53.60381679 | AQ114: 125.1744386 | AR114: -17.96680503 | AS114: 95.71755725 | AT114: 195.1950595 | AU114: -3.759945022 | AV114: 100 | AW114: 23 | AX114: 34.3137085 | AY114: 11.6862915 | AZ114: 5893.587786 | BA114: 8596.419939 | BB114: 3190.755634 | BC114: 432.7633588 | BD114: 1842.440413 | BE114: -976.9136955 | BF114: 6806.10687 | BG114: 9445.359554 | BH114: 4166.854187 | BI114: 5000 | BJ114: 10.09007634 | BK114: 29.1136603 | BL114: -8.93350763 | BO114: 43403 | CD114: 8.3 | CE114: 10.4 | CF114: 89 | CG114: 7.88 | CH114: 2.1 | CI114: 67.6 | CJ114: 51 | CK114: 76 | CM114: 7000 | CN114: 200 | CO114: 7100 | CP114: 5
B115: 15:2 Svalövsbäcken nedstr Svalöv | C115: 2018-11-27 | D115: 0.8 | E115: 9.5 | F115: 66 | G115: 7.6 | H115: 3.7 | I115: 72.3 | J115: 160 | K115: 210 | M115: 7900 | N115: 3700 | O115: 10000 | P115: <5 | R115: 2018 | S115: 11 | AA115: 10.54159091 | AB115: 13.08665043 | AC115: 7.996531384 | AD115: 2.95 | AE115: 7.835530303 | AF115: 8.035470425 | AG115: 7.635590181 | AH115: 6.5 | AI115: 13.16174242 | AJ115: 43.81000234 | AK115: -17.48651749 | AL115: 7 | AM115: 52.6719697 | AN115: 62.81683313 | AO115: 42.52710626 | AP115: 53.60381679 | AQ115: 125.1744386 | AR115: -17.96680503 | AS115: 95.71755725 | AT115: 195.1950595 | AU115: -3.759945022 | AV115: 100 | AW115: 23 | AX115: 34.3137085 | AY115: 11.6862915 | AZ115: 5893.587786 | BA115: 8596.419939 | BB115: 3190.755634 | BC115: 432.7633588 | BD115: 1842.440413 | BE115: -976.9136955 | BF115: 6806.10687 | BG115: 9445.359554 | BH115: 4166.854187 | BI115: 5000 | BJ115: 10.09007634 | BK115: 29.1136603 | BL115: -8.93350763 | BO115: 43431 | CD115: 0.8 | CE115: 9.5 | CF115: 66 | CG115: 7.6 | CH115: 3.7 | CI115: 72.3 | CJ115: 160 | CK115: 210 | CM115: 7900 | CN115: 3700 | CO115: 10000 | CP115: 5
B116: 15:2 Svalövsbäcken nedstr Svalöv | C116: 2018-12-20 | D116: 4.5 | E116: 10.9 | F116: 84 | G116: 7.59 | H116: 5.5 | I116: 66.5 | J116: 25 | K116: 48 | M116: 15000 | N116: 680 | O116: 14000 | P116: <5 | R116: 2018 | S116: 12 | AA116: 10.54159091 | AB116: 13.08665043 | AC116: 7.996531384 | AD116: 2.95 | AE116: 7.835530303 | AF116: 8.035470425 | AG116: 7.635590181 | AH116: 6.5 | AI116: 13.16174242 | AJ116: 43.81000234 | AK116: -17.48651749 | AL116: 7 | AM116: 52.6719697 | AN116: 62.81683313 | AO116: 42.52710626 | AP116: 53.60381679 | AQ116: 125.1744386 | AR116: -17.96680503 | AS116: 95.71755725 | AT116: 195.1950595 | AU116: -3.759945022 | AV116: 100 | AW116: 23 | AX116: 34.3137085 | AY116: 11.6862915 | AZ116: 5893.587786 | BA116: 8596.419939 | BB116: 3190.755634 | BC116: 432.7633588 | BD116: 1842.440413 | BE116: -976.9136955 | BF116: 6806.10687 | BG116: 9445.359554 | BH116: 4166.854187 | BI116: 5000 | BJ116: 10.09007634 | BK116: 29.1136603 | BL116: -8.93350763 | BO116: 43454 | CD116: 4.5 | CE116: 10.9 | CF116: 84 | CG116: 7.59 | CH116: 5.5 | CI116: 66.5 | CJ116: 25 | CK116: 48 | CM116: 15000 | CN116: 680 | CO116: 14000 | CP116: 5
B117: 15:2 Svalövsbäcken nedstr Svalöv | C117: 2019-01-29 | D117: 2.6 | E117: 12.5 | F117: 92 | G117: 7.68 | H117: 8.7 | I117: 58 | J117: 28 | K117: 53 | M117: 14000 | N117: 170 | O117: 14000 | P117: 7.5 | R117: 2019 | S117: 1 | AA117: 10.54159091 | AB117: 13.08665043 | AC117: 7.996531384 | AD117: 2.95 | AE117: 7.835530303 | AF117: 8.035470425 | AG117: 7.635590181 | AH117: 6.5 | AI117: 13.16174242 | AJ117: 43.81000234 | AK117: -17.48651749 | AL117: 7 | AM117: 52.6719697 | AN117: 62.81683313 | AO117: 42.52710626 | AP117: 53.60381679 | AQ117: 125.1744386 | AR117: -17.96680503 | AS117: 95.71755725 | AT117: 195.1950595 | AU117: -3.759945022 | AV117: 100 | AW117: 23 | AX117: 34.3137085 | AY117: 11.6862915 | AZ117: 5893.587786 | BA117: 8596.419939 | BB117: 3190.755634 | BC117: 432.7633588 | BD117: 1842.440413 | BE117: -976.9136955 | BF117: 6806.10687 | BG117: 9445.359554 | BH117: 4166.854187 | BI117: 5000 | BJ117: 10.09007634 | BK117: 29.1136603 | BL117: -8.93350763 | BO117: 43494 | CD117: 2.6 | CE117: 12.5 | CF117: 92 | CG117: 7.68 | CH117: 8.7 | CI117: 58 | CJ117: 28 | CK117: 53 | CM117: 14000 | CN117: 170 | CO117: 14000 | CP117: 7.5
B118: 15:2 Svalövsbäcken nedstr Svalöv | C118: 2019-02-26 | D118: 6.4 | E118: 13 | F118: 106 | G118: 7.89 | H118: 4.5 | I118: 52.9 | J118: 20 | K118: 33 | M118: 13000 | N118: 250 | O118: 14000 | P118: <5 | R118: 2019 | S118: 2 | AA118: 10.54159091 | AB118: 13.08665043 | AC118: 7.996531384 | AD118: 2.95 | AE118: 7.835530303 | AF118: 8.035470425 | AG118: 7.635590181 | AH118: 6.5 | AI118: 13.16174242 | AJ118: 43.81000234 | AK118: -17.48651749 | AL118: 7 | AM118: 52.6719697 | AN118: 62.81683313 | AO118: 42.52710626 | AP118: 53.60381679 | AQ118: 125.1744386 | AR118: -17.96680503 | AS118: 95.71755725 | AT118: 195.1950595 | AU118: -3.759945022 | AV118: 100 | AW118: 23 | AX118: 34.3137085 | AY118: 11.6862915 | AZ118: 5893.587786 | BA118: 8596.419939 | BB118: 3190.755634 | BC118: 432.7633588 | BD118: 1842.440413 | BE118: -976.9136955 | BF118: 6806.10687 | BG118: 9445.359554 | BH118: 4166.854187 | BI118: 5000 | BJ118: 10.09007634 | BK118: 29.1136603 | BL118: -8.93350763 | BO118: 43522 | CD118: 6.4 | CE118: 13 | CF118: 106 | CG118: 7.89 | CH118: 4.5 | CI118: 52.9 | CJ118: 20 | CK118: 33 | CM118: 13000 | CN118: 250 | CO118: 14000 | CP118: 5
B119: 15:2 Svalövsbäcken nedstr Svalöv | C119: 2019-03-26 | D119: 8.1 | E119: 11.4 | F119: 97 | G119: 7.95 | H119: 4.4 | I119: 46.6 | J119: 18 | K119: 36 | M119: 7400 | N119: 560 | O119: 8000 | P119: <5 | R119: 2019 | S119: 3 | AA119: 10.54159091 | AB119: 13.08665043 | AC119: 7.996531384 | AD119: 2.95 | AE119: 7.835530303 | AF119: 8.035470425 | AG119: 7.635590181 | AH119: 6.5 | AI119: 13.16174242 | AJ119: 43.81000234 | AK119: -17.48651749 | AL119: 7 | AM119: 52.6719697 | AN119: 62.81683313 | AO119: 42.52710626 | AP119: 53.60381679 | AQ119: 125.1744386 | AR119: -17.96680503 | AS119: 95.71755725 | AT119: 195.1950595 | AU119: -3.759945022 | AV119: 100 | AW119: 23 | AX119: 34.3137085 | AY119: 11.6862915 | AZ119: 5893.587786 | BA119: 8596.419939 | BB119: 3190.755634 | BC119: 432.7633588 | BD119: 1842.440413 | BE119: -976.9136955 | BF119: 6806.10687 | BG119: 9445.359554 | BH119: 4166.854187 | BI119: 5000 | BJ119: 10.09007634 | BK119: 29.1136603 | BL119: -8.93350763 | BO119: 43550 | CD119: 8.1 | CE119: 11.4 | CF119: 97 | CG119: 7.95 | CH119: 4.4 | CI119: 46.6 | CJ119: 18 | CK119: 36 | CM119: 7400 | CN119: 560 | CO119: 8000 | CP119: 5
B120: 15:2 Svalövsbäcken nedstr Svalöv | C120: 2019-04-23 | D120: 12.2 | E120: 11 | F120: 103 | G120: 8.44 | H120: 1.4 | I120: 52.6 | J120: <2 | K120: 29 | M120: 5300 | N120: 130 | O120: 5400 | P120: <5 | R120: 2019 | S120: 4 | AA120: 10.54159091 | AB120: 13.08665043 | AC120: 7.996531384 | AD120: 2.95 | AE120: 7.835530303 | AF120: 8.035470425 | AG120: 7.635590181 | AH120: 6.5 | AI120: 13.16174242 | AJ120: 43.81000234 | AK120: -17.48651749 | AL120: 7 | AM120: 52.6719697 | AN120: 62.81683313 | AO120: 42.52710626 | AP120: 53.60381679 | AQ120: 125.1744386 | AR120: -17.96680503 | AS120: 95.71755725 | AT120: 195.1950595 | AU120: -3.759945022 | AV120: 100 | AW120: 23 | AX120: 34.3137085 | AY120: 11.6862915 | AZ120: 5893.587786 | BA120: 8596.419939 | BB120: 3190.755634 | BC120: 432.7633588 | BD120: 1842.440413 | BE120: -976.9136955 | BF120: 6806.10687 | BG120: 9445.359554 | BH120: 4166.854187 | BI120: 5000 | BJ120: 10.09007634 | BK120: 29.1136603 | BL120: -8.93350763 | BO120: 43578 | CD120: 12.2 | CE120: 11 | CF120: 103 | CG120: 8.44 | CH120: 1.4 | CI120: 52.6 | CJ120: 2 | CK120: 29 | CM120: 5300 | CN120: 130 | CO120: 5400 | CP120: 5
B121: 15:2 Svalövsbäcken nedstr Svalöv | C121: 2019-05-27 | D121: 13.5 | E121: 7.3 | F121: 70 | G121: 7.82 | H121: 1.2 | I121: 58.4 | J121: 83 | K121: 120 | M121: 6300 | N121: 870 | O121: 7300 | P121: <5 | R121: 2019 | S121: 5 | AA121: 10.54159091 | AB121: 13.08665043 | AC121: 7.996531384 | AD121: 2.95 | AE121: 7.835530303 | AF121: 8.035470425 | AG121: 7.635590181 | AH121: 6.5 | AI121: 13.16174242 | AJ121: 43.81000234 | AK121: -17.48651749 | AL121: 7 | AM121: 52.6719697 | AN121: 62.81683313 | AO121: 42.52710626 | AP121: 53.60381679 | AQ121: 125.1744386 | AR121: -17.96680503 | AS121: 95.71755725 | AT121: 195.1950595 | AU121: -3.759945022 | AV121: 100 | AW121: 23 | AX121: 34.3137085 | AY121: 11.6862915 | AZ121: 5893.587786 | BA121: 8596.419939 | BB121: 3190.755634 | BC121: 432.7633588 | BD121: 1842.440413 | BE121: -976.9136955 | BF121: 6806.10687 | BG121: 9445.359554 | BH121: 4166.854187 | BI121: 5000 | BJ121: 10.09007634 | BK121: 29.1136603 | BL121: -8.93350763 | BO121: 43612 | CD121: 13.5 | CE121: 7.3 | CF121: 70 | CG121: 7.82 | CH121: 1.2 | CI121: 58.4 | CJ121: 83 | CK121: 120 | CM121: 6300 | CN121: 870 | CO121: 7300 | CP121: 5
B122: 15:2 Svalövsbäcken nedstr Svalöv | C122: 2019-06-24 | D122: 17.4 | E122: 12.8 | F122: 134 | G122: 8.38 | H122: 1.25 | I122: 62.25 | J122: 74 | K122: 100 | M122: 7800 | N122: 21 | O122: 8500 | P122: <5 | R122: 2019 | S122: 6 | AA122: 10.54159091 | AB122: 13.08665043 | AC122: 7.996531384 | AD122: 2.95 | AE122: 7.835530303 | AF122: 8.035470425 | AG122: 7.635590181 | AH122: 6.5 | AI122: 13.16174242 | AJ122: 43.81000234 | AK122: -17.48651749 | AL122: 7 | AM122: 52.6719697 | AN122: 62.81683313 | AO122: 42.52710626 | AP122: 53.60381679 | AQ122: 125.1744386 | AR122: -17.96680503 | AS122: 95.71755725 | AT122: 195.1950595 | AU122: -3.759945022 | AV122: 100 | AW122: 23 | AX122: 34.3137085 | AY122: 11.6862915 | AZ122: 5893.587786 | BA122: 8596.419939 | BB122: 3190.755634 | BC122: 432.7633588 | BD122: 1842.440413 | BE122: -976.9136955 | BF122: 6806.10687 | BG122: 9445.359554 | BH122: 4166.854187 | BI122: 5000 | BJ122: 10.09007634 | BK122: 29.1136603 | BL122: -8.93350763 | BO122: 43640 | CD122: 17.4 | CE122: 12.8 | CF122: 134 | CG122: 8.38 | CH122: 1.25 | CI122: 62.25 | CJ122: 74 | CK122: 100 | CM122: 7800 | CN122: 21 | CO122: 8500 | CP122: 5
B123: 15:2 Svalövsbäcken nedstr Svalöv | C123: 2019-07-22 | D123: 17.1 | E123: 9.7 | F123: 101 | G123: 7.86 | H123: 1.3 | I123: 54.9 | J123: 210 | K123: 340 | M123: 4700 | N123: 87 | O123: 5200 | P123: 9.8 | R123: 2019 | S123: 7 | AA123: 10.54159091 | AB123: 13.08665043 | AC123: 7.996531384 | AD123: 2.95 | AE123: 7.835530303 | AF123: 8.035470425 | AG123: 7.635590181 | AH123: 6.5 | AI123: 13.16174242 | AJ123: 43.81000234 | AK123: -17.48651749 | AL123: 7 | AM123: 52.6719697 | AN123: 62.81683313 | AO123: 42.52710626 | AP123: 53.60381679 | AQ123: 125.1744386 | AR123: -17.96680503 | AS123: 95.71755725 | AT123: 195.1950595 | AU123: -3.759945022 | AV123: 100 | AW123: 23 | AX123: 34.3137085 | AY123: 11.6862915 | AZ123: 5893.587786 | BA123: 8596.419939 | BB123: 3190.755634 | BC123: 432.7633588 | BD123: 1842.440413 | BE123: -976.9136955 | BF123: 6806.10687 | BG123: 9445.359554 | BH123: 4166.854187 | BI123: 5000 | BJ123: 10.09007634 | BK123: 29.1136603 | BL123: -8.93350763 | BO123: 43668 | CD123: 17.1 | CE123: 9.7 | CF123: 101 | CG123: 7.86 | CH123: 1.3 | CI123: 54.9 | CJ123: 210 | CK123: 340 | CM123: 4700 | CN123: 87 | CO123: 5200 | CP123: 9.8
B124: 15:2 Svalövsbäcken nedstr Svalöv | C124: 2019-08-27 | D124: 21.1 | E124: 3.8 | F124: 43 | G124: 7.65 | H124: 6.8 | I124: 81.4 | J124: 260 | K124: 620 | M124: 350 | N124: 12000 | O124: 15000 | P124: 11 | R124: 2019 | S124: 8 | AA124: 10.54159091 | AB124: 13.08665043 | AC124: 7.996531384 | AD124: 2.95 | AE124: 7.835530303 | AF124: 8.035470425 | AG124: 7.635590181 | AH124: 6.5 | AI124: 13.16174242 | AJ124: 43.81000234 | AK124: -17.48651749 | AL124: 7 | AM124: 52.6719697 | AN124: 62.81683313 | AO124: 42.52710626 | AP124: 53.60381679 | AQ124: 125.1744386 | AR124: -17.96680503 | AS124: 95.71755725 | AT124: 195.1950595 | AU124: -3.759945022 | AV124: 100 | AW124: 23 | AX124: 34.3137085 | AY124: 11.6862915 | AZ124: 5893.587786 | BA124: 8596.419939 | BB124: 3190.755634 | BC124: 432.7633588 | BD124: 1842.440413 | BE124: -976.9136955 | BF124: 6806.10687 | BG124: 9445.359554 | BH124: 4166.854187 | BI124: 5000 | BJ124: 10.09007634 | BK124: 29.1136603 | BL124: -8.93350763 | BO124: 43704 | CD124: 21.1 | CE124: 3.8 | CF124: 43 | CG124: 7.65 | CH124: 6.8 | CI124: 81.4 | CJ124: 260 | CK124: 620 | CM124: 350 | CN124: 12000 | CO124: 15000 | CP124: 11
B125: 15:2 Svalövsbäcken nedstr Svalöv | C125: 2019-09-25 | D125: 9.8 | E125: 8.4 | F125: 74 | G125: 7.52 | H125: 5.1 | I125: 38.5 | J125: 98 | K125: 130 | M125: 3200 | N125: 110 | O125: 4100 | P125: <5 | R125: 2019 | S125: 9 | AA125: 10.54159091 | AB125: 13.08665043 | AC125: 7.996531384 | AD125: 2.95 | AE125: 7.835530303 | AF125: 8.035470425 | AG125: 7.635590181 | AH125: 6.5 | AI125: 13.16174242 | AJ125: 43.81000234 | AK125: -17.48651749 | AL125: 7 | AM125: 52.6719697 | AN125: 62.81683313 | AO125: 42.52710626 | AP125: 53.60381679 | AQ125: 125.1744386 | AR125: -17.96680503 | AS125: 95.71755725 | AT125: 195.1950595 | AU125: -3.759945022 | AV125: 100 | AW125: 23 | AX125: 34.3137085 | AY125: 11.6862915 | AZ125: 5893.587786 | BA125: 8596.419939 | BB125: 3190.755634 | BC125: 432.7633588 | BD125: 1842.440413 | BE125: -976.9136955 | BF125: 6806.10687 | BG125: 9445.359554 | BH125: 4166.854187 | BI125: 5000 | BJ125: 10.09007634 | BK125: 29.1136603 | BL125: -8.93350763 | BO125: 43733 | CD125: 9.8 | CE125: 8.4 | CF125: 74 | CG125: 7.52 | CH125: 5.1 | CI125: 38.5 | CJ125: 98 | CK125: 130 | CM125: 3200 | CN125: 110 | CO125: 4100 | CP125: 5
B126: 15:2 Svalövsbäcken nedstr Svalöv | C126: 2019-09-26 | D126: 13.3 | E126: 5.8 | F126: 56 | G126: 7.65 | H126: 1 | I126: 68.7 | J126: 150 | K126: 190 | M126: 9200 | N126: 250 | O126: 9200 | P126: <5 | R126: 2019 | S126: 9 | AA126: 10.54159091 | AB126: 13.08665043 | AC126: 7.996531384 | AD126: 2.95 | AE126: 7.835530303 | AF126: 8.035470425 | AG126: 7.635590181 | AH126: 6.5 | AI126: 13.16174242 | AJ126: 43.81000234 | AK126: -17.48651749 | AL126: 7 | AM126: 52.6719697 | AN126: 62.81683313 | AO126: 42.52710626 | AP126: 53.60381679 | AQ126: 125.1744386 | AR126: -17.96680503 | AS126: 95.71755725 | AT126: 195.1950595 | AU126: -3.759945022 | AV126: 100 | AW126: 23 | AX126: 34.3137085 | AY126: 11.6862915 | AZ126: 5893.587786 | BA126: 8596.419939 | BB126: 3190.755634 | BC126: 432.7633588 | BD126: 1842.440413 | BE126: -976.9136955 | BF126: 6806.10687 | BG126: 9445.359554 | BH126: 4166.854187 | BI126: 5000 | BJ126: 10.09007634 | BK126: 29.1136603 | BL126: -8.93350763 | BO126: 43734 | CD126: 13.3 | CE126: 5.8 | CF126: 56 | CG126: 7.65 | CH126: 1 | CI126: 68.7 | CJ126: 150 | CK126: 190 | CM126: 9200 | CN126: 250 | CO126: 9200 | CP126: 5
B127: 15:2 Svalövsbäcken nedstr Svalöv | C127: 2019-10-21 | D127: 11.6 | E127: 10 | F127: 92 | G127: 7.74 | H127: 13 | I127: 52.5 | J127: 36 | K127: 83 | M127: 11000 | N127: 95 | O127: 11000 | P127: 6.8 | R127: 2019 | S127: 10 | AA127: 10.54159091 | AB127: 13.08665043 | AC127: 7.996531384 | AD127: 2.95 | AE127: 7.835530303 | AF127: 8.035470425 | AG127: 7.635590181 | AH127: 6.5 | AI127: 13.16174242 | AJ127: 43.81000234 | AK127: -17.48651749 | AL127: 7 | AM127: 52.6719697 | AN127: 62.81683313 | AO127: 42.52710626 | AP127: 53.60381679 | AQ127: 125.1744386 | AR127: -17.96680503 | AS127: 95.71755725 | AT127: 195.1950595 | AU127: -3.759945022 | AV127: 100 | AW127: 23 | AX127: 34.3137085 | AY127: 11.6862915 | AZ127: 5893.587786 | BA127: 8596.419939 | BB127: 3190.755634 | BC127: 432.7633588 | BD127: 1842.440413 | BE127: -976.9136955 | BF127: 6806.10687 | BG127: 9445.359554 | BH127: 4166.854187 | BI127: 5000 | BJ127: 10.09007634 | BK127: 29.1136603 | BL127: -8.93350763 | BO127: 43759 | CD127: 11.6 | CE127: 10 | CF127: 92 | CG127: 7.74 | CH127: 13 | CI127: 52.5 | CJ127: 36 | CK127: 83 | CM127: 11000 | CN127: 95 | CO127: 11000 | CP127: 6.8
B128: 15:2 Svalövsbäcken nedstr Svalöv | C128: 2019-11-25 | D128: 7.3 | E128: 11.5 | F128: 96 | G128: 7.93 | H128: 7.2 | I128: 54.6 | J128: 29 | K128: 59 | L128: 31 | M128: 8400 | N128: 150 | O128: 9400 | P128: 7.2 | R128: 2019 | S128: 11 | AA128: 10.54159091 | AB128: 13.08665043 | AC128: 7.996531384 | AD128: 2.95 | AE128: 7.835530303 | AF128: 8.035470425 | AG128: 7.635590181 | AH128: 6.5 | AI128: 13.16174242 | AJ128: 43.81000234 | AK128: -17.48651749 | AL128: 7 | AM128: 52.6719697 | AN128: 62.81683313 | AO128: 42.52710626 | AP128: 53.60381679 | AQ128: 125.1744386 | AR128: -17.96680503 | AS128: 95.71755725 | AT128: 195.1950595 | AU128: -3.759945022 | AV128: 100 | AW128: 23 | AX128: 34.3137085 | AY128: 11.6862915 | AZ128: 5893.587786 | BA128: 8596.419939 | BB128: 3190.755634 | BC128: 432.7633588 | BD128: 1842.440413 | BE128: -976.9136955 | BF128: 6806.10687 | BG128: 9445.359554 | BH128: 4166.854187 | BI128: 5000 | BJ128: 10.09007634 | BK128: 29.1136603 | BL128: -8.93350763 | BO128: 43794 | CD128: 7.3 | CE128: 11.5 | CF128: 96 | CG128: 7.93 | CH128: 7.2 | CI128: 54.6 | CJ128: 29 | CK128: 59 | CL128: 31 | CM128: 8400 | CN128: 150 | CO128: 9400 | CP128: 7.2
B129: 15:2 Svalövsbäcken nedstr Svalöv | C129: 2019-12-19 | D129: 6 | E129: 11.9 | F129: 96 | G129: 7.66 | H129: 10.3 | I129: 47 | J129: 14 | K129: 65 | M129: 9100 | N129: 90 | O129: 10000 | P129: 11 | R129: 2019 | S129: 12 | AA129: 10.54159091 | AB129: 13.08665043 | AC129: 7.996531384 | AD129: 2.95 | AE129: 7.835530303 | AF129: 8.035470425 | AG129: 7.635590181 | AH129: 6.5 | AI129: 13.16174242 | AJ129: 43.81000234 | AK129: -17.48651749 | AL129: 7 | AM129: 52.6719697 | AN129: 62.81683313 | AO129: 42.52710626 | AP129: 53.60381679 | AQ129: 125.1744386 | AR129: -17.96680503 | AS129: 95.71755725 | AT129: 195.1950595 | AU129: -3.759945022 | AV129: 100 | AW129: 23 | AX129: 34.3137085 | AY129: 11.6862915 | AZ129: 5893.587786 | BA129: 8596.419939 | BB129: 3190.755634 | BC129: 432.7633588 | BD129: 1842.440413 | BE129: -976.9136955 | BF129: 6806.10687 | BG129: 9445.359554 | BH129: 4166.854187 | BI129: 5000 | BJ129: 10.09007634 | BK129: 29.1136603 | BL129: -8.93350763 | BO129: 43818 | CD129: 6 | CE129: 11.9 | CF129: 96 | CG129: 7.66 | CH129: 10.3 | CI129: 47 | CJ129: 14 | CK129: 65 | CM129: 9100 | CN129: 90 | CO129: 10000 | CP129: 11
B130: 15:2 Svalövsbäcken nedstr Svalöv | C130: 2020-01-27 | D130: 5.5 | E130: 11.6 | F130: 92 | G130: 7.99 | H130: 6.5 | I130: 51.1 | J130: 30 | K130: 50 | M130: 7600 | N130: 310 | O130: 7600 | P130: 5.9 | Q130: Resultatet av kväve total, N, är mindre än summan av ammoniumkväve, NH4-N, och nitrat + nitritkväve, NO23-N. Skillnaden ligger dock inommätosäkerheten. | R130: 2020 | S130: 1 | AA130: 10.54159091 | AB130: 13.08665043 | AC130: 7.996531384 | AD130: 2.95 | AE130: 7.835530303 | AF130: 8.035470425 | AG130: 7.635590181 | AH130: 6.5 | AI130: 13.16174242 | AJ130: 43.81000234 | AK130: -17.48651749 | AL130: 7 | AM130: 52.6719697 | AN130: 62.81683313 | AO130: 42.52710626 | AP130: 53.60381679 | AQ130: 125.1744386 | AR130: -17.96680503 | AS130: 95.71755725 | AT130: 195.1950595 | AU130: -3.759945022 | AV130: 100 | AW130: 23 | AX130: 34.3137085 | AY130: 11.6862915 | AZ130: 5893.587786 | BA130: 8596.419939 | BB130: 3190.755634 | BC130: 432.7633588 | BD130: 1842.440413 | BE130: -976.9136955 | BF130: 6806.10687 | BG130: 9445.359554 | BH130: 4166.854187 | BI130: 5000 | BJ130: 10.09007634 | BK130: 29.1136603 | BL130: -8.93350763 | BO130: 43857 | CD130: 5.5 | CE130: 11.6 | CF130: 92 | CG130: 7.99 | CH130: 6.5 | CI130: 51.1 | CJ130: 30 | CK130: 50 | CM130: 7600 | CN130: 310 | CO130: 7600 | CP130: 5.9
B131: 15:2 Svalövsbäcken nedstr Svalöv | C131: 2020-02-25 | D131: 5.5 | E131: 11.2 | F131: 89 | G131: 7.7 | H131: 40 | I131: 37.9 | J131: 32 | K131: 96 | M131: 6400 | N131: 25 | O131: 6700 | P131: 15 | Q131: Värden från Synlab korr. 12/5 -20, se kommentarsflik | R131: 2020 | S131: 2 | AA131: 10.54159091 | AB131: 13.08665043 | AC131: 7.996531384 | AD131: 2.95 | AE131: 7.835530303 | AF131: 8.035470425 | AG131: 7.635590181 | AH131: 6.5 | AI131: 13.16174242 | AJ131: 43.81000234 | AK131: -17.48651749 | AL131: 7 | AM131: 52.6719697 | AN131: 62.81683313 | AO131: 42.52710626 | AP131: 53.60381679 | AQ131: 125.1744386 | AR131: -17.96680503 | AS131: 95.71755725 | AT131: 195.1950595 | AU131: -3.759945022 | AV131: 100 | AW131: 23 | AX131: 34.3137085 | AY131: 11.6862915 | AZ131: 5893.587786 | BA131: 8596.419939 | BB131: 3190.755634 | BC131: 432.7633588 | BD131: 1842.440413 | BE131: -976.9136955 | BF131: 6806.10687 | BG131: 9445.359554 | BH131: 4166.854187 | BI131: 5000 | BJ131: 10.09007634 | BK131: 29.1136603 | BL131: -8.93350763 | BO131: 43886 | CD131: 5.5 | CE131: 11.2 | CF131: 89 | CG131: 7.7 | CH131: 40 | CI131: 37.9 | CJ131: 32 | CK131: 96 | CM131: 6400 | CN131: 25 | CO131: 6700 | CP131: 15
B132: 15:2 Svalövsbäcken nedstr Svalöv | C132: 2020-03-24 | D132: 5.7 | E132: 13.9 | F132: 111 | G132: 8.12 | H132: 4 | I132: 48.6 | J132: 15 | K132: 38 | M132: 5700 | N132: 270 | O132: 5300 | P132: 3.2 | Q132: Resultatet av kväve total, N, är mindre än summan av ammoniumkväve, NH4-N, och nitrat +nitritkväve, NO23-N. Skillnaden ligger dock inom mätosäkerheten. | R132: 2020 | S132: 3 | AA132: 10.54159091 | AB132: 13.08665043 | AC132: 7.996531384 | AD132: 2.95 | AE132: 7.835530303 | AF132: 8.035470425 | AG132: 7.635590181 | AH132: 6.5 | AI132: 13.16174242 | AJ132: 43.81000234 | AK132: -17.48651749 | AL132: 7 | AM132: 52.6719697 | AN132: 62.81683313 | AO132: 42.52710626 | AP132: 53.60381679 | AQ132: 125.1744386 | AR132: -17.96680503 | AS132: 95.71755725 | AT132: 195.1950595 | AU132: -3.759945022 | AV132: 100 | AW132: 23 | AX132: 34.3137085 | AY132: 11.6862915 | AZ132: 5893.587786 | BA132: 8596.419939 | BB132: 3190.755634 | BC132: 432.7633588 | BD132: 1842.440413 | BE132: -976.9136955 | BF132: 6806.10687 | BG132: 9445.359554 | BH132: 4166.854187 | BI132: 5000 | BJ132: 10.09007634 | BK132: 29.1136603 | BL132: -8.93350763 | BO132: 43914 | CD132: 5.7 | CE132: 13.9 | CF132: 111 | CG132: 8.12 | CH132: 4 | CI132: 48.6 | CJ132: 15 | CK132: 38 | CM132: 5700 | CN132: 270 | CO132: 5300 | CP132: 3.2
B133: 15:2 Svalövsbäcken nedstr Svalöv | C133: 2020-04-21 | D133: 10.6 | E133: 16.3 | F133: 147 | G133: 8.38 | H133: 2 | I133: 56.7 | J133: 12 | K133: 40 | M133: 4200 | N133: 240 | O133: 4900 | P133: <2 | R133: 2020 | S133: 4 | AA133: 10.54159091 | AB133: 13.08665043 | AC133: 7.996531384 | AD133: 2.95 | AE133: 7.835530303 | AF133: 8.035470425 | AG133: 7.635590181 | AH133: 6.5 | AI133: 13.16174242 | AJ133: 43.81000234 | AK133: -17.48651749 | AL133: 7 | AM133: 52.6719697 | AN133: 62.81683313 | AO133: 42.52710626 | AP133: 53.60381679 | AQ133: 125.1744386 | AR133: -17.96680503 | AS133: 95.71755725 | AT133: 195.1950595 | AU133: -3.759945022 | AV133: 100 | AW133: 23 | AX133: 34.3137085 | AY133: 11.6862915 | AZ133: 5893.587786 | BA133: 8596.419939 | BB133: 3190.755634 | BC133: 432.7633588 | BD133: 1842.440413 | BE133: -976.9136955 | BF133: 6806.10687 | BG133: 9445.359554 | BH133: 4166.854187 | BI133: 5000 | BJ133: 10.09007634 | BK133: 29.1136603 | BL133: -8.93350763 | BO133: 43942 | CD133: 10.6 | CE133: 16.3 | CF133: 147 | CG133: 8.38 | CH133: 2 | CI133: 56.7 | CJ133: 12 | CK133: 40 | CM133: 4200 | CN133: 240 | CO133: 4900 | CP133: 2
B134: 15:2 Svalövsbäcken nedstr Svalöv | C134: 2020-05-26 | D134: 16.3 | E134: 15.9 | F134: 163 | G134: 8.51 | H134: 1.7 | I134: 59.3 | J134: 12 | K134: 60 | M134: 4000 | N134: 13 | O134: 4400 | P134: 4.2 | R134: 2020 | S134: 5 | AA134: 10.54159091 | AB134: 13.08665043 | AC134: 7.996531384 | AD134: 2.95 | AE134: 7.835530303 | AF134: 8.035470425 | AG134: 7.635590181 | AH134: 6.5 | AI134: 13.16174242 | AJ134: 43.81000234 | AK134: -17.48651749 | AL134: 7 | AM134: 52.6719697 | AN134: 62.81683313 | AO134: 42.52710626 | AP134: 53.60381679 | AQ134: 125.1744386 | AR134: -17.96680503 | AS134: 95.71755725 | AT134: 195.1950595 | AU134: -3.759945022 | AV134: 100 | AW134: 23 | AX134: 34.3137085 | AY134: 11.6862915 | AZ134: 5893.587786 | BA134: 8596.419939 | BB134: 3190.755634 | BC134: 432.7633588 | BD134: 1842.440413 | BE134: -976.9136955 | BF134: 6806.10687 | BG134: 9445.359554 | BH134: 4166.854187 | BI134: 5000 | BJ134: 10.09007634 | BK134: 29.1136603 | BL134: -8.93350763 | BO134: 43977 | CD134: 16.3 | CE134: 15.9 | CF134: 163 | CG134: 8.51 | CH134: 1.7 | CI134: 59.3 | CJ134: 12 | CK134: 60 | CM134: 4000 | CN134: 13 | CO134: 4400 | CP134: 4.2
B135: 15:2 Svalövsbäcken nedstr Svalöv | C135: 2020-06-23 | D135: 16.3 | E135: 6.4 | F135: 65 | G135: 7.64 | H135: 1.8 | I135: 64.8 | J135: 190 | K135: 210 | M135: 6200 | N135: 230 | O135: 6300 | P135: 2.4 | Q135: Resultatet av kväve total, N, är mindre än summan av ammoniumkväve, NH4-N, och nitrat +nitritkväve, NO23-N. Skillnaden ligger dock inom mätosäkerheten. | R135: 2020 | S135: 6 | AA135: 10.54159091 | AB135: 13.08665043 | AC135: 7.996531384 | AD135: 2.95 | AE135: 7.835530303 | AF135: 8.035470425 | AG135: 7.635590181 | AH135: 6.5 | AI135: 13.16174242 | AJ135: 43.81000234 | AK135: -17.48651749 | AL135: 7 | AM135: 52.6719697 | AN135: 62.81683313 | AO135: 42.52710626 | AP135: 53.60381679 | AQ135: 125.1744386 | AR135: -17.96680503 | AS135: 95.71755725 | AT135: 195.1950595 | AU135: -3.759945022 | AV135: 100 | AW135: 23 | AX135: 34.3137085 | AY135: 11.6862915 | AZ135: 5893.587786 | BA135: 8596.419939 | BB135: 3190.755634 | BC135: 432.7633588 | BD135: 1842.440413 | BE135: -976.9136955 | BF135: 6806.10687 | BG135: 9445.359554 | BH135: 4166.854187 | BI135: 5000 | BJ135: 10.09007634 | BK135: 29.1136603 | BL135: -8.93350763 | BO135: 44005 | CD135: 16.3 | CE135: 6.4 | CF135: 65 | CG135: 7.64 | CH135: 1.8 | CI135: 64.8 | CJ135: 190 | CK135: 210 | CM135: 6200 | CN135: 230 | CO135: 6300 | CP135: 2.4
B136: 15:2 Svalövsbäcken nedstr Svalöv | C136: 2020-07-21 | D136: 15.2 | E136: 10.1 | F136: 101 | G136: 7.92 | H136: 2 | I136: 70.3 | J136: 140 | K136: 180 | M136: 8700 | N136: 150 | O136: 8900 | P136: <2 | R136: 2020 | S136: 7 | AA136: 10.54159091 | AB136: 13.08665043 | AC136: 7.996531384 | AD136: 2.95 | AE136: 7.835530303 | AF136: 8.035470425 | AG136: 7.635590181 | AH136: 6.5 | AI136: 13.16174242 | AJ136: 43.81000234 | AK136: -17.48651749 | AL136: 7 | AM136: 52.6719697 | AN136: 62.81683313 | AO136: 42.52710626 | AP136: 53.60381679 | AQ136: 125.1744386 | AR136: -17.96680503 | AS136: 95.71755725 | AT136: 195.1950595 | AU136: -3.759945022 | AV136: 100 | AW136: 23 | AX136: 34.3137085 | AY136: 11.6862915 | AZ136: 5893.587786 | BA136: 8596.419939 | BB136: 3190.755634 | BC136: 432.7633588 | BD136: 1842.440413 | BE136: -976.9136955 | BF136: 6806.10687 | BG136: 9445.359554 | BH136: 4166.854187 | BI136: 5000 | BJ136: 10.09007634 | BK136: 29.1136603 | BL136: -8.93350763 | BO136: 44033 | CD136: 15.2 | CE136: 10.1 | CF136: 101 | CG136: 7.92 | CH136: 2 | CI136: 70.3 | CJ136: 140 | CK136: 180 | CM136: 8700 | CN136: 150 | CO136: 8900 | CP136: 2
B137: 15:2 Svalövsbäcken nedstr Svalöv | C137: 2020-08-18 | D137: 17.8 | E137: 5.1 | F137: 54 | G137: 7.67 | H137: 1.7 | I137: 75.2 | J137: 390 | K137: 420 | M137: 6300 | N137: 2500 | O137: 9800 | P137: 2.4 | R137: 2020 | S137: 8 | AA137: 10.54159091 | AB137: 13.08665043 | AC137: 7.996531384 | AD137: 2.95 | AE137: 7.835530303 | AF137: 8.035470425 | AG137: 7.635590181 | AH137: 6.5 | AI137: 13.16174242 | AJ137: 43.81000234 | AK137: -17.48651749 | AL137: 7 | AM137: 52.6719697 | AN137: 62.81683313 | AO137: 42.52710626 | AP137: 53.60381679 | AQ137: 125.1744386 | AR137: -17.96680503 | AS137: 95.71755725 | AT137: 195.1950595 | AU137: -3.759945022 | AV137: 100 | AW137: 23 | AX137: 34.3137085 | AY137: 11.6862915 | AZ137: 5893.587786 | BA137: 8596.419939 | BB137: 3190.755634 | BC137: 432.7633588 | BD137: 1842.440413 | BE137: -976.9136955 | BF137: 6806.10687 | BG137: 9445.359554 | BH137: 4166.854187 | BI137: 5000 | BJ137: 10.09007634 | BK137: 29.1136603 | BL137: -8.93350763 | BO137: 44061 | CD137: 17.8 | CE137: 5.1 | CF137: 54 | CG137: 7.67 | CH137: 1.7 | CI137: 75.2 | CJ137: 390 | CK137: 420 | CM137: 6300 | CN137: 2500 | CO137: 9800 | CP137: 2.4
B138: 15:2 Svalövsbäcken nedstr Svalöv | C138: 2020-09-21 | D138: 14.4 | E138: 6.8 | F138: 67 | G138: 7.66 | H138: 1.3 | I138: 74.5 | J138: 470 | K138: 490 | M138: 12000 | N138: 1500 | O138: 13000 | P138: 2.4 | Q138: Resultatet av kväve total, N, är mindre än summanav ammoniumkväve, NH4-N, och nitrat + nitritkväve, NO23-N. Skillnaden ligger dock inommätosäkerheten. | R138: 2020 | S138: 9 | AA138: =$E$145 -> 10.54159091 | AB138: =AA138+E$146 -> 13.08665043 | AC138: =AA138-E$146 -> 7.996531384 | AD138: 2.95 | AE138: =$G$145 -> 7.835530303 | AF138: =AE138+G$146 -> 8.035470425 | AG138: =AE138-G$146 -> 7.635590181 | AH138: 6.5 | AI138: =$H$145 -> 13.16174242 | AJ138: =AI138+H$146 -> 43.81000234 | AK138: =AI138-H$146 -> -17.48651749 | AL138: 7 | AM138: =$I$145 -> 52.6719697 | AN138: =AM138+I$146 -> 62.81683313 | AO138: =AM138-I$146 -> 42.52710626 | AP138: =$J$145 -> 53.60381679 | AQ138: =AP138+J$146 -> 125.1744386 | AR138: =AP138-J$146 -> -17.96680503 | AS138: =$K$145 -> 95.71755725 | AT138: =AS138+$K$146 -> 195.1950595 | AU138: =AS138-$K$146 -> -3.759945022 | AV138: 100 | AW138: =$L$145 -> 23 | AX138: =AW138+$L$146 -> 34.3137085 | AY138: =AW138-$L$146 -> 11.6862915 | AZ138: =$M$145 -> 5893.587786 | BA138: =AZ138+$M$146 -> 8596.419939 | BB138: =AZ138-$M$146 -> 3190.755634 | BC138: =$N$145 -> 432.7633588 | BD138: =BC138+$N$146 -> 1842.440413 | BE138: =BC138-$N$146 -> -976.9136955 | BF138: =$O$145 -> 6806.10687 | BG138: =BF138+$O$146 -> 9445.359554 | BH138: =BF138-$O$146 -> 4166.854187 | BI138: 5000 | BJ138: =$P$145 -> 10.09007634 | BK138: =BJ138+$P$146 -> 29.1136603 | BL138: =BJ138-$P$146 -> -8.93350763 | BO138: =C138 -> 44095 | CD138: =IF(D138="","",IF(OR(LEFT(D138,1)="<",LEFT(D138,1)=">"),VALUE(MID(D138,2,3)),D138)) -> 14.4 | CE138: =IF(E138="","",IF(OR(LEFT(E138,1)="<",LEFT(E138,1)=">"),VALUE(MID(E138,2,3)),E138)) -> 6.8 | CF138: =IF(F138="","",IF(OR(LEFT(F138,1)="<",LEFT(F138,1)=">"),VALUE(MID(F138,2,3)),F138)) -> 67 | CG138: =IF(G138="","",IF(OR(LEFT(G138,1)="<",LEFT(G138,1)=">"),VALUE(MID(G138,2,3)),G138)) -> 7.66 | CH138: =IF(H138="","",IF(OR(LEFT(H138,1)="<",LEFT(H138,1)=">"),VALUE(MID(H138,2,3)),H138)) -> 1.3 | CI138: =IF(I138="","",IF(OR(LEFT(I138,1)="<",LEFT(I138,1)=">"),VALUE(MID(I138,2,3)),I138)) -> 74.5 | CJ138: =IF(J138="","",IF(OR(LEFT(J138,1)="<",LEFT(J138,1)=">"),VALUE(MID(J138,2,3)),J138)) -> 470 | CK138: =IF(K138="","",IF(OR(LEFT(K138,1)="<",LEFT(K138,1)=">"),VALUE(MID(K138,2,3)),K138)) -> 490 | CL138: =IF(L138="","",IF(OR(LEFT(L138,1)="<",LEFT(L138,1)=">"),VALUE(MID(L138,2,3)),L138)) ->  | CM138: =IF(M138="","",IF(OR(LEFT(M138,1)="<",LEFT(M138,1)=">"),VALUE(MID(M138,2,3)),M138)) -> 12000 | CN138: =IF(N138="","",IF(OR(LEFT(N138,1)="<",LEFT(N138,1)=">"),VALUE(MID(N138,2,3)),N138)) -> 1500 | CO138: =IF(O138="","",IF(OR(LEFT(O138,1)="<",LEFT(O138,1)=">"),VALUE(MID(O138,2,3)),O138)) -> 13000 | CP138: =IF(P138="","",IF(OR(LEFT(P138,1)="<",LEFT(P138,1)=">"),VALUE(MID(P138,2,3)),P138)) -> 2.4
B139: 15:2 Svalövsbäcken nedstr Svalöv | C139: 2020-10-21 | D139: 10.6 | E139: 5.4 | F139: 49 | G139: 7.53 | H139: 2.95 | I139: 69.6 | J139: 380 | K139: 400 | M139: 6900 | N139: 2700 | O139: 8400 | P139: <2 | Q139: Resultatet av kväve total, N, är mindre än summan av ammoniumkväve, NH4-N, och nitrat + nitritkväve, NO23-N. Skillnaden ligger dock inommätosäkerheten. | R139: 2020 | S139: 10 | AA139: 10.54159091 | AB139: 13.08665043 | AC139: 7.996531384 | AD139: 2.95 | AE139: 7.835530303 | AF139: 8.035470425 | AG139: 7.635590181 | AH139: 6.5 | AI139: 13.16174242 | AJ139: 43.81000234 | AK139: -17.48651749 | AL139: 7 | AM139: 52.6719697 | AN139: 62.81683313 | AO139: 42.52710626 | AP139: 53.60381679 | AQ139: 125.1744386 | AR139: -17.96680503 | AS139: 95.71755725 | AT139: 195.1950595 | AU139: -3.759945022 | AV139: 100 | AW139: 23 | AX139: 34.3137085 | AY139: 11.6862915 | AZ139: 5893.587786 | BA139: 8596.419939 | BB139: 3190.755634 | BC139: 432.7633588 | BD139: 1842.440413 | BE139: -976.9136955 | BF139: 6806.10687 | BG139: 9445.359554 | BH139: 4166.854187 | BI139: 5000 | BJ139: 10.09007634 | BK139: 29.1136603 | BL139: -8.93350763 | BO139: 44125 | CD139: 10.6 | CE139: 5.4 | CF139: 49 | CG139: 7.53 | CH139: 2.95 | CI139: 69.6 | CJ139: 380 | CK139: 400 | CM139: 6900 | CN139: 2700 | CO139: 8400 | CP139: 2
B140: 15:2 Svalövsbäcken nedstr Svalöv | C140: 2020-11-26 | D140: 8.1 | E140: 10.8 | F140: 92 | G140: 7.95 | H140: 10 | I140: 55.6 | J140: 33 | K140: 65 | M140: 9300 | N140: 220 | O140: 10000 | P140: 8.4 | R140: 2020 | S140: 11 | AA140: 10.54159091 | AB140: 13.08665043 | AC140: 7.996531384 | AD140: 2.95 | AE140: 7.835530303 | AF140: 8.035470425 | AG140: 7.635590181 | AH140: 6.5 | AI140: 13.16174242 | AJ140: 43.81000234 | AK140: -17.48651749 | AL140: 7 | AM140: 52.6719697 | AN140: 62.81683313 | AO140: 42.52710626 | AP140: 53.60381679 | AQ140: 125.1744386 | AR140: -17.96680503 | AS140: 95.71755725 | AT140: 195.1950595 | AU140: -3.759945022 | AV140: 100 | AW140: 23 | AX140: 34.3137085 | AY140: 11.6862915 | AZ140: 5893.587786 | BA140: 8596.419939 | BB140: 3190.755634 | BC140: 432.7633588 | BD140: 1842.440413 | BE140: -976.9136955 | BF140: 6806.10687 | BG140: 9445.359554 | BH140: 4166.854187 | BI140: 5000 | BJ140: 10.09007634 | BK140: 29.1136603 | BL140: -8.93350763 | BO140: 44161 | CD140: 8.1 | CE140: 10.8 | CF140: 92 | CG140: 7.95 | CH140: 10 | CI140: 55.6 | CJ140: 33 | CK140: 65 | CM140: 9300 | CN140: 220 | CO140: 10000 | CP140: 8.4
B141: 15:2 Svalövsbäcken nedstr Svalöv | C141: 2020-12-21 | D141: 6.6 | E141: 11.7 | F141: 96 | G141: 7.87 | H141: 17 | I141: 55.8 | J141: 31 | K141: 76 | M141: 9400 | N141: 140 | O141: 11000 | P141: 12 | R141: 2020 | S141: 12 | AA141: 10.54159091 | AB141: 13.08665043 | AC141: 7.996531384 | AD141: 2.95 | AE141: 7.835530303 | AF141: 8.035470425 | AG141: 7.635590181 | AH141: 6.5 | AI141: 13.16174242 | AJ141: 43.81000234 | AK141: -17.48651749 | AL141: 7 | AM141: 52.6719697 | AN141: 62.81683313 | AO141: 42.52710626 | AP141: 53.60381679 | AQ141: 125.1744386 | AR141: -17.96680503 | AS141: 95.71755725 | AT141: 195.1950595 | AU141: -3.759945022 | AV141: 100 | AW141: 23 | AX141: 34.3137085 | AY141: 11.6862915 | AZ141: 5893.587786 | BA141: 8596.419939 | BB141: 3190.755634 | BC141: 432.7633588 | BD141: 1842.440413 | BE141: -976.9136955 | BF141: 6806.10687 | BG141: 9445.359554 | BH141: 4166.854187 | BI141: 5000 | BJ141: 10.09007634 | BK141: 29.1136603 | BL141: -8.93350763 | BO141: 44186 | CD141: 6.6 | CE141: 11.7 | CF141: 96 | CG141: 7.87 | CH141: 17 | CI141: 55.8 | CJ141: 31 | CK141: 76 | CM141: 9400 | CN141: 140 | CO141: 11000 | CP141: 12
C145: Medel | D145: =AVERAGE(CD$9:CD144) -> 9.454545455 | E145: =AVERAGE(CE$9:CE144) -> 10.54159091 | F145: =AVERAGE(CF$9:CF144) -> 90.51312759 | G145: =AVERAGE(CG$9:CG144) -> 7.835530303 | H145: =AVERAGE(CH$9:CH144) -> 13.16174242 | I145: =AVERAGE(CI$9:CI144) -> 52.6719697 | J145: =IFERROR(AVERAGE(CJ$9:CJ144),"") -> 53.60381679 | K145: =AVERAGE(CK$9:CK144) -> 95.71755725 | L145: =AVERAGE(CL$9:CL144) -> 23 | M145: =AVERAGE(CM$9:CM144) -> 5893.587786 | N145: =AVERAGE(CN$9:CN144) -> 432.7633588 | O145: =AVERAGE(CO$9:CO144) -> 6806.10687 | P145: =AVERAGE(CP$9:CP144) -> 10.09007634
C146: Std.avv. | D146: =STDEV(CD$9:CD144) -> 5.401008722 | E146: =STDEV(CE$9:CE144) -> 2.545059525 | F146: =STDEV(CF$9:CF144) -> 17.64412753 | G146: =STDEV(CG$9:CG144) -> 0.1999401223 | H146: =STDEV(CH$9:CH144) -> 30.64825992 | I146: =STDEV(CI$9:CI144) -> 10.14486343 | J146: =IFERROR(STDEV(CJ$9:CJ144),"") -> 71.57062182 | K146: =STDEV(CK$9:CK144) -> 99.47750227 | L146: =STDEV(CL$9:CL144) -> 11.3137085 | M146: =STDEV(CM$9:CM144) -> 2702.832152 | N146: =STDEV(CN$9:CN144) -> 1409.677054 | O146: =STDEV(CO$9:CO144) -> 2639.252683 | P146: =STDEV(CP$9:CP144) -> 19.02358397
C147: Max | D147: =MAX(CD$9:CD144) -> 21.1 | E147: =MAX(CE$9:CE144) -> 16.3 | F147: =MAX(CF$9:CF144) -> 163 | G147: =MAX(CG$9:CG144) -> 8.51 | H147: =MAX(CH$9:CH144) -> 250 | I147: =MAX(CI$9:CI144) -> 88.1 | J147: =MAX(CJ$9:CJ144) -> 470 | K147: =MAX(CK$9:CK144) -> 620 | L147: =MAX(CL$9:CL144) -> 31 | M147: =MAX(CM$9:CM144) -> 15000 | N147: =MAX(CN$9:CN144) -> 12000 | O147: =MAX(CO$9:CO144) -> 15000 | P147: =MAX(CP$9:CP144) -> 150
C148: Min | D148: =MIN(CD$9:CD144) -> -0.1 | E148: =MIN(CE$9:CE144) -> 2.1 | F148: =MIN(CF$9:CF144) -> 23 | G148: =MIN(CG$9:CG144) -> 7.41 | H148: =MIN(CH$9:CH144) -> 0.89 | I148: =MIN(CI$9:CI144) -> 29.6 | J148: =MIN(CJ$9:CJ144) -> 2 | K148: =MIN(CK$9:CK144) -> 20 | L148: =MIN(CL$9:CL144) -> 15 | M148: =MIN(CM$9:CM144) -> 10 | N148: =MIN(CN$9:CN144) -> 10 | O148: =MIN(CO$9:CO144) -> 3200 | P148: =MIN(CP$9:CP144) -> 2
C149: Antal | D149: =COUNTA(D$9:D144) -> 132 | E149: =COUNTA(E$9:E144) -> 132 | F149: =COUNTA(F$9:F144) -> 131 | G149: =COUNTA(G$9:G144) -> 132 | H149: =COUNTA(H$9:H144) -> 132 | I149: =COUNTA(I$9:I144) -> 132 | J149: =COUNTA(J$9:J144) -> 131 | K149: =COUNTA(K$9:K144) -> 131 | L149: =COUNTA(L$9:L144) -> 14 | M149: =COUNTA(M$9:M144) -> 131 | N149: =COUNTA(N$9:N144) -> 131 | O149: =COUNTA(O$9:O144) -> 131 | P149: =COUNTA(P$9:P144) -> 131
C150: SISTA
E153: OBS! Värden < a (och > a) hanteras som a i beräkning av medelvärde, standardavvikelse, min och max

Sheet Diagram
C3: Provpunkt: | R3: Senaste provtagningsdatum | AR3: Senaste provtagningsdatum
C4: =Statistik!$B8 -> 15:2 Svalövsbäcken nedstr Svalöv | H4: Statistik för: | I4: =MIN(Statistik!$C9:$C144) -> 2010-01-26 | J4: - | K4: =MAX(Statistik!$C9:$C144) -> 2020-12-21 | R4: =IF((VLOOKUP(C4,Provpunkter!B1:C10,2,FALSE))=12,MAX(RS!E3:E13),MAX(RS!E51:E56)) -> 2021-11-24 | AR4: 2021-06-21
M7: Syre | N7: halt | P7: mättnad | R7: Årets resultat | AR7: Årets resultat
N8: mg/l | P8: % | R8: Datum | S8: mg/l | T8: % | AR8: Datum | AS8: mg/l
M9: Medel | N9: =Statistik!E$145 -> 10.54159091 | P9: =Statistik!F$145 -> 90.51312759 | R9: =IFERROR(VLOOKUP(CONCATENATE($C$4,"1"),RS!$B$3:$S$110,4,FALSE),"") -> 2021-01-25 | S9: =IFERROR(VLOOKUP(CONCATENATE($C$4,"1"),RS!$B$3:$S$110,6,FALSE),"") -> 12.8 | T9: =IFERROR(VLOOKUP(CONCATENATE($C$4,"1"),RS!$B$3:$S$110,7,FALSE),"") -> 97 | AR9: 2021-01-25 | AS9: 12.8
M10: Std.avv. | N10: =Statistik!E$146 -> 2.545059525 | P10: =Statistik!F$146 -> 17.64412753 | R10: =IFERROR(VLOOKUP(CONCATENATE($C$4,"2"),RS!$B$3:$S$110,4,FALSE),"") -> 2021-02-22 | S10: =IFERROR(VLOOKUP(CONCATENATE($C$4,"2"),RS!$B$3:$S$110,6,FALSE),"") -> 12.9 | T10: =IFERROR(VLOOKUP(CONCATENATE($C$4,"2"),RS!$B$3:$S$110,7,FALSE),"") -> 96 | AR10: 2021-02-22 | AS10: 12.9
M11: Max | N11: =Statistik!E$147 -> 16.3 | P11: =Statistik!F$147 -> 163 | R11: =IFERROR(VLOOKUP(CONCATENATE($C$4,"3"),RS!$B$3:$S$110,4,FALSE),"") -> 2021-03-24 | S11: =IFERROR(VLOOKUP(CONCATENATE($C$4,"3"),RS!$B$3:$S$110,6,FALSE),"") -> 12.8 | T11: =IFERROR(VLOOKUP(CONCATENATE($C$4,"3"),RS!$B$3:$S$110,7,FALSE),"") -> 104 | AR11: 2021-03-24 | AS11: 12.8
M12: Min | N12: =Statistik!E$148 -> 2.1 | P12: =Statistik!F$148 -> 23 | R12: =IFERROR(VLOOKUP(CONCATENATE($C$4,"4"),RS!$B$3:$S$110,4,FALSE),"") -> 2021-04-27 | S12: =IFERROR(VLOOKUP(CONCATENATE($C$4,"4"),RS!$B$3:$S$110,6,FALSE),"") -> 14.8 | T12: =IFERROR(VLOOKUP(CONCATENATE($C$4,"4"),RS!$B$3:$S$110,7,FALSE),"") -> 121 | AR12: 2021-04-27 | AS12: 14.8
M13: Antal värden | N13: =Statistik!E$149 -> 132 | R13: =IFERROR(VLOOKUP(CONCATENATE($C$4,"5"),RS!$B$3:$S$110,4,FALSE),"") -> 2021-05-25 | S13: =IFERROR(VLOOKUP(CONCATENATE($C$4,"5"),RS!$B$3:$S$110,6,FALSE),"") -> 9.6 | T13: =IFERROR(VLOOKUP(CONCATENATE($C$4,"5"),RS!$B$3:$S$110,7,FALSE),"") -> 90 | AR13: 2021-05-25 | AS13: 9.6
R14: =IFERROR(VLOOKUP(CONCATENATE($C$4,"6"),RS!$B$3:$S$110,4,FALSE),"") -> 2021-06-21 | S14: =IFERROR(VLOOKUP(CONCATENATE($C$4,"6"),RS!$B$3:$S$110,6,FALSE),"") -> 6.8 | T14: =IFERROR(VLOOKUP(CONCATENATE($C$4,"6"),RS!$B$3:$S$110,7,FALSE),"") -> 70 | AR14: 2021-06-21 | AS14: 6.8
M15: Senaste | N15: =VLOOKUP(TRIM(CONCATENATE($C$4,$R$4)),RS!$A$3:$R$110,7,FALSE) -> 11.5 | P15: =VLOOKUP(TRIM(CONCATENATE($C$4,$R$4)),RS!$A$3:$R$110,8,FALSE) -> 97 | R15: =IFERROR(VLOOKUP(CONCATENATE($C$4,"7"),RS!$B$3:$S$110,4,FALSE),"") -> 2021-07-21 | S15: =IFERROR(VLOOKUP(CONCATENATE($C$4,"7"),RS!$B$3:$S$110,6,FALSE),"") -> 7.7 | T15: =IFERROR(VLOOKUP(CONCATENATE($C$4,"7"),RS!$B$3:$S$110,7,FALSE),"") -> 80
R16: =IFERROR(VLOOKUP(CONCATENATE($C$4,"8"),RS!$B$3:$S$110,4,FALSE),"") -> 2021-08-30 | S16: =IFERROR(VLOOKUP(CONCATENATE($C$4,"8"),RS!$B$3:$S$110,6,FALSE),"") -> 9.6 | T16: =IFERROR(VLOOKUP(CONCATENATE($C$4,"8"),RS!$B$3:$S$110,7,FALSE),"") -> 98
R17: =IFERROR(VLOOKUP(CONCATENATE($C$4,"9"),RS!$B$3:$S$110,4,FALSE),"") -> 2021-09-29 | S17: =IFERROR(VLOOKUP(CONCATENATE($C$4,"9"),RS!$B$3:$S$110,6,FALSE),"") -> 10.3 | T17: =IFERROR(VLOOKUP(CONCATENATE($C$4,"9"),RS!$B$3:$S$110,7,FALSE),"") -> 99
R18: =IFERROR(VLOOKUP(CONCATENATE($C$4,"10"),RS!$B$3:$S$110,4,FALSE),"") -> 2021-10-20 | S18: =IFERROR(VLOOKUP(CONCATENATE($C$4,"10"),RS!$B$3:$S$110,6,FALSE),"") -> 9.3 | T18: =IFERROR(VLOOKUP(CONCATENATE($C$4,"10"),RS!$B$3:$S$110,7,FALSE),"") -> 87
R19: =IFERROR(VLOOKUP(CONCATENATE($C$4,"11"),RS!$B$3:$S$110,4,FALSE),"") -> 2021-11-24 | S19: =IFERROR(VLOOKUP(CONCATENATE($C$4,"11"),RS!$B$3:$S$110,6,FALSE),"") -> 11.5 | T19: =IFERROR(VLOOKUP(CONCATENATE($C$4,"11"),RS!$B$3:$S$110,7,FALSE),"") -> 97
R20: =IFERROR(VLOOKUP(CONCATENATE($C$4,"12"),RS!$B$3:$S$110,4,FALSE),"") -> 2021-12-21 | S20: =IFERROR(VLOOKUP(CONCATENATE($C$4,"12"),RS!$B$3:$S$110,6,FALSE),"") -> 12.8 | T20: =IFERROR(VLOOKUP(CONCATENATE($C$4,"12"),RS!$B$3:$S$110,7,FALSE),"") -> 94
M25: Tot-N | N25: µg/l | R25: Årets resultat | AR25: Årets resultat
R26: Datum | S26: µg/l | AR26: Datum | AS26: µg/l
M27: Medel | N27: =Statistik!O$145 -> 6806.10687 | R27: =IFERROR(VLOOKUP(CONCATENATE($C$4,"1"),RS!$B$3:$S$110,4,FALSE),"") -> 2021-01-25 | S27: =IFERROR(VLOOKUP(CONCATENATE($C$4,"1"),RS!$B$3:$S$110,16,FALSE),"") -> 8900 | AR27: 2021-01-25 | AS27: 8900
M28: Std.avv. | N28: =Statistik!O$146 -> 2639.252683 | R28: =IFERROR(VLOOKUP(CONCATENATE($C$4,"2"),RS!$B$3:$S$110,4,FALSE),"") -> 2021-02-22 | S28: =IFERROR(VLOOKUP(CONCATENATE($C$4,"2"),RS!$B$3:$S$110,16,FALSE),"") -> 7500 | AR28: 2021-02-22 | AS28: 7500
M29: Max | N29: =Statistik!O$147 -> 15000 | R29: =IFERROR(VLOOKUP(CONCATENATE($C$4,"3"),RS!$B$3:$S$110,4,FALSE),"") -> 2021-03-24 | S29: =IFERROR(VLOOKUP(CONCATENATE($C$4,"3"),RS!$B$3:$S$110,16,FALSE),"") -> 7400 | AR29: 2021-03-24 | AS29: 7400
M30: Min | N30: =Statistik!O$148 -> 3200 | R30: =IFERROR(VLOOKUP(CONCATENATE($C$4,"4"),RS!$B$3:$S$110,4,FALSE),"") -> 2021-04-27 | S30: =IFERROR(VLOOKUP(CONCATENATE($C$4,"4"),RS!$B$3:$S$110,16,FALSE),"") -> 4900 | AR30: 2021-04-27 | AS30: 4900
M31: Antal värden | N31: =Statistik!O$149 -> 131 | R31: =IFERROR(VLOOKUP(CONCATENATE($C$4,"5"),RS!$B$3:$S$110,4,FALSE),"") -> 2021-05-25 | S31: =IFERROR(VLOOKUP(CONCATENATE($C$4,"5"),RS!$B$3:$S$110,16,FALSE),"") -> 4400 | AR31: 2021-05-25 | AS31: 4400
R32: =IFERROR(VLOOKUP(CONCATENATE($C$4,"6"),RS!$B$3:$S$110,4,FALSE),"") -> 2021-06-21 | S32: =IFERROR(VLOOKUP(CONCATENATE($C$4,"6"),RS!$B$3:$S$110,16,FALSE),"") -> 10000 | AR32: 2021-06-21 | AS32: 10000
M33: Senaste | N33: =VLOOKUP(TRIM(CONCATENATE($C$4,$R$4)),RS!$A$3:$R$110,17,FALSE) -> 7100 | R33: =IFERROR(VLOOKUP(CONCATENATE($C$4,"7"),RS!$B$3:$S$110,4,FALSE),"") -> 2021-07-21 | S33: =IFERROR(VLOOKUP(CONCATENATE($C$4,"7"),RS!$B$3:$S$110,16,FALSE),"") -> 7800
R34: =IFERROR(VLOOKUP(CONCATENATE($C$4,"8"),RS!$B$3:$S$110,4,FALSE),"") -> 2021-08-30 | S34: =IFERROR(VLOOKUP(CONCATENATE($C$4,"8"),RS!$B$3:$S$110,16,FALSE),"") -> 
R35: =IFERROR(VLOOKUP(CONCATENATE($C$4,"9"),RS!$B$3:$S$110,4,FALSE),"") -> 2021-09-29 | S35: =IFERROR(VLOOKUP(CONCATENATE($C$4,"9"),RS!$B$3:$S$110,16,FALSE),"") -> 4500
R36: =IFERROR(VLOOKUP(CONCATENATE($C$4,"10"),RS!$B$3:$S$110,4,FALSE),"") -> 2021-10-20 | S36: =IFERROR(VLOOKUP(CONCATENATE($C$4,"10"),RS!$B$3:$S$110,16,FALSE),"") -> 8700
R37: =IFERROR(VLOOKUP(CONCATENATE($C$4,"11"),RS!$B$3:$S$110,4,FALSE),"") -> 2021-11-24 | S37: =IFERROR(VLOOKUP(CONCATENATE($C$4,"11"),RS!$B$3:$S$110,16,FALSE),"") -> 7100
R38: =IFERROR(VLOOKUP(CONCATENATE($C$4,"12"),RS!$B$3:$S$110,4,FALSE),"") -> 2021-12-21 | S38: =IFERROR(VLOOKUP(CONCATENATE($C$4,"12"),RS!$B$3:$S$110,16,FALSE),"") -> 7200
M43: Tot-P | N43: µg/l | R43: Årets resultat | AR43: Årets resultat
R44: Datum | S44: µg/l | AR44: Datum | AS44: µg/l
M45: Medel | N45: =Statistik!K$145 -> 95.71755725 | R45: =IFERROR(VLOOKUP(CONCATENATE($C$4,"1"),RS!$B$3:$S$110,4,FALSE),"") -> 2021-01-25 | S45: =IFERROR(VLOOKUP(CONCATENATE($C$4,"1"),RS!$B$3:$S$110,12,FALSE),"") -> 64 | AR45: 2021-01-25 | AS45: 64
